Workbook

Sheet Overview
A1: tes set 4; n=22 | B1: 1 tool, no filter (20, 50, 0.01)
B2: Mutations (TP) | C2: Polymorphisms (TP) | D2: Mutations (FN) | E2: Polymorphisms (FN) | F2: No Mutations (FP_M) | G2: No Mutations (FP_P) | H2: No Mutations (TN2) | I2: No Mutations (TN1) | J2: Variants | K2: Artifacts | L2: sens | M2: PPV
A3: GATK | B3: 51 | C3: 109 | D3: 0 | E3: 3 | F3: 3 | G3: 0 | H3: 41 | I3: 16 | J3: =SUM(B3:E3) -> 163 | K3: =SUM(F3:I3) -> 60 | L3: =J3/190 -> 0.8578947368 | M3: =J3/(J3+K3) -> 0.730941704
A4: Platypus | B4: 57 | C4: 111 | D4: 0 | E4: 5 | F4: 2 | G4: 1 | H4: 375 | I4: 19 | J4: =SUM(B4:E4) -> 173 | K4: =SUM(F4:I4) -> 397 | L4: =J4/190 -> 0.9105263158 | M4: =J4/(J4+K4) -> 0.3035087719
A5: VarScan | B5: 42 | C5: 89 | D5: 3 | E5: 5 | F5: 1 | G5: 1 | H5: 84 | I5: 29 | J5: =SUM(B5:E5) -> 139 | K5: =SUM(F5:I5) -> 115 | L5: =J5/190 -> 0.7315789474 | M5: =J5/(J5+K5) -> 0.5472440945
A6: LoFreq | B6: 39 | C6: 94 | D6: 0 | E6: 5 | F6: 71 | G6: 5 | H6: 962 | I6: 8037 | J6: =SUM(B6:E6) -> 138 | K6: =SUM(F6:I6) -> 9075 | L6: =J6/190 -> 0.7263157895 | M6: =J6/(J6+K6) -> 0.01497883426
A7: FreeBayes | B7: 63 | C7: 109 | D7: 3 | E7: 5 | F7: 77 | G7: 11 | H7: 4570 | I7: 29051 | J7: =SUM(B7:E7) -> 180 | K7: =SUM(F7:I7) -> 33709 | L7: =J7/190 -> 0.9473684211 | M7: =J7/(J7+K7) -> 0.005311457995
A8: SNVer | B8: 47 | C8: 70 | D8: 2 | E8: 2 | F8: 40 | G8: 1 | H8: 1903 | I8: 627 | J8: =SUM(B8:E8) -> 121 | K8: =SUM(F8:I8) -> 2571 | L8: =J8/190 -> 0.6368421053 | M8: =J8/(J8+K8) -> 0.04494799406
A9: SAMtools | B9: 31 | C9: 95 | D9: 2 | E9: 5 | F9: 0 | G9: 1 | H9: 48 | I9: 67 | J9: =SUM(B9:E9) -> 133 | K9: =SUM(F9:I9) -> 116 | L9: =J9/190 -> 0.7 | M9: =J9/(J9+K9) -> 0.5341365462
A10: VarDict | B10: 57 | C10: 110 | D10: 6 | E10: 0 | F10: 73 | G10: 0 | H10: 1613 | I10: 41 | J10: =SUM(B10:E10) -> 173 | K10: =SUM(F10:I10) -> 1727 | L10: =J10/190 -> 0.9105263158 | M10: =J10/(J10+K10) -> 0.09105263158
B11: 65 | C11: 111 | D11: 8 | E11: 6 | F11: 79 | G11: 15 | H11: 4721 | I11: 29264 | J11: =SUM(B11:E11) -> 190 | K11: =SUM(F11:I11) -> 34079
B14: 8 tools, no filter (20, 50, 0.01)
B15: Variants | C15: Artifacts | D15: sens | E15: PPV
B16: =SUM(B11,C11,D11,5) -> 189 | C16: =K11 -> 34079 | D16: =B16/B17 -> 0.9947368421 | E16: =B16/(B16+C16) -> 0.005515349597
B17: =J11 -> 190
B19: 8 tools, our filter; single sample info
B20: Mutations | C20: Artifacts | D20: sens | E20: PPV
B21: =B11+C11 -> 176 | C21: 762 | D21: =Overview!B21/B22 -> 0.9263157895 | E21: =Overview!B21/(Overview!B21+Overview!C21) -> 0.1876332623
B22: =J11 -> 190
B24: 8 tools our filter
B25: Variants | C25: Artifacts | D25: sens | E25: PPV
B26: =SUM(B11,C11) -> 176 | C26: =SUM(F11,G11) -> 94 | D26: =B26/B27 -> 0.9263157895 | E26: =B26/(B26+C26) -> 0.6518518519
B27: =J11 -> 190
A36: Mutations only | B36: 1 tool, no filter (20, 50, 0.01)
B37: Mutations (TP) | C37: Mutations (FN) | D37: No Mutations (FP_M) | E37: No Mutations (TN2) | F37: No Mutations (TN1) | G37: Variants | H37: Artifacts | I37: sens | J37: PPV
A38: GATK | B38: 51 | C38: 0 | D38: 3 | E38: 41 | F38: 16 | G38: =SUM(B38,C38) -> 51 | H38: =SUM(D38,E38,F38) -> 60 | I38: =G38/73 -> 0.698630137 | J38: =G38/(G38+H38) -> 0.4594594595
A39: Platypus | B39: 57 | C39: 0 | D39: 2 | E39: 375 | F39: 19 | G39: =SUM(B39,C39) -> 57 | H39: =SUM(D39,E39,F39) -> 396 | I39: =G39/73 -> 0.7808219178 | J39: =G39/(G39+H39) -> 0.1258278146
A40: VarScan | B40: 42 | C40: 3 | D40: 1 | E40: 84 | F40: 29 | G40: =SUM(B40,C40) -> 45 | H40: =SUM(D40,E40,F40) -> 114 | I40: =G40/73 -> 0.6164383562 | J40: =G40/(G40+H40) -> 0.2830188679
A41: LoFreq | B41: 39 | C41: 0 | D41: 71 | E41: 962 | F41: 8037 | G41: =SUM(B41,C41) -> 39 | H41: =SUM(D41,E41,F41) -> 9070 | I41: =G41/73 -> 0.5342465753 | J41: =G41/(G41+H41) -> 0.004281479855
A42: FreeBayes | B42: 63 | C42: 3 | D42: 77 | E42: 4570 | F42: 29051 | G42: =SUM(B42,C42) -> 66 | H42: =SUM(D42,E42,F42) -> 33698 | I42: =G42/73 -> 0.904109589 | J42: =G42/(G42+H42) -> 0.001954744698
A43: SNVer | B43: 47 | C43: 2 | D43: 40 | E43: 1903 | F43: 627 | G43: =SUM(B43,C43) -> 49 | H43: =SUM(D43,E43,F43) -> 2570 | I43: =G43/73 -> 0.6712328767 | J43: =G43/(G43+H43) -> 0.01870943108
A44: SAMtools | B44: 31 | C44: 2 | D44: 0 | E44: 48 | F44: 67 | G44: =SUM(B44,C44) -> 33 | H44: =SUM(D44,E44,F44) -> 115 | I44: =G44/73 -> 0.4520547945 | J44: =G44/(G44+H44) -> 0.222972973
A45: VarDict | B45: 57 | C45: 6 | D45: 73 | E45: 1613 | F45: 41 | G45: =SUM(B45,C45) -> 63 | H45: =SUM(D45,E45,F45) -> 1727 | I45: =G45/73 -> 0.8630136986 | J45: =G45/(G45+H45) -> 0.03519553073
B46: 65 | C46: 8 | D46: 79 | E46: 4721 | F46: 29264 | G46: =SUM(B46,C46) -> 73 | H46: =SUM(D46,E46,F46) -> 34064
B49: 8 tools, no filter (20, 50, 0.01)
B50: Variants | C50: Artifacts | D50: sens | E50: PPV
B51: =SUM(B46,C46) -> 73 | C51: =H46 -> 34064 | D51: =B51/B52 -> 1 | E51: =B51/(B51+C51) -> 0.00213844216
B52: =G46 -> 73
B54: 8 tools, our filter; single sample info
B55: Mutations | C55: Artifacts | D55: sens | E55: PPV
B56: 65 | C56: 871 | D56: =Overview!B56/B57 -> 0.8904109589 | E56: =Overview!B56/(Overview!B56+Overview!C56) -> 0.06944444444
B57: =G46 -> 73
B59: 8 tools our filter
B60: Variants | C60: Artifacts | D60: sens | E60: PPV
B61: =SUM(B46) -> 65 | C61: =SUM(D46) -> 79 | D61: =B61/B62 -> 0.8904109589 | E61: =B61/(B61+C61) -> 0.4513888889
B62: =G46 -> 73

Sheet TP Mutations
A1: True because... | B1: Sample | C1: Chr | D1: Pos | E1: Ref | F1: Alt | G1: Gene | H1: ENST | I1: Type | J1: Mutation | K1: Nr_Ref | L1: Nr_Alt | M1: DP | N1: VAF | O1: GATK | P1: Platypus | Q1: VarScan | R1: LoFreq | S1: FreeBayes | T1: SNVer | U1: SAMtools | V1: VarDict | W1: Called | X1: ESP6500 | Y1: G1000 | Z1: Cosmic | AA1: Cosmic_location | AB1: Cosmic_occurence | AC1: dbSNP_SNPs | AD1: dbSNP_SNVs | AE1: PM_flag | AF1: ExAC | AG1: ClinVar_clinical | AH1: ClinVar_noimpact | AI1: provean_score | AJ1: prediction | AK1: BQ_Ref | AL1: BQ_Alt | AM1: Nr_Ref_fwd | AN1: Nr_Alt_fwd | AO1: DP_fwd | AP1: VAF_fwd | AQ1: Nr_Ref_rev | AR1: Nr_Alt_rev | AS1: DP_rev | AT1: VAF_rev | AU1: strandbias | AV1: nr_samples | AW1: nr_samples_similar | AX1: Category
A2: Expert, Cosmic | B2: UPN_Te4_001 | C2: 1 | D2: 43815009 | E2: G | F2: T | G2: MPL | H2: ENST00000372470 | I2: missense_variant | J2: tGg/tTg|p.Trp515Leu/c.1544G>T | K2: 6360 | L2: 6238 | M2: 12748 | N2: 0.4893316599 | O2: 1 | P2: 1 | Q2: 1 | R2: 0 | S2: 1 | T2: 0 | U2: 1 | V2: 1 | W2: 6 | X2: NO | Y2: NO | Z2: COSM18918, COSM3719407 | AA2: haematopoietic_and_lymphoid_tissue | AB2: 268 | AC2: NO | AD2: NO | AE2: NO | AF2: 1.647e-05 | AG2: NO | AH2: NO | AI2: -1.391 | AJ2: Tolerated | AK2: 33.39 | AL2: 32.15 | AM2: 6331 | AN2: 6238 | AO2: 12719 | AP2: 0.4904473622 | AQ2: 29 | AR2: 0 | AS2: 29 | AT2: 0 | AU2: 3.745591903e-09 | AV2: 1 | AW2: 1 | AX2: Probably True (-2)
A3: Expert, prediction | B3: UPN_Te4_006 | C3: 1 | D3: 115256536 | E3: C | F3: T | G3: NRAS | H3: ENST00000369535 | I3: missense_variant | J3: Gct/Act|p.Ala59Thr/c.175G>A | K3: 318 | L3: 148 | M3: 466 | N3: 0.3175965665 | O3: 1 | P3: 0 | Q3: 1 | R3: 1 | S3: 1 | T3: 1 | U3: 1 | V3: 1 | W3: 7 | X3: NO | Y3: NO | Z3: COSM578 | AA3: autonomic_ganglia, haematopoietic_and_lymphoid_tissue, pancreas | AB3: 1, 1, 3 | AC3: NO | AD3: NO | AE3: NO | AF3: NO | AG3: NO | AH3: NO | AI3: -3.949 | AJ3: Deleterious | AK3: 31.55 | AL3: 32.41 | AM3: 318 | AN3: 146 | AO3: 464 | AP3: 0.3146551724 | AQ3: 0 | AR3: 2 | AS3: 2 | AT3: 1 | AU3: 0.1004014952 | AV3: 1 | AW3: 1 | AX3: Probably True (-6)
A4: Hotspot, Expert, dbSNP, Cosmic, prediction, bq | B4: UPN_Te4_007 | C4: 1 | D4: 115258744 | E4: C | F4: T | G4: NRAS | H4: ENST00000369535 | I4: missense_variant | J4: gGt/gAt|p.Gly13Asp/c.38G>A | K4: 15301 | L4: 14003 | M4: 29382 | N4: 0.4765843033 | O4: 1 | P4: 1 | Q4: 1 | R4: 1 | S4: 1 | T4: 0 | U4: 1 | V4: 1 | W4: 7 | X4: NO | Y4: NO | Z4: COSM573 | AA4: endometrium, haematopoietic_and_lymphoid_tissue, large_intestine, NS, skin, thyroid, upper_aerodigestive_tract | AB4: 1, 217, 10, 278, 26, 1, 2 | AC4: NO | AD4: rs121434596 | AE4: YES | AF4: 8.236e-06 | AG4: NO | AH4: NO | AI4: -5.441 | AJ4: Deleterious | AK4: 35.06 | AL4: 34.64 | AM4: 15301 | AN4: 14003 | AO4: 29382 | AP4: 0.4765843033 | AQ4: 0 | AR4: 0 | AS4: 0 | AT4: NA | AU4: 1 | AV4: 2 | AW4: 2 | AX4: Hotspot (-9)
A5: Hotspot, Expert, Illumina validated, Ion Torrent validated, dbSNP, Cosmic, prediction | B5: UPN_Te4_006 | C5: 1 | D5: 115258745 | E5: C | F5: A | G5: NRAS | H5: ENST00000369535 | I5: missense_variant | J5: Ggt/Tgt|p.Gly13Cys/c.37G>T | K5: 21311 | L5: 1893 | M5: 23246 | N5: 0.08143336488 | O5: 0 | P5: 0 | Q5: 0 | R5: 1 | S5: 1 | T5: 0 | U5: 0 | V5: 0 | W5: 2 | X5: NO | Y5: NO | Z5: COSM570 | AA5: haematopoietic_and_lymphoid_tissue, large_intestine, skin, thyroid | AB5: 26, 2, 4, 2 | AC5: NO | AD5: rs121434595 | AE5: YES | AF5: NO | AG5: NO | AH5: NO | AI5: -7.663 | AJ5: Deleterious | AK5: 33.7 | AL5: 30.09 | AM5: 21311 | AN5: 1893 | AO5: 23246 | AP5: 0.08143336488 | AQ5: 0 | AR5: 0 | AS5: 0 | AT5: NA | AU5: 1 | AV5: 2 | AW5: 2 | AX5: Hotspot (-4)
A6: Hotspot, Expert, Illumina validated, Ion Torrent validated, dbSNP, Cosmic, prediction, bq | B6: UPN_Te4_002 | C6: 1 | D6: 115258747 | E6: C | F6: T | G6: NRAS | H6: ENST00000369535 | I6: missense_variant | J6: gGt/gAt|p.Gly12Asp/c.35G>A | K6: 23589 | L6: 1115 | M6: 24859 | N6: 0.04485297076 | O6: 0 | P6: 0 | Q6: 0 | R6: 1 | S6: 1 | T6: 0 | U6: 0 | V6: 1 | W6: 3 | X6: 0.0116 | Y6: NO | Z6: COSM564 | AA6: biliary_tract, central_nervous_system, endometrium, genital_tract, haematopoietic_and_lymphoid_tissue, kidney, large_intestine, lung, NS, ovary, pancreas, skin, soft_tissue, testis, thyroid, upper_aerodigestive_tract | AB6: 4, 5, 4, 2, 381, 1, 60, 1, 570, 1, 1, 61, 2, 3, 2, 1 | AC6: NO | AD6: rs121913237 | AE6: YES | AF6: 1.647e-05 | AG6: NO | AH6: NO | AI6: -5.5 | AJ6: Deleterious | AK6: 34.57 | AL6: 34.33 | AM6: 23589 | AN6: 1115 | AO6: 24859 | AP6: 0.04485297076 | AQ6: 0 | AR6: 0 | AS6: 0 | AT6: NA | AU6: 1 | AV6: 1 | AW6: 1 | AX6: Hotspot (-6)
A7: Hotspot, Expert, dbSNP, Cosmic, prediction, bq | B7: UPN_Te4_003 | C7: 1 | D7: 115258748 | E7: C | F7: T | G7: NRAS | H7: ENST00000369535 | I7: missense_variant | J7: Ggt/Agt|p.Gly12Ser/c.34G>A | K7: 9528 | L7: 8663 | M7: 18256 | N7: 0.474528922 | O7: 1 | P7: 1 | Q7: 1 | R7: 1 | S7: 1 | T7: 0 | U7: 1 | V7: 1 | W7: 7 | X7: NO | Y7: NO | Z7: COSM563 | AA7: haematopoietic_and_lymphoid_tissue, large_intestine, lung, ovary, prostate, skin, soft_tissue, upper_aerodigestive_tract | AB7: 110, 6, 3, 1, 6, 13, 1, 21 | AC7: NO | AD7: rs121913250 | AE7: YES | AF7: NO | AG7: NO | AH7: NO | AI7: -4.621 | AJ7: Deleterious | AK7: 34.77 | AL7: 34.05 | AM7: 9528 | AN7: 8663 | AO7: 18256 | AP7: 0.474528922 | AQ7: 0 | AR7: 0 | AS7: 0 | AT7: NA | AU7: 1 | AV7: 3 | AW7: 3 | AX7: Hotspot (-9)
A8: Hotspot, Expert, prediction, bq | B8: UPN_Te4_006 | C8: 2 | D8: 25457242 | E8: C | F8: A | G8: DNMT3A | H8: ENST00000264709 | I8: missense_variant | J8: cGc/cTc|p.Arg882Leu/c.2645G>T | K8: 7673 | L8: 6576 | M8: 14301 | N8: 0.4598279841 | O8: 1 | P8: 1 | Q8: 1 | R8: 1 | S8: 1 | T8: 1 | U8: 1 | V8: 1 | W8: 8 | X8: NO | Y8: NO | Z8: COSM1583129 | AA8: haematopoietic_and_lymphoid_tissue | AB8: 2 | AC8: NO | AD8: NO | AE8: NO | AF8: 0.000593 | AG8: NO | AH8: NO | AI8: -6.061 | AJ8: Deleterious | AK8: 34.22 | AL8: 33.62 | AM8: 3859 | AN8: 3314 | AO8: 7191 | AP8: 0.4608538451 | AQ8: 3814 | AR8: 3262 | AS8: 7110 | AT8: 0.458790436 | AU8: 0.9063651056 | AV8: 1 | AW8: 1 | AX8: Hotspot (-9)
A9: Expert, prediction, bq | B9: UPN_Te4_004 | C9: 2 | D9: 25462068 | E9: A | F9: G | G9: DNMT3A | H9: ENST00000264709 | I9: missense_variant | J9: aTt/aCt|p.Ile780Thr/c.2339T>C | K9: 9442 | L9: 6654 | M9: 16207 | N9: 0.4105633368 | O9: 1 | P9: 1 | Q9: 1 | R9: 1 | S9: 1 | T9: 1 | U9: 1 | V9: 1 | W9: 8 | X9: 0.0116 | Y9: NO | Z9: COSM1583121 | AA9: haematopoietic_and_lymphoid_tissue | AB9: 2 | AC9: NO | AD9: rs370751539 | AE9: NO | AF9: NO | AG9: NO | AH9: NO | AI9: -4.232 | AJ9: Deleterious | AK9: 27.69 | AL9: 33.91 | AM9: 4770 | AN9: 3354 | AO9: 8155 | AP9: 0.4112814224 | AQ9: 4672 | AR9: 3300 | AS9: 8052 | AT9: 0.4098360656 | AU9: 0.8981067442 | AV9: 1 | AW9: 1 | AX9: Probably True (-6)
A10: Hotspot, Expert, Cosmic, prediction, bq | B10: UPN_Te4_015 | C10: 2 | D10: 198266834 | E10: T | F10: C | G10: SF3B1 | H10: ENST00000335508 | I10: missense_variant | J10: Aaa/Gaa|p.Lys700Glu/c.2098A>G | K10: 10918 | L10: 5155 | M10: 16098 | N10: 0.320226115 | O10: 1 | P10: 1 | Q10: 1 | R10: 1 | S10: 1 | T10: 0 | U10: 1 | V10: 1 | W10: 7 | X10: NO | Y10: 0 | Z10: COSM84677 | AA10: breast, central_nervous_system, eye, haematopoietic_and_lymphoid_tissue, kidney, NS, oesophagus, pancreas, prostate | AB10: 14, 2, 1, 395, 1, 515, 1, 13, 4 | AC10: NO | AD10: NO | AE10: NO | AF10: 0.0002306 | AG10: NO | AH10: NO | AI10: -3.819 | AJ10: Deleterious | AK10: 35.33 | AL10: 34.76 | AM10: 0 | AN10: 0 | AO10: 0 | AP10: NA | AQ10: 10918 | AR10: 5155 | AS10: 16098 | AT10: 0.320226115 | AU10: 1 | AV10: 1 | AW10: 1 | AX10: Hotspot (-9)
A11: Expert, bq | B11: UPN_Te4_021 | C11: 3 | D11: 128205184 | E11: CG | F11: C | G11: GATA2 | H11: ENST00000341105 | I11: frameshift_variant | J11: cgc/|p.Arg86fs/c.256delC | K11: 5720 | L11: 4007 | M11: 9780 | N11: 0.4097137014 | O11: 1 | P11: 1 | Q11: 0 | R11: 0 | S11: 1 | T11: 1 | U11: 0 | V11: 1 | W11: 5 | X11: NO | Y11: NO | Z11: NO | AA11: NO | AB11: O | AC11: NO | AD11: NO | AE11: NO | AF11: NO | AG11: NO | AH11: NO | AI11: NA | AJ11: NA | AK11: 35.15 | AL11: NA | AM11: 3630 | AN11: 3958 | AO11: 7629 | AP11: 0.5188098047 | AQ11: 2090 | AR11: 49 | AS11: 2151 | AT11: 0.02278010228 | AU11: 2 | AV11: 2 | AW11: 2 | AX11: Probably True (-3)
A12: Expert, Cosmic, bq | B12: UPN_Te4_013 | C12: 4 | D12: 106157845 | E12: C | F12: T | G12: TET2 | H12: ENST00000380013 | I12: stop_gained | J12: Cag/Tag|p.Gln916*/c.2746C>T | K12: 3324 | L12: 3042 | M12: 6387 | N12: 0.4762799436 | O12: 1 | P12: 1 | Q12: 1 | R12: 1 | S12: 1 | T12: 1 | U12: 1 | V12: 1 | W12: 8 | X12: NO | Y12: NO | Z12: COSM43417, COSM3733079 | AA12: haematopoietic_and_lymphoid_tissue | AB12: 26 | AC12: NO | AD12: NO | AE12: NO | AF12: 1.647e-05 | AG12: NO | AH12: NO | AI12: NA | AJ12: NA | AK12: 34.82 | AL12: 34.76 | AM12: 3312 | AN12: 3034 | AO12: 6367 | AP12: 0.476519554 | AQ12: 12 | AR12: 8 | AS12: 20 | AT12: 0.4 | AU12: 0.5112187322 | AV12: 1 | AW12: 1 | AX12: Probably True (-5)
A13: Expert, bq | B13: UPN_Te4_014 | C13: 4 | D13: 106157950 | E13: GCT | F13: G | G13: TET2 | H13: ENST00000380013 | I13: frameshift_variant | J13: cta/|p.Leu952fs/c.2854_2855delCT | K13: 31742 | L13: 4284 | M13: 36121 | N13: 0.1186013676 | O13: 0 | P13: 1 | Q13: 0 | R13: 0 | S13: 1 | T13: 1 | U13: 0 | V13: 0 | W13: 3 | X13: NO | Y13: NO | Z13: NO | AA13: NA | AB13: NA | AC13: NO | AD13: NO | AE13: NO | AF13: NO | AG13: NO | AH13: NO | AI13: NA | AJ13: NA | AK13: 35.15 | AL13: NA | AM13: 20537 | AN13: 8 | AO13: 20607 | AP13: 0.000388217596 | AQ13: 11205 | AR13: 4276 | AS13: 15514 | AT13: 0.2756220188 | AU13: 2 | AV13: 1 | AW13: 1 | AX13: Probably True (-1)
A14: Expert, bq | B14: UPN_Te4_004 | C14: 4 | D14: 106158187 | E14: C | F14: T | G14: TET2 | H14: ENST00000380013 | I14: stop_gained | J14: Cag/Tag|p.Gln1030*/c.3088C>T | K14: 12812 | L14: 8627 | M14: 21493 | N14: 0.4013864979 | O14: 1 | P14: 1 | Q14: 1 | R14: 0 | S14: 1 | T14: 1 | U14: 1 | V14: 1 | W14: 7 | X14: NO | Y14: NO | Z14: COSM4766113 | AA14: haematopoietic_and_lymphoid_tissue | AB14: 1 | AC14: NO | AD14: NO | AE14: NO | AF14: 8.237e-06 | AG14: NO | AH14: NO | AI14: NA | AJ14: NA | AK14: 35.3 | AL14: 35.04 | AM14: 12715 | AN14: 8615 | AO14: 21384 | AP14: 0.4028713056 | AQ14: 97 | AR14: 12 | AS14: 109 | AT14: 0.1100917431 | AU14: 2.103458015e-11 | AV14: 1 | AW14: 1 | AX14: Probably True (-3)
A15: Expert, prediction, bq | B15: UPN_Te4_007 | C15: 4 | D15: 106164020 | E15: T | F15: A | G15: TET2 | H15: ENST00000380013 | I15: missense_variant | J15: aTt/aAt|p.Ile1177Asn/c.3530T>A | K15: 15502 | L15: 15354 | M15: 30959 | N15: 0.4959462515 | O15: 1 | P15: 1 | Q15: 1 | R15: 1 | S15: 1 | T15: 0 | U15: 1 | V15: 1 | W15: 7 | X15: NO | Y15: NO | Z15: NO | AA15: NO | AB15: O | AC15: NO | AD15: NO | AE15: NO | AF15: NO | AG15: NO | AH15: NO | AI15: -6.148 | AJ15: Deleterious | AK15: 35.24 | AL15: 33.75 | AM15: 15502 | AN15: 15354 | AO15: 30959 | AP15: 0.4959462515 | AQ15: 0 | AR15: 0 | AS15: 0 | AT15: NA | AU15: 1 | AV15: 1 | AW15: 1 | AX15: Probably True (-6)
A16: Expert, prediction | B16: UPN_Te4_019 | C16: 4 | D16: 106180871 | E16: T | F16: C | G16: TET2 | H16: ENST00000380013 | I16: missense_variant | J16: tTt/tCt|p.Phe1300Ser/c.3899T>C | K16: 9183 | L16: 4555 | M16: 13760 | N16: 0.3310319767 | O16: 1 | P16: 1 | Q16: 1 | R16: 1 | S16: 1 | T16: 1 | U16: 1 | V16: 1 | W16: 8 | X16: NO | Y16: NO | Z16: NO | AA16: NA | AB16: NA | AC16: NO | AD16: NO | AE16: NO | AF16: NO | AG16: NO | AH16: NO | AI16: -6.549 | AJ16: Deleterious | AK16: 34.43 | AL16: 32.51 | AM16: 4613 | AN16: 2299 | AO16: 6925 | AP16: 0.3319855596 | AQ16: 4570 | AR16: 2256 | AS16: 6835 | AT16: 0.3300658376 | AU16: 0.7997189373 | AV16: 1 | AW16: 1 | AX16: Probably True (-6)
A17: Expert, prediction | B17: UPN_Te4_003 | C17: 4 | D17: 106190882 | E17: A | F17: C | G17: TET2 | H17: ENST00000380013 | I17: missense_variant | J17: aAc/aCc|p.Asn1387Thr/c.4160A>C | K17: 6225 | L17: 1503 | M17: 7808 | N17: 0.192494877 | O17: 1 | P17: 1 | Q17: 0 | R17: 1 | S17: 1 | T17: 1 | U17: 1 | V17: 1 | W17: 7 | X17: NO | Y17: NO | Z17: NO | AA17: NA | AB17: NA | AC17: NO | AD17: NO | AE17: NO | AF17: NO | AG17: NO | AH17: NO | AI17: -5.776 | AJ17: Deleterious | AK17: 34.28 | AL17: 32.43 | AM17: 3147 | AN17: 740 | AO17: 3916 | AP17: 0.188968335 | AQ17: 3078 | AR17: 763 | AS17: 3892 | AT17: 0.1960431655 | AU17: 0.3729596336 | AV17: 1 | AW17: 1 | AX17: Probably True (-6)
A18: Expert, bq | B18: UPN_Te4_003 | C18: 4 | D18: 106196825 | E18: A | F18: T | G18: TET2 | H18: ENST00000380013 | I18: stop_gained | J18: Aaa/Taa|p.Lys1720*/c.5158A>T | K18: 13005 | L18: 13374 | M18: 26457 | N18: 0.5054994897 | O18: 1 | P18: 1 | Q18: 1 | R18: 1 | S18: 1 | T18: 1 | U18: 1 | V18: 1 | W18: 8 | X18: NO | Y18: NO | Z18: NO | AA18: NO | AB18: O | AC18: NO | AD18: NO | AE18: NO | AF18: NO | AG18: NO | AH18: NO | AI18: NA | AJ18: NA | AK18: 35.26 | AL18: 35.14 | AM18: 7549 | AN18: 7628 | AO18: 15222 | AP18: 0.5011168046 | AQ18: 5456 | AR18: 5746 | AS18: 11235 | AT18: 0.5114374722 | AU18: 0.09756095735 | AV18: 2 | AW18: 2 | AX18: Probably True (-5)
A19: Hotspot, Expert, bq | B19: UPN_Te4_002 | C19: 5 | D19: 170837543 | E19: C | F19: CTCTG | G19: NPM1 | H19: ENST00000517671 | I19: frameshift_variant | J19: tgg/tgTCTGg|p.Trp288fs/c.860_863dupTCTG | K19: 9660 | L19: 3297 | M19: 10791 | N19: 0.3055323881 | O19: 1 | P19: 1 | Q19: 1 | R19: 0 | S19: 0 | T19: 1 | U19: 0 | V19: 1 | W19: 5 | X19: NO | Y19: NO | Z19: NO | AA19: NA | AB19: NA | AC19: NO | AD19: NO | AE19: NO | AF19: 8.286e-06 | AG19: NO | AH19: NO | AI19: NA | AJ19: NA | AK19: 19.53 | AL19: NA | AM19: 9660 | AN19: 3297 | AO19: 10791 | AP19: 0.3055323881 | AQ19: 0 | AR19: 0 | AS19: 0 | AT19: NA | AU19: 1 | AV19: 2 | AW19: 4 | AX19: Hotspot (-4)
A20: Hotspot, Expert, bq | B20: UPN_Te4_010 | C20: 5 | D20: 170837543 | E20: C | F20: CTCTG | G20: NPM1 | H20: ENST00000517671 | I20: frameshift_variant | J20: tgg/tgTCTGg|p.Trp288fs/c.860_863dupTCTG | K20: 12643 | L20: 2889 | M20: 14137 | N20: 0.2043573601 | O20: 1 | P20: 1 | Q20: 1 | R20: 0 | S20: 1 | T20: 1 | U20: 0 | V20: 1 | W20: 6 | X20: NO | Y20: NO | Z20: NO | AA20: NA | AB20: NA | AC20: NO | AD20: NO | AE20: NO | AF20: 8.286e-06 | AG20: NO | AH20: NO | AI20: NA | AJ20: NA | AK20: 19.59 | AL20: NA | AM20: 12643 | AN20: 2889 | AO20: 14137 | AP20: 0.2043573601 | AQ20: 0 | AR20: 0 | AS20: 0 | AT20: NA | AU20: 1 | AV20: 2 | AW20: 4 | AX20: Hotspot (-5)
A21: Hotspot, Expert, bq | B21: UPN_Te4_006 | C21: 5 | D21: 170837545 | E21: C | F21: CTGCT | G21: NPM1 | H21: ENST00000517671 | I21: frameshift_variant | J21: tgg/tgCTTGg|p.Trp288fs/c.863_864insCTTG | K21: 10259 | L21: 4663 | M21: 11254 | N21: 0.4143415674 | O21: 1 | P21: 1 | Q21: 1 | R21: 0 | S21: 1 | T21: 1 | U21: 0 | V21: 1 | W21: 6 | X21: NO | Y21: NO | Z21: NO | AA21: NA | AB21: NA | AC21: NO | AD21: NO | AE21: NO | AF21: NO | AG21: NO | AH21: NO | AI21: NA | AJ21: NA | AK21: 20.41 | AL21: NA | AM21: 10259 | AN21: 4663 | AO21: 11254 | AP21: 0.4143415674 | AQ21: 0 | AR21: 0 | AS21: 0 | AT21: NA | AU21: 1 | AV21: 1 | AW21: 1 | AX21: Hotspot (-6)
A22: Expert, bq | B22: UPN_Te4_002 | C22: 7 | D22: 50444240 | E22: TTAAAG | F22: T | G22: IKZF1 | H22: ENST00000331340 | I22: frameshift_variant | J22: aaagta/|p.Lys58fs/c.173_177delAAGTA | K22: 9603 | L22: 8082 | M22: 17717 | N22: 0.4561720382 | O22: 1 | P22: 1 | Q22: 1 | R22: 0 | S22: 1 | T22: 1 | U22: 0 | V22: 1 | W22: 6 | X22: NO | Y22: NO | Z22: NO | AA22: NA | AB22: NA | AC22: NO | AD22: NO | AE22: NO | AF22: NO | AG22: NO | AH22: NO | AI22: NA | AJ22: NA | AK22: 35.58 | AL22: NA | AM22: 9603 | AN22: 8082 | AO22: 17717 | AP22: 0.4561720382 | AQ22: 0 | AR22: 0 | AS22: 0 | AT22: NA | AU22: 1 | AV22: 1 | AW22: 1 | AX22: Probably True (-3)
A23: Expert, Illumina validated | B23: UPN_Te4_010 | C23: 7 | D23: 101747709 | E23: A | F23: G | G23: CUX1 | H23: ENST00000292535 | I23: missense_variant | J23: aAg/aGg|p.Lys167Arg/c.500A>G | K23: 239 | L23: 29 | M23: 271 | N23: 0.1070110701 | O23: 0 | P23: 0 | Q23: 0 | R23: 1 | S23: 1 | T23: 1 | U23: 1 | V23: 1 | W23: 5 | X23: NO | Y23: NO | Z23: NO | AA23: NO | AB23: O | AC23: NO | AD23: NO | AE23: NO | AF23: NO | AG23: NO | AH23: NO | AI23: -0.47 | AJ23: Tolerated | AK23: 32.85 | AL23: 30.07 | AM23: 116 | AN23: 14 | AO23: 131 | AP23: 0.106870229 | AQ23: 123 | AR23: 15 | AS23: 140 | AT23: 0.1071428571 | AU23: 1 | AV23: 1 | AW23: 1 | AX23: Probably True (-3)
A24: Expert, bq | B24: UPN_Te4_007 | C24: 7 | D24: 148525838 | E24: G | F24: A | G24: EZH2 | H24: ENST00000320356 | I24: stop_gained | J24: Cga/Tga|p.Arg207*/c.619C>T | K24: 7099 | L24: 5361 | M24: 12470 | N24: 0.4299117883 | O24: 1 | P24: 1 | Q24: 1 | R24: 1 | S24: 1 | T24: 0 | U24: 1 | V24: 1 | W24: 7 | X24: NO | Y24: NO | Z24: COSM52996 | AA24: haematopoietic_and_lymphoid_tissue | AB24: 1 | AC24: NO | AD24: NO | AE24: NO | AF24: NO | AG24: NO | AH24: NO | AI24: NA | AJ24: NA | AK24: 35.13 | AL24: 35.59 | AM24: 7099 | AN24: 5361 | AO24: 12470 | AP24: 0.4299117883 | AQ24: 0 | AR24: 0 | AS24: 0 | AT24: NA | AU24: 1 | AV24: 1 | AW24: 1 | AX24: Probably True (-5)
A25: Expert, bq | B25: UPN_Te4_008 | C25: 7 | D25: 148525850 | E25: G | F25: C | G25: EZH2 | H25: ENST00000320356 | I25: missense_variant | J25: Ctg/Gtg|p.Leu203Val/c.607C>G | K25: 5035 | L25: 4706 | M25: 9764 | N25: 0.4819746006 | O25: 1 | P25: 1 | Q25: 1 | R25: 1 | S25: 1 | T25: 0 | U25: 1 | V25: 1 | W25: 7 | X25: NO | Y25: NO | Z25: NO | AA25: NO | AB25: O | AC25: NO | AD25: NO | AE25: NO | AF25: NO | AG25: NO | AH25: NO | AI25: -0.508 | AJ25: Tolerated | AK25: 35.33 | AL25: 35.49 | AM25: 5035 | AN25: 4706 | AO25: 9764 | AP25: 0.4819746006 | AQ25: 0 | AR25: 0 | AS25: 0 | AT25: NA | AU25: 1 | AV25: 1 | AW25: 1 | AX25: Probably True (-5)
A26: Expert, prediction | B26: UPN_Te4_007 | C26: 9 | D26: 5073732 | E26: T | F26: C | G26: JAK2 | H26: ENST00000381652 | I26: missense_variant | J26: cTt/cCt|p.Leu604Pro/c.1811T>C | K26: 7913 | L26: 8464 | M26: 16594 | N26: 0.5100638785 | O26: 1 | P26: 1 | Q26: 1 | R26: 1 | S26: 1 | T26: 0 | U26: 1 | V26: 1 | W26: 7 | X26: NO | Y26: NO | Z26: NO | AA26: NO | AB26: O | AC26: NO | AD26: NO | AE26: NO | AF26: NO | AG26: NO | AH26: NO | AI26: -4.423 | AJ26: Deleterious | AK26: 34.82 | AL26: 29.41 | AM26: 7913 | AN26: 8464 | AO26: 16594 | AP26: 0.5100638785 | AQ26: 0 | AR26: 0 | AS26: 0 | AT26: NA | AU26: 1 | AV26: 1 | AW26: 1 | AX26: Probably True (-6)
A27: Hotspot, Expert, dbSNP, Cosmic, prediction | B27: UPN_Te4_016 | C27: 9 | D27: 5073770 | E27: G | F27: T | G27: JAK2 | H27: ENST00000381652 | I27: missense_variant | J27: Gtc/Ttc|p.Val617Phe/c.1849G>T | K27: 19790 | L27: 1371 | M27: 21207 | N27: 0.06464846513 | O27: 0 | P27: 0 | Q27: 0 | R27: 1 | S27: 1 | T27: 1 | U27: 0 | V27: 1 | W27: 4 | X27: 0.0233 | Y27: NO | Z27: COSM12600 | AA27: central_nervous_system, haematopoietic_and_lymphoid_tissue, lung | AB27: 1, 37620, 3 | AC27: NO | AD27: rs77375493 | AE27: YES | AF27: 0.0006919 | AG27: NO | AH27: NO | AI27: -3.94 | AJ27: Deleterious | AK27: 32.57 | AL27: 32.48 | AM27: 9858 | AN27: 724 | AO27: 10606 | AP27: 0.06826324722 | AQ27: 9932 | AR27: 647 | AS27: 10601 | AT27: 0.06103197812 | AU27: 0.03376832134 | AV27: 1 | AW27: 1 | AX27: Hotspot (-7)
A28: Expert, Illumina validated, Ion Torrent validated, bq | B28: UPN_Te4_010 | C28: 11 | D28: 32417924 | E28: C | F28: CAA | G28: WT1 | H28: ENST00000332351 | I28: frameshift_variant | J28: ccg/ccTTg|p.Thr377fs/c.1127_1128insTT | K28: 18668 | L28: 3106 | M28: 18737 | N28: 0.165768266 | O28: 1 | P28: 1 | Q28: 0 | R28: 0 | S28: 1 | T28: 1 | U28: 0 | V28: 1 | W28: 5 | X28: NO | Y28: NO | Z28: NO | AA28: NA | AB28: NA | AC28: NO | AD28: NO | AE28: NO | AF28: NO | AG28: NO | AH28: NO | AI28: NA | AJ28: NA | AK28: 34.76 | AL28: NA | AM28: 1 | AN28: 0 | AO28: 1 | AP28: 0 | AQ28: 18667 | AR28: 3106 | AS28: 18736 | AT28: 0.1657771136 | AU28: 1 | AV28: 1 | AW28: 1 | AX28: Probably True (-2)
A29: Expert, Cosmic, prediction, bq | B29: UPN_Te4_010 | C29: 11 | D29: 119148991 | E29: G | F29: A | G29: CBL | H29: ENST00000264033 | I29: missense_variant | J29: tGt/tAt|p.Cys404Tyr/c.1211G>A | K29: 22201 | L29: 4888 | M29: 27124 | N29: 0.1802094086 | O29: 0 | P29: 1 | Q29: 0 | R29: 0 | S29: 1 | T29: 1 | U29: 0 | V29: 0 | W29: 3 | X29: NO | Y29: NO | Z29: COSM34068 | AA29: haematopoietic_and_lymphoid_tissue | AB29: 13 | AC29: NO | AD29: rs192712314 | AE29: NO | AF29: 8.236e-06 | AG29: NO | AH29: NO | AI29: -10.273 | AJ29: Deleterious | AK29: 35.32 | AL29: 35.5 | AM29: 10799 | AN29: 13 | AO29: 10825 | AP29: 0.001200923788 | AQ29: 11402 | AR29: 4875 | AS29: 16299 | AT29: 0.2990981042 | AU29: 2 | AV29: 1 | AW29: 1 | AX29: Probably True (-2)
A30: Expert, Illumina validated, Ion Torrent validated, prediction | B30: UPN_Te4_011 | C30: 12 | D30: 25398278 | E30: A | F30: C | G30: KRAS | H30: ENST00000256078 | I30: missense_variant | J30: gTa/gGa|p.Val14Gly/c.41T>G | K30: 32370 | L30: 1717 | M30: 34245 | N30: 0.05013870638 | O30: 0 | P30: 0 | Q30: 0 | R30: 1 | S30: 1 | T30: 1 | U30: 0 | V30: 1 | W30: 4 | X30: NO | Y30: NO | Z30: COSM249887 | AA30: large_intestine | AB30: 8 | AC30: NO | AD30: NO | AE30: NO | AF30: NO | AG30: NO | AH30: NO | AI30: -5.885 | AJ30: Deleterious | AK30: 32.72 | AL30: 32.25 | AM30: 16355 | AN30: 881 | AO30: 17300 | AP30: 0.05092485549 | AQ30: 16015 | AR30: 836 | AS30: 16945 | AT30: 0.04933608734 | AU30: 0.5358396107 | AV30: 1 | AW30: 1 | AX30: Probably True (-4)
A31: Hotspot, Expert, Illumina validated, Ion Torrent validated, dbSNP, Cosmic, prediction, bq | B31: UPN_Te4_011 | C31: 12 | D31: 25398281 | E31: C | F31: T | G31: KRAS | H31: ENST00000256078 | I31: missense_variant | J31: gGc/gAc|p.Gly13Asp/c.38G>A | K31: 32285 | L31: 1766 | M31: 34247 | N31: 0.05156656057 | O31: 0 | P31: 0 | Q31: 0 | R31: 1 | S31: 1 | T31: 1 | U31: 0 | V31: 0 | W31: 3 | X31: NO | Y31: NO | Z31: COSM1140132, COSM532 | AA31: biliary_tract, cervix, endometrium, haematopoietic_and_lymphoid_tissue, large_intestine, liver, lung, oesophagus, pancreas, peritoneum, stomach, upper_aerodigestive_tract, bone, breast, central_nervous_system, gastrointestinal_tract_(site_indeterminate), genital_tract, ovary, pleura, prostate, skin, small_intestine, soft_tissue, thyroid, urinary_tract | AB31: 25, 7, 71, 150, 4245, 5, 164, 6, 39, 12, 64, 6, 1, 18, 1, 23, 1, 36, 2, 23, 3, 19, 34, 23, 5 | AC31: NO | AD31: rs112445441 | AE31: YES | AF31: NO | AG31: NO | AH31: NO | AI31: -5.483 | AJ31: Deleterious | AK31: 31.83 | AL31: 33.63 | AM31: 16355 | AN31: 887 | AO31: 17298 | AP31: 0.05127760435 | AQ31: 15930 | AR31: 879 | AS31: 16949 | AT31: 0.05186146675 | AU31: 0.7322600662 | AV31: 1 | AW31: 1 | AX31: Hotspot (-4)
A32: Expert, prediction, bq | B32: UPN_Te4_002 | C32: 12 | D32: 112888195 | E32: T | F32: C | G32: PTPN11 | H32: ENST00000351677 | I32: missense_variant | J32: Ttt/Ctt|p.Phe71Leu/c.211T>C | K32: 37881 | L32: 5240 | M32: 43212 | N32: 0.1212626122 | O32: 1 | P32: 1 | Q32: 0 | R32: 1 | S32: 1 | T32: 1 | U32: 0 | V32: 1 | W32: 6 | X32: NO | Y32: NO | Z32: COSM13039 | AA32: haematopoietic_and_lymphoid_tissue, large_intestine | AB32: 4, 1 | AC32: NO | AD32: NO | AE32: NO | AF32: NO | AG32: NO | AH32: NO | AI32: -5.671 | AJ32: Deleterious | AK32: 34.73 | AL32: 34.83 | AM32: 19084 | AN32: 2641 | AO32: 21771 | AP32: 0.1213081622 | AQ32: 18797 | AR32: 2599 | AS32: 21441 | AT32: 0.1212163612 | AU32: 0.9764854471 | AV32: 1 | AW32: 1 | AX32: Probably True (-6)
A33: Hotspot, Expert, Cosmic, prediction, bq | B33: UPN_Te4_002 | C33: 13 | D33: 28592642 | E33: C | F33: A | G33: FLT3 | H33: ENST00000241453 | I33: missense_variant | J33: Gat/Tat|p.Asp835Tyr/c.2503G>T | K33: 22173 | L33: 7383 | M33: 29592 | N33: 0.2494931062 | O33: 1 | P33: 1 | Q33: 1 | R33: 1 | S33: 1 | T33: 0 | U33: 0 | V33: 1 | W33: 6 | X33: NO | Y33: NO | Z33: COSM783 | AA33: haematopoietic_and_lymphoid_tissue | AB33: 216 | AC33: NO | AD33: NO | AE33: NO | AF33: NO | AG33: NO | AH33: NO | AI33: -7.899 | AJ33: Deleterious | AK33: 34.78 | AL33: 35.02 | AM33: 22137 | AN33: 7383 | AO33: 29556 | AP33: 0.2497969955 | AQ33: 36 | AR33: 0 | AS33: 36 | AT33: 0 | AU33: 5.302516283e-05 | AV33: 1 | AW33: 1 | AX33: Hotspot (-8)
A34: Hotspot, Expert, dbSNP, Cosmic, prediction | B34: UPN_Te4_002 | C34: 15 | D34: 90631934 | E34: C | F34: T | G34: IDH2 | H34: ENST00000330062 | I34: missense_variant | J34: cGg/cAg|p.Arg140Gln/c.419G>A | K34: 15157 | L34: 13737 | M34: 28966 | N34: 0.4742456673 | O34: 1 | P34: 1 | Q34: 1 | R34: 1 | S34: 1 | T34: 1 | U34: 1 | V34: 1 | W34: 8 | X34: NO | Y34: NO | Z34: COSM41590 | AA34: haematopoietic_and_lymphoid_tissue | AB34: 489 | AC34: NO | AD34: rs121913502 | AE34: YES | AF34: 0.0001071 | AG34: NO | AH34: NO | AI34: -3.75 | AJ34: Deleterious | AK34: 31.65 | AL34: 32.95 | AM34: 7606 | AN34: 6875 | AO34: 14516 | AP34: 0.473615321 | AQ34: 7551 | AR34: 6862 | AS34: 14450 | AT34: 0.4748788927 | AU34: 0.8229004107 | AV34: 2 | AW34: 2 | AX34: Hotspot (-9)
A35: Hotspot, Expert, dbSNP, Cosmic, prediction | B35: UPN_Te4_008 | C35: 15 | D35: 90631934 | E35: C | F35: T | G35: IDH2 | H35: ENST00000330062 | I35: missense_variant | J35: cGg/cAg|p.Arg140Gln/c.419G>A | K35: 24169 | L35: 13425 | M35: 37709 | N35: 0.3560158052 | O35: 1 | P35: 1 | Q35: 1 | R35: 1 | S35: 1 | T35: 1 | U35: 1 | V35: 1 | W35: 8 | X35: NO | Y35: NO | Z35: COSM41590 | AA35: haematopoietic_and_lymphoid_tissue | AB35: 489 | AC35: NO | AD35: rs121913502 | AE35: YES | AF35: 0.0001071 | AG35: NO | AH35: NO | AI35: -3.75 | AJ35: Deleterious | AK35: 31.65 | AL35: 32.96 | AM35: 12126 | AN35: 6730 | AO35: 18906 | AP35: 0.3559716492 | AQ35: 12043 | AR35: 6695 | AS35: 18803 | AT35: 0.3560602032 | AU35: 0.9399404137 | AV35: 2 | AW35: 2 | AX35: Hotspot (-9)
A36: Hotspot, Expert, prediction | B36: UPN_Te4_006 | C36: 15 | D36: 90631935 | E36: G | F36: A | G36: IDH2 | H36: ENST00000330062 | I36: missense_variant | J36: Cgg/Tgg|p.Arg140Trp/c.418C>T | K36: 15087 | L36: 13497 | M36: 28705 | N36: 0.4701968298 | O36: 1 | P36: 1 | Q36: 1 | R36: 1 | S36: 1 | T36: 1 | U36: 1 | V36: 1 | W36: 8 | X36: NO | Y36: NO | Z36: COSM41877 | AA36: haematopoietic_and_lymphoid_tissue, large_intestine | AB36: 10, 2 | AC36: NO | AD36: NO | AE36: NO | AF36: NO | AG36: NO | AH36: NO | AI36: -7.5 | AJ36: Deleterious | AK36: 33.56 | AL36: 32.23 | AM36: 7592 | AN36: 6768 | AO36: 14400 | AP36: 0.47 | AQ36: 7495 | AR36: 6729 | AS36: 14305 | AT36: 0.4703949668 | AU36: 0.7670869946 | AV36: 1 | AW36: 1 | AX36: Hotspot (-9)
A37: Expert, prediction, bq | B37: UPN_Te4_022 | C37: 17 | D37: 7577126 | E37: T | F37: G | G37: TP53 | H37: ENST00000269305 | I37: missense_variant | J37: gAg/gCg|p.Glu271Ala/c.812A>C | K37: 13379 | L37: 4605 | M37: 18077 | N37: 0.2547435968 | O37: 1 | P37: 1 | Q37: 0 | R37: 0 | S37: 1 | T37: 1 | U37: 0 | V37: 1 | W37: 5 | X37: NO | Y37: NO | Z37: NO | AA37: NA | AB37: NA | AC37: NO | AD37: NO | AE37: NO | AF37: NO | AG37: NO | AH37: NO | AI37: -5.626 | AJ37: Deleterious | AK37: 35.28 | AL37: 34.73 | AM37: 7589 | AN37: 8 | AO37: 7645 | AP37: 0.001046435579 | AQ37: 5790 | AR37: 4597 | AS37: 10432 | AT37: 0.4406633436 | AU37: 2 | AV37: 2 | AW37: 2 | AX37: Probably True (-4)
A38: Expert, bq | B38: UPN_Te4_022 | C38: 17 | D38: 7577132 | E38: C | F38: A | G38: TP53 | H38: ENST00000269305 | I38: missense_variant | J38: aGc/aTc|p.Ser269Ile/c.806G>T | K38: 13420 | L38: 4620 | M38: 18082 | N38: 0.2555027099 | O38: 1 | P38: 1 | Q38: 0 | R38: 0 | S38: 1 | T38: 1 | U38: 0 | V38: 0 | W38: 4 | X38: NO | Y38: NO | Z38: COSM4302129 | AA38: central_nervous_system | AB38: 2 | AC38: NO | AD38: NO | AE38: NO | AF38: NO | AG38: NO | AH38: NO | AI38: -1.533 | AJ38: Tolerated | AK38: 35.44 | AL38: 35.19 | AM38: 7633 | AN38: 6 | AO38: 7649 | AP38: 0.0007844162636 | AQ38: 5787 | AR38: 4614 | AS38: 10433 | AT38: 0.4422505511 | AU38: 2 | AV38: 1 | AW38: 1 | AX38: Probably True (-2)
A39: Expert, bq | B39: UPN_Te4_022 | C39: 17 | D39: 7577136 | E39: T | F39: A | G39: TP53 | H39: ENST00000269305 | I39: missense_variant | J39: Aac/Tac|p.Asn268Tyr/c.802A>T | K39: 13408 | L39: 4624 | M39: 18083 | N39: 0.2557097827 | O39: 1 | P39: 1 | Q39: 0 | R39: 0 | S39: 1 | T39: 1 | U39: 0 | V39: 1 | W39: 5 | X39: NO | Y39: NO | Z39: NO | AA39: NA | AB39: NA | AC39: NO | AD39: NO | AE39: NO | AF39: NO | AG39: NO | AH39: NO | AI39: -2.133 | AJ39: Tolerated | AK39: 35.39 | AL39: 35.28 | AM39: 7622 | AN39: 6 | AO39: 7649 | AP39: 0.0007844162636 | AQ39: 5786 | AR39: 4618 | AS39: 10434 | AT39: 0.4425915277 | AU39: 2 | AV39: 2 | AW39: 2 | AX39: Probably True (-3)
A40: Expert, Cosmic, prediction, bq | B40: UPN_Te4_004 | C40: 17 | D40: 7577517 | E40: A | F40: C | G40: TP53 | H40: ENST00000269305 | I40: missense_variant | J40: aTc/aGc|p.Ile255Ser/c.764T>G | K40: 5786 | L40: 15944 | M40: 21792 | N40: 0.7316446402 | O40: 1 | P40: 1 | Q40: 1 | R40: 1 | S40: 1 | T40: 0 | U40: 1 | V40: 1 | W40: 7 | X40: NO | Y40: NO | Z40: COSM3403258, COSM1637748, COSM437489, COSM10788, COSM437488 | AA40: bone, breast, central_nervous_system, oesophagus, endometrium, lung, ovary, upper_aerodigestive_tract, urinary_tract | AB40: 5, 5, 9, 10, 1, 1, 1, 2, 1 | AC40: NO | AD40: NO | AE40: NO | AF40: NO | AG40: NO | AH40: NO | AI40: -4.534 | AJ40: Deleterious | AK40: 35.42 | AL40: 35.03 | AM40: 5786 | AN40: 15944 | AO40: 21792 | AP40: 0.7316446402 | AQ40: 0 | AR40: 0 | AS40: 0 | AT40: NA | AU40: 1 | AV40: 1 | AW40: 1 | AX40: Probably True (-6)
A41: Expert, Cosmic, prediction, bq | B41: UPN_Te4_009 | C41: 17 | D41: 7579355 | E41: A | F41: C | G41: TP53 | H41: ENST00000269305 | I41: missense_variant | J41: cTg/cGg|p.Leu111Arg/c.332T>G | K41: 1473 | L41: 395 | M41: 1874 | N41: 0.2107790822 | O41: 1 | P41: 1 | Q41: 1 | R41: 1 | S41: 1 | T41: 0 | U41: 0 | V41: 1 | W41: 6 | X41: NO | Y41: NO | Z41: COSM307283, COSM307284, COSM1646884, COSM3742473, COSM44570 | AA41: haematopoietic_and_lymphoid_tissue, liver, lung, breast, central_nervous_system, large_intestine | AB41: 3, 13, 5, 1, 1, 1 | AC41: NO | AD41: NO | AE41: NO | AF41: NO | AG41: NO | AH41: NO | AI41: -4.647 | AJ41: Deleterious | AK41: 34.04 | AL41: 34.86 | AM41: 1473 | AN41: 395 | AO41: 1874 | AP41: 0.2107790822 | AQ41: 0 | AR41: 0 | AS41: 0 | AT41: NA | AU41: 1 | AV41: 1 | AW41: 1 | AX41: Probably True (-6)
A42: Hotspot, Expert, Cosmic, prediction, bq | B42: UPN_Te4_001 | C42: 17 | D42: 74732959 | E42: G | F42: C | G42: SRSF2 | H42: ENST00000392485 | I42: missense_variant | J42: cCc/cGc|p.Pro95Arg/c.284C>G | K42: 4736 | L42: 3311 | M42: 8060 | N42: 0.4107940447 | O42: 1 | P42: 1 | Q42: 1 | R42: 1 | S42: 1 | T42: 1 | U42: 1 | V42: 1 | W42: 8 | X42: NO | Y42: NO | Z42: COSM211661 | AA42: haematopoietic_and_lymphoid_tissue | AB42: 55 | AC42: NO | AD42: NO | AE42: NO | AF42: NO | AG42: NO | AH42: NO | AI42: -4.575 | AJ42: Deleterious | AK42: 34.21 | AL42: 34.12 | AM42: 2384 | AN42: 1671 | AO42: 4060 | AP42: 0.4115763547 | AQ42: 2352 | AR42: 1640 | AS42: 4000 | AT42: 0.41 | AU42: 0.9098371789 | AV42: 1 | AW42: 3 | AX42: Hotspot (-9)
A43: Hotspot, Expert, Cosmic, prediction | B43: UPN_Te4_010 | C43: 17 | D43: 74732959 | E43: G | F43: A | G43: SRSF2 | H43: ENST00000392485 | I43: missense_variant | J43: cCc/cTc|p.Pro95Leu/c.284C>T | K43: 3489 | L43: 2053 | M43: 5555 | N43: 0.3695769577 | O43: 1 | P43: 1 | Q43: 1 | R43: 1 | S43: 1 | T43: 1 | U43: 1 | V43: 1 | W43: 8 | X43: NO | Y43: NO | Z43: COSM146288 | AA43: haematopoietic_and_lymphoid_tissue | AB43: 93 | AC43: NO | AD43: NO | AE43: NO | AF43: NO | AG43: NO | AH43: NO | AI43: -5.208 | AJ43: Deleterious | AK43: 35.14 | AL43: 28.95 | AM43: 1749 | AN43: 1028 | AO43: 2786 | AP43: 0.3689877961 | AQ43: 1740 | AR43: 1025 | AS43: 2769 | AT43: 0.3701697364 | AU43: 0.9778122429 | AV43: 2 | AW43: 3 | AX43: Hotspot (-9)
A44: Hotspot, Expert, Illumina validated, Cosmic, prediction | B44: UPN_Te4_011 | C44: 17 | D44: 74732959 | E44: G | F44: A | G44: SRSF2 | H44: ENST00000392485 | I44: missense_variant | J44: cCc/cTc|p.Pro95Leu/c.284C>T | K44: 9047 | L44: 549 | M44: 9613 | N44: 0.05711016332 | O44: 0 | P44: 0 | Q44: 0 | R44: 1 | S44: 1 | T44: 1 | U44: 0 | V44: 1 | W44: 4 | X44: NO | Y44: NO | Z44: COSM146288 | AA44: haematopoietic_and_lymphoid_tissue | AB44: 93 | AC44: NO | AD44: NO | AE44: NO | AF44: NO | AG44: NO | AH44: NO | AI44: -5.208 | AJ44: Deleterious | AK44: 34.23 | AL44: 29.9 | AM44: 4551 | AN44: 276 | AO44: 4834 | AP44: 0.05709557302 | AQ44: 4496 | AR44: 273 | AS44: 4779 | AT44: 0.05712492153 | AU44: 1 | AV44: 2 | AW44: 3 | AX44: Hotspot (-7)
A45: Expert, bq | B45: UPN_Te4_013 | C45: 19 | D45: 13054564 | E45: AGCAGAGGCTTAAGGAGGAGGAAGAAGACAAGAAACGCAAAGAGGAGGAGGAG | F45: A | G45: CALR | H45: ENST00000316448 | I45: frameshift_variant | J45: cttaaggaggaggaagaagacaagaaacgcaaagaggaggaggaggcagaggac/|p.Leu367fs/c.1099_1150delCTTAAGGAGGAGGAAGAAGACAAGAAACGCAAAGAGGAGGAGGAGGCAGAGG | K45: 517 | L45: 715 | M45: 1234 | N45: 0.5794165316 | O45: 1 | P45: 1 | Q45: 0 | R45: 0 | S45: 1 | T45: 1 | U45: 0 | V45: 1 | W45: 5 | X45: NO | Y45: NO | Z45: NO | AA45: NA | AB45: NA | AC45: NO | AD45: NO | AE45: NO | AF45: NO | AG45: NO | AH45: NO | AI45: NA | AJ45: NA | AK45: 35.25 | AL45: NA | AM45: 517 | AN45: 715 | AO45: 1234 | AP45: 0.5794165316 | AQ45: 0 | AR45: 0 | AS45: 0 | AT45: NA | AU45: 1 | AV45: 1 | AW45: 1 | AX45: Probably True (-2)
A46: Expert, bq | B46: UPN_Te4_014 | C46: 19 | D46: 13054574 | E46: TAAGGAGGAGGAAGAAGACAAGAAACGCAAAGAGGAGGAGGAGGCAGAGGACA | F46: T | G46: CALR | H46: ENST00000316448 | I46: frameshift_variant | J46: aaggaggaggaagaagacaagaaacgcaaagaggaggaggaggcagaggacaag/|p.Lys368fs/c.1103_1154delAGGAGGAGGAAGAAGACAAGAAACGCAAAGAGGAGGAGGAGGCAGAGGACAA | K46: 2101 | L46: 2578 | M46: 4699 | N46: 0.5486273675 | O46: 1 | P46: 1 | Q46: 1 | R46: 0 | S46: 1 | T46: 1 | U46: 0 | V46: 1 | W46: 6 | X46: NO | Y46: NO | Z46: NO | AA46: NA | AB46: NA | AC46: NO | AD46: NO | AE46: NO | AF46: NO | AG46: NO | AH46: NO | AI46: NA | AJ46: NA | AK46: 31.25 | AL46: NA | AM46: 2101 | AN46: 2578 | AO46: 4699 | AP46: 0.5486273675 | AQ46: 0 | AR46: 0 | AS46: 0 | AT46: NA | AU46: 1 | AV46: 1 | AW46: 1 | AX46: Probably True (-3)
A47: Expert, bq | B47: UPN_Te4_020 | C47: 19 | D47: 13054582 | E47: AGGAAGAAGACAAGAAACGCAAAGAGGAGGAG | F47: A | G47: CALR | H47: ENST00000316448 | I47: frameshift_variant | J47: gaagaagacaagaaacgcaaagaggaggaggag/|p.Glu371fs/c.1111_1141delGAAGAAGACAAGAAACGCAAAGAGGAGGAGG | K47: 1650 | L47: 1968 | M47: 3621 | N47: 0.5434962717 | O47: 1 | P47: 1 | Q47: 0 | R47: 0 | S47: 1 | T47: 1 | U47: 0 | V47: 1 | W47: 5 | X47: NO | Y47: NO | Z47: NO | AA47: NA | AB47: NA | AC47: NO | AD47: NO | AE47: NO | AF47: NO | AG47: NO | AH47: NO | AI47: NA | AJ47: NA | AK47: 35.29 | AL47: NA | AM47: 1649 | AN47: 1968 | AO47: 3620 | AP47: 0.5436464088 | AQ47: 1 | AR47: 0 | AS47: 1 | AT47: 0 | AU47: 0.456053068 | AV47: 1 | AW47: 1 | AX47: Probably True (-2)
A48: Expert, bq | B48: UPN_Te4_015 | C48: 19 | D48: 13054591 | E48: A | F48: T | G48: CALR | H48: ENST00000316448 | I48: missense_variant | J48: gAc/gTc|p.Asp373Val/c.1118A>T | K48: 1112 | L48: 1284 | M48: 2407 | N48: 0.5334441213 | O48: 1 | P48: 1 | Q48: 1 | R48: 1 | S48: 1 | T48: 0 | U48: 1 | V48: 1 | W48: 7 | X48: NO | Y48: NO | Z48: NO | AA48: NA | AB48: NA | AC48: NO | AD48: NO | AE48: NO | AF48: NO | AG48: NO | AH48: NO | AI48: -1.278 | AJ48: Tolerated | AK48: 26.37 | AL48: 33.39 | AM48: 1112 | AN48: 1284 | AO48: 2407 | AP48: 0.5334441213 | AQ48: 0 | AR48: 0 | AS48: 0 | AT48: NA | AU48: 1 | AV48: 1 | AW48: 1 | AX48: Probably True (-5)
A49: Expert, bq | B49: UPN_Te4_015 | C49: 19 | D49: 13054595 | E49: GAAACGCAAAGAGGAGGAGGAGGCAGAGGACA | F49: G | G49: CALR | H49: ENST00000316448 | I49: frameshift_variant | J49: aaacgcaaagaggaggaggaggcagaggacaag/|p.Lys375fs/c.1124_1154delAACGCAAAGAGGAGGAGGAGGCAGAGGACAA | K49: 1119 | L49: 1276 | M49: 2404 | N49: 0.53078203 | O49: 1 | P49: 1 | Q49: 0 | R49: 0 | S49: 1 | T49: 1 | U49: 0 | V49: 1 | W49: 5 | X49: NO | Y49: NO | Z49: NO | AA49: NA | AB49: NA | AC49: NO | AD49: NO | AE49: NO | AF49: NO | AG49: NO | AH49: NO | AI49: NA | AJ49: NA | AK49: 27.59 | AL49: NA | AM49: 1119 | AN49: 1276 | AO49: 2404 | AP49: 0.53078203 | AQ49: 0 | AR49: 0 | AS49: 0 | AT49: NA | AU49: 1 | AV49: 1 | AW49: 1 | AX49: Probably True (-2)
A50: Expert, prediction, bq | B50: UPN_Te4_019 | C50: 19 | D50: 13054599 | E50: C | F50: CGCCTTT | G50: CALR | H50: ENST00000316448 | I50: inframe_insertion | J50: aaa/CTTTGCaaa|p.Arg376_Lys377insLeuCys/c.1128_1129insCTTTGC | K50: 1661 | L50: 528 | M50: 1665 | N50: 0.3171171171 | O50: 0 | P50: 1 | Q50: 1 | R50: 0 | S50: 1 | T50: 1 | U50: 0 | V50: 0 | W50: 4 | X50: NO | Y50: NO | Z50: NO | AA50: NA | AB50: NA | AC50: NO | AD50: NO | AE50: NO | AF50: NO | AG50: NO | AH50: NO | AI50: -4.773 | AJ50: Deleterious | AK50: 33.45 | AL50: NA | AM50: 1661 | AN50: 528 | AO50: 1665 | AP50: 0.3171171171 | AQ50: 0 | AR50: 0 | AS50: 0 | AT50: NA | AU50: 1 | AV50: 1 | AW50: 1 | AX50: Probably True (-2)
A51: Expert, prediction | B51: UPN_Te4_005 | C51: 19 | D51: 33792350 | E51: A | F51: T | G51: CEBPA | H51: ENST00000498907 | I51: missense_variant | J51: cTg/cAg|p.Leu324Gln/c.971T>A | K51: 17598 | L51: 15534 | M51: 33584 | N51: 0.4625416865 | O51: 1 | P51: 1 | Q51: 1 | R51: 1 | S51: 1 | T51: 1 | U51: 1 | V51: 1 | W51: 8 | X51: NO | Y51: NO | Z51: COSM18613 | AA51: haematopoietic_and_lymphoid_tissue | AB51: 2 | AC51: NO | AD51: NO | AE51: NO | AF51: NO | AG51: NO | AH51: NO | AI51: -5.886 | AJ51: Deleterious | AK51: 28.86 | AL51: 27.72 | AM51: 8849 | AN51: 7706 | AO51: 16866 | AP51: 0.4568955295 | AQ51: 8749 | AR51: 7828 | AS51: 16718 | AT51: 0.4682378275 | AU51: 0.2217072786 | AV51: 2 | AW51: 2 | AX51: Probably True (-6)
A52: Expert, prediction | B52: UPN_Te4_012 | C52: 19 | D52: 33792350 | E52: A | F52: T | G52: CEBPA | H52: ENST00000498907 | I52: missense_variant | J52: cTg/cAg|p.Leu324Gln/c.971T>A | K52: 8088 | L52: 6327 | M52: 14525 | N52: 0.4355938038 | O52: 1 | P52: 1 | Q52: 1 | R52: 1 | S52: 1 | T52: 1 | U52: 1 | V52: 1 | W52: 8 | X52: NO | Y52: NO | Z52: COSM18613 | AA52: haematopoietic_and_lymphoid_tissue | AB52: 2 | AC52: NO | AD52: NO | AE52: NO | AF52: NO | AG52: NO | AH52: NO | AI52: -5.886 | AJ52: Deleterious | AK52: 31.76 | AL52: 29.46 | AM52: 4068 | AN52: 3184 | AO52: 7292 | AP52: 0.4366428963 | AQ52: 4020 | AR52: 3143 | AS52: 7233 | AT52: 0.4345361537 | AU52: 0.9866090044 | AV52: 2 | AW52: 2 | AX52: Probably True (-6)
A53: Expert, prediction, bq | B53: UPN_Te4_005 | C53: 19 | D53: 33792375 | E53: C | F53: CCAG | G53: CEBPA | H53: ENST00000498907 | I53: inframe_insertion | J53: ctg/ctgCTG|p.Leu315dup/c.943_945dupCTG | K53: 16664 | L53: 7196 | M53: 16722 | N53: 0.4303313001 | O53: 1 | P53: 1 | Q53: 1 | R53: 0 | S53: 1 | T53: 1 | U53: 1 | V53: 1 | W53: 7 | X53: NO | Y53: NO | Z53: NO | AA53: NA | AB53: NA | AC53: NO | AD53: NO | AE53: NO | AF53: NO | AG53: NO | AH53: NO | AI53: -9.471 | AJ53: Deleterious | AK53: 35.17 | AL53: NA | AM53: 0 | AN53: 0 | AO53: 0 | AP53: NA | AQ53: 16664 | AR53: 7196 | AS53: 16722 | AT53: 0.4303313001 | AU53: 1 | AV53: 2 | AW53: 2 | AX53: Probably True (-4)
A54: Expert, prediction, bq | B54: UPN_Te4_012 | C54: 19 | D54: 33792375 | E54: C | F54: CCAG | G54: CEBPA | H54: ENST00000498907 | I54: inframe_insertion | J54: ctg/ctgCTG|p.Leu315dup/c.943_945dupCTG | K54: 7230 | L54: 3292 | M54: 7241 | N54: 0.4546333379 | O54: 1 | P54: 1 | Q54: 0 | R54: 0 | S54: 1 | T54: 1 | U54: 0 | V54: 1 | W54: 5 | X54: NO | Y54: NO | Z54: NO | AA54: NA | AB54: NA | AC54: NO | AD54: NO | AE54: NO | AF54: NO | AG54: NO | AH54: NO | AI54: -9.471 | AJ54: Deleterious | AK54: 35.08 | AL54: NA | AM54: 0 | AN54: 0 | AO54: 0 | AP54: NA | AQ54: 7230 | AR54: 3292 | AS54: 7241 | AT54: 0.4546333379 | AU54: 1 | AV54: 2 | AW54: 2 | AX54: Probably True (-3)
A55: Hotspot, Expert, bq | B55: UPN_Te4_008 | C55: 20 | D55: 31022402 | E55: TCACCACTGCCATAGAGAGGCGGC | F55: T | G55: ASXL1 | H55: ENST00000375687 | I55: frameshift_variant | J55: agagaggcggccaccactgccatc/|p.Glu635fs/c.1900_1922delAGAGAGGCGGCCACCACTGCCAT | K55: 2008 | L55: 187 | M55: 2204 | N55: 0.08484573503 | O55: 0 | P55: 1 | Q55: 1 | R55: 0 | S55: 1 | T55: 1 | U55: 0 | V55: 1 | W55: 5 | X55: NO | Y55: NO | Z55: NO | AA55: NA | AB55: NA | AC55: NO | AD55: NO | AE55: NO | AF55: 0.0001403 | AG55: NO | AH55: NO | AI55: NA | AJ55: NA | AK55: 32.6 | AL55: NA | AM55: 1232 | AN55: 0 | AO55: 1234 | AP55: 0 | AQ55: 776 | AR55: 187 | AS55: 970 | AT55: 0.1927835052 | AU55: 2 | AV55: 1 | AW55: 1 | AX55: Hotspot (-6)
A56: Hotspot, Expert, bq | B56: UPN_Te4_003 | C56: 20 | D56: 31022441 | E56: A | F56: AG | G56: ASXL1 | H56: ENST00000375687 | I56: frameshift_variant | J56: ggt/ggGt|p.Gly646fs/c.1934dupG | K56: 9409 | L56: 3765 | M56: 9575 | N56: 0.3932114883 | O56: 1 | P56: 1 | Q56: 1 | R56: 0 | S56: 1 | T56: 1 | U56: 0 | V56: 1 | W56: 6 | X56: NO | Y56: NO | Z56: NO | AA56: NA | AB56: NA | AC56: NO | AD56: NO | AE56: NO | AF56: NO | AG56: NO | AH56: NO | AI56: NA | AJ56: NA | AK56: 34.86 | AL56: NA | AM56: 8659 | AN56: 3525 | AO56: 8710 | AP56: 0.4047072331 | AQ56: 750 | AR56: 240 | AS56: 865 | AT56: 0.2774566474 | AU56: 0.001644415766 | AV56: 42 | AW56: 86 | AX56: Hotspot (-2)
A57: Hotspot, Expert, bq | B57: UPN_Te4_007 | C57: 20 | D57: 31022441 | E57: A | F57: AG | G57: ASXL1 | H57: ENST00000375687 | I57: frameshift_variant | J57: ggt/ggGt|p.Gly646fs/c.1934dupG | K57: 14446 | L57: 5748 | M57: 14702 | N57: 0.3909672153 | O57: 1 | P57: 1 | Q57: 1 | R57: 0 | S57: 1 | T57: 1 | U57: 0 | V57: 1 | W57: 6 | X57: NO | Y57: NO | Z57: NO | AA57: NA | AB57: NA | AC57: NO | AD57: NO | AE57: NO | AF57: NO | AG57: NO | AH57: NO | AI57: NA | AJ57: NA | AK57: 34.86 | AL57: NA | AM57: 13274 | AN57: 5382 | AO57: 13344 | AP57: 0.4033273381 | AQ57: 1172 | AR57: 366 | AS57: 1358 | AT57: 0.2695139912 | AU57: 1.989538529e-05 | AV57: 42 | AW57: 86 | AX57: Hotspot (-2)
A58: Expert, bq | B58: UPN_Te4_014 | C58: 20 | D58: 31022749 | E58: AT | F58: A | G58: ASXL1 | H58: ENST00000375687 | I58: frameshift_variant | J58: gat/|p.Asp745fs/c.2235delT | K58: 18930 | L58: 4449 | M58: 23512 | N58: 0.1892225247 | O58: 1 | P58: 1 | Q58: 1 | R58: 0 | S58: 1 | T58: 1 | U58: 0 | V58: 0 | W58: 5 | X58: NO | Y58: NO | Z58: NO | AA58: NO | AB58: O | AC58: NO | AD58: NO | AE58: NO | AF58: NO | AG58: NO | AH58: NO | AI58: NA | AJ58: NA | AK58: 34.6 | AL58: NA | AM58: 11464 | AN58: 161 | AO58: 11693 | AP58: 0.01376892158 | AQ58: 7466 | AR58: 4288 | AS58: 11819 | AT58: 0.3628056519 | AU58: 2 | AV58: 1 | AW58: 1 | AX58: Probably True (-3)
A59: Hotspot, Expert, dbSNP, Cosmic, prediction, bq | B59: UPN_Te4_007 | C59: 21 | D59: 36231782 | E59: C | F59: T | G59: RUNX1 | H59: ENST00000437180 | I59: missense_variant | J59: cGa/cAa|p.Arg201Gln/c.602G>A | K59: 8340 | L59: 7967 | M59: 16337 | N59: 0.4876660342 | O59: 1 | P59: 1 | Q59: 1 | R59: 1 | S59: 1 | T59: 0 | U59: 1 | V59: 0 | W59: 6 | X59: NO | Y59: NO | Z59: COSM24805 | AA59: breast, haematopoietic_and_lymphoid_tissue, oesophagus | AB59: 1, 13, 1 | AC59: NO | AD59: rs74315450 | AE59: YES | AF59: NO | AG59: NO | AH59: NO | AI59: -3.686 | AJ59: Deleterious | AK59: 35.45 | AL59: 35.05 | AM59: 8340 | AN59: 7967 | AO59: 16337 | AP59: 0.4876660342 | AQ59: 0 | AR59: 0 | AS59: 0 | AT59: NA | AU59: 1 | AV59: 1 | AW59: 1 | AX59: Hotspot (-7)
A60: Expert, bq | B60: UPN_Te4_003 | C60: 21 | D60: 36252874 | E60: A | F60: T | G60: RUNX1 | H60: ENST00000437180 | I60: missense_variant | J60: tTt/tAt|p.Phe163Tyr/c.488T>A | K60: 5611 | L60: 5651 | M60: 11283 | N60: 0.5008419747 | O60: 1 | P60: 1 | Q60: 1 | R60: 1 | S60: 1 | T60: 0 | U60: 1 | V60: 1 | W60: 7 | X60: NO | Y60: NO | Z60: COSM26023 | AA60: haematopoietic_and_lymphoid_tissue | AB60: 1 | AC60: NO | AD60: NO | AE60: NO | AF60: NO | AG60: NO | AH60: NO | AI60: -2.678 | AJ60: Deleterious | AK60: 35.53 | AL60: 35.31 | AM60: 5611 | AN60: 5651 | AO60: 11283 | AP60: 0.5008419747 | AQ60: 0 | AR60: 0 | AS60: 0 | AT60: NA | AU60: 1 | AV60: 1 | AW60: 1 | AX60: Probably True (-5)
A61: Expert, Illumina validated, bq | B61: UPN_Te4_014 | C61: X | D61: 15840871 | E61: C | F61: T | G61: ZRSR2 | H61: ENST00000307771 | I61: stop_gained | J61: Caa/Taa|p.Gln319*/c.955C>T | K61: 2789 | L61: 490 | M61: 3285 | N61: 0.1491628615 | O61: 0 | P61: 1 | Q61: 0 | R61: 1 | S61: 1 | T61: 0 | U61: 0 | V61: 1 | W61: 4 | X61: NO | Y61: NO | Z61: COSM4385297 | AA61: haematopoietic_and_lymphoid_tissue | AB61: 1 | AC61: NO | AD61: NO | AE61: NO | AF61: NO | AG61: NO | AH61: NO | AI61: NA | AJ61: NA | AK61: 35.56 | AL61: 35.12 | AM61: 2789 | AN61: 490 | AO61: 3285 | AP61: 0.1491628615 | AQ61: 0 | AR61: 0 | AS61: 0 | AT61: NA | AU61: 1 | AV61: 1 | AW61: 1 | AX61: Probably True (-3)
A62: Expert, prediction | B62: UPN_Te4_005 | C62: X | D62: 123176485 | E62: A | F62: G | G62: STAG2 | H62: ENST00000218089 | I62: missense_variant | J62: gAa/gGa|p.Glu151Gly/c.452A>G | K62: 81 | L62: 32 | M62: 113 | N62: 0.2831858407 | O62: 1 | P62: 1 | Q62: 1 | R62: 1 | S62: 1 | T62: 1 | U62: 1 | V62: 1 | W62: 8 | X62: NO | Y62: NO | Z62: NO | AA62: NO | AB62: O | AC62: NO | AD62: NO | AE62: NO | AF62: NO | AG62: NO | AH62: NO | AI62: -5.267 | AJ62: Deleterious | AK62: 34.02 | AL62: 32.78 | AM62: 41 | AN62: 16 | AO62: 57 | AP62: 0.2807017544 | AQ62: 40 | AR62: 16 | AS62: 56 | AT62: 0.2857142857 | AU62: 1 | AV62: 1 | AW62: 1 | AX62: Probably True (-6)
A63: Expert, bq | B63: UPN_Te4_003 | C63: X | D63: 123179164 | E63: A | F63: AG | G63: STAG2 | H63: ENST00000218089 | I63: frameshift_variant | J63: aca/aGca|p.Thr205fs/c.613_614insG | K63: 19000 | L63: 6240 | M63: 19088 | N63: 0.3269069573 | O63: 1 | P63: 1 | Q63: 0 | R63: 0 | S63: 1 | T63: 1 | U63: 0 | V63: 1 | W63: 5 | X63: NO | Y63: NO | Z63: NO | AA63: NO | AB63: O | AC63: NO | AD63: NO | AE63: NO | AF63: NO | AG63: NO | AH63: NO | AI63: NA | AJ63: NA | AK63: 35.47 | AL63: NA | AM63: 6403 | AN63: 0 | AO63: 6428 | AP63: 0 | AQ63: 12597 | AR63: 6240 | AS63: 12660 | AT63: 0.4928909953 | AU63: 2 | AV63: 2 | AW63: 2 | AX63: Probably True (-3)
A64: Expert, bq | B64: UPN_Te4_010 | C64: X | D64: 123200060 | E64: G | F64: GT | G64: STAG2 | H64: ENST00000218089 | I64: frameshift_variant+stop_gained | J64: aat/Taat|p.Asn712fs/c.2133dupT | K64: 4214 | L64: 2490 | M64: 4291 | N64: 0.580284316 | O64: 0 | P64: 1 | Q64: 1 | R64: 0 | S64: 1 | T64: 1 | U64: 0 | V64: 1 | W64: 5 | X64: NO | Y64: NO | Z64: NO | AA64: NO | AB64: O | AC64: NO | AD64: NO | AE64: NO | AF64: NO | AG64: NO | AH64: NO | AI64: NA | AJ64: NA | AK64: 26.92 | AL64: NA | AM64: 1 | AN64: 0 | AO64: 1 | AP64: 0 | AQ64: 4213 | AR64: 2490 | AS64: 4290 | AT64: 0.5804195804 | AU64: 1 | AV64: 1 | AW64: 3 | AX64: Probably True (-1)
A65: Expert, Illumina validated, bq | B65: UPN_Te4_018 | C65: X | D65: 129149986 | E65: G | F65: A | G65: BCORL1 | H65: ENST00000540052 | I65: missense_variant | J65: Gct/Act|p.Ala1080Thr/c.3238G>A | K65: 7508 | L65: 7337 | M65: 14938 | N65: 0.4911634757 | O65: 1 | P65: 1 | Q65: 1 | R65: 1 | S65: 1 | T65: 0 | U65: 1 | V65: 1 | W65: 7 | X65: NO | Y65: NO | Z65: NO | AA65: NO | AB65: O | AC65: NO | AD65: NO | AE65: NO | AF65: NO | AG65: NO | AH65: NO | AI65: -0.133 | AJ65: Tolerated | AK65: 34.9 | AL65: 33.73 | AM65: 0 | AN65: 0 | AO65: 0 | AP65: NA | AQ65: 7508 | AR65: 7337 | AS65: 14938 | AT65: 0.4911634757 | AU65: 1 | AV65: 1 | AW65: 1 | AX65: Probably True (-5)
A66: Expert, bq | B66: UPN_Te4_008 | C66: X | D66: 133511735 | E66: C | F66: T | G66: PHF6 | H66: ENST00000332070 | I66: stop_gained | J66: Cag/Tag|p.Gln30*/c.88C>T | K66: 738 | L66: 425 | M66: 1165 | N66: 0.364806867 | O66: 0 | P66: 1 | Q66: 0 | R66: 1 | S66: 0 | T66: 1 | U66: 0 | V66: 1 | W66: 4 | X66: NO | Y66: NO | Z66: NO | AA66: NA | AB66: NA | AC66: NO | AD66: NO | AE66: NO | AF66: NO | AG66: NO | AH66: NO | AI66: NA | AJ66: NA | AK66: 34.21 | AL66: 34 | AM66: 374 | AN66: 225 | AO66: 601 | AP66: 0.3743760399 | AQ66: 364 | AR66: 200 | AS66: 564 | AT66: 0.3546099291 | AU66: 0.4652960049 | AV66: 1 | AW66: 3 | AX66: Probably True (-1)
O67: =SUM(O2:O66) -> 51 | P67: =SUM(P2:P66) -> 57 | Q67: =SUM(Q2:Q66) -> 42 | R67: =SUM(R2:R66) -> 39 | S67: =SUM(S2:S66) -> 63 | T67: =SUM(T2:T66) -> 47 | U67: =SUM(U2:U66) -> 31 | V67: =SUM(V2:V66) -> 57

Sheet TP Polymorphisms
A1: Polymorphism because... | B1: Sample | C1: Chr | D1: Pos | E1: Ref | F1: Alt | G1: Gene | H1: ENST | I1: Type | J1: Mutation | K1: Nr_Ref | L1: Nr_Alt | M1: DP | N1: VAF | O1: GATK | P1: Platypus | Q1: VarScan | R1: LoFreq | S1: FreeBayes | T1: SNVer | U1: SAMtools | V1: VarDict | W1: Called | X1: ESP6500 | Y1: G1000 | Z1: Cosmic | AA1: Cosmic_location | AB1: Cosmic_occurence | AC1: dbSNP_SNPs | AD1: dbSNP_SNVs | AE1: PM_flag | AF1: ExAC | AG1: ClinVar_clinical | AH1: ClinVar_noimpact | AI1: provean_score | AJ1: prediction | AK1: BQ_Ref | AL1: BQ_Alt | AM1: Nr_Ref_fwd | AN1: Nr_Alt_fwd | AO1: DP_fwd | AP1: VAF_fwd | AQ1: Nr_Ref_rev | AR1: Nr_Alt_rev | AS1: DP_rev | AT1: VAF_rev | AU1: strandbias | AV1: nr_samples | AW1: nr_samples_similar | AX1: Category
A2: ESP6500, dbSNP, ExAC, ClinVar, prediction, many samples, VAF | B2: UPN_Te4_004 | C2: 4 | D2: 55593464 | E2: A | F2: C | G2: KIT | H2: ENST00000288135 | I2: missense_variant | J2: Atg/Ctg|p.Met541Leu/c.1621A>C | K2: 5912 | L2: 6036 | M2: 11975 | N2: 0.5040501044 | O2: 1 | P2: 1 | Q2: 1 | R2: 1 | S2: 1 | T2: 0 | U2: 1 | V2: 1 | W2: 7 | X2: 11.186 | Y2: NO | Z2: COSM28026 | AA2: haematopoietic_and_lymphoid_tissue, skin, soft_tissue, stomach | AB2: 3, 1, 3, 1 | AC2: rs3822214 | AD2: rs3822214 | AE2: NO | AF2: 0.079 | AG2: NO | AH2: YES | AI2: 0.35 | AJ2: Tolerated | AK2: 35.05 | AL2: 34.28 | AM2: 5912 | AN2: 6036 | AO2: 11975 | AP2: 0.5040501044 | AQ2: 0 | AR2: 0 | AS2: 0 | AT2: NA | AU2: 1 | AV2: 5 | AW2: 5 | AX2: Polymorphism
A3: ESP6500, dbSNP, ExAC, ClinVar, prediction, many samples, VAF | B3: UPN_Te4_007 | C3: 4 | D3: 55593464 | E3: A | F3: C | G3: KIT | H3: ENST00000288135 | I3: missense_variant | J3: Atg/Ctg|p.Met541Leu/c.1621A>C | K3: 7869 | L3: 7273 | M3: 15188 | N3: 0.4788648933 | O3: 1 | P3: 1 | Q3: 1 | R3: 1 | S3: 1 | T3: 0 | U3: 1 | V3: 1 | W3: 7 | X3: 11.186 | Y3: NO | Z3: COSM28026 | AA3: haematopoietic_and_lymphoid_tissue, skin, soft_tissue, stomach | AB3: 3, 1, 3, 1 | AC3: rs3822214 | AD3: rs3822214 | AE3: NO | AF3: 0.079 | AG3: NO | AH3: YES | AI3: 0.35 | AJ3: Tolerated | AK3: 34.96 | AL3: 34.09 | AM3: 7869 | AN3: 7273 | AO3: 15188 | AP3: 0.4788648933 | AQ3: 0 | AR3: 0 | AS3: 0 | AT3: NA | AU3: 1 | AV3: 5 | AW3: 5 | AX3: Polymorphism
A4: ESP6500, dbSNP, ExAC, ClinVar, prediction, many samples, VAF | B4: UPN_Te4_010 | C4: 4 | D4: 55593464 | E4: A | F4: C | G4: KIT | H4: ENST00000288135 | I4: missense_variant | J4: Atg/Ctg|p.Met541Leu/c.1621A>C | K4: 7504 | L4: 7377 | M4: 14934 | N4: 0.4939734833 | O4: 1 | P4: 1 | Q4: 1 | R4: 1 | S4: 1 | T4: 0 | U4: 1 | V4: 1 | W4: 7 | X4: 11.186 | Y4: NO | Z4: COSM28026 | AA4: haematopoietic_and_lymphoid_tissue, skin, soft_tissue, stomach | AB4: 3, 1, 3, 1 | AC4: rs3822214 | AD4: rs3822214 | AE4: NO | AF4: 0.079 | AG4: NO | AH4: YES | AI4: 0.35 | AJ4: Tolerated | AK4: 35.13 | AL4: 34.14 | AM4: 7504 | AN4: 7377 | AO4: 14934 | AP4: 0.4939734833 | AQ4: 0 | AR4: 0 | AS4: 0 | AT4: NA | AU4: 1 | AV4: 5 | AW4: 5 | AX4: Polymorphism
A5: ESP6500, dbSNP, ExAC, ClinVar, prediction, many samples, VAF | B5: UPN_Te4_011 | C5: 4 | D5: 55593464 | E5: A | F5: C | G5: KIT | H5: ENST00000288135 | I5: missense_variant | J5: Atg/Ctg|p.Met541Leu/c.1621A>C | K5: 7707 | L5: 8304 | M5: 16082 | N5: 0.5163536874 | O5: 1 | P5: 1 | Q5: 1 | R5: 1 | S5: 1 | T5: 1 | U5: 1 | V5: 1 | W5: 8 | X5: 11.186 | Y5: NO | Z5: COSM28026 | AA5: haematopoietic_and_lymphoid_tissue, skin, soft_tissue, stomach | AB5: 3, 1, 3, 1 | AC5: rs3822214 | AD5: rs3822214 | AE5: NO | AF5: 0.079 | AG5: NO | AH5: YES | AI5: 0.35 | AJ5: Tolerated | AK5: 34.97 | AL5: 33.34 | AM5: 7707 | AN5: 8300 | AO5: 16078 | AP5: 0.5162333624 | AQ5: 0 | AR5: 4 | AS5: 4 | AT5: 1 | AU5: 0.1259961302 | AV5: 5 | AW5: 5 | AX5: Polymorphism
A6: ESP6500, dbSNP, ExAC, ClinVar, prediction, many samples, VAF | B6: UPN_Te4_013 | C6: 4 | D6: 55593464 | E6: A | F6: C | G6: KIT | H6: ENST00000288135 | I6: missense_variant | J6: Atg/Ctg|p.Met541Leu/c.1621A>C | K6: 4118 | L6: 3964 | M6: 8126 | N6: 0.4878168841 | O6: 1 | P6: 1 | Q6: 1 | R6: 1 | S6: 1 | T6: 0 | U6: 1 | V6: 1 | W6: 7 | X6: 11.186 | Y6: NO | Z6: COSM28026 | AA6: haematopoietic_and_lymphoid_tissue, skin, soft_tissue, stomach | AB6: 3, 1, 3, 1 | AC6: rs3822214 | AD6: rs3822214 | AE6: NO | AF6: 0.079 | AG6: NO | AH6: YES | AI6: 0.35 | AJ6: Tolerated | AK6: 34.93 | AL6: 33.35 | AM6: 4118 | AN6: 3964 | AO6: 8126 | AP6: 0.4878168841 | AQ6: 0 | AR6: 0 | AS6: 0 | AT6: NA | AU6: 1 | AV6: 5 | AW6: 5 | AX6: Polymorphism
A7: ESP6500, dbSNP, ExAC, ClinVar, prediction, VAF | B7: UPN_Te4_003 | C7: 4 | D7: 106155185 | E7: C | F7: G | G7: TET2 | H7: ENST00000380013 | I7: missense_variant | J7: cCt/cGt|p.Pro29Arg/c.86C>G | K7: 10493 | L7: 10224 | M7: 20752 | N7: 0.4926754048 | O7: 1 | P7: 1 | Q7: 1 | R7: 1 | S7: 1 | T7: 1 | U7: 1 | V7: 1 | W7: 8 | X7: 1.5465 | Y7: NO | Z7: COSM5020248, COSM5020249 | AA7: soft_tissue | AB7: 4 | AC7: rs12498609 | AD7: rs12498609 | AE7: NO | AF7: 0.06 | AG7: NO | AH7: YES | AI7: -1.923 | AJ7: Tolerated | AK7: 34.97 | AL7: 34.38 | AM7: 5218 | AN7: 5075 | AO7: 10314 | AP7: 0.4920496413 | AQ7: 5275 | AR7: 5149 | AS7: 10438 | AT7: 0.4932937344 | AU7: 0.9004722822 | AV7: 2 | AW7: 2 | AX7: Polymorphism
A8: ESP6500, dbSNP, ExAC, ClinVar, prediction, VAF | B8: UPN_Te4_022 | C8: 4 | D8: 106155185 | E8: C | F8: G | G8: TET2 | H8: ENST00000380013 | I8: missense_variant | J8: cCt/cGt|p.Pro29Arg/c.86C>G | K8: 8640 | L8: 8670 | M8: 17353 | N8: 0.499625425 | O8: 1 | P8: 1 | Q8: 1 | R8: 1 | S8: 1 | T8: 1 | U8: 1 | V8: 1 | W8: 8 | X8: 1.5465 | Y8: NO | Z8: COSM5020248, COSM5020249 | AA8: soft_tissue | AB8: 4 | AC8: rs12498609 | AD8: rs12498609 | AE8: NO | AF8: 0.06 | AG8: NO | AH8: YES | AI8: -1.923 | AJ8: Tolerated | AK8: 34.32 | AL8: 32.96 | AM8: 4294 | AN8: 4312 | AO8: 8632 | AP8: 0.499536608 | AQ8: 4346 | AR8: 4358 | AS8: 8721 | AT8: 0.4997133356 | AU8: 0.9636289537 | AV8: 2 | AW8: 2 | AX8: Polymorphism
A9: ESP6500, ExAC, ClinVar, prediction, VAF | B9: UPN_Te4_002 | C9: 4 | D9: 106155199 | E9: C | F9: T | G9: TET2 | H9: ENST00000380013 | I9: missense_variant | J9: Ctc/Ttc|p.Leu34Phe/c.100C>T | K9: 16043 | L9: 16886 | M9: 33126 | N9: 0.509750649 | O9: 1 | P9: 1 | Q9: 1 | R9: 1 | S9: 1 | T9: 1 | U9: 1 | V9: 1 | W9: 8 | X9: 1.8953 | Y9: NO | Z9: NO | AA9: NO | AB9: O | AC9: NO | AD9: rs111948941 | AE9: NO | AF9: 0.015 | AG9: NO | AH9: YES | AI9: -1.31 | AJ9: Tolerated | AK9: 35.01 | AL9: 33.8 | AM9: 7977 | AN9: 8350 | AO9: 16467 | AP9: 0.5070747556 | AQ9: 8066 | AR9: 8536 | AS9: 16659 | AT9: 0.512395702 | AU9: 0.6275905321 | AV9: 1 | AW9: 1 | AX9: Polymorphism
A10: ESP6500, dbSNP, ExAC, ClinVar, prediction, VAF | B10: UPN_Te4_002 | C10: 4 | D10: 106155751 | E10: G | F10: A | G10: TET2 | H10: ENST00000380013 | I10: missense_variant | J10: Gtg/Atg|p.Val218Met/c.652G>A | K10: 12364 | L10: 13431 | M10: 25833 | N10: 0.519916386 | O10: 1 | P10: 1 | Q10: 1 | R10: 1 | S10: 1 | T10: 1 | U10: 1 | V10: 1 | W10: 8 | X10: 2.093 | Y10: NO | Z10: COSM4416139, COSM4416140 | AA10: haematopoietic_and_lymphoid_tissue | AB10: 2 | AC10: rs6843141 | AD10: rs6843141 | AE10: NO | AF10: 0.055 | AG10: NO | AH10: YES | AI10: 0.498 | AJ10: Tolerated | AK10: 34.89 | AL10: 35.12 | AM10: 12364 | AN10: 13428 | AO10: 25830 | AP10: 0.5198606272 | AQ10: 0 | AR10: 3 | AS10: 3 | AT10: 1 | AU10: 0.2512542462 | AV10: 1 | AW10: 1 | AX10: Polymorphism
A11: ESP6500, dbSNP, ExAC, ClinVar, prediction, VAF | B11: UPN_Te4_001 | C11: 4 | D11: 106156163 | E11: G | F11: A | G11: TET2 | H11: ENST00000380013 | I11: missense_variant | J11: gGt/gAt|p.Gly355Asp/c.1064G>A | K11: 10165 | L11: 10338 | M11: 20542 | N11: 0.5032616104 | O11: 1 | P11: 1 | Q11: 1 | R11: 1 | S11: 1 | T11: 1 | U11: 1 | V11: 1 | W11: 8 | X11: 4.3721 | Y11: NO | Z11: NO | AA11: NO | AB11: O | AC11: rs61744960 | AD11: rs61744960 | AE11: NO | AF11: 0.027 | AG11: NO | AH11: YES | AI11: -1.044 | AJ11: Tolerated | AK11: 34.94 | AL11: 35.21 | AM11: 464 | AN11: 454 | AO11: 928 | AP11: 0.4892241379 | AQ11: 9701 | AR11: 9884 | AS11: 19614 | AT11: 0.5039257673 | AU11: 0.5659331316 | AV11: 2 | AW11: 2 | AX11: Polymorphism
A12: ESP6500, dbSNP, ExAC, ClinVar, prediction, VAF | B12: UPN_Te4_010 | C12: 4 | D12: 106156163 | E12: G | F12: A | G12: TET2 | H12: ENST00000380013 | I12: missense_variant | J12: gGt/gAt|p.Gly355Asp/c.1064G>A | K12: 17441 | L12: 17284 | M12: 34775 | N12: 0.4970237239 | O12: 1 | P12: 1 | Q12: 1 | R12: 0 | S12: 1 | T12: 1 | U12: 1 | V12: 1 | W12: 7 | X12: 4.3721 | Y12: NO | Z12: NO | AA12: NO | AB12: O | AC12: rs61744960 | AD12: rs61744960 | AE12: NO | AF12: 0.027 | AG12: NO | AH12: YES | AI12: -1.044 | AJ12: Tolerated | AK12: 35.07 | AL12: 35.37 | AM12: 966 | AN12: 659 | AO12: 1631 | AP12: 0.4040465972 | AQ12: 16475 | AR12: 16625 | AS12: 33144 | AT12: 0.5015990828 | AU12: 2.588548214e-14 | AV12: 2 | AW12: 2 | AX12: Polymorphism
A13: ESP6500, dbSNP, ExAC, ClinVar, prediction, many samples, VAF | B13: UPN_Te4_008 | C13: 4 | D13: 106196829 | E13: T | F13: G | G13: TET2 | H13: ENST00000380013 | I13: missense_variant | J13: tTg/tGg|p.Leu1721Trp/c.5162T>G | K13: 21088 | L13: 20712 | M13: 41993 | N13: 0.4932250613 | O13: 1 | P13: 1 | Q13: 1 | R13: 1 | S13: 1 | T13: 1 | U13: 1 | V13: 1 | W13: 8 | X13: 13.4821 | Y13: NO | Z13: COSM5020013 | AA13: soft_tissue | AB13: 4 | AC13: rs34402524 | AD13: rs34402524 | AE13: NO | AF13: 0.118 | AG13: NO | AH13: YES | AI13: -0.294 | AJ13: Tolerated | AK13: 35.36 | AL13: 35.15 | AM13: 10735 | AN13: 10987 | AO13: 21875 | AP13: 0.5022628571 | AQ13: 10353 | AR13: 9725 | AS13: 20118 | AT13: 0.4833979521 | AU13: 1.206871676e-05 | AV13: 4 | AW13: 4 | AX13: Polymorphism
A14: ESP6500, dbSNP, ExAC, ClinVar, prediction, many samples, VAF | B14: UPN_Te4_016 | C14: 4 | D14: 106196829 | E14: T | F14: G | G14: TET2 | H14: ENST00000380013 | I14: missense_variant | J14: tTg/tGg|p.Leu1721Trp/c.5162T>G | K14: 17837 | L14: 18935 | M14: 36950 | N14: 0.5124492558 | O14: 1 | P14: 1 | Q14: 1 | R14: 1 | S14: 1 | T14: 1 | U14: 1 | V14: 1 | W14: 8 | X14: 13.4821 | Y14: NO | Z14: COSM5020013 | AA14: soft_tissue | AB14: 4 | AC14: rs34402524 | AD14: rs34402524 | AE14: NO | AF14: 0.118 | AG14: NO | AH14: YES | AI14: -0.294 | AJ14: Tolerated | AK14: 35.05 | AL14: 34.73 | AM14: 9265 | AN14: 9873 | AO14: 19248 | AP14: 0.512936409 | AQ14: 8572 | AR14: 9062 | AS14: 17702 | AT14: 0.5119195571 | AU14: 0.7069570807 | AV14: 4 | AW14: 4 | AX14: Polymorphism
A15: ESP6500, dbSNP, ExAC, ClinVar, prediction, many samples, VAF | B15: UPN_Te4_001 | C15: 4 | D15: 106196951 | E15: A | F15: G | G15: TET2 | H15: ENST00000380013 | I15: missense_variant | J15: Ata/Gta|p.Ile1762Val/c.5284A>G | K15: 14105 | L15: 21141 | M15: 35302 | N15: 0.5988612543 | O15: 1 | P15: 1 | Q15: 0 | R15: 0 | S15: 1 | T15: 1 | U15: 0 | V15: 1 | W15: 5 | X15: 37.335 | Y15: NO | Z15: COSM3760322 | AA15: haematopoietic_and_lymphoid_tissue, prostate, thyroid | AB15: 2, 5, 1 | AC15: rs2454206 | AD15: rs2454206 | AE15: NO | AF15: 0.272 | AG15: NO | AH15: YES | AI15: 0.041 | AJ15: Tolerated | AK15: 35.82 | AL15: 35.19 | AM15: 14055 | AN15: 96 | AO15: 14187 | AP15: 0.0067667583 | AQ15: 50 | AR15: 21045 | AS15: 21115 | AT15: 0.9966848212 | AU15: 2 | AV15: 26 | AW15: 26 | AX15: Polymorphism
A16: ESP6500, dbSNP, ExAC, ClinVar, prediction, many samples, VAF | B16: UPN_Te4_004 | C16: 4 | D16: 106196951 | E16: A | F16: G | G16: TET2 | H16: ENST00000380013 | I16: missense_variant | J16: Ata/Gta|p.Ile1762Val/c.5284A>G | K16: 13005 | L16: 16943 | M16: 29974 | N16: 0.5652565557 | O16: 1 | P16: 1 | Q16: 0 | R16: 0 | S16: 1 | T16: 1 | U16: 0 | V16: 1 | W16: 5 | X16: 37.335 | Y16: NO | Z16: COSM3760322 | AA16: haematopoietic_and_lymphoid_tissue, prostate, thyroid | AB16: 2, 5, 1 | AC16: rs2454206 | AD16: rs2454206 | AE16: NO | AF16: 0.272 | AG16: NO | AH16: YES | AI16: 0.041 | AJ16: Tolerated | AK16: 35.8 | AL16: 35.38 | AM16: 12961 | AN16: 38 | AO16: 13011 | AP16: 0.0029206056 | AQ16: 44 | AR16: 16905 | AS16: 16963 | AT16: 0.9965807935 | AU16: 2 | AV16: 26 | AW16: 26 | AX16: Polymorphism
A17: ESP6500, dbSNP, ExAC, ClinVar, prediction, many samples, VAF | B17: UPN_Te4_005 | C17: 4 | D17: 106196951 | E17: A | F17: G | G17: TET2 | H17: ENST00000380013 | I17: missense_variant | J17: Ata/Gta|p.Ile1762Val/c.5284A>G | K17: 14285 | L17: 20606 | M17: 34955 | N17: 0.5895007867 | O17: 1 | P17: 1 | Q17: 0 | R17: 0 | S17: 1 | T17: 1 | U17: 0 | V17: 1 | W17: 5 | X17: 37.335 | Y17: NO | Z17: COSM3760322 | AA17: haematopoietic_and_lymphoid_tissue, prostate, thyroid | AB17: 2, 5, 1 | AC17: rs2454206 | AD17: rs2454206 | AE17: NO | AF17: 0.272 | AG17: NO | AH17: YES | AI17: 0.041 | AJ17: Tolerated | AK17: 35.82 | AL17: 35.44 | AM17: 14261 | AN17: 53 | AO17: 14354 | AP17: 0.0036923506 | AQ17: 24 | AR17: 20553 | AS17: 20601 | AT17: 0.997670016 | AU17: 2 | AV17: 26 | AW17: 26 | AX17: Polymorphism
A18: ESP6500, dbSNP, ExAC, ClinVar, prediction, many samples, VAF | B18: UPN_Te4_007 | C18: 4 | D18: 106196951 | E18: A | F18: G | G18: TET2 | H18: ENST00000380013 | I18: missense_variant | J18: Ata/Gta|p.Ile1762Val/c.5284A>G | K18: 26753 | L18: 11632 | M18: 38436 | N18: 0.3026329483 | O18: 1 | P18: 1 | Q18: 0 | R18: 0 | S18: 1 | T18: 1 | U18: 0 | V18: 1 | W18: 5 | X18: 37.335 | Y18: NO | Z18: COSM3760322 | AA18: haematopoietic_and_lymphoid_tissue, prostate, thyroid | AB18: 2, 5, 1 | AC18: rs2454206 | AD18: rs2454206 | AE18: NO | AF18: 0.272 | AG18: NO | AH18: YES | AI18: 0.041 | AJ18: Tolerated | AK18: 35.65 | AL18: 35.37 | AM18: 15574 | AN18: 55 | AO18: 15645 | AP18: 0.0035155002 | AQ18: 11179 | AR18: 11577 | AS18: 22791 | AT18: 0.5079636699 | AU18: 2 | AV18: 26 | AW18: 26 | AX18: Polymorphism
A19: ESP6500, dbSNP, ExAC, ClinVar, prediction, many samples, VAF | B19: UPN_Te4_008 | C19: 4 | D19: 106196951 | E19: A | F19: G | G19: TET2 | H19: ENST00000380013 | I19: missense_variant | J19: Ata/Gta|p.Ile1762Val/c.5284A>G | K19: 20143 | L19: 11006 | M19: 31192 | N19: 0.3528468838 | O19: 1 | P19: 1 | Q19: 0 | R19: 0 | S19: 1 | T19: 1 | U19: 0 | V19: 1 | W19: 5 | X19: 37.335 | Y19: NO | Z19: COSM3760322 | AA19: haematopoietic_and_lymphoid_tissue, prostate, thyroid | AB19: 2, 5, 1 | AC19: rs2454206 | AD19: rs2454206 | AE19: NO | AF19: 0.272 | AG19: NO | AH19: YES | AI19: 0.041 | AJ19: Tolerated | AK19: 35.6 | AL19: 35.42 | AM19: 8971 | AN19: 58 | AO19: 9036 | AP19: 0.0064187694 | AQ19: 11172 | AR19: 10948 | AS19: 22156 | AT19: 0.4941325149 | AU19: 2 | AV19: 26 | AW19: 26 | AX19: Polymorphism
A20: ESP6500, dbSNP, ExAC, ClinVar, prediction, many samples, VAF | B20: UPN_Te4_009 | C20: 4 | D20: 106196951 | E20: A | F20: G | G20: TET2 | H20: ENST00000380013 | I20: missense_variant | J20: Ata/Gta|p.Ile1762Val/c.5284A>G | K20: 4055 | L20: 8880 | M20: 12941 | N20: 0.6861911753 | O20: 1 | P20: 1 | Q20: 1 | R20: 0 | S20: 1 | T20: 1 | U20: 1 | V20: 1 | W20: 7 | X20: 37.335 | Y20: NO | Z20: COSM3760322 | AA20: haematopoietic_and_lymphoid_tissue, prostate, thyroid | AB20: 2, 5, 1 | AC20: rs2454206 | AD20: rs2454206 | AE20: NO | AF20: 0.272 | AG20: NO | AH20: YES | AI20: 0.041 | AJ20: Tolerated | AK20: 35.8 | AL20: 35.44 | AM20: 4040 | AN20: 13 | AO20: 4055 | AP20: 0.0032059186 | AQ20: 15 | AR20: 8867 | AS20: 8886 | AT20: 0.9978618051 | AU20: 2 | AV20: 26 | AW20: 26 | AX20: Polymorphism
A21: ESP6500, dbSNP, ExAC, ClinVar, prediction, many samples, VAF | B21: UPN_Te4_010 | C21: 4 | D21: 106196951 | E21: A | F21: G | G21: TET2 | H21: ENST00000380013 | I21: missense_variant | J21: Ata/Gta|p.Ile1762Val/c.5284A>G | K21: 15688 | L21: 26035 | M21: 41755 | N21: 0.6235181415 | O21: 1 | P21: 1 | Q21: 0 | R21: 0 | S21: 1 | T21: 1 | U21: 0 | V21: 1 | W21: 5 | X21: 37.335 | Y21: NO | Z21: COSM3760322 | AA21: haematopoietic_and_lymphoid_tissue, prostate, thyroid | AB21: 2, 5, 1 | AC21: rs2454206 | AD21: rs2454206 | AE21: NO | AF21: 0.272 | AG21: NO | AH21: YES | AI21: 0.041 | AJ21: Tolerated | AK21: 35.85 | AL21: 35.39 | AM21: 15654 | AN21: 62 | AO21: 15734 | AP21: 0.003940511 | AQ21: 34 | AR21: 25973 | AS21: 26021 | AT21: 0.9981553361 | AU21: 2 | AV21: 26 | AW21: 26 | AX21: Polymorphism
A22: ESP6500, dbSNP, ExAC, ClinVar, prediction, many samples, VAF | B22: UPN_Te4_011 | C22: 4 | D22: 106196951 | E22: A | F22: G | G22: TET2 | H22: ENST00000380013 | I22: missense_variant | J22: Ata/Gta|p.Ile1762Val/c.5284A>G | K22: 15588 | L22: 24526 | M22: 40175 | N22: 0.6104791537 | O22: 1 | P22: 1 | Q22: 0 | R22: 0 | S22: 1 | T22: 1 | U22: 0 | V22: 1 | W22: 5 | X22: 37.335 | Y22: NO | Z22: COSM3760322 | AA22: haematopoietic_and_lymphoid_tissue, prostate, thyroid | AB22: 2, 5, 1 | AC22: rs2454206 | AD22: rs2454206 | AE22: NO | AF22: 0.272 | AG22: NO | AH22: YES | AI22: 0.041 | AJ22: Tolerated | AK22: 35.8 | AL22: 35.22 | AM22: 15546 | AN22: 63 | AO22: 15646 | AP22: 0.0040265883 | AQ22: 42 | AR22: 24463 | AS22: 24529 | AT22: 0.9973093074 | AU22: 2 | AV22: 26 | AW22: 26 | AX22: Polymorphism
A23: ESP6500, dbSNP, ExAC, ClinVar, prediction, many samples, VAF | B23: UPN_Te4_012 | C23: 4 | D23: 106196951 | E23: A | F23: G | G23: TET2 | H23: ENST00000380013 | I23: missense_variant | J23: Ata/Gta|p.Ile1762Val/c.5284A>G | K23: 7902 | L23: 11004 | M23: 18937 | N23: 0.5810846491 | O23: 1 | P23: 1 | Q23: 0 | R23: 0 | S23: 1 | T23: 1 | U23: 0 | V23: 1 | W23: 5 | X23: 37.335 | Y23: NO | Z23: COSM3760322 | AA23: haematopoietic_and_lymphoid_tissue, prostate, thyroid | AB23: 2, 5, 1 | AC23: rs2454206 | AD23: rs2454206 | AE23: NO | AF23: 0.272 | AG23: NO | AH23: YES | AI23: 0.041 | AJ23: Tolerated | AK23: 35.9 | AL23: 35.38 | AM23: 7879 | AN23: 22 | AO23: 7913 | AP23: 0.0027802351 | AQ23: 23 | AR23: 10982 | AS23: 11024 | AT23: 0.9961901306 | AU23: 2 | AV23: 26 | AW23: 26 | AX23: Polymorphism
A24: ESP6500, dbSNP, ExAC, ClinVar, prediction, many samples, VAF | B24: UPN_Te4_014 | C24: 4 | D24: 106196951 | E24: A | F24: G | G24: TET2 | H24: ENST00000380013 | I24: missense_variant | J24: Ata/Gta|p.Ile1762Val/c.5284A>G | K24: 16646 | L24: 26472 | M24: 43203 | N24: 0.6127352267 | O24: 1 | P24: 1 | Q24: 0 | R24: 0 | S24: 1 | T24: 1 | U24: 0 | V24: 1 | W24: 5 | X24: 37.335 | Y24: NO | Z24: COSM3760322 | AA24: haematopoietic_and_lymphoid_tissue, prostate, thyroid | AB24: 2, 5, 1 | AC24: rs2454206 | AD24: rs2454206 | AE24: NO | AF24: 0.272 | AG24: NO | AH24: YES | AI24: 0.041 | AJ24: Tolerated | AK24: 35.8 | AL24: 35.15 | AM24: 16583 | AN24: 99 | AO24: 16725 | AP24: 0.0059192825 | AQ24: 63 | AR24: 26373 | AS24: 26478 | AT24: 0.9960344437 | AU24: 2 | AV24: 26 | AW24: 26 | AX24: Polymorphism
A25: ESP6500, dbSNP, ExAC, ClinVar, prediction, many samples, VAF | B25: UPN_Te4_017 | C25: 4 | D25: 106196951 | E25: A | F25: G | G25: TET2 | H25: ENST00000380013 | I25: missense_variant | J25: Ata/Gta|p.Ile1762Val/c.5284A>G | K25: 8310 | L25: 11856 | M25: 20183 | N25: 0.5874250607 | O25: 1 | P25: 1 | Q25: 0 | R25: 0 | S25: 1 | T25: 1 | U25: 0 | V25: 1 | W25: 5 | X25: 37.335 | Y25: NO | Z25: COSM3760322 | AA25: haematopoietic_and_lymphoid_tissue, prostate, thyroid | AB25: 2, 5, 1 | AC25: rs2454206 | AD25: rs2454206 | AE25: NO | AF25: 0.272 | AG25: NO | AH25: YES | AI25: 0.041 | AJ25: Tolerated | AK25: 35.88 | AL25: 35.33 | AM25: 8260 | AN25: 25 | AO25: 8292 | AP25: 0.0030149542 | AQ25: 50 | AR25: 11831 | AS25: 11891 | AT25: 0.994954167 | AU25: 2 | AV25: 26 | AW25: 26 | AX25: Polymorphism
A26: ESP6500, dbSNP, ExAC, ClinVar, prediction, many samples, VAF | B26: UPN_Te4_018 | C26: 4 | D26: 106196951 | E26: A | F26: G | G26: TET2 | H26: ENST00000380013 | I26: missense_variant | J26: Ata/Gta|p.Ile1762Val/c.5284A>G | K26: 29362 | L26: 12352 | M26: 41794 | N26: 0.295544815 | O26: 1 | P26: 1 | Q26: 0 | R26: 0 | S26: 1 | T26: 1 | U26: 0 | V26: 1 | W26: 5 | X26: 37.335 | Y26: NO | Z26: COSM3760322 | AA26: haematopoietic_and_lymphoid_tissue, prostate, thyroid | AB26: 2, 5, 1 | AC26: rs2454206 | AD26: rs2454206 | AE26: NO | AF26: 0.272 | AG26: NO | AH26: YES | AI26: 0.041 | AJ26: Tolerated | AK26: 35.65 | AL26: 35.18 | AM26: 17716 | AN26: 66 | AO26: 17811 | AP26: 0.0037055752 | AQ26: 11646 | AR26: 12286 | AS26: 23983 | AT26: 0.5122795313 | AU26: 2 | AV26: 26 | AW26: 26 | AX26: Polymorphism
A27: ESP6500, dbSNP, ExAC, ClinVar, prediction, many samples, VAF | B27: UPN_Te4_020 | C27: 4 | D27: 106196951 | E27: A | F27: G | G27: TET2 | H27: ENST00000380013 | I27: missense_variant | J27: Ata/Gta|p.Ile1762Val/c.5284A>G | K27: 16193 | L27: 7445 | M27: 23666 | N27: 0.3145863264 | O27: 1 | P27: 1 | Q27: 0 | R27: 0 | S27: 1 | T27: 1 | U27: 0 | V27: 1 | W27: 5 | X27: 37.335 | Y27: NO | Z27: COSM3760322 | AA27: haematopoietic_and_lymphoid_tissue, prostate, thyroid | AB27: 2, 5, 1 | AC27: rs2454206 | AD27: rs2454206 | AE27: NO | AF27: 0.272 | AG27: NO | AH27: YES | AI27: 0.041 | AJ27: Tolerated | AK27: 35.77 | AL27: 35.33 | AM27: 8903 | AN27: 27 | AO27: 8940 | AP27: 0.0030201342 | AQ27: 7290 | AR27: 7418 | AS27: 14726 | AT27: 0.5037348907 | AU27: 2 | AV27: 26 | AW27: 26 | AX27: Polymorphism
A28: ESP6500, dbSNP, ExAC, ClinVar, prediction, many samples, VAF | B28: UPN_Te4_002 | C28: 4 | D28: 106197000 | E28: A | F28: G | G28: TET2 | H28: ENST00000380013 | I28: missense_variant | J28: cAt/cGt|p.His1778Arg/c.5333A>G | K28: 16606 | L28: 15571 | M28: 32219 | N28: 0.4832862597 | O28: 1 | P28: 1 | Q28: 1 | R28: 1 | S28: 1 | T28: 1 | U28: 1 | V28: 1 | W28: 8 | X28: 3.017 | Y28: NO | Z28: NO | AA28: NO | AB28: O | AC28: rs62621450 | AD28: rs62621450 | AE28: NO | AF28: 0.045 | AG28: NO | AH28: YES | AI28: -1.986 | AJ28: Tolerated | AK28: 35.33 | AL28: 35.31 | AM28: 7431 | AN28: 7430 | AO28: 14886 | AP28: 0.4991266962 | AQ28: 9175 | AR28: 8141 | AS28: 17333 | AT28: 0.4696821093 | AU28: 2 | AV28: 27 | AW28: 27 | AX28: Polymorphism
A29: ESP6500, ExAC, ClinVar, prediction, VAF | B29: UPN_Te4_013 | C29: 4 | D29: 106197557 | E29: T | F29: C | G29: TET2 | H29: ENST00000380013 | I29: missense_variant | J29: Tac/Cac|p.Tyr1964His/c.5890T>C | K29: 2455 | L29: 1936 | M29: 4427 | N29: 0.4373164671 | O29: 1 | P29: 1 | Q29: 1 | R29: 1 | S29: 1 | T29: 0 | U29: 1 | V29: 1 | W29: 7 | X29: 0.0314 | Y29: NO | Z29: COSM4642835 | AA29: large_intestine | AB29: 1 | AC29: NO | AD29: rs370470545 | AE29: NO | AF29: 0.0001174 | AG29: NO | AH29: NO | AI29: -0.735 | AJ29: Tolerated | AK29: 32.06 | AL29: 33.62 | AM29: 2455 | AN29: 1936 | AO29: 4427 | AP29: 0.4373164671 | AQ29: 0 | AR29: 0 | AS29: 0 | AT29: NA | AU29: 1 | AV29: 1 | AW29: 1 | AX29: Polymorphism
A30: dbSNP, ClinVar, prediction, VAF, many samples | B30: UPN_Te4_001 | C30: 7 | D30: 148525904 | E30: C | F30: G | G30: EZH2 | H30: ENST00000320356 | I30: missense_variant | J30: Gac/Cac|p.Asp185His/c.553G>C | K30: 6752 | L30: 6452 | M30: 13251 | N30: 0.4869066486 | O30: 1 | P30: 1 | Q30: 1 | R30: 1 | S30: 1 | T30: 0 | U30: 1 | V30: 1 | W30: 7 | X30: NO | Y30: NO | Z30: COSM3762469 | AA30: soft_tissue, thyroid | AB30: 3, 1 | AC30: rs2302427 | AD30: rs2302427 | AE30: NO | AF30: NO | AG30: NO | AH30: YES | AI30: -1.884 | AJ30: Tolerated | AK30: 34.48 | AL30: 34.04 | AM30: 6752 | AN30: 6452 | AO30: 13251 | AP30: 0.4869066486 | AQ30: 0 | AR30: 0 | AS30: 0 | AT30: NA | AU30: 1 | AV30: 5 | AW30: 5 | AX30: Polymorphism
A31: dbSNP, ClinVar, prediction, VAF, many samples | B31: UPN_Te4_003 | C31: 7 | D31: 148525904 | E31: C | F31: G | G31: EZH2 | H31: ENST00000320356 | I31: missense_variant | J31: Gac/Cac|p.Asp185His/c.553G>C | K31: 3612 | L31: 3834 | M31: 7456 | N31: 0.5142167382 | O31: 1 | P31: 1 | Q31: 1 | R31: 1 | S31: 1 | T31: 0 | U31: 1 | V31: 1 | W31: 7 | X31: NO | Y31: NO | Z31: COSM3762469 | AA31: soft_tissue, thyroid | AB31: 3, 1 | AC31: rs2302427 | AD31: rs2302427 | AE31: NO | AF31: NO | AG31: NO | AH31: YES | AI31: -1.884 | AJ31: Tolerated | AK31: 35.01 | AL31: 34.59 | AM31: 3612 | AN31: 3834 | AO31: 7456 | AP31: 0.5142167382 | AQ31: 0 | AR31: 0 | AS31: 0 | AT31: NA | AU31: 1 | AV31: 5 | AW31: 5 | AX31: Polymorphism
A32: dbSNP, ClinVar, prediction, VAF, many samples | B32: UPN_Te4_006 | C32: 7 | D32: 148525904 | E32: C | F32: G | G32: EZH2 | H32: ENST00000320356 | I32: missense_variant | J32: Gac/Cac|p.Asp185His/c.553G>C | K32: 5536 | L32: 5721 | M32: 11274 | N32: 0.5074507717 | O32: 1 | P32: 1 | Q32: 1 | R32: 1 | S32: 1 | T32: 0 | U32: 1 | V32: 1 | W32: 7 | X32: NO | Y32: NO | Z32: COSM3762469 | AA32: soft_tissue, thyroid | AB32: 3, 1 | AC32: rs2302427 | AD32: rs2302427 | AE32: NO | AF32: NO | AG32: NO | AH32: YES | AI32: -1.884 | AJ32: Tolerated | AK32: 34.89 | AL32: 34.56 | AM32: 5536 | AN32: 5721 | AO32: 11274 | AP32: 0.5074507717 | AQ32: 0 | AR32: 0 | AS32: 0 | AT32: NA | AU32: 1 | AV32: 5 | AW32: 5 | AX32: Polymorphism
A33: dbSNP, ClinVar, prediction, VAF, many samples | B33: UPN_Te4_009 | C33: 7 | D33: 148525904 | E33: C | F33: G | G33: EZH2 | H33: ENST00000320356 | I33: missense_variant | J33: Gac/Cac|p.Asp185His/c.553G>C | K33: 2325 | L33: 2372 | M33: 4710 | N33: 0.5036093418 | O33: 1 | P33: 1 | Q33: 1 | R33: 1 | S33: 1 | T33: 1 | U33: 1 | V33: 1 | W33: 8 | X33: NO | Y33: NO | Z33: COSM3762469 | AA33: soft_tissue, thyroid | AB33: 3, 1 | AC33: rs2302427 | AD33: rs2302427 | AE33: NO | AF33: NO | AG33: NO | AH33: YES | AI33: -1.884 | AJ33: Tolerated | AK33: 34.99 | AL33: 34.62 | AM33: 2325 | AN33: 2370 | AO33: 4708 | AP33: 0.5033984707 | AQ33: 0 | AR33: 2 | AS33: 2 | AT33: 1 | AU33: 0.499943601 | AV33: 5 | AW33: 5 | AX33: Polymorphism
A34: dbSNP, ClinVar, prediction, VAF, many samples | B34: UPN_Te4_013 | C34: 7 | D34: 148525904 | E34: C | F34: G | G34: EZH2 | H34: ENST00000320356 | I34: missense_variant | J34: Gac/Cac|p.Asp185His/c.553G>C | K34: 3780 | L34: 3719 | M34: 7528 | N34: 0.4940223167 | O34: 1 | P34: 1 | Q34: 1 | R34: 1 | S34: 1 | T34: 0 | U34: 1 | V34: 1 | W34: 7 | X34: NO | Y34: NO | Z34: COSM3762469 | AA34: soft_tissue, thyroid | AB34: 3, 1 | AC34: rs2302427 | AD34: rs2302427 | AE34: NO | AF34: NO | AG34: NO | AH34: YES | AI34: -1.884 | AJ34: Tolerated | AK34: 34.57 | AL34: 34.08 | AM34: 3780 | AN34: 3719 | AO34: 7528 | AP34: 0.4940223167 | AQ34: 0 | AR34: 0 | AS34: 0 | AT34: NA | AU34: 1 | AV34: 5 | AW34: 5 | AX34: Polymorphism
A35: VAF, dbSNP, ExAC, prediction, ClinVar | B35: UPN_Te4_013 | C35: 9 | D35: 21970916 | E35: C | F35: T | G35: CDKN2A | H35: ENST00000498124 | I35: missense_variant | J35: Gcg/Acg|p.Ala148Thr/c.442G>A | K35: 834 | L35: 878 | M35: 1718 | N35: 0.5110593714 | O35: 1 | P35: 1 | Q35: 1 | R35: 1 | S35: 1 | T35: 0 | U35: 1 | V35: 1 | W35: 7 | X35: 3.2093 | Y35: NO | Z35: COSM3774362, COSM3736958, COSM3774361 | AA35: kidney, skin | AB35: 3, 1 | AC35: rs3731249 | AD35: rs3731249 | AE35: NO | AF35: 0.022 | AG35: NO | AH35: YES | AI35: -0.884 | AJ35: Tolerated | AK35: 35.23 | AL35: 35.41 | AM35: 834 | AN35: 878 | AO35: 1718 | AP35: 0.5110593714 | AQ35: 0 | AR35: 0 | AS35: 0 | AT35: NA | AU35: 1 | AV35: 1 | AW35: 1 | AX35: Polymorphism
A36: VAF, dbSNP, ExAC, prediction, ClinVar | B36: UPN_Te4_014 | C36: 9 | D36: 139391338 | E36: C | F36: T | G36: NOTCH1 | H36: ENST00000277541 | I36: missense_variant | J36: Gtc/Atc|p.Val2285Ile/c.6853G>A | K36: 6320 | L36: 6286 | M36: 12638 | N36: 0.4973888273 | O36: 1 | P36: 1 | Q36: 1 | R36: 1 | S36: 1 | T36: 0 | U36: 1 | V36: 1 | W36: 7 | X36: 1.6164 | Y36: NO | Z36: COSM41579, COSM5020399 | AA36: soft_tissue | AB36: 6 | AC36: rs61751489 | AD36: rs61751489 | AE36: NO | AF36: 0.025 | AG36: NO | AH36: YES | AI36: 0.011 | AJ36: Tolerated | AK36: 35.28 | AL36: 34.56 | AM36: 6320 | AN36: 6270 | AO36: 12622 | AP36: 0.4967517034 | AQ36: 0 | AR36: 16 | AS36: 16 | AT36: 1 | AU36: 1.447409853e-05 | AV36: 1 | AW36: 1 | AX36: Polymorphism
A37: VAF, ESP6500, 1000 Genomes, dbSNP, ClinVar | B37: UPN_Te4_009 | C37: 11 | D37: 534332 | E37: G | F37: A | G37: HRAS | H37: ENST00000417302 | I37: 5_prime_UTR_premature_start_codon_gain_variant | J37: |c.-10C>T | K37: 2 | L37: 1967 | M37: 2087 | N37: 0.9425011979 | O37: 1 | P37: 1 | Q37: 0 | R37: 1 | S37: 1 | T37: 1 | U37: 1 | V37: 0 | W37: 6 | X37: 4.6174 | Y37: 0.0457 | Z37: NO | AA37: NO | AB37: O | AC37: rs41294870 | AD37: rs41294870 | AE37: NO | AF37: NO | AG37: NO | AH37: YES | AI37: NA | AJ37: NA | AK37: 23 | AL37: 21.35 | AM37: 2 | AN37: 938 | AO37: 1016 | AP37: 0.9232283465 | AQ37: 0 | AR37: 1029 | AS37: 1071 | AT37: 0.9607843137 | AU37: 0.2277836961 | AV37: 1 | AW37: 1 | AX37: Polymorphism
A38: VAF, many samples, ESP6500, 1000 Genomes, dbSNP, ExAC, ClinVar, prediction | B38: UPN_Te4_001 | C38: 17 | D38: 7579472 | E38: G | F38: C | G38: TP53 | H38: ENST00000269305 | I38: missense_variant | J38: cCc/cGc|p.Pro72Arg/c.215C>G | K38: 52 | L38: 5978 | M38: 6053 | N38: 0.9876094499 | O38: 1 | P38: 1 | Q38: 1 | R38: 1 | S38: 1 | T38: 0 | U38: 1 | V38: 1 | W38: 7 | X38: 25.4767 | Y38: 0.7147 | Z38: COSM3766190, COSM3766191, COSM250061, COSM3766193, COSM3766192 | AA38: large_intestine, liver, pancreas, pleura, prostate, soft_tissue, stomach, upper_aerodigestive_tract, urinary_tract, central_nervous_system | AB38: 10, 5, 15, 5, 5, 100, 5, 7, 5, 1 | AC38: rs1042522 | AD38: rs1042522 | AE38: NO | AF38: 0.659 | AG38: NO | AH38: YES | AI38: 0.155 | AJ38: Tolerated | AK38: 23.37 | AL38: 33.45 | AM38: 0 | AN38: 0 | AO38: 0 | AP38: NA | AQ38: 52 | AR38: 5978 | AS38: 6053 | AT38: 0.9876094499 | AU38: 1 | AV38: 20 | AW38: 20 | AX38: Polymorphism
A39: VAF, many samples, ESP6500, 1000 Genomes, dbSNP, ExAC, ClinVar, prediction | B39: UPN_Te4_002 | C39: 17 | D39: 7579472 | E39: G | F39: C | G39: TP53 | H39: ENST00000269305 | I39: missense_variant | J39: cCc/cGc|p.Pro72Arg/c.215C>G | K39: 22 | L39: 4967 | M39: 5002 | N39: 0.9930027989 | O39: 1 | P39: 1 | Q39: 1 | R39: 1 | S39: 1 | T39: 0 | U39: 1 | V39: 1 | W39: 7 | X39: 25.4767 | Y39: 0.7147 | Z39: COSM3766190, COSM3766191, COSM250061, COSM3766193, COSM3766192 | AA39: large_intestine, liver, pancreas, pleura, prostate, soft_tissue, stomach, upper_aerodigestive_tract, urinary_tract, central_nervous_system | AB39: 10, 5, 15, 5, 5, 100, 5, 7, 5, 1 | AC39: rs1042522 | AD39: rs1042522 | AE39: NO | AF39: 0.659 | AG39: NO | AH39: YES | AI39: 0.155 | AJ39: Tolerated | AK39: 24.95 | AL39: 34.08 | AM39: 0 | AN39: 0 | AO39: 0 | AP39: NA | AQ39: 22 | AR39: 4967 | AS39: 5002 | AT39: 0.9930027989 | AU39: 1 | AV39: 20 | AW39: 20 | AX39: Polymorphism
A40: VAF, many samples, ESP6500, 1000 Genomes, dbSNP, ExAC, ClinVar, prediction | B40: UPN_Te4_003 | C40: 17 | D40: 7579472 | E40: G | F40: C | G40: TP53 | H40: ENST00000269305 | I40: missense_variant | J40: cCc/cGc|p.Pro72Arg/c.215C>G | K40: 1191 | L40: 1724 | M40: 2935 | N40: 0.5873935264 | O40: 1 | P40: 1 | Q40: 1 | R40: 1 | S40: 1 | T40: 0 | U40: 1 | V40: 1 | W40: 7 | X40: 25.4767 | Y40: 0.7147 | Z40: COSM3766190, COSM3766191, COSM250061, COSM3766193, COSM3766192 | AA40: large_intestine, liver, pancreas, pleura, prostate, soft_tissue, stomach, upper_aerodigestive_tract, urinary_tract, central_nervous_system | AB40: 10, 5, 15, 5, 5, 100, 5, 7, 5, 1 | AC40: rs1042522 | AD40: rs1042522 | AE40: NO | AF40: 0.659 | AG40: NO | AH40: YES | AI40: 0.155 | AJ40: Tolerated | AK40: 34.91 | AL40: 33.92 | AM40: 0 | AN40: 0 | AO40: 0 | AP40: NA | AQ40: 1191 | AR40: 1724 | AS40: 2935 | AT40: 0.5873935264 | AU40: 1 | AV40: 20 | AW40: 20 | AX40: Polymorphism
A41: VAF, many samples, ESP6500, 1000 Genomes, dbSNP, ExAC, ClinVar, prediction | B41: UPN_Te4_004 | C41: 17 | D41: 7579472 | E41: G | F41: C | G41: TP53 | H41: ENST00000269305 | I41: missense_variant | J41: cCc/cGc|p.Pro72Arg/c.215C>G | K41: 18 | L41: 3163 | M41: 3186 | N41: 0.9927809165 | O41: 1 | P41: 1 | Q41: 1 | R41: 1 | S41: 1 | T41: 0 | U41: 1 | V41: 1 | W41: 7 | X41: 25.4767 | Y41: 0.7147 | Z41: COSM3766190, COSM3766191, COSM250061, COSM3766193, COSM3766192 | AA41: large_intestine, liver, pancreas, pleura, prostate, soft_tissue, stomach, upper_aerodigestive_tract, urinary_tract, central_nervous_system | AB41: 10, 5, 15, 5, 5, 100, 5, 7, 5, 1 | AC41: rs1042522 | AD41: rs1042522 | AE41: NO | AF41: 0.659 | AG41: NO | AH41: YES | AI41: 0.155 | AJ41: Tolerated | AK41: 19.89 | AL41: 34.18 | AM41: 0 | AN41: 0 | AO41: 0 | AP41: NA | AQ41: 18 | AR41: 3163 | AS41: 3186 | AT41: 0.9927809165 | AU41: 1 | AV41: 20 | AW41: 20 | AX41: Polymorphism
A42: VAF, many samples, ESP6500, 1000 Genomes, dbSNP, ExAC, ClinVar, prediction | B42: UPN_Te4_005 | C42: 17 | D42: 7579472 | E42: G | F42: C | G42: TP53 | H42: ENST00000269305 | I42: missense_variant | J42: cCc/cGc|p.Pro72Arg/c.215C>G | K42: 21 | L42: 4341 | M42: 4382 | N42: 0.9906435418 | O42: 1 | P42: 1 | Q42: 1 | R42: 1 | S42: 1 | T42: 0 | U42: 1 | V42: 1 | W42: 7 | X42: 25.4767 | Y42: 0.7147 | Z42: COSM3766190, COSM3766191, COSM250061, COSM3766193, COSM3766192 | AA42: large_intestine, liver, pancreas, pleura, prostate, soft_tissue, stomach, upper_aerodigestive_tract, urinary_tract, central_nervous_system | AB42: 10, 5, 15, 5, 5, 100, 5, 7, 5, 1 | AC42: rs1042522 | AD42: rs1042522 | AE42: NO | AF42: 0.659 | AG42: NO | AH42: YES | AI42: 0.155 | AJ42: Tolerated | AK42: 23.43 | AL42: 34.06 | AM42: 0 | AN42: 0 | AO42: 0 | AP42: NA | AQ42: 21 | AR42: 4341 | AS42: 4382 | AT42: 0.9906435418 | AU42: 1 | AV42: 20 | AW42: 20 | AX42: Polymorphism
A43: VAF, many samples, ESP6500, 1000 Genomes, dbSNP, ExAC, ClinVar, prediction | B43: UPN_Te4_006 | C43: 17 | D43: 7579472 | E43: G | F43: C | G43: TP53 | H43: ENST00000269305 | I43: missense_variant | J43: cCc/cGc|p.Pro72Arg/c.215C>G | K43: 1706 | L43: 2830 | M43: 4539 | N43: 0.6234853492 | O43: 1 | P43: 1 | Q43: 1 | R43: 1 | S43: 1 | T43: 0 | U43: 1 | V43: 1 | W43: 7 | X43: 25.4767 | Y43: 0.7147 | Z43: COSM3766190, COSM3766191, COSM250061, COSM3766193, COSM3766192 | AA43: large_intestine, liver, pancreas, pleura, prostate, soft_tissue, stomach, upper_aerodigestive_tract, urinary_tract, central_nervous_system | AB43: 10, 5, 15, 5, 5, 100, 5, 7, 5, 1 | AC43: rs1042522 | AD43: rs1042522 | AE43: NO | AF43: 0.659 | AG43: NO | AH43: YES | AI43: 0.155 | AJ43: Tolerated | AK43: 34.89 | AL43: 34.08 | AM43: 0 | AN43: 0 | AO43: 0 | AP43: NA | AQ43: 1706 | AR43: 2830 | AS43: 4539 | AT43: 0.6234853492 | AU43: 1 | AV43: 20 | AW43: 20 | AX43: Polymorphism
A44: VAF, many samples, ESP6500, 1000 Genomes, dbSNP, ExAC, ClinVar, prediction | B44: UPN_Te4_007 | C44: 17 | D44: 7579472 | E44: G | F44: C | G44: TP53 | H44: ENST00000269305 | I44: missense_variant | J44: cCc/cGc|p.Pro72Arg/c.215C>G | K44: 1514 | L44: 1885 | M44: 3406 | N44: 0.5534351145 | O44: 1 | P44: 1 | Q44: 1 | R44: 1 | S44: 1 | T44: 0 | U44: 1 | V44: 1 | W44: 7 | X44: 25.4767 | Y44: 0.7147 | Z44: COSM3766190, COSM3766191, COSM250061, COSM3766193, COSM3766192 | AA44: large_intestine, liver, pancreas, pleura, prostate, soft_tissue, stomach, upper_aerodigestive_tract, urinary_tract, central_nervous_system | AB44: 10, 5, 15, 5, 5, 100, 5, 7, 5, 1 | AC44: rs1042522 | AD44: rs1042522 | AE44: NO | AF44: 0.659 | AG44: NO | AH44: YES | AI44: 0.155 | AJ44: Tolerated | AK44: 34.86 | AL44: 34.23 | AM44: 0 | AN44: 0 | AO44: 0 | AP44: NA | AQ44: 1514 | AR44: 1885 | AS44: 3406 | AT44: 0.5534351145 | AU44: 1 | AV44: 20 | AW44: 20 | AX44: Polymorphism
A45: VAF, many samples, ESP6500, 1000 Genomes, dbSNP, ExAC, ClinVar, prediction | B45: UPN_Te4_008 | C45: 17 | D45: 7579472 | E45: G | F45: C | G45: TP53 | H45: ENST00000269305 | I45: missense_variant | J45: cCc/cGc|p.Pro72Arg/c.215C>G | K45: 36 | L45: 7970 | M45: 8031 | N45: 0.9924044328 | O45: 1 | P45: 1 | Q45: 0 | R45: 1 | S45: 1 | T45: 0 | U45: 1 | V45: 1 | W45: 6 | X45: 25.4767 | Y45: 0.7147 | Z45: COSM3766190, COSM3766191, COSM250061, COSM3766193, COSM3766192 | AA45: large_intestine, liver, pancreas, pleura, prostate, soft_tissue, stomach, upper_aerodigestive_tract, urinary_tract, central_nervous_system | AB45: 10, 5, 15, 5, 5, 100, 5, 7, 5, 1 | AC45: rs1042522 | AD45: rs1042522 | AE45: NO | AF45: 0.659 | AG45: NO | AH45: YES | AI45: 0.155 | AJ45: Tolerated | AK45: 27.22 | AL45: 34.16 | AM45: 0 | AN45: 0 | AO45: 0 | AP45: NA | AQ45: 36 | AR45: 7970 | AS45: 8031 | AT45: 0.9924044328 | AU45: 1 | AV45: 20 | AW45: 20 | AX45: Polymorphism
A46: VAF, many samples, ESP6500, 1000 Genomes, dbSNP, ExAC, ClinVar, prediction | B46: UPN_Te4_009 | C46: 17 | D46: 7579472 | E46: G | F46: C | G46: TP53 | H46: ENST00000269305 | I46: missense_variant | J46: cCc/cGc|p.Pro72Arg/c.215C>G | K46: 824 | L46: 1021 | M46: 1849 | N46: 0.5521903732 | O46: 1 | P46: 1 | Q46: 1 | R46: 1 | S46: 1 | T46: 0 | U46: 1 | V46: 1 | W46: 7 | X46: 25.4767 | Y46: 0.7147 | Z46: COSM3766190, COSM3766191, COSM250061, COSM3766193, COSM3766192 | AA46: large_intestine, liver, pancreas, pleura, prostate, soft_tissue, stomach, upper_aerodigestive_tract, urinary_tract, central_nervous_system | AB46: 10, 5, 15, 5, 5, 100, 5, 7, 5, 1 | AC46: rs1042522 | AD46: rs1042522 | AE46: NO | AF46: 0.659 | AG46: NO | AH46: YES | AI46: 0.155 | AJ46: Tolerated | AK46: 34.83 | AL46: 34.12 | AM46: 0 | AN46: 0 | AO46: 0 | AP46: NA | AQ46: 824 | AR46: 1021 | AS46: 1849 | AT46: 0.5521903732 | AU46: 1 | AV46: 20 | AW46: 20 | AX46: Polymorphism
A47: VAF, many samples, ESP6500, 1000 Genomes, dbSNP, ExAC, ClinVar, prediction | B47: UPN_Te4_010 | C47: 17 | D47: 7579472 | E47: G | F47: C | G47: TP53 | H47: ENST00000269305 | I47: missense_variant | J47: cCc/cGc|p.Pro72Arg/c.215C>G | K47: 20 | L47: 4483 | M47: 4516 | N47: 0.9926926484 | O47: 1 | P47: 1 | Q47: 1 | R47: 1 | S47: 1 | T47: 0 | U47: 1 | V47: 1 | W47: 7 | X47: 25.4767 | Y47: 0.7147 | Z47: COSM3766190, COSM3766191, COSM250061, COSM3766193, COSM3766192 | AA47: large_intestine, liver, pancreas, pleura, prostate, soft_tissue, stomach, upper_aerodigestive_tract, urinary_tract, central_nervous_system | AB47: 10, 5, 15, 5, 5, 100, 5, 7, 5, 1 | AC47: rs1042522 | AD47: rs1042522 | AE47: NO | AF47: 0.659 | AG47: NO | AH47: YES | AI47: 0.155 | AJ47: Tolerated | AK47: 24.25 | AL47: 34.05 | AM47: 0 | AN47: 0 | AO47: 0 | AP47: NA | AQ47: 20 | AR47: 4483 | AS47: 4516 | AT47: 0.9926926484 | AU47: 1 | AV47: 20 | AW47: 20 | AX47: Polymorphism
A48: VAF, many samples, ESP6500, 1000 Genomes, dbSNP, ExAC, ClinVar, prediction | B48: UPN_Te4_011 | C48: 17 | D48: 7579472 | E48: G | F48: C | G48: TP53 | H48: ENST00000269305 | I48: missense_variant | J48: cCc/cGc|p.Pro72Arg/c.215C>G | K48: 2994 | L48: 3835 | M48: 6854 | N48: 0.5595272833 | O48: 1 | P48: 1 | Q48: 1 | R48: 1 | S48: 1 | T48: 0 | U48: 1 | V48: 1 | W48: 7 | X48: 25.4767 | Y48: 0.7147 | Z48: COSM3766190, COSM3766191, COSM250061, COSM3766193, COSM3766192 | AA48: large_intestine, liver, pancreas, pleura, prostate, soft_tissue, stomach, upper_aerodigestive_tract, urinary_tract, central_nervous_system | AB48: 10, 5, 15, 5, 5, 100, 5, 7, 5, 1 | AC48: rs1042522 | AD48: rs1042522 | AE48: NO | AF48: 0.659 | AG48: NO | AH48: YES | AI48: 0.155 | AJ48: Tolerated | AK48: 34.55 | AL48: 33.54 | AM48: 0 | AN48: 0 | AO48: 0 | AP48: NA | AQ48: 2994 | AR48: 3835 | AS48: 6854 | AT48: 0.5595272833 | AU48: 1 | AV48: 20 | AW48: 20 | AX48: Polymorphism
A49: VAF, many samples, ESP6500, 1000 Genomes, dbSNP, ExAC, ClinVar, prediction | B49: UPN_Te4_012 | C49: 17 | D49: 7579472 | E49: G | F49: C | G49: TP53 | H49: ENST00000269305 | I49: missense_variant | J49: cCc/cGc|p.Pro72Arg/c.215C>G | K49: 17 | L49: 2553 | M49: 2577 | N49: 0.9906868452 | O49: 1 | P49: 1 | Q49: 1 | R49: 1 | S49: 1 | T49: 0 | U49: 1 | V49: 1 | W49: 7 | X49: 25.4767 | Y49: 0.7147 | Z49: COSM3766190, COSM3766191, COSM250061, COSM3766193, COSM3766192 | AA49: large_intestine, liver, pancreas, pleura, prostate, soft_tissue, stomach, upper_aerodigestive_tract, urinary_tract, central_nervous_system | AB49: 10, 5, 15, 5, 5, 100, 5, 7, 5, 1 | AC49: rs1042522 | AD49: rs1042522 | AE49: NO | AF49: 0.659 | AG49: NO | AH49: YES | AI49: 0.155 | AJ49: Tolerated | AK49: 22.53 | AL49: 33.73 | AM49: 0 | AN49: 0 | AO49: 0 | AP49: NA | AQ49: 17 | AR49: 2553 | AS49: 2577 | AT49: 0.9906868452 | AU49: 1 | AV49: 20 | AW49: 20 | AX49: Polymorphism
A50: VAF, many samples, ESP6500, 1000 Genomes, dbSNP, ExAC, ClinVar, prediction | B50: UPN_Te4_014 | C50: 17 | D50: 7579472 | E50: G | F50: C | G50: TP53 | H50: ENST00000269305 | I50: missense_variant | J50: cCc/cGc|p.Pro72Arg/c.215C>G | K50: 54 | L50: 6440 | M50: 6523 | N50: 0.9872757933 | O50: 1 | P50: 1 | Q50: 1 | R50: 1 | S50: 1 | T50: 0 | U50: 1 | V50: 1 | W50: 7 | X50: 25.4767 | Y50: 0.7147 | Z50: COSM3766190, COSM3766191, COSM250061, COSM3766193, COSM3766192 | AA50: large_intestine, liver, pancreas, pleura, prostate, soft_tissue, stomach, upper_aerodigestive_tract, urinary_tract, central_nervous_system | AB50: 10, 5, 15, 5, 5, 100, 5, 7, 5, 1 | AC50: rs1042522 | AD50: rs1042522 | AE50: NO | AF50: 0.659 | AG50: NO | AH50: YES | AI50: 0.155 | AJ50: Tolerated | AK50: 21.89 | AL50: 33.43 | AM50: 0 | AN50: 0 | AO50: 0 | AP50: NA | AQ50: 54 | AR50: 6440 | AS50: 6523 | AT50: 0.9872757933 | AU50: 1 | AV50: 20 | AW50: 20 | AX50: Polymorphism
A51: VAF, many samples, ESP6500, 1000 Genomes, dbSNP, ExAC, ClinVar, prediction | B51: UPN_Te4_015 | C51: 17 | D51: 7579472 | E51: G | F51: C | G51: TP53 | H51: ENST00000269305 | I51: missense_variant | J51: cCc/cGc|p.Pro72Arg/c.215C>G | K51: 23 | L51: 4437 | M51: 4478 | N51: 0.9908441268 | O51: 1 | P51: 1 | Q51: 0 | R51: 1 | S51: 1 | T51: 0 | U51: 1 | V51: 1 | W51: 6 | X51: 25.4767 | Y51: 0.7147 | Z51: COSM3766190, COSM3766191, COSM250061, COSM3766193, COSM3766192 | AA51: large_intestine, liver, pancreas, pleura, prostate, soft_tissue, stomach, upper_aerodigestive_tract, urinary_tract, central_nervous_system | AB51: 10, 5, 15, 5, 5, 100, 5, 7, 5, 1 | AC51: rs1042522 | AD51: rs1042522 | AE51: NO | AF51: 0.659 | AG51: NO | AH51: YES | AI51: 0.155 | AJ51: Tolerated | AK51: 18 | AL51: 33.51 | AM51: 0 | AN51: 0 | AO51: 0 | AP51: NA | AQ51: 23 | AR51: 4437 | AS51: 4478 | AT51: 0.9908441268 | AU51: 1 | AV51: 20 | AW51: 20 | AX51: Polymorphism
A52: VAF, many samples, ESP6500, 1000 Genomes, dbSNP, ExAC, ClinVar, prediction | B52: UPN_Te4_016 | C52: 17 | D52: 7579472 | E52: G | F52: C | G52: TP53 | H52: ENST00000269305 | I52: missense_variant | J52: cCc/cGc|p.Pro72Arg/c.215C>G | K52: 32 | L52: 4504 | M52: 4559 | N52: 0.9879359509 | O52: 1 | P52: 1 | Q52: 0 | R52: 1 | S52: 1 | T52: 0 | U52: 1 | V52: 1 | W52: 6 | X52: 25.4767 | Y52: 0.7147 | Z52: COSM3766190, COSM3766191, COSM250061, COSM3766193, COSM3766192 | AA52: large_intestine, liver, pancreas, pleura, prostate, soft_tissue, stomach, upper_aerodigestive_tract, urinary_tract, central_nervous_system | AB52: 10, 5, 15, 5, 5, 100, 5, 7, 5, 1 | AC52: rs1042522 | AD52: rs1042522 | AE52: NO | AF52: 0.659 | AG52: NO | AH52: YES | AI52: 0.155 | AJ52: Tolerated | AK52: 22.44 | AL52: 33.5 | AM52: 0 | AN52: 0 | AO52: 0 | AP52: NA | AQ52: 32 | AR52: 4504 | AS52: 4559 | AT52: 0.9879359509 | AU52: 1 | AV52: 20 | AW52: 20 | AX52: Polymorphism
A53: VAF, many samples, ESP6500, 1000 Genomes, dbSNP, ExAC, ClinVar, prediction | B53: UPN_Te4_017 | C53: 17 | D53: 7579472 | E53: G | F53: C | G53: TP53 | H53: ENST00000269305 | I53: missense_variant | J53: cCc/cGc|p.Pro72Arg/c.215C>G | K53: 1183 | L53: 1475 | M53: 2664 | N53: 0.5536786787 | O53: 1 | P53: 1 | Q53: 1 | R53: 1 | S53: 1 | T53: 0 | U53: 1 | V53: 1 | W53: 7 | X53: 25.4767 | Y53: 0.7147 | Z53: COSM3766190, COSM3766191, COSM250061, COSM3766193, COSM3766192 | AA53: large_intestine, liver, pancreas, pleura, prostate, soft_tissue, stomach, upper_aerodigestive_tract, urinary_tract, central_nervous_system | AB53: 10, 5, 15, 5, 5, 100, 5, 7, 5, 1 | AC53: rs1042522 | AD53: rs1042522 | AE53: NO | AF53: 0.659 | AG53: NO | AH53: YES | AI53: 0.155 | AJ53: Tolerated | AK53: 34.76 | AL53: 33.87 | AM53: 0 | AN53: 0 | AO53: 0 | AP53: NA | AQ53: 1183 | AR53: 1475 | AS53: 2664 | AT53: 0.5536786787 | AU53: 1 | AV53: 20 | AW53: 20 | AX53: Polymorphism
A54: VAF, many samples, ESP6500, 1000 Genomes, dbSNP, ExAC, ClinVar, prediction | B54: UPN_Te4_018 | C54: 17 | D54: 7579472 | E54: G | F54: C | G54: TP53 | H54: ENST00000269305 | I54: missense_variant | J54: cCc/cGc|p.Pro72Arg/c.215C>G | K54: 2565 | L54: 3230 | M54: 5813 | N54: 0.5556511268 | O54: 1 | P54: 1 | Q54: 1 | R54: 1 | S54: 1 | T54: 0 | U54: 1 | V54: 1 | W54: 7 | X54: 25.4767 | Y54: 0.7147 | Z54: COSM3766190, COSM3766191, COSM250061, COSM3766193, COSM3766192 | AA54: large_intestine, liver, pancreas, pleura, prostate, soft_tissue, stomach, upper_aerodigestive_tract, urinary_tract, central_nervous_system | AB54: 10, 5, 15, 5, 5, 100, 5, 7, 5, 1 | AC54: rs1042522 | AD54: rs1042522 | AE54: NO | AF54: 0.659 | AG54: NO | AH54: YES | AI54: 0.155 | AJ54: Tolerated | AK54: 34.44 | AL54: 33.42 | AM54: 0 | AN54: 0 | AO54: 0 | AP54: NA | AQ54: 2565 | AR54: 3230 | AS54: 5813 | AT54: 0.5556511268 | AU54: 1 | AV54: 20 | AW54: 20 | AX54: Polymorphism
A55: VAF, many samples, ESP6500, 1000 Genomes, dbSNP, ExAC, ClinVar, prediction | B55: UPN_Te4_019 | C55: 17 | D55: 7579472 | E55: G | F55: C | G55: TP53 | H55: ENST00000269305 | I55: missense_variant | J55: cCc/cGc|p.Pro72Arg/c.215C>G | K55: 643 | L55: 900 | M55: 1548 | N55: 0.5813953488 | O55: 1 | P55: 1 | Q55: 1 | R55: 1 | S55: 1 | T55: 0 | U55: 1 | V55: 1 | W55: 7 | X55: 25.4767 | Y55: 0.7147 | Z55: COSM3766190, COSM3766191, COSM250061, COSM3766193, COSM3766192 | AA55: large_intestine, liver, pancreas, pleura, prostate, soft_tissue, stomach, upper_aerodigestive_tract, urinary_tract, central_nervous_system | AB55: 10, 5, 15, 5, 5, 100, 5, 7, 5, 1 | AC55: rs1042522 | AD55: rs1042522 | AE55: NO | AF55: 0.659 | AG55: NO | AH55: YES | AI55: 0.155 | AJ55: Tolerated | AK55: 34.66 | AL55: 33.93 | AM55: 0 | AN55: 0 | AO55: 0 | AP55: NA | AQ55: 643 | AR55: 900 | AS55: 1548 | AT55: 0.5813953488 | AU55: 1 | AV55: 20 | AW55: 20 | AX55: Polymorphism
A56: VAF, many samples, ESP6500, 1000 Genomes, dbSNP, ExAC, ClinVar, prediction | B56: UPN_Te4_021 | C56: 17 | D56: 7579472 | E56: G | F56: C | G56: TP53 | H56: ENST00000269305 | I56: missense_variant | J56: cCc/cGc|p.Pro72Arg/c.215C>G | K56: 1967 | L56: 2481 | M56: 4459 | N56: 0.5564027809 | O56: 1 | P56: 1 | Q56: 1 | R56: 1 | S56: 1 | T56: 0 | U56: 1 | V56: 1 | W56: 7 | X56: 25.4767 | Y56: 0.7147 | Z56: COSM3766190, COSM3766191, COSM250061, COSM3766193, COSM3766192 | AA56: large_intestine, liver, pancreas, pleura, prostate, soft_tissue, stomach, upper_aerodigestive_tract, urinary_tract, central_nervous_system | AB56: 10, 5, 15, 5, 5, 100, 5, 7, 5, 1 | AC56: rs1042522 | AD56: rs1042522 | AE56: NO | AF56: 0.659 | AG56: NO | AH56: YES | AI56: 0.155 | AJ56: Tolerated | AK56: 34.41 | AL56: 33.81 | AM56: 0 | AN56: 0 | AO56: 0 | AP56: NA | AQ56: 1967 | AR56: 2481 | AS56: 4459 | AT56: 0.5564027809 | AU56: 1 | AV56: 20 | AW56: 20 | AX56: Polymorphism
A57: VAF, many samples, ESP6500, 1000 Genomes, dbSNP, ExAC, ClinVar, prediction | B57: UPN_Te4_022 | C57: 17 | D57: 7579472 | E57: G | F57: C | G57: TP53 | H57: ENST00000269305 | I57: missense_variant | J57: cCc/cGc|p.Pro72Arg/c.215C>G | K57: 1308 | L57: 1752 | M57: 3068 | N57: 0.5710560626 | O57: 1 | P57: 1 | Q57: 1 | R57: 1 | S57: 1 | T57: 0 | U57: 1 | V57: 1 | W57: 7 | X57: 25.4767 | Y57: 0.7147 | Z57: COSM3766190, COSM3766191, COSM250061, COSM3766193, COSM3766192 | AA57: large_intestine, liver, pancreas, pleura, prostate, soft_tissue, stomach, upper_aerodigestive_tract, urinary_tract, central_nervous_system | AB57: 10, 5, 15, 5, 5, 100, 5, 7, 5, 1 | AC57: rs1042522 | AD57: rs1042522 | AE57: NO | AF57: 0.659 | AG57: NO | AH57: YES | AI57: 0.155 | AJ57: Tolerated | AK57: 34.66 | AL57: 33.52 | AM57: 1 | AN57: 0 | AO57: 1 | AP57: 0 | AQ57: 1307 | AR57: 1752 | AS57: 3067 | AT57: 0.5712422563 | AU57: 0.4274509804 | AV57: 20 | AW57: 20 | AX57: Polymorphism
A58: ESP6500, 1000 Genomes, ExAC, ClinVar, prediction | B58: UPN_Te4_001 | C58: 19 | D58: 45297479 | E58: C | F58: T | G58: CBLC | H58: ENST00000270279 | I58: missense_variant | J58: Cca/Tca|p.Pro435Ser/c.1303C>T | K58: 6109 | L58: 2770 | M58: 8925 | N58: 0.3103641457 | O58: 0 | P58: 1 | Q58: 1 | R58: 1 | S58: 1 | T58: 0 | U58: 1 | V58: 1 | W58: 6 | X58: 3.9302 | Y58: 0.0278 | Z58: COSM5020655 | AA58: soft_tissue | AB58: 1 | AC58: NO | AD58: rs116023028 | AE58: NO | AF58: 0.037 | AG58: NO | AH58: YES | AI58: -2.126 | AJ58: Tolerated | AK58: 35.09 | AL58: 32.57 | AM58: 6109 | AN58: 2770 | AO58: 8925 | AP58: 0.3103641457 | AQ58: 0 | AR58: 0 | AS58: 0 | AT58: NA | AU58: 1 | AV58: 1 | AW58: 1 | AX58: Polymorphism
A59: VAF, many samples, 1000 Genomes, dbSNP, ExAC, prediction | B59: UPN_Te4_001 | C59: 20 | D59: 31022959 | E59: T | F59: C | G59: ASXL1 | H59: ENST00000375687 | I59: missense_variant | J59: cTg/cCg|p.Leu815Pro/c.2444T>C | K59: 63 | L59: 22966 | M59: 23090 | N59: 0.9946297098 | O59: 1 | P59: 1 | Q59: 1 | R59: 1 | S59: 1 | T59: 1 | U59: 1 | V59: 1 | W59: 8 | X59: 0 | Y59: 1 | Z59: NO | AA59: NO | AB59: O | AC59: rs6058694 | AD59: rs6058694 | AE59: NO | AF59: 1 | AG59: NO | AH59: NO | AI59: 1.033 | AJ59: Tolerated | AK59: 34.27 | AL59: 34.39 | AM59: 63 | AN59: 22955 | AO59: 23078 | AP59: 0.9946702487 | AQ59: 0 | AR59: 11 | AS59: 12 | AT59: 0.9166666667 | AU59: 1 | AV59: 22 | AW59: 22 | AX59: Polymorphism
A60: VAF, many samples, 1000 Genomes, dbSNP, ExAC, prediction | B60: UPN_Te4_002 | C60: 20 | D60: 31022959 | E60: T | F60: C | G60: ASXL1 | H60: ENST00000375687 | I60: missense_variant | J60: cTg/cCg|p.Leu815Pro/c.2444T>C | K60: 23 | L60: 19384 | M60: 19446 | N60: 0.9968116836 | O60: 1 | P60: 1 | Q60: 1 | R60: 1 | S60: 1 | T60: 1 | U60: 1 | V60: 1 | W60: 8 | X60: 0 | Y60: 1 | Z60: NO | AA60: NO | AB60: O | AC60: rs6058694 | AD60: rs6058694 | AE60: NO | AF60: 1 | AG60: NO | AH60: NO | AI60: 1.033 | AJ60: Tolerated | AK60: 35.04 | AL60: 34.38 | AM60: 23 | AN60: 19383 | AO60: 19445 | AP60: 0.9968115197 | AQ60: 0 | AR60: 1 | AS60: 1 | AT60: 1 | AU60: 1 | AV60: 22 | AW60: 22 | AX60: Polymorphism
A61: VAF, many samples, 1000 Genomes, dbSNP, ExAC, prediction | B61: UPN_Te4_003 | C61: 20 | D61: 31022959 | E61: T | F61: C | G61: ASXL1 | H61: ENST00000375687 | I61: missense_variant | J61: cTg/cCg|p.Leu815Pro/c.2444T>C | K61: 51 | L61: 16966 | M61: 17072 | N61: 0.9937910028 | O61: 1 | P61: 1 | Q61: 1 | R61: 1 | S61: 1 | T61: 1 | U61: 1 | V61: 1 | W61: 8 | X61: 0 | Y61: 1 | Z61: NO | AA61: NO | AB61: O | AC61: rs6058694 | AD61: rs6058694 | AE61: NO | AF61: 1 | AG61: NO | AH61: NO | AI61: 1.033 | AJ61: Tolerated | AK61: 35.33 | AL61: 34.37 | AM61: 51 | AN61: 16961 | AO61: 17067 | AP61: 0.9937891838 | AQ61: 0 | AR61: 5 | AS61: 5 | AT61: 1 | AU61: 1 | AV61: 22 | AW61: 22 | AX61: Polymorphism
A62: VAF, many samples, 1000 Genomes, dbSNP, ExAC, prediction | B62: UPN_Te4_004 | C62: 20 | D62: 31022959 | E62: T | F62: C | G62: ASXL1 | H62: ENST00000375687 | I62: missense_variant | J62: cTg/cCg|p.Leu815Pro/c.2444T>C | K62: 32 | L62: 16803 | M62: 16887 | N62: 0.9950257595 | O62: 1 | P62: 1 | Q62: 1 | R62: 1 | S62: 1 | T62: 1 | U62: 1 | V62: 1 | W62: 8 | X62: 0 | Y62: 1 | Z62: NO | AA62: NO | AB62: O | AC62: rs6058694 | AD62: rs6058694 | AE62: NO | AF62: 1 | AG62: NO | AH62: NO | AI62: 1.033 | AJ62: Tolerated | AK62: 33.44 | AL62: 34.51 | AM62: 32 | AN62: 16802 | AO62: 16886 | AP62: 0.9950254649 | AQ62: 0 | AR62: 1 | AS62: 1 | AT62: 1 | AU62: 1 | AV62: 22 | AW62: 22 | AX62: Polymorphism
A63: VAF, many samples, 1000 Genomes, dbSNP, ExAC, prediction | B63: UPN_Te4_005 | C63: 20 | D63: 31022959 | E63: T | F63: C | G63: ASXL1 | H63: ENST00000375687 | I63: missense_variant | J63: cTg/cCg|p.Leu815Pro/c.2444T>C | K63: 57 | L63: 21138 | M63: 21249 | N63: 0.9947762248 | O63: 1 | P63: 1 | Q63: 1 | R63: 1 | S63: 1 | T63: 1 | U63: 1 | V63: 1 | W63: 8 | X63: 0 | Y63: 1 | Z63: NO | AA63: NO | AB63: O | AC63: rs6058694 | AD63: rs6058694 | AE63: NO | AF63: 1 | AG63: NO | AH63: NO | AI63: 1.033 | AJ63: Tolerated | AK63: 35.14 | AL63: 34.45 | AM63: 57 | AN63: 21111 | AO63: 21222 | AP63: 0.9947695787 | AQ63: 0 | AR63: 27 | AS63: 27 | AT63: 1 | AU63: 1 | AV63: 22 | AW63: 22 | AX63: Polymorphism
A64: VAF, many samples, 1000 Genomes, dbSNP, ExAC, prediction | B64: UPN_Te4_006 | C64: 20 | D64: 31022959 | E64: T | F64: C | G64: ASXL1 | H64: ENST00000375687 | I64: missense_variant | J64: cTg/cCg|p.Leu815Pro/c.2444T>C | K64: 74 | L64: 21750 | M64: 21879 | N64: 0.9941039353 | O64: 1 | P64: 1 | Q64: 1 | R64: 1 | S64: 1 | T64: 1 | U64: 1 | V64: 1 | W64: 8 | X64: 0 | Y64: 1 | Z64: NO | AA64: NO | AB64: O | AC64: rs6058694 | AD64: rs6058694 | AE64: NO | AF64: 1 | AG64: NO | AH64: NO | AI64: 1.033 | AJ64: Tolerated | AK64: 35.68 | AL64: 34.46 | AM64: 74 | AN64: 21742 | AO64: 21871 | AP64: 0.9941017786 | AQ64: 0 | AR64: 8 | AS64: 8 | AT64: 1 | AU64: 1 | AV64: 22 | AW64: 22 | AX64: Polymorphism
A65: VAF, many samples, 1000 Genomes, dbSNP, ExAC, prediction | B65: UPN_Te4_007 | C65: 20 | D65: 31022959 | E65: T | F65: C | G65: ASXL1 | H65: ENST00000375687 | I65: missense_variant | J65: cTg/cCg|p.Leu815Pro/c.2444T>C | K65: 61 | L65: 26672 | M65: 26801 | N65: 0.9951867468 | O65: 1 | P65: 1 | Q65: 1 | R65: 1 | S65: 1 | T65: 0 | U65: 1 | V65: 1 | W65: 7 | X65: 0 | Y65: 1 | Z65: NO | AA65: NO | AB65: O | AC65: rs6058694 | AD65: rs6058694 | AE65: NO | AF65: 1 | AG65: NO | AH65: NO | AI65: 1.033 | AJ65: Tolerated | AK65: 34.87 | AL65: 34.4 | AM65: 61 | AN65: 26672 | AO65: 26801 | AP65: 0.9951867468 | AQ65: 0 | AR65: 0 | AS65: 0 | AT65: NA | AU65: 1 | AV65: 22 | AW65: 22 | AX65: Polymorphism
A66: VAF, many samples, 1000 Genomes, dbSNP, ExAC, prediction | B66: UPN_Te4_008 | C66: 20 | D66: 31022959 | E66: T | F66: C | G66: ASXL1 | H66: ENST00000375687 | I66: missense_variant | J66: cTg/cCg|p.Leu815Pro/c.2444T>C | K66: 32 | L66: 20538 | M66: 20633 | N66: 0.9953957253 | O66: 1 | P66: 1 | Q66: 1 | R66: 1 | S66: 1 | T66: 1 | U66: 1 | V66: 1 | W66: 8 | X66: 0 | Y66: 1 | Z66: NO | AA66: NO | AB66: O | AC66: rs6058694 | AD66: rs6058694 | AE66: NO | AF66: 1 | AG66: NO | AH66: NO | AI66: 1.033 | AJ66: Tolerated | AK66: 34.38 | AL66: 34.43 | AM66: 32 | AN66: 20514 | AO66: 20609 | AP66: 0.9953903634 | AQ66: 0 | AR66: 24 | AS66: 24 | AT66: 1 | AU66: 1 | AV66: 22 | AW66: 22 | AX66: Polymorphism
A67: VAF, many samples, 1000 Genomes, dbSNP, ExAC, prediction | B67: UPN_Te4_009 | C67: 20 | D67: 31022959 | E67: T | F67: C | G67: ASXL1 | H67: ENST00000375687 | I67: missense_variant | J67: cTg/cCg|p.Leu815Pro/c.2444T>C | K67: 19 | L67: 9304 | M67: 9350 | N67: 0.9950802139 | O67: 1 | P67: 1 | Q67: 1 | R67: 1 | S67: 1 | T67: 0 | U67: 1 | V67: 1 | W67: 7 | X67: 0 | Y67: 1 | Z67: NO | AA67: NO | AB67: O | AC67: rs6058694 | AD67: rs6058694 | AE67: NO | AF67: 1 | AG67: NO | AH67: NO | AI67: 1.033 | AJ67: Tolerated | AK67: 36 | AL67: 34.4 | AM67: 19 | AN67: 9304 | AO67: 9350 | AP67: 0.9950802139 | AQ67: 0 | AR67: 0 | AS67: 0 | AT67: NA | AU67: 1 | AV67: 22 | AW67: 22 | AX67: Polymorphism
A68: VAF, many samples, 1000 Genomes, dbSNP, ExAC, prediction | B68: UPN_Te4_010 | C68: 20 | D68: 31022959 | E68: T | F68: C | G68: ASXL1 | H68: ENST00000375687 | I68: missense_variant | J68: cTg/cCg|p.Leu815Pro/c.2444T>C | K68: 35 | L68: 20557 | M68: 20643 | N68: 0.9958339389 | O68: 1 | P68: 1 | Q68: 1 | R68: 1 | S68: 1 | T68: 0 | U68: 1 | V68: 1 | W68: 7 | X68: 0 | Y68: 1 | Z68: NO | AA68: NO | AB68: O | AC68: rs6058694 | AD68: rs6058694 | AE68: NO | AF68: 1 | AG68: NO | AH68: NO | AI68: 1.033 | AJ68: Tolerated | AK68: 35.37 | AL68: 34.43 | AM68: 35 | AN68: 20557 | AO68: 20643 | AP68: 0.9958339389 | AQ68: 0 | AR68: 0 | AS68: 0 | AT68: NA | AU68: 1 | AV68: 22 | AW68: 22 | AX68: Polymorphism
A69: VAF, many samples, 1000 Genomes, dbSNP, ExAC, prediction | B69: UPN_Te4_011 | C69: 20 | D69: 31022959 | E69: T | F69: C | G69: ASXL1 | H69: ENST00000375687 | I69: missense_variant | J69: cTg/cCg|p.Leu815Pro/c.2444T>C | K69: 54 | L69: 25100 | M69: 25220 | N69: 0.9952418715 | O69: 1 | P69: 1 | Q69: 1 | R69: 1 | S69: 1 | T69: 1 | U69: 1 | V69: 1 | W69: 8 | X69: 0 | Y69: 1 | Z69: NO | AA69: NO | AB69: O | AC69: rs6058694 | AD69: rs6058694 | AE69: NO | AF69: 1 | AG69: NO | AH69: NO | AI69: 1.033 | AJ69: Tolerated | AK69: 34.7 | AL69: 34.33 | AM69: 54 | AN69: 25063 | AO69: 25183 | AP69: 0.9952348807 | AQ69: 0 | AR69: 37 | AS69: 37 | AT69: 1 | AU69: 1 | AV69: 22 | AW69: 22 | AX69: Polymorphism
A70: VAF, many samples, 1000 Genomes, dbSNP, ExAC, prediction | B70: UPN_Te4_012 | C70: 20 | D70: 31022959 | E70: T | F70: C | G70: ASXL1 | H70: ENST00000375687 | I70: missense_variant | J70: cTg/cCg|p.Leu815Pro/c.2444T>C | K70: 37 | L70: 10892 | M70: 10954 | N70: 0.9943399671 | O70: 1 | P70: 1 | Q70: 1 | R70: 1 | S70: 1 | T70: 1 | U70: 1 | V70: 1 | W70: 8 | X70: 0 | Y70: 1 | Z70: NO | AA70: NO | AB70: O | AC70: rs6058694 | AD70: rs6058694 | AE70: NO | AF70: 1 | AG70: NO | AH70: NO | AI70: 1.033 | AJ70: Tolerated | AK70: 35.3 | AL70: 34.65 | AM70: 37 | AN70: 10888 | AO70: 10950 | AP70: 0.9943378995 | AQ70: 0 | AR70: 4 | AS70: 4 | AT70: 1 | AU70: 1 | AV70: 22 | AW70: 22 | AX70: Polymorphism
A71: VAF, many samples, 1000 Genomes, dbSNP, ExAC, prediction | B71: UPN_Te4_013 | C71: 20 | D71: 31022959 | E71: T | F71: C | G71: ASXL1 | H71: ENST00000375687 | I71: missense_variant | J71: cTg/cCg|p.Leu815Pro/c.2444T>C | K71: 31 | L71: 10430 | M71: 10507 | N71: 0.9926715523 | O71: 1 | P71: 1 | Q71: 1 | R71: 1 | S71: 1 | T71: 1 | U71: 1 | V71: 1 | W71: 8 | X71: 0 | Y71: 1 | Z71: NO | AA71: NO | AB71: O | AC71: rs6058694 | AD71: rs6058694 | AE71: NO | AF71: 1 | AG71: NO | AH71: NO | AI71: 1.033 | AJ71: Tolerated | AK71: 34.97 | AL71: 34.27 | AM71: 31 | AN71: 10426 | AO71: 10503 | AP71: 0.9926687613 | AQ71: 0 | AR71: 4 | AS71: 4 | AT71: 1 | AU71: 1 | AV71: 22 | AW71: 22 | AX71: Polymorphism
A72: VAF, many samples, 1000 Genomes, dbSNP, ExAC, prediction | B72: UPN_Te4_014 | C72: 20 | D72: 31022959 | E72: T | F72: C | G72: ASXL1 | H72: ENST00000375687 | I72: missense_variant | J72: cTg/cCg|p.Leu815Pro/c.2444T>C | K72: 91 | L72: 26245 | M72: 26401 | N72: 0.9940911329 | O72: 1 | P72: 1 | Q72: 1 | R72: 1 | S72: 1 | T72: 1 | U72: 1 | V72: 1 | W72: 8 | X72: 0 | Y72: 1 | Z72: NO | AA72: NO | AB72: O | AC72: rs6058694 | AD72: rs6058694 | AE72: NO | AF72: 1 | AG72: NO | AH72: NO | AI72: 1.033 | AJ72: Tolerated | AK72: 34.62 | AL72: 34.27 | AM72: 91 | AN72: 26236 | AO72: 26392 | AP72: 0.9940891179 | AQ72: 0 | AR72: 9 | AS72: 9 | AT72: 1 | AU72: 1 | AV72: 22 | AW72: 22 | AX72: Polymorphism
A73: VAF, many samples, 1000 Genomes, dbSNP, ExAC, prediction | B73: UPN_Te4_015 | C73: 20 | D73: 31022959 | E73: T | F73: C | G73: ASXL1 | H73: ENST00000375687 | I73: missense_variant | J73: cTg/cCg|p.Leu815Pro/c.2444T>C | K73: 65 | L73: 15718 | M73: 15831 | N73: 0.992862106 | O73: 1 | P73: 1 | Q73: 1 | R73: 1 | S73: 1 | T73: 1 | U73: 1 | V73: 1 | W73: 8 | X73: 0 | Y73: 1 | Z73: NO | AA73: NO | AB73: O | AC73: rs6058694 | AD73: rs6058694 | AE73: NO | AF73: 1 | AG73: NO | AH73: NO | AI73: 1.033 | AJ73: Tolerated | AK73: 35.02 | AL73: 34.29 | AM73: 65 | AN73: 15717 | AO73: 15830 | AP73: 0.9928616551 | AQ73: 0 | AR73: 1 | AS73: 1 | AT73: 1 | AU73: 1 | AV73: 22 | AW73: 22 | AX73: Polymorphism
A74: VAF, many samples, 1000 Genomes, dbSNP, ExAC, prediction | B74: UPN_Te4_016 | C74: 20 | D74: 31022959 | E74: T | F74: C | G74: ASXL1 | H74: ENST00000375687 | I74: missense_variant | J74: cTg/cCg|p.Leu815Pro/c.2444T>C | K74: 52 | L74: 18843 | M74: 18948 | N74: 0.994458518 | O74: 1 | P74: 1 | Q74: 1 | R74: 1 | S74: 1 | T74: 0 | U74: 1 | V74: 1 | W74: 7 | X74: 0 | Y74: 1 | Z74: NO | AA74: NO | AB74: O | AC74: rs6058694 | AD74: rs6058694 | AE74: NO | AF74: 1 | AG74: NO | AH74: NO | AI74: 1.033 | AJ74: Tolerated | AK74: 35.15 | AL74: 34.2 | AM74: 52 | AN74: 18843 | AO74: 18948 | AP74: 0.994458518 | AQ74: 0 | AR74: 0 | AS74: 0 | AT74: NA | AU74: 1 | AV74: 22 | AW74: 22 | AX74: Polymorphism
A75: VAF, many samples, 1000 Genomes, dbSNP, ExAC, prediction | B75: UPN_Te4_017 | C75: 20 | D75: 31022959 | E75: T | F75: C | G75: ASXL1 | H75: ENST00000375687 | I75: missense_variant | J75: cTg/cCg|p.Leu815Pro/c.2444T>C | K75: 30 | L75: 11573 | M75: 11623 | N75: 0.9956981846 | O75: 1 | P75: 1 | Q75: 1 | R75: 1 | S75: 1 | T75: 1 | U75: 1 | V75: 1 | W75: 8 | X75: 0 | Y75: 1 | Z75: NO | AA75: NO | AB75: O | AC75: rs6058694 | AD75: rs6058694 | AE75: NO | AF75: 1 | AG75: NO | AH75: NO | AI75: 1.033 | AJ75: Tolerated | AK75: 34.2 | AL75: 34.65 | AM75: 29 | AN75: 11553 | AO75: 11602 | AP75: 0.9957765902 | AQ75: 1 | AR75: 20 | AS75: 21 | AT75: 0.9523809524 | AU75: 0.0529596593 | AV75: 22 | AW75: 22 | AX75: Polymorphism
A76: VAF, many samples, 1000 Genomes, dbSNP, ExAC, prediction | B76: UPN_Te4_018 | C76: 20 | D76: 31022959 | E76: T | F76: C | G76: ASXL1 | H76: ENST00000375687 | I76: missense_variant | J76: cTg/cCg|p.Leu815Pro/c.2444T>C | K76: 89 | L76: 24816 | M76: 24962 | N76: 0.9941511097 | O76: 1 | P76: 1 | Q76: 1 | R76: 1 | S76: 1 | T76: 1 | U76: 1 | V76: 1 | W76: 8 | X76: 0 | Y76: 1 | Z76: NO | AA76: NO | AB76: O | AC76: rs6058694 | AD76: rs6058694 | AE76: NO | AF76: 1 | AG76: NO | AH76: NO | AI76: 1.033 | AJ76: Tolerated | AK76: 35.06 | AL76: 34.34 | AM76: 89 | AN76: 24809 | AO76: 24955 | AP76: 0.994149469 | AQ76: 0 | AR76: 7 | AS76: 7 | AT76: 1 | AU76: 1 | AV76: 22 | AW76: 22 | AX76: Polymorphism
A77: VAF, many samples, 1000 Genomes, dbSNP, ExAC, prediction | B77: UPN_Te4_019 | C77: 20 | D77: 31022959 | E77: T | F77: C | G77: ASXL1 | H77: ENST00000375687 | I77: missense_variant | J77: cTg/cCg|p.Leu815Pro/c.2444T>C | K77: 25 | L77: 10831 | M77: 10878 | N77: 0.9956793528 | O77: 1 | P77: 1 | Q77: 1 | R77: 1 | S77: 1 | T77: 1 | U77: 1 | V77: 1 | W77: 8 | X77: 0 | Y77: 1 | Z77: NO | AA77: NO | AB77: O | AC77: rs6058694 | AD77: rs6058694 | AE77: NO | AF77: 1 | AG77: NO | AH77: NO | AI77: 1.033 | AJ77: Tolerated | AK77: 35.52 | AL77: 34.64 | AM77: 25 | AN77: 10803 | AO77: 10850 | AP77: 0.9956682028 | AQ77: 0 | AR77: 28 | AS77: 28 | AT77: 1 | AU77: 1 | AV77: 22 | AW77: 22 | AX77: Polymorphism
A78: VAF, many samples, 1000 Genomes, dbSNP, ExAC, prediction | B78: UPN_Te4_020 | C78: 20 | D78: 31022959 | E78: T | F78: C | G78: ASXL1 | H78: ENST00000375687 | I78: missense_variant | J78: cTg/cCg|p.Leu815Pro/c.2444T>C | K78: 27 | L78: 14085 | M78: 14147 | N78: 0.9956174454 | O78: 1 | P78: 1 | Q78: 1 | R78: 1 | S78: 1 | T78: 1 | U78: 1 | V78: 1 | W78: 8 | X78: 0 | Y78: 1 | Z78: NO | AA78: NO | AB78: O | AC78: rs6058694 | AD78: rs6058694 | AE78: NO | AF78: 1 | AG78: NO | AH78: NO | AI78: 1.033 | AJ78: Tolerated | AK78: 34.22 | AL78: 34.67 | AM78: 27 | AN78: 14082 | AO78: 14144 | AP78: 0.9956165158 | AQ78: 0 | AR78: 3 | AS78: 3 | AT78: 1 | AU78: 1 | AV78: 22 | AW78: 22 | AX78: Polymorphism
A79: VAF, many samples, 1000 Genomes, dbSNP, ExAC, prediction | B79: UPN_Te4_021 | C79: 20 | D79: 31022959 | E79: T | F79: C | G79: ASXL1 | H79: ENST00000375687 | I79: missense_variant | J79: cTg/cCg|p.Leu815Pro/c.2444T>C | K79: 37 | L79: 12877 | M79: 12947 | N79: 0.9945933421 | O79: 1 | P79: 1 | Q79: 1 | R79: 1 | S79: 1 | T79: 0 | U79: 1 | V79: 1 | W79: 7 | X79: 0 | Y79: 1 | Z79: NO | AA79: NO | AB79: O | AC79: rs6058694 | AD79: rs6058694 | AE79: NO | AF79: 1 | AG79: NO | AH79: NO | AI79: 1.033 | AJ79: Tolerated | AK79: 33.11 | AL79: 34.73 | AM79: 37 | AN79: 12877 | AO79: 12947 | AP79: 0.9945933421 | AQ79: 0 | AR79: 0 | AS79: 0 | AT79: NA | AU79: 1 | AV79: 22 | AW79: 22 | AX79: Polymorphism
A80: VAF, many samples, 1000 Genomes, dbSNP, ExAC, prediction | B80: UPN_Te4_022 | C80: 20 | D80: 31022959 | E80: T | F80: C | G80: ASXL1 | H80: ENST00000375687 | I80: missense_variant | J80: cTg/cCg|p.Leu815Pro/c.2444T>C | K80: 36 | L80: 16550 | M80: 16628 | N80: 0.9953091172 | O80: 1 | P80: 1 | Q80: 1 | R80: 1 | S80: 1 | T80: 1 | U80: 1 | V80: 1 | W80: 8 | X80: 0 | Y80: 1 | Z80: NO | AA80: NO | AB80: O | AC80: rs6058694 | AD80: rs6058694 | AE80: NO | AF80: 1 | AG80: NO | AH80: NO | AI80: 1.033 | AJ80: Tolerated | AK80: 34.42 | AL80: 34.67 | AM80: 36 | AN80: 16533 | AO80: 16611 | AP80: 0.9953043164 | AQ80: 0 | AR80: 17 | AS80: 17 | AT80: 1 | AU80: 1 | AV80: 22 | AW80: 22 | AX80: Polymorphism
A81: ESP6500, 1000 Genomes, ExAC, ClinVar, prediction, many samples | B81: UPN_Te4_014 | C81: 20 | D81: 31023821 | E81: G | F81: T | G81: ASXL1 | H81: ENST00000375687 | I81: missense_variant | J81: gaG/gaT|p.Glu1102Asp/c.3306G>T | K81: 30385 | L81: 11239 | M81: 41897 | N81: 0.2682530969 | O81: 1 | P81: 1 | Q81: 0 | R81: 0 | S81: 1 | T81: 1 | U81: 0 | V81: 1 | W81: 5 | X81: 1 | Y81: 0.0209 | Z81: COSM36205 | AA81: haematopoietic_and_lymphoid_tissue, soft_tissue | AB81: 13, 1 | AC81: NO | AD81: rs139115934 | AE81: NO | AF81: 0.01 | AG81: NO | AH81: YES | AI81: -1.374 | AJ81: Tolerated | AK81: 35.5 | AL81: 34.23 | AM81: 18326 | AN81: 30 | AO81: 18514 | AP81: 0.0016203954 | AQ81: 12059 | AR81: 11209 | AS81: 23383 | AT81: 0.4793653509 | AU81: 2 | AV81: 4 | AW81: 4 | AX81: Polymorphism
A82: ESP6500, 1000 Genomes, ExAC, ClinVar, prediction, many samples | B82: UPN_Te4_017 | C82: 20 | D82: 31023821 | E82: G | F82: T | G82: ASXL1 | H82: ENST00000375687 | I82: missense_variant | J82: gaG/gaT|p.Glu1102Asp/c.3306G>T | K82: 14742 | L82: 5725 | M82: 20536 | N82: 0.27877873 | O82: 1 | P82: 1 | Q82: 0 | R82: 0 | S82: 1 | T82: 0 | U82: 0 | V82: 1 | W82: 4 | X82: 1 | Y82: 0.0209 | Z82: COSM36205 | AA82: haematopoietic_and_lymphoid_tissue, soft_tissue | AB82: 13, 1 | AC82: NO | AD82: rs139115934 | AE82: NO | AF82: 0.01 | AG82: NO | AH82: YES | AI82: -1.374 | AJ82: Tolerated | AK82: 35.67 | AL82: 34.92 | AM82: 9042 | AN82: 0 | AO82: 9076 | AP82: 0 | AQ82: 5700 | AR82: 5725 | AS82: 11460 | AT82: 0.4995636998 | AU82: 2 | AV82: 4 | AW82: 4 | AX82: Polymorphism
A83: ESP6500, 1000 Genomes, dbSNP, ExAC, ClinVar, prediction, many samples | B83: UPN_Te4_003 | C83: X | D83: 44929077 | E83: C | F83: A | G83: KDM6A | H83: ENST00000377967 | I83: missense_variant | J83: aCg/aAg|p.Thr726Lys/c.2177C>A | K83: 19 | L83: 10284 | M83: 10378 | N83: 0.9909423781 | O83: 1 | P83: 1 | Q83: 0 | R83: 1 | S83: 1 | T83: 1 | U83: 1 | V83: 1 | W83: 7 | X83: 11.8014 | Y83: 0.2117 | Z83: COSM3759497, COSM3759496 | AA83: haematopoietic_and_lymphoid_tissue, soft_tissue | AB83: 2, 6 | AC83: rs2230018 | AD83: rs2230018 | AE83: NO | AF83: 0.136 | AG83: NO | AH83: NO | AI83: -0.99 | AJ83: Tolerated | AK83: 14.95 | AL83: 32.04 | AM83: 0 | AN83: 6 | AO83: 6 | AP83: 1 | AQ83: 19 | AR83: 10278 | AS83: 10372 | AT83: 0.9909371384 | AU83: 1 | AV83: 4 | AW83: 4 | AX83: Polymorphism
A84: ESP6500, 1000 Genomes, dbSNP, ExAC, ClinVar, prediction, many samples | B84: UPN_Te4_009 | C84: X | D84: 44929077 | E84: C | F84: A | G84: KDM6A | H84: ENST00000377967 | I84: missense_variant | J84: aCg/aAg|p.Thr726Lys/c.2177C>A | K84: 3095 | L84: 3221 | M84: 6335 | N84: 0.508445146 | O84: 1 | P84: 1 | Q84: 1 | R84: 1 | S84: 1 | T84: 0 | U84: 1 | V84: 1 | W84: 7 | X84: 11.8014 | Y84: 0.2117 | Z84: COSM3759497, COSM3759496 | AA84: haematopoietic_and_lymphoid_tissue, soft_tissue | AB84: 2, 6 | AC84: rs2230018 | AD84: rs2230018 | AE84: NO | AF84: 0.136 | AG84: NO | AH84: NO | AI84: -0.99 | AJ84: Tolerated | AK84: 34.35 | AL84: 31.92 | AM84: 0 | AN84: 0 | AO84: 0 | AP84: NA | AQ84: 3095 | AR84: 3221 | AS84: 6335 | AT84: 0.508445146 | AU84: 1 | AV84: 4 | AW84: 4 | AX84: Polymorphism
A85: ESP6500, 1000 Genomes, dbSNP, ExAC, ClinVar, prediction, many samples | B85: UPN_Te4_017 | C85: X | D85: 44929077 | E85: C | F85: A | G85: KDM6A | H85: ENST00000377967 | I85: missense_variant | J85: aCg/aAg|p.Thr726Lys/c.2177C>A | K85: 2887 | L85: 2926 | M85: 5834 | N85: 0.5015426808 | O85: 1 | P85: 1 | Q85: 1 | R85: 1 | S85: 1 | T85: 0 | U85: 1 | V85: 1 | W85: 7 | X85: 11.8014 | Y85: 0.2117 | Z85: COSM3759497, COSM3759496 | AA85: haematopoietic_and_lymphoid_tissue, soft_tissue | AB85: 2, 6 | AC85: rs2230018 | AD85: rs2230018 | AE85: NO | AF85: 0.136 | AG85: NO | AH85: NO | AI85: -0.99 | AJ85: Tolerated | AK85: 34.41 | AL85: 33.86 | AM85: 0 | AN85: 0 | AO85: 0 | AP85: NA | AQ85: 2887 | AR85: 2926 | AS85: 5834 | AT85: 0.5015426808 | AU85: 1 | AV85: 4 | AW85: 4 | AX85: Polymorphism
A86: ESP6500, 1000 Genomes, dbSNP, ExAC, ClinVar, prediction, many samples | B86: UPN_Te4_020 | C86: X | D86: 44929077 | E86: C | F86: A | G86: KDM6A | H86: ENST00000377967 | I86: missense_variant | J86: aCg/aAg|p.Thr726Lys/c.2177C>A | K86: 2 | L86: 4610 | M86: 4631 | N86: 0.9954653423 | O86: 1 | P86: 1 | Q86: 1 | R86: 1 | S86: 1 | T86: 0 | U86: 1 | V86: 1 | W86: 7 | X86: 11.8014 | Y86: 0.2117 | Z86: COSM3759497, COSM3759496 | AA86: haematopoietic_and_lymphoid_tissue, soft_tissue | AB86: 2, 6 | AC86: rs2230018 | AD86: rs2230018 | AE86: NO | AF86: 0.136 | AG86: NO | AH86: NO | AI86: -0.99 | AJ86: Tolerated | AK86: 36 | AL86: 33.71 | AM86: 0 | AN86: 0 | AO86: 0 | AP86: NA | AQ86: 2 | AR86: 4610 | AS86: 4631 | AT86: 0.9954653423 | AU86: 1 | AV86: 4 | AW86: 4 | AX86: Polymorphism
A87: VAF, prediction, ESP6500, 1000 Genomes, dbSNP, ExAC | B87: UPN_Te4_005 | C87: X | D87: 76856021 | E87: T | F87: C | G87: ATRX | H87: ENST00000373344 | I87: missense_variant | J87: aAt/aGt|p.Asn1860Ser/c.5579A>G | K87: 15626 | L87: 15014 | M87: 31251 | N87: 0.4804326262 | O87: 1 | P87: 1 | Q87: 0 | R87: 1 | S87: 1 | T87: 1 | U87: 0 | V87: 1 | W87: 6 | X87: 0.9668 | Y87: 0.0028 | Z87: COSM5001991, COSM5001990 | AA87: pancreas, soft_tissue | AB87: 2, 2 | AC87: rs45439799 | AD87: rs45439799 | AE87: YES | AF87: 0.006449 | AG87: NO | AH87: NO | AI87: 0.135 | AJ87: Tolerated | AK87: 31.9 | AL87: 31.48 | AM87: 7773 | AN87: 7176 | AO87: 15522 | AP87: 0.4623115578 | AQ87: 7853 | AR87: 7838 | AS87: 15729 | AT87: 0.4983152139 | AU87: 0.0006578213 | AV87: 2 | AW87: 2 | AX87: Polymorphism
A88: VAF, prediction, ESP6500, 1000 Genomes, dbSNP, ExAC | B88: UPN_Te4_012 | C88: X | D88: 76856021 | E88: T | F88: C | G88: ATRX | H88: ENST00000373344 | I88: missense_variant | J88: aAt/aGt|p.Asn1860Ser/c.5579A>G | K88: 8607 | L88: 8054 | M88: 17020 | N88: 0.4732079906 | O88: 1 | P88: 1 | Q88: 0 | R88: 1 | S88: 1 | T88: 1 | U88: 0 | V88: 1 | W88: 6 | X88: 0.9668 | Y88: 0.0028 | Z88: COSM5001991, COSM5001990 | AA88: pancreas, soft_tissue | AB88: 2, 2 | AC88: rs45439799 | AD88: rs45439799 | AE88: YES | AF88: 0.006449 | AG88: NO | AH88: NO | AI88: 0.135 | AJ88: Tolerated | AK88: 32.24 | AL88: 30.81 | AM88: 4287 | AN88: 3802 | AO88: 8436 | AP88: 0.4506875296 | AQ88: 4320 | AR88: 4252 | AS88: 8584 | AT88: 0.4953401678 | AU88: 0.0008076522 | AV88: 2 | AW88: 2 | AX88: Polymorphism
A89: 1000 Genomes, dbSNP, many samples, VAF, ExAC, prediction | B89: UPN_Te4_001 | C89: X | D89: 129147079 | E89: T | F89: C | G89: BCORL1 | H89: ENST00000540052 | I89: missense_variant | J89: Ttc/Ctc|p.Phe111Leu/c.331T>C | K89: 49 | L89: 19952 | M89: 20106 | N89: 0.9923405948 | O89: 1 | P89: 1 | Q89: 1 | R89: 1 | S89: 1 | T89: 1 | U89: 1 | V89: 1 | W89: 8 | X89: NO | Y89: 1 | Z89: COSM4591817, COSM4591818 | AA89: upper_aerodigestive_tract | AB89: 46 | AC89: rs4830173 | AD89: rs4830173 | AE89: NO | AF89: 1 | AG89: NO | AH89: NO | AI89: -0.361 | AJ89: Tolerated | AK89: 31 | AL89: 33.23 | AM89: 22 | AN89: 10104 | AO89: 10145 | AP89: 0.9959586003 | AQ89: 27 | AR89: 9848 | AS89: 9961 | AT89: 0.9886557575 | AU89: 0.4754892529 | AV89: 22 | AW89: 22 | AX89: Polymorphism
A90: 1001 Genomes, dbSNP, many samples, VAF, ExAC, prediction | B90: UPN_Te4_002 | C90: X | D90: 129147079 | E90: T | F90: C | G90: BCORL1 | H90: ENST00000540052 | I90: missense_variant | J90: Ttc/Ctc|p.Phe111Leu/c.331T>C | K90: 43 | L90: 31461 | M90: 31602 | N90: 0.9955382571 | O90: 1 | P90: 1 | Q90: 1 | R90: 1 | S90: 1 | T90: 1 | U90: 1 | V90: 1 | W90: 8 | X90: NO | Y90: 1 | Z90: COSM4591817, COSM4591818 | AA90: upper_aerodigestive_tract | AB90: 46 | AC90: rs4830173 | AD90: rs4830173 | AE90: NO | AF90: 1 | AG90: NO | AH90: NO | AI90: -0.361 | AJ90: Tolerated | AK90: 24.09 | AL90: 33.98 | AM90: 12 | AN90: 15863 | AO90: 15892 | AP90: 0.9981751825 | AQ90: 31 | AR90: 15598 | AS90: 15710 | AT90: 0.9928707829 | AU90: 0.0034196739 | AV90: 22 | AW90: 22 | AX90: Polymorphism
A91: 1002 Genomes, dbSNP, many samples, VAF, ExAC, prediction | B91: UPN_Te4_003 | C91: X | D91: 129147079 | E91: T | F91: C | G91: BCORL1 | H91: ENST00000540052 | I91: missense_variant | J91: Ttc/Ctc|p.Phe111Leu/c.331T>C | K91: 13 | L91: 24450 | M91: 24530 | N91: 0.9967386873 | O91: 1 | P91: 1 | Q91: 1 | R91: 1 | S91: 1 | T91: 1 | U91: 1 | V91: 1 | W91: 8 | X91: NO | Y91: 1 | Z91: COSM4591817, COSM4591818 | AA91: upper_aerodigestive_tract | AB91: 46 | AC91: rs4830173 | AD91: rs4830173 | AE91: NO | AF91: 1 | AG91: NO | AH91: NO | AI91: -0.361 | AJ91: Tolerated | AK91: 22.46 | AL91: 33.97 | AM91: 3 | AN91: 12339 | AO91: 12352 | AP91: 0.9989475389 | AQ91: 10 | AR91: 12111 | AS91: 12178 | AT91: 0.9944982756 | AU91: 0.0552251673 | AV91: 22 | AW91: 22 | AX91: Polymorphism
A92: 1003 Genomes, dbSNP, many samples, VAF, ExAC, prediction | B92: UPN_Te4_004 | C92: X | D92: 129147079 | E92: T | F92: C | G92: BCORL1 | H92: ENST00000540052 | I92: missense_variant | J92: Ttc/Ctc|p.Phe111Leu/c.331T>C | K92: 24 | L92: 27644 | M92: 27741 | N92: 0.9965033705 | O92: 1 | P92: 1 | Q92: 1 | R92: 1 | S92: 1 | T92: 1 | U92: 1 | V92: 1 | W92: 8 | X92: NO | Y92: 1 | Z92: COSM4591817, COSM4591818 | AA92: upper_aerodigestive_tract | AB92: 46 | AC92: rs4830173 | AD92: rs4830173 | AE92: NO | AF92: 1 | AG92: NO | AH92: NO | AI92: -0.361 | AJ92: Tolerated | AK92: 27.21 | AL92: 33.98 | AM92: 8 | AN92: 13902 | AO92: 13930 | AP92: 0.9979899497 | AQ92: 16 | AR92: 13742 | AS92: 13811 | AT92: 0.9950039823 | AU92: 0.1058013073 | AV92: 22 | AW92: 22 | AX92: Polymorphism
A93: 1004 Genomes, dbSNP, many samples, VAF, ExAC, prediction | B93: UPN_Te4_005 | C93: X | D93: 129147079 | E93: T | F93: C | G93: BCORL1 | H93: ENST00000540052 | I93: missense_variant | J93: Ttc/Ctc|p.Phe111Leu/c.331T>C | K93: 54 | L93: 34393 | M93: 34514 | N93: 0.9964941763 | O93: 1 | P93: 1 | Q93: 1 | R93: 1 | S93: 1 | T93: 1 | U93: 1 | V93: 1 | W93: 8 | X93: NO | Y93: 1 | Z93: COSM4591817, COSM4591818 | AA93: upper_aerodigestive_tract | AB93: 46 | AC93: rs4830173 | AD93: rs4830173 | AE93: NO | AF93: 1 | AG93: NO | AH93: NO | AI93: -0.361 | AJ93: Tolerated | AK93: 24.22 | AL93: 33.96 | AM93: 17 | AN93: 17329 | AO93: 17358 | AP93: 0.9983293006 | AQ93: 37 | AR93: 17064 | AS93: 17156 | AT93: 0.9946374446 | AU93: 0.0061138143 | AV93: 22 | AW93: 22 | AX93: Polymorphism
A94: 1005 Genomes, dbSNP, many samples, VAF, ExAC, prediction | B94: UPN_Te4_006 | C94: X | D94: 129147079 | E94: T | F94: C | G94: BCORL1 | H94: ENST00000540052 | I94: missense_variant | J94: Ttc/Ctc|p.Phe111Leu/c.331T>C | K94: 48 | L94: 34055 | M94: 34185 | N94: 0.9961971625 | O94: 1 | P94: 1 | Q94: 1 | R94: 1 | S94: 1 | T94: 1 | U94: 1 | V94: 1 | W94: 8 | X94: NO | Y94: 1 | Z94: COSM4591817, COSM4591818 | AA94: upper_aerodigestive_tract | AB94: 46 | AC94: rs4830173 | AD94: rs4830173 | AE94: NO | AF94: 1 | AG94: NO | AH94: NO | AI94: -0.361 | AJ94: Tolerated | AK94: 26.69 | AL94: 34.03 | AM94: 17 | AN94: 17157 | AO94: 17188 | AP94: 0.9981964161 | AQ94: 31 | AR94: 16898 | AS94: 16997 | AT94: 0.9941754427 | AU94: 0.0429785216 | AV94: 22 | AW94: 22 | AX94: Polymorphism
A95: 1006 Genomes, dbSNP, many samples, VAF, ExAC, prediction | B95: UPN_Te4_007 | C95: X | D95: 129147079 | E95: T | F95: C | G95: BCORL1 | H95: ENST00000540052 | I95: missense_variant | J95: Ttc/Ctc|p.Phe111Leu/c.331T>C | K95: 44 | L95: 22089 | M95: 22189 | N95: 0.9954932624 | O95: 1 | P95: 1 | Q95: 1 | R95: 1 | S95: 1 | T95: 1 | U95: 1 | V95: 1 | W95: 8 | X95: NO | Y95: 1 | Z95: COSM4591817, COSM4591818 | AA95: upper_aerodigestive_tract | AB95: 46 | AC95: rs4830173 | AD95: rs4830173 | AE95: NO | AF95: 1 | AG95: NO | AH95: NO | AI95: -0.361 | AJ95: Tolerated | AK95: 31.09 | AL95: 33.83 | AM95: 20 | AN95: 11138 | AO95: 11166 | AP95: 0.9974923876 | AQ95: 24 | AR95: 10951 | AS95: 11023 | AT95: 0.9934682028 | AU95: 0.5483695814 | AV95: 22 | AW95: 22 | AX95: Polymorphism
A96: 1007 Genomes, dbSNP, many samples, VAF, ExAC, prediction | B96: UPN_Te4_008 | C96: X | D96: 129147079 | E96: T | F96: C | G96: BCORL1 | H96: ENST00000540052 | I96: missense_variant | J96: Ttc/Ctc|p.Phe111Leu/c.331T>C | K96: 139 | L96: 46526 | M96: 46764 | N96: 0.994910615 | O96: 1 | P96: 1 | Q96: 1 | R96: 1 | S96: 1 | T96: 1 | U96: 1 | V96: 1 | W96: 8 | X96: NO | Y96: 1 | Z96: COSM4591817, COSM4591818 | AA96: upper_aerodigestive_tract | AB96: 46 | AC96: rs4830173 | AD96: rs4830173 | AE96: NO | AF96: 1 | AG96: NO | AH96: NO | AI96: -0.361 | AJ96: Tolerated | AK96: 29.88 | AL96: 33.95 | AM96: 59 | AN96: 23451 | AO96: 23532 | AP96: 0.9965578786 | AQ96: 80 | AR96: 23075 | AS96: 23232 | AT96: 0.9932420799 | AU96: 0.0620946808 | AV96: 22 | AW96: 22 | AX96: Polymorphism
A97: 1008 Genomes, dbSNP, many samples, VAF, ExAC, prediction | B97: UPN_Te4_009 | C97: X | D97: 129147079 | E97: T | F97: C | G97: BCORL1 | H97: ENST00000540052 | I97: missense_variant | J97: Ttc/Ctc|p.Phe111Leu/c.331T>C | K97: 19 | L97: 14652 | M97: 14703 | N97: 0.9965313201 | O97: 1 | P97: 1 | Q97: 1 | R97: 1 | S97: 1 | T97: 1 | U97: 1 | V97: 1 | W97: 8 | X97: NO | Y97: 1 | Z97: COSM4591817, COSM4591818 | AA97: upper_aerodigestive_tract | AB97: 46 | AC97: rs4830173 | AD97: rs4830173 | AE97: NO | AF97: 1 | AG97: NO | AH97: NO | AI97: -0.361 | AJ97: Tolerated | AK97: 26.53 | AL97: 33.88 | AM97: 6 | AN97: 7380 | AO97: 7394 | AP97: 0.9981065729 | AQ97: 13 | AR97: 7272 | AS97: 7309 | AT97: 0.994937748 | AU97: 0.1127563424 | AV97: 22 | AW97: 22 | AX97: Polymorphism
A98: 1009 Genomes, dbSNP, many samples, VAF, ExAC, prediction | B98: UPN_Te4_010 | C98: X | D98: 129147079 | E98: T | F98: C | G98: BCORL1 | H98: ENST00000540052 | I98: missense_variant | J98: Ttc/Ctc|p.Phe111Leu/c.331T>C | K98: 28 | L98: 19111 | M98: 19181 | N98: 0.9963505552 | O98: 1 | P98: 1 | Q98: 1 | R98: 1 | S98: 1 | T98: 1 | U98: 1 | V98: 1 | W98: 8 | X98: NO | Y98: 1 | Z98: COSM4591817, COSM4591818 | AA98: upper_aerodigestive_tract | AB98: 46 | AC98: rs4830173 | AD98: rs4830173 | AE98: NO | AF98: 1 | AG98: NO | AH98: NO | AI98: -0.361 | AJ98: Tolerated | AK98: 26.36 | AL98: 33.92 | AM98: 10 | AN98: 9598 | AO98: 9614 | AP98: 0.9983357603 | AQ98: 18 | AR98: 9513 | AS98: 9567 | AT98: 0.9943555974 | AU98: 0.1342813728 | AV98: 22 | AW98: 22 | AX98: Polymorphism
A99: 1010 Genomes, dbSNP, many samples, VAF, ExAC, prediction | B99: UPN_Te4_011 | C99: X | D99: 129147079 | E99: T | F99: C | G99: BCORL1 | H99: ENST00000540052 | I99: missense_variant | J99: Ttc/Ctc|p.Phe111Leu/c.331T>C | K99: 33 | L99: 20598 | M99: 20736 | N99: 0.9933449074 | O99: 1 | P99: 1 | Q99: 1 | R99: 1 | S99: 1 | T99: 1 | U99: 1 | V99: 1 | W99: 8 | X99: NO | Y99: 1 | Z99: COSM4591817, COSM4591818 | AA99: upper_aerodigestive_tract | AB99: 46 | AC99: rs4830173 | AD99: rs4830173 | AE99: NO | AF99: 1 | AG99: NO | AH99: NO | AI99: -0.361 | AJ99: Tolerated | AK99: 25.36 | AL99: 33.2 | AM99: 10 | AN99: 10452 | AO99: 10477 | AP99: 0.9976138208 | AQ99: 23 | AR99: 10146 | AS99: 10259 | AT99: 0.9889852812 | AU99: 0.0226590324 | AV99: 22 | AW99: 22 | AX99: Polymorphism
A100: 1011 Genomes, dbSNP, many samples, VAF, ExAC, prediction | B100: UPN_Te4_012 | C100: X | D100: 129147079 | E100: T | F100: C | G100: BCORL1 | H100: ENST00000540052 | I100: missense_variant | J100: Ttc/Ctc|p.Phe111Leu/c.331T>C | K100: 32 | L100: 20033 | M100: 20153 | N100: 0.9940455515 | O100: 1 | P100: 1 | Q100: 1 | R100: 1 | S100: 1 | T100: 1 | U100: 1 | V100: 1 | W100: 8 | X100: NO | Y100: 1 | Z100: COSM4591817, COSM4591818 | AA100: upper_aerodigestive_tract | AB100: 46 | AC100: rs4830173 | AD100: rs4830173 | AE100: NO | AF100: 1 | AG100: NO | AH100: NO | AI100: -0.361 | AJ100: Tolerated | AK100: 28.5 | AL100: 33.59 | AM100: 12 | AN100: 10074 | AO100: 10112 | AP100: 0.9962420886 | AQ100: 20 | AR100: 9959 | AS100: 10041 | AT100: 0.9918334827 | AU100: 0.160372018 | AV100: 22 | AW100: 22 | AX100: Polymorphism
A101: 1012 Genomes, dbSNP, many samples, VAF, ExAC, prediction | B101: UPN_Te4_013 | C101: X | D101: 129147079 | E101: T | F101: C | G101: BCORL1 | H101: ENST00000540052 | I101: missense_variant | J101: Ttc/Ctc|p.Phe111Leu/c.331T>C | K101: 10 | L101: 5027 | M101: 5058 | N101: 0.9938710953 | O101: 1 | P101: 1 | Q101: 1 | R101: 1 | S101: 1 | T101: 1 | U101: 1 | V101: 1 | W101: 8 | X101: NO | Y101: 1 | Z101: COSM4591817, COSM4591818 | AA101: upper_aerodigestive_tract | AB101: 46 | AC101: rs4830173 | AD101: rs4830173 | AE101: NO | AF101: 1 | AG101: NO | AH101: NO | AI101: -0.361 | AJ101: Tolerated | AK101: 31.6 | AL101: 33.27 | AM101: 4 | AN101: 2547 | AO101: 2556 | AP101: 0.9964788732 | AQ101: 6 | AR101: 2480 | AS101: 2502 | AT101: 0.9912070344 | AU101: 0.5434672322 | AV101: 22 | AW101: 22 | AX101: Polymorphism
A102: 1013 Genomes, dbSNP, many samples, VAF, ExAC, prediction | B102: UPN_Te4_014 | C102: X | D102: 129147079 | E102: T | F102: C | G102: BCORL1 | H102: ENST00000540052 | I102: missense_variant | J102: Ttc/Ctc|p.Phe111Leu/c.331T>C | K102: 51 | L102: 23827 | M102: 23981 | N102: 0.9935782494 | O102: 1 | P102: 1 | Q102: 1 | R102: 1 | S102: 1 | T102: 1 | U102: 1 | V102: 1 | W102: 8 | X102: NO | Y102: 1 | Z102: COSM4591817, COSM4591818 | AA102: upper_aerodigestive_tract | AB102: 46 | AC102: rs4830173 | AD102: rs4830173 | AE102: NO | AF102: 1 | AG102: NO | AH102: NO | AI102: -0.361 | AJ102: Tolerated | AK102: 27.55 | AL102: 33.28 | AM102: 18 | AN102: 12091 | AO102: 12126 | AP102: 0.9971136401 | AQ102: 33 | AR102: 11736 | AS102: 11855 | AT102: 0.9899620413 | AU102: 0.0345818239 | AV102: 22 | AW102: 22 | AX102: Polymorphism
A103: 1014 Genomes, dbSNP, many samples, VAF, ExAC, prediction | B103: UPN_Te4_015 | C103: X | D103: 129147079 | E103: T | F103: C | G103: BCORL1 | H103: ENST00000540052 | I103: missense_variant | J103: Ttc/Ctc|p.Phe111Leu/c.331T>C | K103: 121 | L103: 31686 | M103: 31960 | N103: 0.9914267835 | O103: 1 | P103: 1 | Q103: 1 | R103: 1 | S103: 1 | T103: 1 | U103: 1 | V103: 1 | W103: 8 | X103: NO | Y103: 1 | Z103: COSM4591817, COSM4591818 | AA103: upper_aerodigestive_tract | AB103: 46 | AC103: rs4830173 | AD103: rs4830173 | AE103: NO | AF103: 1 | AG103: NO | AH103: NO | AI103: -0.361 | AJ103: Tolerated | AK103: 29.91 | AL103: 33.22 | AM103: 52 | AN103: 16047 | AO103: 16121 | AP103: 0.995409714 | AQ103: 69 | AR103: 15639 | AS103: 15839 | AT103: 0.9873729402 | AU103: 0.1010635059 | AV103: 22 | AW103: 22 | AX103: Polymorphism
A104: 1015 Genomes, dbSNP, many samples, VAF, ExAC, prediction | B104: UPN_Te4_016 | C104: X | D104: 129147079 | E104: T | F104: C | G104: BCORL1 | H104: ENST00000540052 | I104: missense_variant | J104: Ttc/Ctc|p.Phe111Leu/c.331T>C | K104: 44 | L104: 35196 | M104: 35387 | N104: 0.9946025377 | O104: 1 | P104: 1 | Q104: 1 | R104: 1 | S104: 1 | T104: 1 | U104: 1 | V104: 1 | W104: 8 | X104: NO | Y104: 1 | Z104: COSM4591817, COSM4591818 | AA104: upper_aerodigestive_tract | AB104: 46 | AC104: rs4830173 | AD104: rs4830173 | AE104: NO | AF104: 1 | AG104: NO | AH104: NO | AI104: -0.361 | AJ104: Tolerated | AK104: 28.02 | AL104: 33.32 | AM104: 15 | AN104: 17858 | AO104: 17887 | AP104: 0.9983787108 | AQ104: 29 | AR104: 17338 | AS104: 17500 | AT104: 0.9907428571 | AU104: 0.0337667856 | AV104: 22 | AW104: 22 | AX104: Polymorphism
A105: 1016 Genomes, dbSNP, many samples, VAF, ExAC, prediction | B105: UPN_Te4_017 | C105: X | D105: 129147079 | E105: T | F105: C | G105: BCORL1 | H105: ENST00000540052 | I105: missense_variant | J105: Ttc/Ctc|p.Phe111Leu/c.331T>C | K105: 15 | L105: 19470 | M105: 19536 | N105: 0.9966216216 | O105: 1 | P105: 1 | Q105: 1 | R105: 1 | S105: 1 | T105: 1 | U105: 1 | V105: 1 | W105: 8 | X105: NO | Y105: 1 | Z105: COSM4591817, COSM4591818 | AA105: upper_aerodigestive_tract | AB105: 46 | AC105: rs4830173 | AD105: rs4830173 | AE105: NO | AF105: 1 | AG105: NO | AH105: NO | AI105: -0.361 | AJ105: Tolerated | AK105: 30 | AL105: 33.62 | AM105: 6 | AN105: 9798 | AO105: 9812 | AP105: 0.9985731757 | AQ105: 9 | AR105: 9672 | AS105: 9724 | AT105: 0.9946524064 | AU105: 0.4515670934 | AV105: 22 | AW105: 22 | AX105: Polymorphism
A106: 1017 Genomes, dbSNP, many samples, VAF, ExAC, prediction | B106: UPN_Te4_018 | C106: X | D106: 129147079 | E106: T | F106: C | G106: BCORL1 | H106: ENST00000540052 | I106: missense_variant | J106: Ttc/Ctc|p.Phe111Leu/c.331T>C | K106: 80 | L106: 42357 | M106: 42629 | N106: 0.9936193671 | O106: 1 | P106: 1 | Q106: 1 | R106: 1 | S106: 1 | T106: 1 | U106: 1 | V106: 1 | W106: 8 | X106: NO | Y106: 1 | Z106: COSM4591817, COSM4591818 | AA106: upper_aerodigestive_tract | AB106: 46 | AC106: rs4830173 | AD106: rs4830173 | AE106: NO | AF106: 1 | AG106: NO | AH106: NO | AI106: -0.361 | AJ106: Tolerated | AK106: 28.49 | AL106: 33.24 | AM106: 30 | AN106: 21450 | AO106: 21504 | AP106: 0.9974888393 | AQ106: 50 | AR106: 20907 | AS106: 21125 | AT106: 0.9896804734 | AU106: 0.0245858013 | AV106: 22 | AW106: 22 | AX106: Polymorphism
A107: 1018 Genomes, dbSNP, many samples, VAF, ExAC, prediction | B107: UPN_Te4_019 | C107: X | D107: 129147079 | E107: T | F107: C | G107: BCORL1 | H107: ENST00000540052 | I107: missense_variant | J107: Ttc/Ctc|p.Phe111Leu/c.331T>C | K107: 8 | L107: 9981 | M107: 10014 | N107: 0.9967046135 | O107: 1 | P107: 1 | Q107: 1 | R107: 1 | S107: 1 | T107: 1 | U107: 1 | V107: 1 | W107: 8 | X107: NO | Y107: 1 | Z107: COSM4591817, COSM4591818 | AA107: upper_aerodigestive_tract | AB107: 46 | AC107: rs4830173 | AD107: rs4830173 | AE107: NO | AF107: 1 | AG107: NO | AH107: NO | AI107: -0.361 | AJ107: Tolerated | AK107: 29.5 | AL107: 33.61 | AM107: 3 | AN107: 5014 | AO107: 5018 | AP107: 0.9992028697 | AQ107: 5 | AR107: 4967 | AS107: 4996 | AT107: 0.9941953563 | AU107: 0.5057176653 | AV107: 22 | AW107: 22 | AX107: Polymorphism
A108: 1019 Genomes, dbSNP, many samples, VAF, ExAC, prediction | B108: UPN_Te4_020 | C108: X | D108: 129147079 | E108: T | F108: C | G108: BCORL1 | H108: ENST00000540052 | I108: missense_variant | J108: Ttc/Ctc|p.Phe111Leu/c.331T>C | K108: 8 | L108: 14804 | M108: 14838 | N108: 0.9977085861 | O108: 1 | P108: 1 | Q108: 0 | R108: 1 | S108: 1 | T108: 1 | U108: 1 | V108: 1 | W108: 7 | X108: NO | Y108: 1 | Z108: COSM4591817, COSM4591818 | AA108: upper_aerodigestive_tract | AB108: 46 | AC108: rs4830173 | AD108: rs4830173 | AE108: NO | AF108: 1 | AG108: NO | AH108: NO | AI108: -0.361 | AJ108: Tolerated | AK108: 23.38 | AL108: 33.62 | AM108: 2 | AN108: 7445 | AO108: 7452 | AP108: 0.9990606549 | AQ108: 6 | AR108: 7359 | AS108: 7386 | AT108: 0.9963444354 | AU108: 0.1772086066 | AV108: 22 | AW108: 22 | AX108: Polymorphism
A109: 1020 Genomes, dbSNP, many samples, VAF, ExAC, prediction | B109: UPN_Te4_021 | C109: X | D109: 129147079 | E109: T | F109: C | G109: BCORL1 | H109: ENST00000540052 | I109: missense_variant | J109: Ttc/Ctc|p.Phe111Leu/c.331T>C | K109: 47 | L109: 33899 | M109: 34016 | N109: 0.9965604421 | O109: 1 | P109: 1 | Q109: 1 | R109: 1 | S109: 1 | T109: 1 | U109: 1 | V109: 1 | W109: 8 | X109: NO | Y109: 1 | Z109: COSM4591817, COSM4591818 | AA109: upper_aerodigestive_tract | AB109: 46 | AC109: rs4830173 | AD109: rs4830173 | AE109: NO | AF109: 1 | AG109: NO | AH109: NO | AI109: -0.361 | AJ109: Tolerated | AK109: 29.45 | AL109: 33.58 | AM109: 20 | AN109: 17040 | AO109: 17077 | AP109: 0.9978333431 | AQ109: 27 | AR109: 16859 | AS109: 16939 | AT109: 0.995277171 | AU109: 0.3098001172 | AV109: 22 | AW109: 22 | AX109: Polymorphism
A110: 1021 Genomes, dbSNP, many samples, VAF, ExAC, prediction | B110: UPN_Te4_022 | C110: X | D110: 129147079 | E110: T | F110: C | G110: BCORL1 | H110: ENST00000540052 | I110: missense_variant | J110: Ttc/Ctc|p.Phe111Leu/c.331T>C | K110: 24 | L110: 14347 | M110: 14389 | N110: 0.9970811036 | O110: 0 | P110: 1 | Q110: 1 | R110: 1 | S110: 1 | T110: 1 | U110: 1 | V110: 1 | W110: 7 | X110: NO | Y110: 1 | Z110: COSM4591817, COSM4591818 | AA110: upper_aerodigestive_tract | AB110: 46 | AC110: rs4830173 | AD110: rs4830173 | AE110: NO | AF110: 1 | AG110: NO | AH110: NO | AI110: -0.361 | AJ110: Tolerated | AK110: 31 | AL110: 33.58 | AM110: 11 | AN110: 7204 | AO110: 7219 | AP110: 0.9979221499 | AQ110: 13 | AR110: 7143 | AS110: 7170 | AT110: 0.9962343096 | AU110: 0.6886331525 | AV110: 22 | AW110: 22 | AX110: Polymorphism
A111: VAF, ESP6500, 1000 Genomes, dbSNP, ExAC, prediction | B111: UPN_Te4_004 | C111: X | D111: 129147373 | E111: G | F111: A | G111: BCORL1 | H111: ENST00000540052 | I111: missense_variant | J111: Ggt/Agt|p.Gly209Ser/c.625G>A | K111: 5598 | L111: 4743 | M111: 10805 | N111: 0.4389634429 | O111: 1 | P111: 1 | Q111: 1 | R111: 0 | S111: 0 | T111: 1 | U111: 1 | V111: 1 | W111: 6 | X111: 10.2705 | Y111: 0.0097 | Z111: COSM5019165, COSM5019166 | AA111: soft_tissue | AB111: 6 | AC111: rs5932715 | AD111: rs5932715 | AE111: NO | AF111: 0.073 | AG111: NO | AH111: NO | AI111: -0.09 | AJ111: Tolerated | AK111: 29.06 | AL111: 27.89 | AM111: 941 | AN111: 573 | AO111: 1894 | AP111: 0.3025343189 | AQ111: 4657 | AR111: 4170 | AS111: 8911 | AT111: 0.4679609471 | AU111: 1.082930124e-11 | AV111: 2 | AW111: 2 | AX111: Polymorphism
A112: VAF, ESP6500, 1000 Genomes, dbSNP, ExAC, prediction | B112: UPN_Te4_007 | C112: X | D112: 129147373 | E112: G | F112: A | G112: BCORL1 | H112: ENST00000540052 | I112: missense_variant | J112: Ggt/Agt|p.Gly209Ser/c.625G>A | K112: 59 | L112: 8225 | M112: 8912 | N112: 0.9229129264 | O112: 1 | P112: 1 | Q112: 1 | R112: 1 | S112: 0 | T112: 1 | U112: 1 | V112: 1 | W112: 7 | X112: 10.2705 | Y112: 0.0097 | Z112: COSM5019165, COSM5019166 | AA112: soft_tissue | AB112: 6 | AC112: rs5932715 | AD112: rs5932715 | AE112: NO | AF112: 0.073 | AG112: NO | AH112: NO | AI112: -0.09 | AJ112: Tolerated | AK112: 27.85 | AL112: 27.62 | AM112: 11 | AN112: 1080 | AO112: 1625 | AP112: 0.6646153846 | AQ112: 48 | AR112: 7145 | AS112: 7287 | AT112: 0.9805132428 | AU112: 0.2424398347 | AV112: 2 | AW112: 2 | AX112: Polymorphism
O113: =SUM(O2:O112) -> 109 | P113: =SUM(P2:P112) -> 111 | Q113: =SUM(Q2:Q112) -> 89 | R113: =SUM(R2:R112) -> 94 | S113: =SUM(S2:S112) -> 109 | T113: =SUM(T2:T112) -> 70 | U113: =SUM(U2:U112) -> 95 | V113: =SUM(V2:V112) -> 110

Sheet FN Mutations
A1: True because... | B1: Sample | C1: Chr | D1: Pos | E1: Ref | F1: Alt | G1: Gene | H1: ENST | I1: Type | J1: Mutation | K1: Nr_Ref | L1: Nr_Alt | M1: DP | N1: VAF | O1: GATK | P1: Platypus | Q1: VarScan | R1: LoFreq | S1: FreeBayes | T1: SNVer | U1: SAMtools | V1: VarDict | W1: Called | X1: ESP6500 | Y1: G1000 | Z1: Cosmic | AA1: Cosmic_location | AB1: Cosmic_occurence | AC1: dbSNP_SNPs | AD1: dbSNP_SNVs | AE1: PM_flag | AF1: ExAC | AG1: ClinVar_clinical | AH1: ClinVar_noimpact | AI1: provean_score | AJ1: prediction | AK1: BQ_Ref | AL1: BQ_Alt | AM1: Nr_Ref_fwd | AN1: Nr_Alt_fwd | AO1: DP_fwd | AP1: VAF_fwd | AQ1: Nr_Ref_rev | AR1: Nr_Alt_rev | AS1: DP_rev | AT1: VAF_rev | AU1: strandbias | AV1: nr_samples | AW1: nr_samples_similar | AX1: Category
A2: Validated with independent analysis | B2: UPN_Te4_018 | C2: 9 | D2: 5070024 | E2: ACAA | F2: T | G2: JAK2 | H2: ENST00000381652 | I2: missense_variant+disruptive_inframe_deletion | J2: cacaaa/cTa|p.His538_Lys539delinsLeu/c.1613_1616delACAAinsT | K2: 3970 | L2: NA | M2: 3993 | N2: NA | O2: 0 | P2: 0 | Q2: 0 | R2: 0 | S2: 0 | T2: 0 | U2: 0 | V2: 1 | W2: 1 | X2: NO | Y2: NO | Z2: NO | AA2: NA | AB2: NA | AC2: NO | AD2: NO | AE2: NO | AF2: NO | AG2: NO | AH2: NO | AI2: -18.145 | AJ2: Deleterious | AK2: 32.69 | AL2: NA | AM2: 11 | AN2: NA | AO2: 11 | AP2: NA | AQ2: 3959 | AR2: NA | AS2: 3982 | AT2: NA | AU2: NA | AV2: 1 | AW2: 1 | AX2: Artifact (0)
A3: Validated with independent analysis | B3: UPN_Te4_019 | C3: 19 | D3: 13054601 | E3: CAAAGAGGAGGAGGA | F3: CG | G3: CALR | H3: ENST00000316448 | I3: frameshift_variant+missense_variant | J3: aaagaggaggaggag/Gg|p.Lys377fs/c.1129_1142delAAAGAGGAGGAGGAinsG | K3: 1093 | L3: 575 | M3: 1121 | N3: 0.5129348796 | O3: 0 | P3: 0 | Q3: 0 | R3: 0 | S3: 1 | T3: 0 | U3: 0 | V3: 0 | W3: 1 | X3: NO | Y3: NO | Z3: NO | AA3: NA | AB3: NA | AC3: NO | AD3: NO | AE3: NO | AF3: NO | AG3: NO | AH3: NO | AI3: NA | AJ3: NA | AK3: 30.086 | AL3: ComplexIndel | AM3: NA | AN3: NA | AO3: NA | AP3: NA | AQ3: NA | AR3: NA | AS3: NA | AT3: NA | AU3: NA | AV3: 1 | AW3: 3 | AX3: Artifact (2)
A4: Validated with independent analysis | B4: UPN_Te4_013 | C4: 19 | D4: 13054605 | E4: G | F4: C | G4: CALR | H4: ENST00000316448 | I4: missense_variant | J4: Gag/Cag|p.Glu378Gln/c.1132G>C | K4: 1002 | L4: 610 | M4: 1618 | N4: 0.3770086527 | O4: 0 | P4: 0 | Q4: 1 | R4: 0 | S4: 0 | T4: 0 | U4: 1 | V4: 0 | W4: 2 | X4: NO | Y4: NO | Z4: NO | AA4: NA | AB4: NA | AC4: NO | AD4: NO | AE4: NO | AF4: NO | AG4: NO | AH4: NO | AI4: -1.538 | AJ4: Tolerated | AK4: 33.11 | AL4: 30.19 | AM4: 512 | AN4: 0 | AO4: 515 | AP4: 0 | AQ4: 490 | AR4: 610 | AS4: 1103 | AT4: 0.5530371714 | AU4: 1.12418843e-136 | AV4: 1 | AW4: 1 | AX4: Artifact (1)
A5: Validated with independent analysis | B5: UPN_Te4_013 | C5: 19 | D5: 13054610 | E5: G | F5: C | G5: CALR | H5: ENST00000316448 | I5: missense_variant | J5: gaG/gaC|p.Glu379Asp/c.1137G>C | K5: 1009 | L5: 607 | M5: 1620 | N5: 0.374691358 | O5: 0 | P5: 0 | Q5: 1 | R5: 0 | S5: 0 | T5: 0 | U5: 1 | V5: 1 | W5: 3 | X5: NO | Y5: NO | Z5: COSM3720629 | AA5: haematopoietic_and_lymphoid_tissue | AB5: 1 | AC5: NO | AD5: NO | AE5: NO | AF5: NO | AG5: NO | AH5: NO | AI5: -0.699 | AJ5: Tolerated | AK5: 32.89 | AL5: 30.45 | AM5: 515 | AN5: 0 | AO5: 515 | AP5: 0 | AQ5: 494 | AR5: 607 | AS5: 1105 | AT5: 0.549321267 | AU5: 5.504353933e-136 | AV5: 1 | AW5: 1 | AX5: Artifact (1)
A6: Validated with independent analysis | B6: UPN_Te4_013 | C6: 19 | D6: 13054615 | E6: AG | F6: A | G6: CALR | H6: ENST00000316448 | I6: frameshift_variant | J6: gca/|p.Ala382fs/c.1144delG | K6: 1003 | L6: 611 | M6: 1620 | N6: 0.3771604938 | O6: 0 | P6: 0 | Q6: 1 | R6: 0 | S6: 0 | T6: 1 | U6: 0 | V6: 1 | W6: 3 | X6: NO | Y6: NO | Z6: NO | AA6: NA | AB6: NA | AC6: NO | AD6: NO | AE6: NO | AF6: NO | AG6: NO | AH6: NO | AI6: NA | AJ6: NA | AK6: 32.92 | AL6: NA | AM6: 513 | AN6: 0 | AO6: 515 | AP6: 0 | AQ6: 490 | AR6: 611 | AS6: 1105 | AT6: 0.5529411765 | AU6: 4.685692643e-137 | AV6: 1 | AW6: 2 | AX6: Artifact (2)
A7: Validated with independent analysis | B7: UPN_Te4_011 | C7: 20 | D7: 31022436 | E7: ATCGGAG | F7: TC | G7: ASXL1 | H7: ENST00000375687 | I7: frameshift_variant+missense_variant | J7: atcggaggg/TCgg|p.Ile641fs/c.1921_1927delATCGGAGinsTC | K7: 16184 | L7: 875 | M7: 17001 | N7: 0.05146756073 | O7: 0 | P7: 0 | Q7: 0 | R7: 0 | S7: 0 | T7: 0 | U7: 0 | V7: 1 | W7: 1 | X7: NO | Y7: NO | Z7: NO | AA7: NA | AB7: NA | AC7: NO | AD7: NO | AE7: NO | AF7: NO | AG7: NO | AH7: NO | AI7: NA | AJ7: NA | AK7: 34.70714286 | AL7: ComplexIndel | AM7: NA | AN7: NA | AO7: NA | AP7: NA | AQ7: NA | AR7: NA | AS7: NA | AT7: NA | AU7: 2 | AV7: 2 | AW7: 2 | AX7: Artifact (1)
A8: Validated with independent analysis | B8: UPN_Te4_008 | C8: 20 | D8: 31022441 | E8: A | F8: AG | G8: ASXL1 | H8: ENST00000375687 | I8: frameshift_variant | J8: ggt/ggGt|p.Gly646fs/c.1934dupG | K8: 10554 | L8: 1185 | M8: 10812 | N8: 0.109600444 | O8: 0 | P8: 0 | Q8: 0 | R8: 0 | S8: 1 | T8: 1 | U8: 0 | V8: 1 | W8: 3 | X8: NO | Y8: NO | Z8: NO | AA8: NA | AB8: NA | AC8: NO | AD8: NO | AE8: NO | AF8: NO | AG8: NO | AH8: NO | AI8: NA | AJ8: NA | AK8: 34.87 | AL8: NA | AM8: 9742 | AN8: 1120 | AO8: 9787 | AP8: 0.1144375192 | AQ8: 812 | AR8: 65 | AS8: 1025 | AT8: 0.06341463415 | AU8: 0.005123570913 | AV8: 42 | AW8: 86 | AX8: Artifact (1)
A9: Validated with independent analysis | B9: UPN_Te4_008 | C9: X | D9: 133511737 | E9: GTTAC | F9: GGG | G9: PHF6 | H9: ENST00000332070 | I9: frameshift_variant+stop_gained | J9: ggacagttacta/ggCTAGGGta|p.Gln30fs/c.87_94delACAGTTACinsCTAGGG | K9: 735 | L9: 437 | M9: 746 | N9: 0.5857908847 | O9: 0 | P9: 0 | Q9: 0 | R9: 0 | S9: 1 | T9: 0 | U9: 0 | V9: 1 | W9: 2 | X9: NO | Y9: NO | Z9: NO | AA9: NA | AB9: NA | AC9: NO | AD9: NO | AE9: NO | AF9: NO | AG9: NO | AH9: NO | AI9: NA | AJ9: NA | AK9: 34.105 | AL9: ComplexIndel | AM9: NA | AN9: NA | AO9: NA | AP9: NA | AQ9: NA | AR9: NA | AS9: NA | AT9: NA | AU9: NA | AV9: 1 | AW9: 2 | AX9: Artifact (1)
O10: =SUM(O2:O9) -> 0 | P10: =SUM(P2:P9) -> 0 | Q10: =SUM(Q2:Q9) -> 3 | R10: =SUM(R2:R9) -> 0 | S10: =SUM(S2:S9) -> 3 | T10: =SUM(T2:T9) -> 2 | U10: =SUM(U2:U9) -> 2 | V10: =SUM(V2:V9) -> 6

Sheet FN Polymorphisms
A1: Polymorphism because... | B1: Sample | C1: Chr | D1: Pos | E1: Ref | F1: Alt | G1: Gene | H1: ENST | I1: Type | J1: Mutation | K1: Nr_Ref | L1: Nr_Alt | M1: DP | N1: VAF | O1: GATK | P1: Platypus | Q1: VarScan | R1: LoFreq | S1: FreeBayes | T1: SNVer | U1: SAMtools | V1: VarDict | W1: Called | X1: ESP6500 | Y1: G1000 | Z1: Cosmic | AA1: Cosmic_location | AB1: Cosmic_occurence | AC1: dbSNP_SNPs | AD1: dbSNP_SNVs | AE1: PM_flag | AF1: ExAC | AG1: ClinVar_clinical | AH1: ClinVar_noimpact | AI1: provean_score | AJ1: prediction | AK1: BQ_Ref | AL1: BQ_Alt | AM1: Nr_Ref_fwd | AN1: Nr_Alt_fwd | AO1: DP_fwd | AP1: VAF_fwd | AQ1: Nr_Ref_rev | AR1: Nr_Alt_rev | AS1: DP_rev | AT1: VAF_rev | AU1: strandbias | AV1: nr_samples | AW1: nr_samples_similar | AX1: Category
A2: Validated with independent analysis | B2: UPN_Te4_014 | C2: 3 | D2: 128204951 | E2: C | F2: T | G2: GATA2 | H2: ENST00000341105 | I2: missense_variant | J2: Gcc/Acc|p.Ala164Thr/c.490G>A | K2: 165 | L2: 280 | M2: 447 | N2: 0.6263982103 | O2: 1 | P2: 1 | Q2: 1 | R2: 1 | S2: 1 | T2: 0 | U2: 1 | V2: 0 | W2: 6 | X2: NA | Y2: NA | Z2: NA | AA2: NA | AB2: NA | AC2: NA | AD2: NA | AE2: NA | AF2: NA | AG2: NA | AH2: NA | AI2: NA | AJ2: NA | AK2: 35.33 | AL2: 20.61 | AM2: 0 | AN2: 0 | AO2: 0 | AP2: NA | AQ2: 165 | AR2: 280 | AS2: 447 | AT2: 0.6263982103 | AU2: NA | AV2: NA | AW2: NA | AX2: low bq
A3: Validated with independent analysis | B3: UPN_Te4_016 | C3: 3 | D3: 128204951 | E3: C | F3: T | G3: GATA2 | H3: ENST00000341105 | I3: missense_variant | J3: Gcc/Acc|p.Ala164Thr/c.490G>A | K3: 149 | L3: 177 | M3: 330 | N3: 0.5363636364 | O3: 1 | P3: 1 | Q3: 1 | R3: 1 | S3: 1 | T3: 1 | U3: 1 | V3: 0 | W3: 7 | X3: NA | Y3: NA | Z3: NA | AA3: NA | AB3: NA | AC3: NA | AD3: NA | AE3: NA | AF3: NA | AG3: NA | AH3: NA | AI3: NA | AJ3: NA | AK3: 35.3 | AL3: 21.62 | AM3: 0 | AN3: 6 | AO3: 6 | AP3: 1 | AQ3: 149 | AR3: 171 | AS3: 324 | AT3: 0.5277777778 | AU3: NA | AV3: NA | AW3: NA | AX3: low bq
A4: Validated with independent analysis | B4: UPN_Te4_017 | C4: 3 | D4: 128204951 | E4: C | F4: T | G4: GATA2 | H4: ENST00000341105 | I4: missense_variant | J4: Gcc/Acc|p.Ala164Thr/c.490G>A | K4: 87 | L4: 87 | M4: 176 | N4: 0.4943181818 | O4: 0 | P4: 1 | Q4: 1 | R4: 1 | S4: 1 | T4: 0 | U4: 1 | V4: 0 | W4: 5 | X4: NA | Y4: NA | Z4: NA | AA4: NA | AB4: NA | AC4: NA | AD4: NA | AE4: NA | AF4: NA | AG4: NA | AH4: NA | AI4: NA | AJ4: NA | AK4: 35.07 | AL4: 20.28 | AM4: 0 | AN4: 0 | AO4: 0 | AP4: NA | AQ4: 87 | AR4: 87 | AS4: 176 | AT4: 0.4943181818 | AU4: NA | AV4: NA | AW4: NA | AX4: low bq
A5: Validated with independent analysis | B5: UPN_Te4_019 | C5: 3 | D5: 128204951 | E5: C | F5: T | G5: GATA2 | H5: ENST00000341105 | I5: missense_variant | J5: Gcc/Acc|p.Ala164Thr/c.490G>A | K5: 84 | L5: 133 | M5: 221 | N5: 0.6018099548 | O5: 1 | P5: 1 | Q5: 1 | R5: 1 | S5: 1 | T5: 1 | U5: 1 | V5: 0 | W5: 7 | X5: NA | Y5: NA | Z5: NA | AA5: NA | AB5: NA | AC5: NA | AD5: NA | AE5: NA | AF5: NA | AG5: NA | AH5: NA | AI5: NA | AJ5: NA | AK5: 35.27 | AL5: 21.33 | AM5: 0 | AN5: 6 | AO5: 6 | AP5: 1 | AQ5: 84 | AR5: 127 | AS5: 215 | AT5: 0.5906976744 | AU5: NA | AV5: NA | AW5: NA | AX5: low bq
A6: Validated with independent analysis | B6: UPN_Te4_021 | C6: 3 | D6: 128204951 | E6: C | F6: T | G6: GATA2 | H6: ENST00000341105 | I6: missense_variant | J6: Gcc/Acc|p.Ala164Thr/c.490G>A | K6: 151 | L6: 214 | M6: 366 | N6: 0.5846994536 | O6: 0 | P6: 1 | Q6: 1 | R6: 1 | S6: 1 | T6: 0 | U6: 1 | V6: 0 | W6: 5 | X6: NA | Y6: NA | Z6: NA | AA6: NA | AB6: NA | AC6: NA | AD6: NA | AE6: NA | AF6: NA | AG6: NA | AH6: NA | AI6: NA | AJ6: NA | AK6: 34.89 | AL6: 20.84 | AM6: 0 | AN6: 0 | AO6: 0 | AP6: NA | AQ6: 151 | AR6: 214 | AS6: 366 | AT6: 0.5846994536 | AU6: NA | AV6: NA | AW6: NA | AX6: low bq
A7: Validated with independent analysis | B7: UPN_Te4_022 | C7: 19 | D7: 33792731 | E7: G | F7: GGCGGGT | G7: CEBPA | H7: ENST00000498907 | I7: inframe_insertion | J7: ccg/cACCCGCcg|p.His195_Pro196dup/c.584_589dupACCCGC | K7: 44 | L7: 22 | M7: 44 | N7: 0.5 | O7: NA | P7: NA | Q7: NA | R7: NA | S7: NA | T7: NA | U7: NA | V7: NA | W7: NA | X7: NA | Y7: NA | Z7: NA | AA7: NA | AB7: NA | AC7: NA | AD7: NA | AE7: NA | AF7: NA | AG7: NA | AH7: NA | AI7: NA | AJ7: NA | AK7: 32.5 | AL7: NA | AM7: 22 | AN7: 11 | AO7: 22 | AP7: 0.5 | AQ7: 22 | AR7: 11 | AS7: 22 | AT7: 0.5 | AU7: NA | AV7: NA | AW7: NA | AX7: Cov too low
O8: =SUM(O2:O6) -> 3 | P8: =SUM(P2:P6) -> 5 | Q8: =SUM(Q2:Q6) -> 5 | R8: =SUM(R2:R6) -> 5 | S8: =SUM(S2:S6) -> 5 | T8: =SUM(T2:T6) -> 2 | U8: =SUM(U2:U6) -> 5 | V8: =SUM(V2:V6) -> 0

Sheet FP Mutations
A1: Artifact because... | B1: Sample | C1: Chr | D1: Pos | E1: Ref | F1: Alt | G1: Gene | H1: ENST | I1: Type | J1: Mutation | K1: Nr_Ref | L1: Nr_Alt | M1: DP | N1: VAF | O1: GATK | P1: Platypus | Q1: VarScan | R1: LoFreq | S1: FreeBayes | T1: SNVer | U1: SAMtools | V1: VarDict | W1: Called | X1: ESP6500 | Y1: G1000 | Z1: Cosmic | AA1: Cosmic_location | AB1: Cosmic_occurence | AC1: dbSNP_SNPs | AD1: dbSNP_SNVs | AE1: PM_flag | AF1: ExAC | AG1: ClinVar_clinical | AH1: ClinVar_noimpact | AI1: provean_score | AJ1: prediction | AK1: BQ_Ref | AL1: BQ_Alt | AM1: Nr_Ref_fwd | AN1: Nr_Alt_fwd | AO1: DP_fwd | AP1: VAF_fwd | AQ1: Nr_Ref_rev | AR1: Nr_Alt_rev | AS1: DP_rev | AT1: VAF_rev | AU1: strandbias | AV1: nr_samples | AW1: nr_samples_similar | AX1: Category
A2: Inspected, low nr alt, tolerated prediction but VAF too low | B2: UPN_Te4_007 | C2: 1 | D2: 36932199 | E2: C | F2: T | G2: CSF3R | H2: ENST00000373103 | I2: missense_variant | J2: gGc/gAc|p.Gly784Asp/c.2351G>A | K2: 1016 | L2: 29 | M2: 1047 | N2: 0.02769818529 | O2: 0 | P2: 0 | Q2: 0 | R2: 1 | S2: 1 | T2: 0 | U2: 0 | V2: 1 | W2: 3 | X2: NO | Y2: NO | Z2: COSM680888 | AA2: lung | AB2: 1 | AC2: NO | AD2: NO | AE2: NO | AF2: NO | AG2: NO | AH2: NO | AI2: -0.127 | AJ2: Tolerated | AK2: 34.72 | AL2: 35.72 | AM2: 1011 | AN2: 29 | AO2: 1042 | AP2: 0.02783109405 | AQ2: 5 | AR2: 0 | AS2: 5 | AT2: 0 | AU2: 1 | AV2: 1 | AW2: 1 | AX2: Probably True (-1)
A3: Inspected, low nr alt, low bq | B3: UPN_Te4_015 | C3: 1 | D3: 36932215 | E3: A | F3: T | G3: CSF3R | H3: ENST00000373103 | I3: missense_variant | J3: Tat/Aat|p.Tyr779Asn/c.2335T>A | K3: 1174 | L3: 29 | M3: 1207 | N3: 0.02402651201 | O3: 0 | P3: 0 | Q3: 0 | R3: 1 | S3: 1 | T3: 1 | U3: 0 | V3: 1 | W3: 4 | X3: NO | Y3: NO | Z3: NO | AA3: NO | AB3: O | AC3: NO | AD3: NO | AE3: NO | AF3: NO | AG3: NO | AH3: NO | AI3: -3.792 | AJ3: Deleterious | AK3: 30.94 | AL3: 29.28 | AM3: 593 | AN3: 14 | AO3: 609 | AP3: 0.02298850575 | AQ3: 581 | AR3: 15 | AS3: 598 | AT3: 0.02508361204 | AU3: 0.8526331097 | AV3: 1 | AW3: 1 | AX3: Probably True (-3)
A4: Inspected, tolerated prediction but VAF too low | B4: UPN_Te4_002 | C4: 1 | D4: 36932236 | E4: C | F4: T | G4: CSF3R | H4: ENST00000373103 | I4: missense_variant | J4: Ggc/Agc|p.Gly772Ser/c.2314G>A | K4: 1749 | L4: 59 | M4: 1813 | N4: 0.03254274683 | O4: 0 | P4: 0 | Q4: 0 | R4: 1 | S4: 1 | T4: 1 | U4: 0 | V4: 1 | W4: 4 | X4: NO | Y4: NO | Z4: NO | AA4: NO | AB4: O | AC4: NO | AD4: NO | AE4: NO | AF4: NO | AG4: NO | AH4: NO | AI4: 0.29 | AJ4: Tolerated | AK4: 30.58 | AL4: 30.8 | AM4: 885 | AN4: 28 | AO4: 914 | AP4: 0.0306345733 | AQ4: 864 | AR4: 31 | AS4: 899 | AT4: 0.03448275862 | AU4: 0.6920287739 | AV4: 2 | AW4: 3 | AX4: Probably True (-1)
A5: Inspected, low nr alt | B5: UPN_Te4_002 | C5: 1 | D5: 36932271 | E5: G | F5: T | G5: CSF3R | H5: ENST00000373103 | I5: missense_variant | J5: cCa/cAa|p.Pro760Gln/c.2279C>A | K5: 901 | L5: 20 | M5: 922 | N5: 0.02169197397 | O5: 0 | P5: 0 | Q5: 0 | R5: 1 | S5: 1 | T5: 0 | U5: 0 | V5: 1 | W5: 3 | X5: NO | Y5: NO | Z5: NO | AA5: NO | AB5: O | AC5: NO | AD5: NO | AE5: NO | AF5: NO | AG5: NO | AH5: NO | AI5: -1.772 | AJ5: Tolerated | AK5: 34.64 | AL5: 30.1 | AM5: 14 | AN5: 0 | AO5: 14 | AP5: 0 | AQ5: 887 | AR5: 20 | AS5: 908 | AT5: 0.02202643172 | AU5: 1 | AV5: 1 | AW5: 1 | AX5: Probably True (-1)
A6: Inspected | B6: UPN_Te4_002 | C6: 1 | D6: 115258744 | E6: C | F6: T | G6: NRAS | H6: ENST00000369535 | I6: missense_variant | J6: gGt/gAt|p.Gly13Asp/c.38G>A | K6: 24539 | L6: 250 | M6: 24862 | N6: 0.0100555064 | O6: 0 | P6: 0 | Q6: 0 | R6: 1 | S6: 1 | T6: 0 | U6: 0 | V6: 1 | W6: 3 | X6: NO | Y6: NO | Z6: COSM573 | AA6: endometrium, haematopoietic_and_lymphoid_tissue, large_intestine, NS, skin, thyroid, upper_aerodigestive_tract | AB6: 1, 217, 10, 278, 26, 1, 2 | AC6: NO | AD6: rs121434596 | AE6: YES | AF6: 8.236e-06 | AG6: NO | AH6: NO | AI6: -5.441 | AJ6: Deleterious | AK6: 34.97 | AL6: 34.81 | AM6: 24539 | AN6: 250 | AO6: 24862 | AP6: 0.0100555064 | AQ6: 0 | AR6: 0 | AS6: 0 | AT6: NA | AU6: 1 | AV6: 2 | AW6: 2 | AX6: Hotspot (-4)
A7: Inspected, low bq | B7: UPN_Te4_011 | C7: 1 | D7: 115258745 | E7: C | F7: A | G7: NRAS | H7: ENST00000369535 | I7: missense_variant | J7: Ggt/Tgt|p.Gly13Cys/c.37G>T | K7: 29475 | L7: 461 | M7: 29996 | N7: 0.01536871583 | O7: 0 | P7: 0 | Q7: 0 | R7: 1 | S7: 1 | T7: 0 | U7: 0 | V7: 1 | W7: 3 | X7: NO | Y7: NO | Z7: COSM570 | AA7: haematopoietic_and_lymphoid_tissue, large_intestine, skin, thyroid | AB7: 26, 2, 4, 2 | AC7: NO | AD7: rs121434595 | AE7: YES | AF7: NO | AG7: NO | AH7: NO | AI7: -7.663 | AJ7: Deleterious | AK7: 33.22 | AL7: 27.36 | AM7: 29475 | AN7: 461 | AO7: 29996 | AP7: 0.01536871583 | AQ7: 0 | AR7: 0 | AS7: 0 | AT7: NA | AU7: 1 | AV7: 2 | AW7: 2 | AX7: Hotspot (-4)
A8: Inspected | B8: UPN_Te4_006 | C8: 1 | D8: 115258748 | E8: C | F8: T | G8: NRAS | H8: ENST00000369535 | I8: missense_variant | J8: Ggt/Agt|p.Gly12Ser/c.34G>A | K8: 22932 | L8: 259 | M8: 23246 | N8: 0.0111417018 | O8: 0 | P8: 0 | Q8: 0 | R8: 1 | S8: 1 | T8: 0 | U8: 0 | V8: 1 | W8: 3 | X8: NO | Y8: NO | Z8: COSM563 | AA8: haematopoietic_and_lymphoid_tissue, large_intestine, lung, ovary, prostate, skin, soft_tissue, upper_aerodigestive_tract | AB8: 110, 6, 3, 1, 6, 13, 1, 21 | AC8: NO | AD8: rs121913250 | AE8: YES | AF8: NO | AG8: NO | AH8: NO | AI8: -4.621 | AJ8: Deleterious | AK8: 34.86 | AL8: 33.98 | AM8: 22932 | AN8: 259 | AO8: 23246 | AP8: 0.0111417018 | AQ8: 0 | AR8: 0 | AS8: 0 | AT8: NA | AU8: 1 | AV8: 3 | AW8: 3 | AX8: Hotspot (-4)
A9: Inspected | B9: UPN_Te4_007 | C9: 1 | D9: 115258748 | E9: C | F9: T | G9: NRAS | H9: ENST00000369535 | I9: missense_variant | J9: Ggt/Agt|p.Gly12Ser/c.34G>A | K9: 28992 | L9: 308 | M9: 29382 | N9: 0.0104826084 | O9: 0 | P9: 0 | Q9: 0 | R9: 1 | S9: 1 | T9: 0 | U9: 0 | V9: 1 | W9: 3 | X9: NO | Y9: NO | Z9: COSM563 | AA9: haematopoietic_and_lymphoid_tissue, large_intestine, lung, ovary, prostate, skin, soft_tissue, upper_aerodigestive_tract | AB9: 110, 6, 3, 1, 6, 13, 1, 21 | AC9: NO | AD9: rs121913250 | AE9: YES | AF9: NO | AG9: NO | AH9: NO | AI9: -4.621 | AJ9: Deleterious | AK9: 34.73 | AL9: 34.52 | AM9: 28992 | AN9: 308 | AO9: 29382 | AP9: 0.0104826084 | AQ9: 0 | AR9: 0 | AS9: 0 | AT9: NA | AU9: 1 | AV9: 3 | AW9: 3 | AX9: Hotspot (-4)
A10: Inspected, tolerated prediction but VAF too low | B10: UPN_Te4_007 | C10: 2 | D10: 25497883 | E10: G | F10: A | G10: DNMT3A | H10: ENST00000264709 | I10: missense_variant | J10: aCc/aTc|p.Thr189Ile/c.566C>T | K10: 4764 | L10: 134 | M10: 4906 | N10: 0.02731349368 | O10: 0 | P10: 0 | Q10: 0 | R10: 1 | S10: 1 | T10: 1 | U10: 0 | V10: 1 | W10: 4 | X10: NO | Y10: NO | Z10: NO | AA10: NO | AB10: O | AC10: NO | AD10: NO | AE10: NO | AF10: NO | AG10: NO | AH10: NO | AI10: -1.108 | AJ10: Tolerated | AK10: 34.36 | AL10: 32.78 | AM10: 2366 | AN10: 67 | AO10: 2438 | AP10: 0.02748154225 | AQ10: 2398 | AR10: 67 | AS10: 2468 | AT10: 0.02714748784 | AU10: 1 | AV10: 1 | AW10: 1 | AX10: Probably True (-1)
A11: Inspected, low nr alt, low bq | B11: UPN_Te4_008 | C11: 3 | D11: 128204863 | E11: G | F11: A | G11: GATA2 | H11: ENST00000341105 | I11: missense_variant | J11: cCa/cTa|p.Pro193Leu/c.578C>T | K11: 381 | L11: 22 | M11: 404 | N11: 0.05445544554 | O11: 0 | P11: 0 | Q11: 0 | R11: 1 | S11: 1 | T11: 1 | U11: 0 | V11: 1 | W11: 4 | X11: NO | Y11: NO | Z11: NO | AA11: NO | AB11: O | AC11: NO | AD11: NO | AE11: NO | AF11: NO | AG11: NO | AH11: NO | AI11: -2.247 | AJ11: Tolerated | AK11: 33.9 | AL11: 28.59 | AM11: 258 | AN11: 14 | AO11: 273 | AP11: 0.05128205128 | AQ11: 123 | AR11: 8 | AS11: 131 | AT11: 0.06106870229 | AU11: 0.815271868 | AV11: 1 | AW11: 1 | AX11: Probably True (-2)
A12: Inspected, tolerated prediction but VAF too low | B12: UPN_Te4_013 | C12: 4 | D12: 106157791 | E12: G | F12: T | G12: TET2 | H12: ENST00000380013 | I12: stop_gained | J12: Gga/Tga|p.Gly898*/c.2692G>T | K12: 17763 | L12: 912 | M12: 18709 | N12: 0.04874659255 | O12: 0 | P12: 0 | Q12: 0 | R12: 0 | S12: 1 | T12: 1 | U12: 0 | V12: 0 | W12: 2 | X12: NO | Y12: NO | Z12: COSM87108 | AA12: haematopoietic_and_lymphoid_tissue | AB12: 3 | AC12: NO | AD12: NO | AE12: NO | AF12: NO | AG12: NO | AH12: NO | AI12: NA | AJ12: NA | AK12: 35.09 | AL12: 35.31 | AM12: 6353 | AN12: 5 | AO12: 6372 | AP12: 0.0007846829881 | AQ12: 11410 | AR12: 907 | AS12: 12337 | AT12: 0.07351868363 | AU12: 2 | AV12: 1 | AW12: 1 | AX12: Probably True (-1)
A13: Inspected | B13: UPN_Te4_016 | C13: 4 | D13: 106164913 | E13: C | F13: T | G13: TET2 | H13: ENST00000380013 | I13: missense_variant | J13: Cgc/Tgc|p.Arg1261Cys/c.3781C>T | K13: 8462 | L13: 90 | M13: 8579 | N13: 0.01049073319 | O13: 0 | P13: 0 | Q13: 0 | R13: 1 | S13: 1 | T13: 0 | U13: 0 | V13: 1 | W13: 3 | X13: NO | Y13: NO | Z13: COSM87130 | AA13: haematopoietic_and_lymphoid_tissue | AB13: 10 | AC13: NO | AD13: NO | AE13: NO | AF13: NO | AG13: NO | AH13: NO | AI13: -7.323 | AJ13: Deleterious | AK13: 34.81 | AL13: 33.48 | AM13: 0 | AN13: 0 | AO13: 0 | AP13: NA | AQ13: 8462 | AR13: 90 | AS13: 8579 | AT13: 0.01049073319 | AU13: 1 | AV13: 1 | AW13: 1 | AX13: Probably True (-1)
A14: Inspected, tolerated prediction but VAF too low | B14: UPN_Te4_013 | C14: 4 | D14: 106196220 | E14: C | F14: G | G14: TET2 | H14: ENST00000380013 | I14: stop_gained | J14: tCa/tGa|p.Ser1518*/c.4553C>G | K14: 6244 | L14: 168 | M14: 6431 | N14: 0.02612346447 | O14: 0 | P14: 0 | Q14: 0 | R14: 1 | S14: 1 | T14: 1 | U14: 0 | V14: 1 | W14: 4 | X14: NO | Y14: NO | Z14: NO | AA14: NO | AB14: O | AC14: NO | AD14: NO | AE14: NO | AF14: NO | AG14: NO | AH14: NO | AI14: NA | AJ14: NA | AK14: 31.45 | AL14: 32.1 | AM14: 3162 | AN14: 82 | AO14: 3254 | AP14: 0.02519975415 | AQ14: 3082 | AR14: 86 | AS14: 3177 | AT14: 0.02706956248 | AU14: 0.6401181773 | AV14: 1 | AW14: 1 | AX14: Probably True (-2)
A15: Inspected, tolerated prediction but VAF too low | B15: UPN_Te4_008 | C15: 7 | D15: 50444410 | E15: A | F15: ACTTT | G15: IKZF1 | H15: ENST00000331340 | I15: frameshift_variant | J15: aac/aCTTTac|p.Asn114fs/c.340_341insCTTT | K15: 27030 | L15: 1903 | M15: 27253 | N15: 0.06982717499 | O15: 1 | P15: 1 | Q15: 0 | R15: 0 | S15: 1 | T15: 1 | U15: 0 | V15: 1 | W15: 5 | X15: NO | Y15: NO | Z15: NO | AA15: NA | AB15: NA | AC15: NO | AD15: NO | AE15: NO | AF15: NO | AG15: NO | AH15: NO | AI15: NA | AJ15: NA | AK15: 35.2 | AL15: NA | AM15: 6326 | AN15: 0 | AO15: 6354 | AP15: 0 | AQ15: 20704 | AR15: 1903 | AS15: 20899 | AT15: 0.09105698837 | AU15: 2 | AV15: 2 | AW15: 2 | AX15: Probably True (-2)
A16: Inspected, low nr alt | B16: UPN_Te4_003 | C16: 7 | D16: 50467763 | E16: C | F16: T | G16: IKZF1 | H16: ENST00000331340 | I16: missense_variant | J16: aCg/aTg|p.Thr333Met/c.998C>T | K16: 2283 | L16: 34 | M16: 2318 | N16: 0.01466781708 | O16: 0 | P16: 0 | Q16: 0 | R16: 1 | S16: 1 | T16: 0 | U16: 0 | V16: 1 | W16: 3 | X16: NO | Y16: NO | Z16: COSM1210464 | AA16: large_intestine | AB16: 1 | AC16: NO | AD16: NO | AE16: NO | AF16: NO | AG16: NO | AH16: NO | AI16: -3.142 | AJ16: Deleterious | AK16: 34.88 | AL16: 32.26 | AM16: 0 | AN16: 0 | AO16: 0 | AP16: NA | AQ16: 2283 | AR16: 34 | AS16: 2318 | AT16: 0.01466781708 | AU16: 1 | AV16: 1 | AW16: 1 | AX16: Probably True (-1)
A17: Inspected | B17: UPN_Te4_008 | C17: 7 | D17: 50467921 | E17: C | F17: A | G17: IKZF1 | H17: ENST00000331340 | I17: missense_variant | J17: Cgc/Agc|p.Arg386Ser/c.1156C>A | K17: 5126 | L17: 111 | M17: 5248 | N17: 0.02115091463 | O17: 0 | P17: 0 | Q17: 0 | R17: 1 | S17: 1 | T17: 1 | U17: 0 | V17: 1 | W17: 4 | X17: NO | Y17: NO | Z17: NO | AA17: NA | AB17: NA | AC17: NO | AD17: NO | AE17: NO | AF17: NO | AG17: NO | AH17: NO | AI17: -4.25 | AJ17: Deleterious | AK17: 34.46 | AL17: 30.61 | AM17: 2554 | AN17: 56 | AO17: 2615 | AP17: 0.02141491396 | AQ17: 2572 | AR17: 55 | AS17: 2633 | AT17: 0.02088872009 | AU17: 0.9237655132 | AV17: 1 | AW17: 1 | AX17: Probably True (-3)
A18: Inspected | B18: UPN_Te4_015 | C18: 7 | D18: 50468033 | E18: G | F18: A | G18: IKZF1 | H18: ENST00000331340 | I18: missense_variant | J18: cGc/cAc|p.Arg423His/c.1268G>A | K18: 8739 | L18: 102 | M18: 8848 | N18: 0.01152802893 | O18: 0 | P18: 0 | Q18: 0 | R18: 1 | S18: 1 | T18: 1 | U18: 0 | V18: 1 | W18: 4 | X18: NO | Y18: NO | Z18: NO | AA18: NA | AB18: NA | AC18: NO | AD18: NO | AE18: NO | AF18: NO | AG18: NO | AH18: NO | AI18: -3.354 | AJ18: Deleterious | AK18: 35.22 | AL18: 35.19 | AM18: 6423 | AN18: 35 | AO18: 6463 | AP18: 0.005415441745 | AQ18: 2316 | AR18: 67 | AS18: 2385 | AT18: 0.02809224319 | AU18: 2 | AV18: 2 | AW18: 2 | AX18: Probably True (-2)
A19: Inspected, low nr alt | B19: UPN_Te4_008 | C19: 7 | D19: 101747727 | E19: C | F19: T | G19: CUX1 | H19: ENST00000292535 | I19: missense_variant | J19: gCa/gTa|p.Ala173Val/c.518C>T | K19: 438 | L19: 34 | M19: 472 | N19: 0.07203389831 | O19: 0 | P19: 0 | Q19: 0 | R19: 1 | S19: 1 | T19: 0 | U19: 0 | V19: 1 | W19: 3 | X19: NO | Y19: NO | Z19: NO | AA19: NO | AB19: O | AC19: NO | AD19: NO | AE19: NO | AF19: NO | AG19: NO | AH19: NO | AI19: -2.707 | AJ19: Deleterious | AK19: 32.92 | AL19: 33.18 | AM19: 0 | AN19: 0 | AO19: 0 | AP19: NA | AQ19: 438 | AR19: 34 | AS19: 472 | AT19: 0.07203389831 | AU19: 1 | AV19: 1 | AW19: 1 | AX19: Probably True (-1)
A20: Inspected, low nr alt, tolerated prediction but VAF too low, low bq | B20: UPN_Te4_008 | C20: 7 | D20: 101891981 | E20: G | F20: A | G20: CUX1 | H20: ENST00000292535 | I20: missense_variant | J20: Gga/Aga|p.Gly1393Arg/c.4177G>A | K20: 360 | L20: 30 | M20: 391 | N20: 0.07672634271 | O20: 0 | P20: 0 | Q20: 0 | R20: 1 | S20: 1 | T20: 1 | U20: 0 | V20: 1 | W20: 4 | X20: NO | Y20: NO | Z20: NO | AA20: NO | AB20: O | AC20: NO | AD20: NO | AE20: NO | AF20: NO | AG20: NO | AH20: NO | AI20: -1.015 | AJ20: Tolerated | AK20: 31.84 | AL20: 25.17 | AM20: 176 | AN20: 14 | AO20: 191 | AP20: 0.07329842932 | AQ20: 184 | AR20: 16 | AS20: 200 | AT20: 0.08 | AU20: 0.8512345711 | AV20: 1 | AW20: 1 | AX20: Probably True (-1)
A21: Inspected, low nr alt | B21: UPN_Te4_014 | C21: 7 | D21: 101892253 | E21: C | F21: A | G21: CUX1 | H21: ENST00000292535 | I21: missense_variant | J21: aaC/aaA|p.Asn1483Lys/c.4449C>A | K21: 1604 | L21: 21 | M21: 1628 | N21: 0.0128992629 | O21: 0 | P21: 0 | Q21: 0 | R21: 1 | S21: 1 | T21: 0 | U21: 0 | V21: 1 | W21: 3 | X21: NO | Y21: NO | Z21: NO | AA21: NO | AB21: O | AC21: NO | AD21: NO | AE21: NO | AF21: NO | AG21: NO | AH21: NO | AI21: -3.059 | AJ21: Deleterious | AK21: 35.46 | AL21: 34.24 | AM21: 1582 | AN21: 21 | AO21: 1606 | AP21: 0.01307596513 | AQ21: 22 | AR21: 0 | AS21: 22 | AT21: 0 | AU21: 2 | AV21: 2 | AW21: 2 | AX21: Probably True (-1)
A22: Inspected, tolerated prediction but VAF too low | B22: UPN_Te4_014 | C22: 7 | D22: 148544318 | E22: G | F22: A | G22: EZH2 | H22: ENST00000320356 | I22: stop_gained | J22: Cga/Tga|p.Arg25*/c.73C>T | K22: 14616 | L22: 755 | M22: 15498 | N22: 0.04871596335 | O22: 0 | P22: 0 | Q22: 0 | R22: 1 | S22: 1 | T22: 1 | U22: 0 | V22: 1 | W22: 4 | X22: NO | Y22: NO | Z22: COSM53003 | AA22: haematopoietic_and_lymphoid_tissue | AB22: 1 | AC22: NO | AD22: NO | AE22: NO | AF22: NO | AG22: NO | AH22: NO | AI22: NA | AJ22: NA | AK22: 30.59 | AL22: 32.85 | AM22: 7381 | AN22: 386 | AO22: 7828 | AP22: 0.04931016863 | AQ22: 7235 | AR22: 369 | AS22: 7670 | AT22: 0.0481095176 | AU22: 0.7652723932 | AV22: 1 | AW22: 1 | AX22: Probably True (-3)
A23: Inspected, low nr alt | B23: UPN_Te4_008 | C23: 8 | D23: 117870624 | E23: C | F23: T | G23: RAD21 | H23: ENST00000297338 | I23: missense_variant | J23: Ggg/Agg|p.Gly150Arg/c.448G>A | K23: 654 | L23: 22 | M23: 677 | N23: 0.03249630724 | O23: 0 | P23: 0 | Q23: 0 | R23: 1 | S23: 1 | T23: 0 | U23: 0 | V23: 1 | W23: 3 | X23: NO | Y23: NO | Z23: NO | AA23: NO | AB23: O | AC23: NO | AD23: NO | AE23: NO | AF23: NO | AG23: NO | AH23: NO | AI23: -4.53 | AJ23: Deleterious | AK23: 34.64 | AL23: 31 | AM23: 0 | AN23: 0 | AO23: 0 | AP23: NA | AQ23: 654 | AR23: 22 | AS23: 677 | AT23: 0.03249630724 | AU23: 1 | AV23: 1 | AW23: 1 | AX23: Probably True (-2)
A24: Inspected, low nr alt | B24: UPN_Te4_008 | C24: 9 | D24: 21971152 | E24: T | F24: C | G24: CDKN2A | H24: ENST00000498124 | I24: missense_variant | J24: gAg/gGg|p.Glu69Gly/c.206A>G | K24: 2441 | L24: 27 | M24: 2479 | N24: 0.0108914885 | O24: 0 | P24: 0 | Q24: 0 | R24: 1 | S24: 1 | T24: 0 | U24: 0 | V24: 1 | W24: 3 | X24: 0.0118 | Y24: NO | Z24: NO | AA24: NA | AB24: NA | AC24: NO | AD24: rs372670098 | AE24: NO | AF24: 8.404e-06 | AG24: NO | AH24: NO | AI24: -3.049 | AJ24: Deleterious | AK24: 34.38 | AL24: 35.7 | AM24: 2441 | AN24: 27 | AO24: 2479 | AP24: 0.0108914885 | AQ24: 0 | AR24: 0 | AS24: 0 | AT24: NA | AU24: 1 | AV24: 1 | AW24: 1 | AX24: Probably True (-1)
A25: Inspected, low bq | B25: UPN_Te4_018 | C25: 9 | D25: 139391995 | E25: A | F25: C | G25: NOTCH1 | H25: ENST00000277541 | I25: missense_variant | J25: Ttt/Gtt|p.Phe2066Val/c.6196T>G | K25: 189 | L25: 50 | M25: 241 | N25: 0.2074688797 | O25: 0 | P25: 0 | Q25: 0 | R25: 1 | S25: 1 | T25: 0 | U25: 0 | V25: 0 | W25: 2 | X25: NO | Y25: NO | Z25: NO | AA25: NO | AB25: O | AC25: NO | AD25: NO | AE25: NO | AF25: NO | AG25: NO | AH25: NO | AI25: -6.742 | AJ25: Deleterious | AK25: 19.26 | AL25: 15.22 | AM25: 1 | AN25: 0 | AO25: 1 | AP25: 0 | AQ25: 188 | AR25: 50 | AS25: 240 | AT25: 0.2083333333 | AU25: 1 | AV25: 3 | AW25: 3 | AX25: Probably True (-1)
A26: Inspected, low nr alt, tolerated prediction but VAF too low | B26: UPN_Te4_008 | C26: 10 | D26: 112356263 | E26: G | F26: A | G26: SMC3 | H26: ENST00000361804 | I26: missense_variant | J26: Gaa/Aaa|p.Glu691Lys/c.2071G>A | K26: 600 | L26: 34 | M26: 635 | N26: 0.05354330709 | O26: 0 | P26: 0 | Q26: 0 | R26: 1 | S26: 1 | T26: 1 | U26: 0 | V26: 1 | W26: 4 | X26: NO | Y26: NO | Z26: NO | AA26: NO | AB26: O | AC26: NO | AD26: NO | AE26: NO | AF26: NO | AG26: NO | AH26: NO | AI26: -1.379 | AJ26: Tolerated | AK26: 33.77 | AL26: 35.88 | AM26: 301 | AN26: 17 | AO26: 318 | AP26: 0.0534591195 | AQ26: 299 | AR26: 17 | AS26: 317 | AT26: 0.05362776025 | AU26: 1 | AV26: 1 | AW26: 1 | AX26: Probably True (-1)
A27: Inspected | B27: UPN_Te4_010 | C27: 11 | D27: 533866 | E27: A | F27: T | G27: HRAS | H27: ENST00000417302 | I27: missense_variant | J27: Tac/Aac|p.Tyr64Asn/c.190T>A | K27: 4364 | L27: 101 | M27: 4474 | N27: 0.02257487707 | O27: 0 | P27: 0 | Q27: 0 | R27: 0 | S27: 1 | T27: 0 | U27: 0 | V27: 1 | W27: 2 | X27: NO | Y27: NO | Z27: NO | AA27: NO | AB27: O | AC27: NO | AD27: NO | AE27: NO | AF27: NO | AG27: NO | AH27: NO | AI27: -8.394 | AJ27: Deleterious | AK27: 35.43 | AL27: 35.49 | AM27: 1600 | AN27: 49 | AO27: 1654 | AP27: 0.02962515115 | AQ27: 2764 | AR27: 52 | AS27: 2820 | AT27: 0.01843971631 | AU27: 2 | AV27: 2 | AW27: 2 | AX27: Probably True (-1)
A28: Inspected | B28: UPN_Te4_014 | C28: 11 | D28: 533874 | E28: T | F28: A | G28: HRAS | H28: ENST00000417302 | I28: missense_variant | J28: cAg/cTg|p.Gln61Leu/c.182A>T | K28: 7539 | L28: 98 | M28: 7743 | N28: 0.01265659305 | O28: 0 | P28: 0 | Q28: 0 | R28: 0 | S28: 1 | T28: 1 | U28: 0 | V28: 1 | W28: 3 | X28: NO | Y28: NO | Z28: COSM99664, COSM498 | AA28: breast, liver, oesophagus, skin, upper_aerodigestive_tract, urinary_tract, lung, penis, prostate, salivary_gland, thyroid | AB28: 2, 2, 3, 85, 18, 28, 6, 1, 18, 4, 3 | AC28: NO | AD28: rs121913233 | AE28: YES | AF28: NO | AG28: NO | AH28: NO | AI28: -6.339 | AJ28: Deleterious | AK28: 35.57 | AL28: 34.35 | AM28: 2048 | AN28: 6 | AO28: 2062 | AP28: 0.002909796314 | AQ28: 5491 | AR28: 92 | AS28: 5681 | AT28: 0.01619433198 | AU28: 2 | AV28: 2 | AW28: 7 | AX28: Probably True (-1)
A29: Inspected, low nr alt | B29: UPN_Te4_008 | C29: 11 | D29: 534289 | E29: C | F29: T | G29: HRAS | H29: ENST00000417302 | I29: missense_variant | J29: Ggc/Agc|p.Gly12Ser/c.34G>A | K29: 3268 | L29: 34 | M29: 3303 | N29: 0.01029367242 | O29: 0 | P29: 0 | Q29: 0 | R29: 1 | S29: 1 | T29: 0 | U29: 0 | V29: 1 | W29: 3 | X29: NO | Y29: NO | Z29: COSM480, COSM1746299 | AA29: bone, cervix, large_intestine, penis, prostate, salivary_gland, skin, soft_tissue, thyroid, upper_aerodigestive_tract, urinary_tract, vulva | AB29: 2, 7, 1, 1, 1, 1, 14, 6, 4, 38, 17, 5 | AC29: NO | AD29: rs104894229 | AE29: YES | AF29: NO | AG29: NO | AH29: NO | AI29: -4.657 | AJ29: Deleterious | AK29: 34.52 | AL29: 34.5 | AM29: 3268 | AN29: 34 | AO29: 3303 | AP29: 0.01029367242 | AQ29: 0 | AR29: 0 | AS29: 0 | AT29: NA | AU29: 1 | AV29: 1 | AW29: 1 | AX29: Probably True (-2)
A30: Inspected, tolerated prediction but VAF too low | B30: UPN_Te4_007 | C30: 11 | D30: 118307496 | E30: C | F30: T | G30: KMT2A | H30: ENST00000389506 | I30: missense_variant | J30: tCg/tTg|p.Ser90Leu/c.269C>T | K30: 117 | L30: 35 | M30: 152 | N30: 0.2302631579 | O30: 1 | P30: 1 | Q30: 1 | R30: 1 | S30: 1 | T30: 1 | U30: 0 | V30: 1 | W30: 7 | X30: NO | Y30: NO | Z30: NO | AA30: NO | AB30: O | AC30: NO | AD30: NO | AE30: NO | AF30: NO | AG30: NO | AH30: NO | AI30: -0.447 | AJ30: Tolerated | AK30: 34.92 | AL30: 33.46 | AM30: 0 | AN30: 0 | AO30: 0 | AP30: NA | AQ30: 117 | AR30: 35 | AS30: 152 | AT30: 0.2302631579 | AU30: 1 | AV30: 1 | AW30: 1 | AX30: Probably True (-4)
A31: Inspected, tolerated prediction but VAF too low | B31: UPN_Te4_011 | C31: 11 | D31: 118343178 | E31: A | F31: G | G31: KMT2A | H31: ENST00000389506 | I31: missense_variant | J31: gAc/gGc|p.Asp435Gly/c.1304A>G | K31: 37010 | L31: 3058 | M31: 40458 | N31: 0.07558455682 | O31: 0 | P31: 0 | Q31: 0 | R31: 1 | S31: 1 | T31: 1 | U31: 0 | V31: 1 | W31: 4 | X31: NO | Y31: NO | Z31: NO | AA31: NO | AB31: O | AC31: NO | AD31: NO | AE31: NO | AF31: NO | AG31: NO | AH31: NO | AI31: -0.96 | AJ31: Tolerated | AK31: 30.16 | AL31: 31.66 | AM31: 18789 | AN31: 1572 | AO31: 20523 | AP31: 0.07659698874 | AQ31: 18221 | AR31: 1486 | AS31: 19935 | AT31: 0.07454226235 | AU31: 0.4981873732 | AV31: 1 | AW31: 1 | AX31: Probably True (-1)
A32: Inspected, low bq | B32: UPN_Te4_011 | C32: 11 | D32: 119148931 | E32: G | F32: T | G32: CBL | H32: ENST00000264033 | I32: missense_variant | J32: tGt/tTt|p.Cys384Phe/c.1151G>T | K32: 31150 | L32: 1304 | M32: 32535 | N32: 0.04007991394 | O32: 0 | P32: 0 | Q32: 0 | R32: 1 | S32: 1 | T32: 1 | U32: 0 | V32: 1 | W32: 4 | X32: NO | Y32: NO | Z32: NO | AA32: NA | AB32: NA | AC32: NO | AD32: NO | AE32: NO | AF32: NO | AG32: NO | AH32: NO | AI32: -10.273 | AJ32: Deleterious | AK32: 32.05 | AL32: 28.6 | AM32: 15583 | AN32: 717 | AO32: 16345 | AP32: 0.04386662588 | AQ32: 15567 | AR32: 587 | AS32: 16190 | AT32: 0.03625694873 | AU32: 0.0004542998671 | AV32: 1 | AW32: 1 | AX32: Probably True (-3)
A33: Inspected | B33: UPN_Te4_002 | C33: 13 | D33: 28592641 | E33: T | F33: A | G33: FLT3 | H33: ENST00000241453 | I33: missense_variant | J33: gAt/gTt|p.Asp835Val/c.2504A>T | K33: 28502 | L33: 613 | M33: 29592 | N33: 0.02071505812 | O33: 0 | P33: 0 | Q33: 0 | R33: 1 | S33: 1 | T33: 0 | U33: 0 | V33: 1 | W33: 3 | X33: NO | Y33: NO | Z33: COSM784 | AA33: haematopoietic_and_lymphoid_tissue | AB33: 51 | AC33: NO | AD33: NO | AE33: NO | AF33: NO | AG33: NO | AH33: NO | AI33: -7.907 | AJ33: Deleterious | AK33: 35.08 | AL33: 31.34 | AM33: 28467 | AN33: 613 | AO33: 29556 | AP33: 0.02074028962 | AQ33: 35 | AR33: 0 | AS33: 36 | AT33: 0 | AU33: 1 | AV33: 1 | AW33: 2 | AX33: Hotspot (-5)
A34: Inspected | B34: UPN_Te4_002 | C34: 13 | D34: 28592641 | E34: T | F34: G | G34: FLT3 | H34: ENST00000241453 | I34: missense_variant | J34: gAt/gCt|p.Asp835Ala/c.2504A>C | K34: 28502 | L34: 396 | M34: 29592 | N34: 0.01338199513 | O34: 0 | P34: 0 | Q34: 0 | R34: 1 | S34: 1 | T34: 0 | U34: 0 | V34: 1 | W34: 3 | X34: NO | Y34: NO | Z34: COSM27650 | AA34: haematopoietic_and_lymphoid_tissue | AB34: 3 | AC34: NO | AD34: NO | AE34: NO | AF34: NO | AG34: NO | AH34: NO | AI34: -6.981 | AJ34: Deleterious | AK34: 35.08 | AL34: 35.19 | AM34: 28467 | AN34: 396 | AO34: 29556 | AP34: 0.01339829476 | AQ34: 35 | AR34: 0 | AS34: 36 | AT34: 0 | AU34: 1 | AV34: 1 | AW34: 2 | AX34: Hotspot (-3)
A35: Inspected | B35: UPN_Te4_010 | C35: 17 | D35: 7574013 | E35: G | F35: T | G35: TP53 | H35: ENST00000269305 | I35: missense_variant | J35: ttC/ttA|p.Phe338Leu/c.1014C>A | K35: 7842 | L35: 105 | M35: 7951 | N35: 0.01320588605 | O35: 0 | P35: 0 | Q35: 0 | R35: 1 | S35: 1 | T35: 1 | U35: 0 | V35: 1 | W35: 4 | X35: NO | Y35: NO | Z35: NO | AA35: NA | AB35: NA | AC35: NO | AD35: NO | AE35: NO | AF35: NO | AG35: NO | AH35: NO | AI35: -3.99 | AJ35: Deleterious | AK35: 34.79 | AL35: 32.61 | AM35: 3946 | AN35: 50 | AO35: 3998 | AP35: 0.01250625313 | AQ35: 3896 | AR35: 55 | AS35: 3953 | AT35: 0.01391348343 | AU35: 0.6237498396 | AV35: 1 | AW35: 1 | AX35: Probably True (-1)
A36: Inspected, low bq | B36: UPN_Te4_007 | C36: 17 | D36: 7578502 | E36: A | F36: T | G36: TP53 | H36: ENST00000269305 | I36: missense_variant | J36: gTg/gAg|p.Val143Glu/c.428T>A | K36: 12541 | L36: 353 | M36: 12952 | N36: 0.02725447807 | O36: 0 | P36: 0 | Q36: 0 | R36: 1 | S36: 1 | T36: 0 | U36: 0 | V36: 1 | W36: 3 | X36: NO | Y36: NO | Z36: COSM3522708, COSM3522705, COSM45382, COSM3522707, COSM3522706 | AA36: oesophagus, skin, breast, large_intestine, lung, upper_aerodigestive_tract, urinary_tract | AB36: 5, 5, 1, 1, 1, 1, 1 | AC36: NO | AD36: NO | AE36: NO | AF36: NO | AG36: NO | AH36: NO | AI36: -5.68 | AJ36: Deleterious | AK36: 32.69 | AL36: 28.76 | AM36: 19 | AN36: 135 | AO36: 156 | AP36: 0.8653846154 | AQ36: 12522 | AR36: 218 | AS36: 12796 | AT36: 0.01703657393 | AU36: 1.963056325e-200 | AV36: 6 | AW36: 6 | AX36: Probably True (-1)
A37: Inspected, low nr alt | B37: UPN_Te4_007 | C37: 19 | D37: 33793134 | E37: C | F37: T | G37: CEBPA | H37: ENST00000498907 | I37: missense_variant | J37: Gac/Aac|p.Asp63Asn/c.187G>A | K37: 644 | L37: 28 | M37: 674 | N37: 0.04154302671 | O37: 0 | P37: 0 | Q37: 0 | R37: 1 | S37: 1 | T37: 0 | U37: 0 | V37: 1 | W37: 3 | X37: NO | Y37: NO | Z37: NO | AA37: NA | AB37: NA | AC37: NO | AD37: NO | AE37: NO | AF37: NO | AG37: NO | AH37: NO | AI37: -3.568 | AJ37: Deleterious | AK37: 33.75 | AL37: 32.11 | AM37: 644 | AN37: 28 | AO37: 674 | AP37: 0.04154302671 | AQ37: 0 | AR37: 0 | AS37: 0 | AT37: NA | AU37: 1 | AV37: 1 | AW37: 1 | AX37: Probably True (-2)
A38: Inspected, low nr alt | B38: UPN_Te4_010 | C38: 20 | D38: 31022365 | E38: T | F38: C | G38: ASXL1 | H38: ENST00000375687 | I38: missense_variant | J38: aTt/aCt|p.Ile617Thr/c.1850T>C | K38: 2074 | L38: 22 | M38: 2102 | N38: 0.01046622265 | O38: 0 | P38: 0 | Q38: 0 | R38: 1 | S38: 1 | T38: 0 | U38: 0 | V38: 1 | W38: 3 | X38: NO | Y38: NO | Z38: COSM133585 | AA38: haematopoietic_and_lymphoid_tissue | AB38: 1 | AC38: NO | AD38: NO | AE38: NO | AF38: NO | AG38: NO | AH38: NO | AI38: -3.486 | AJ38: Deleterious | AK38: 34.01 | AL38: 31.55 | AM38: 1069 | AN38: 11 | AO38: 1085 | AP38: 0.01013824885 | AQ38: 1005 | AR38: 11 | AS38: 1017 | AT38: 0.01081612586 | AU38: 1 | AV38: 1 | AW38: 1 | AX38: Probably True (-1)
A39: Inspected | B39: UPN_Te4_010 | C39: 20 | D39: 31025088 | E39: G | F39: A | G39: ASXL1 | H39: ENST00000375687 | I39: missense_variant | J39: Gat/Aat|p.Asp1525Asn/c.4573G>A | K39: 4199 | L39: 51 | M39: 4254 | N39: 0.0119887165 | O39: 0 | P39: 0 | Q39: 0 | R39: 1 | S39: 1 | T39: 0 | U39: 0 | V39: 1 | W39: 3 | X39: 0.0116 | Y39: NO | Z39: NO | AA39: NO | AB39: O | AC39: NO | AD39: rs139397200 | AE39: NO | AF39: NO | AG39: NO | AH39: NO | AI39: -4.189 | AJ39: Deleterious | AK39: 34.98 | AL39: 35.06 | AM39: 4199 | AN39: 51 | AO39: 4254 | AP39: 0.0119887165 | AQ39: 0 | AR39: 0 | AS39: 0 | AT39: NA | AU39: 1 | AV39: 1 | AW39: 1 | AX39: Probably True (-1)
A40: Inspected, low bq | B40: UPN_Te4_011 | C40: 21 | D40: 36164610 | E40: T | F40: A | G40: RUNX1 | H40: ENST00000437180 | I40: missense_variant | J40: gAg/gTg|p.Glu422Val/c.1265A>T | K40: 793 | L40: 270 | M40: 2675 | N40: 0.1009345794 | O40: 0 | P40: 0 | Q40: 0 | R40: 1 | S40: 1 | T40: 0 | U40: 0 | V40: 0 | W40: 2 | X40: NO | Y40: NO | Z40: NO | AA40: NA | AB40: NA | AC40: NO | AD40: NO | AE40: NO | AF40: NO | AG40: NO | AH40: NO | AI40: -4.606 | AJ40: Deleterious | AK40: 19.15 | AL40: 15.06 | AM40: 793 | AN40: 270 | AO40: 2675 | AP40: 0.1009345794 | AQ40: 0 | AR40: 0 | AS40: 0 | AT40: NA | AU40: 1 | AV40: 2 | AW40: 3 | AX40: Probably True (-1)
A41: Inspected | B41: UPN_Te4_004 | C41: 21 | D41: 36206815 | E41: G | F41: A | G41: RUNX1 | H41: ENST00000437180 | I41: missense_variant | J41: Cgc/Tgc|p.Arg233Cys/c.697C>T | K41: 3967 | L41: 149 | M41: 4128 | N41: 0.03609496124 | O41: 0 | P41: 0 | Q41: 0 | R41: 0 | S41: 1 | T41: 0 | U41: 0 | V41: 1 | W41: 2 | X41: NO | Y41: NO | Z41: NO | AA41: NO | AB41: O | AC41: NO | AD41: NO | AE41: NO | AF41: 8.236e-06 | AG41: NO | AH41: NO | AI41: -3.76 | AJ41: Deleterious | AK41: 33.02 | AL41: 34.97 | AM41: 1994 | AN41: 75 | AO41: 2076 | AP41: 0.03612716763 | AQ41: 1973 | AR41: 74 | AS41: 2052 | AT41: 0.03606237817 | AU41: 1 | AV41: 2 | AW41: 2 | AX41: Probably True (-1)
A42: Inspected | B42: UPN_Te4_007 | C42: 21 | D42: 36206815 | E42: G | F42: A | G42: RUNX1 | H42: ENST00000437180 | I42: missense_variant | J42: Cgc/Tgc|p.Arg233Cys/c.697C>T | K42: 5842 | L42: 150 | M42: 5997 | N42: 0.02501250625 | O42: 0 | P42: 0 | Q42: 0 | R42: 0 | S42: 1 | T42: 0 | U42: 0 | V42: 1 | W42: 2 | X42: NO | Y42: NO | Z42: NO | AA42: NO | AB42: O | AC42: NO | AD42: NO | AE42: NO | AF42: 8.236e-06 | AG42: NO | AH42: NO | AI42: -3.76 | AJ42: Deleterious | AK42: 33.07 | AL42: 35.07 | AM42: 2932 | AN42: 76 | AO42: 3010 | AP42: 0.02524916944 | AQ42: 2910 | AR42: 74 | AS42: 2987 | AT42: 0.02477402076 | AU42: 0.93421309 | AV42: 2 | AW42: 2 | AX42: Probably True (-1)
A43: Inspected, tolerated prediction but VAF too low | B43: UPN_Te4_010 | C43: X | D43: 15809133 | E43: T | F43: C | G43: ZRSR2 | H43: ENST00000307771 | I43: missense_variant | J43: Tca/Cca|p.Ser40Pro/c.118T>C | K43: 2031 | L43: 67 | M43: 2116 | N43: 0.03166351607 | O43: 0 | P43: 0 | Q43: 0 | R43: 1 | S43: 1 | T43: 1 | U43: 0 | V43: 1 | W43: 4 | X43: NO | Y43: NO | Z43: NO | AA43: NO | AB43: O | AC43: NO | AD43: NO | AE43: NO | AF43: NO | AG43: NO | AH43: NO | AI43: -0.9 | AJ43: Tolerated | AK43: 31.83 | AL43: 31.46 | AM43: 1021 | AN43: 35 | AO43: 1070 | AP43: 0.03271028037 | AQ43: 1010 | AR43: 32 | AS43: 1046 | AT43: 0.03059273423 | AU43: 0.8043860103 | AV43: 1 | AW43: 1 | AX43: Probably True (-1)
A44: Inspected | B44: UPN_Te4_014 | C44: X | D44: 15821883 | E44: G | F44: T | G44: ZRSR2 | H44: ENST00000307771 | I44: missense_variant | J44: aaG/aaT|p.Lys92Asn/c.276G>T | K44: 1423 | L44: 40 | M44: 1464 | N44: 0.02732240437 | O44: 0 | P44: 0 | Q44: 0 | R44: 1 | S44: 1 | T44: 1 | U44: 0 | V44: 1 | W44: 4 | X44: NO | Y44: NO | Z44: NO | AA44: NO | AB44: O | AC44: NO | AD44: NO | AE44: NO | AF44: NO | AG44: NO | AH44: NO | AI44: -2.11 | AJ44: Tolerated | AK44: 33.16 | AL44: 32.3 | AM44: 722 | AN44: 20 | AO44: 743 | AP44: 0.0269179004 | AQ44: 701 | AR44: 20 | AS44: 721 | AT44: 0.02773925104 | AU44: 1 | AV44: 1 | AW44: 1 | AX44: Probably True (-2)
A45: Inspected | B45: UPN_Te4_007 | C45: X | D45: 15821909 | E45: A | F45: G | G45: ZRSR2 | H45: ENST00000307771 | I45: missense_variant | J45: gAa/gGa|p.Glu101Gly/c.302A>G | K45: 3534 | L45: 58 | M45: 3598 | N45: 0.0161200667 | O45: 0 | P45: 0 | Q45: 0 | R45: 1 | S45: 1 | T45: 1 | U45: 0 | V45: 1 | W45: 4 | X45: NO | Y45: NO | Z45: NO | AA45: NO | AB45: O | AC45: NO | AD45: NO | AE45: NO | AF45: NO | AG45: NO | AH45: NO | AI45: -3.36 | AJ45: Deleterious | AK45: 35.12 | AL45: 33.72 | AM45: 1774 | AN45: 29 | AO45: 1805 | AP45: 0.01606648199 | AQ45: 1760 | AR45: 29 | AS45: 1793 | AT45: 0.01617401004 | AU45: 1 | AV45: 1 | AW45: 1 | AX45: Probably True (-1)
A46: Inspected | B46: UPN_Te4_007 | C46: X | D46: 39911588 | E46: C | F46: T | G46: BCOR | H46: ENST00000378444 | I46: missense_variant | J46: cGc/cAc|p.Arg1681His/c.5042G>A | K46: 1820 | L46: 40 | M46: 1865 | N46: 0.02144772118 | O46: 0 | P46: 0 | Q46: 0 | R46: 1 | S46: 1 | T46: 0 | U46: 0 | V46: 1 | W46: 3 | X46: 0 | Y46: NO | Z46: NO | AA46: NO | AB46: O | AC46: NO | AD46: rs372913827 | AE46: NO | AF46: 8.237e-06 | AG46: NO | AH46: NO | AI46: -2.339 | AJ46: Tolerated | AK46: 34.81 | AL46: 34.88 | AM46: 1820 | AN46: 40 | AO46: 1865 | AP46: 0.02144772118 | AQ46: 0 | AR46: 0 | AS46: 0 | AT46: NA | AU46: 1 | AV46: 1 | AW46: 1 | AX46: Probably True (-2)
A47: Inspected | B47: UPN_Te4_010 | C47: X | D47: 39911598 | E47: G | F47: A | G47: BCOR | H47: ENST00000378444 | I47: missense_variant | J47: Cgc/Tgc|p.Arg1678Cys/c.5032C>T | K47: 3921 | L47: 41 | M47: 3975 | N47: 0.01031446541 | O47: 0 | P47: 0 | Q47: 0 | R47: 1 | S47: 1 | T47: 0 | U47: 0 | V47: 1 | W47: 3 | X47: NO | Y47: NO | Z47: COSM1599462 | AA47: endometrium, large_intestine | AB47: 1, 1 | AC47: NO | AD47: NO | AE47: NO | AF47: 8.237e-06 | AG47: NO | AH47: NO | AI47: -6.272 | AJ47: Deleterious | AK47: 30.39 | AL47: 32.85 | AM47: 1953 | AN47: 22 | AO47: 1980 | AP47: 0.01111111111 | AQ47: 1968 | AR47: 19 | AS47: 1995 | AT47: 0.009523809524 | AU47: 0.6413090834 | AV47: 1 | AW47: 1 | AX47: Probably True (-1)
A48: Inspected | B48: UPN_Te4_011 | C48: X | D48: 39911628 | E48: C | F48: A | G48: BCOR | H48: ENST00000378444 | I48: missense_variant | J48: Gat/Tat|p.Asp1668Tyr/c.5002G>T | K48: 3282 | L48: 86 | M48: 3373 | N48: 0.02549659057 | O48: 0 | P48: 0 | Q48: 0 | R48: 1 | S48: 1 | T48: 1 | U48: 0 | V48: 1 | W48: 4 | X48: NO | Y48: NO | Z48: NO | AA48: NO | AB48: O | AC48: NO | AD48: NO | AE48: NO | AF48: NO | AG48: NO | AH48: NO | AI48: -8.174 | AJ48: Deleterious | AK48: 32.96 | AL48: 32.07 | AM48: 1623 | AN48: 45 | AO48: 1671 | AP48: 0.02692998205 | AQ48: 1659 | AR48: 41 | AS48: 1702 | AT48: 0.0240893067 | AU48: 0.6624344219 | AV48: 1 | AW48: 1 | AX48: Probably True (-3)
A49: Inspected | B49: UPN_Te4_007 | C49: X | D49: 39916489 | E49: C | F49: T | G49: BCOR | H49: ENST00000378444 | I49: missense_variant | J49: tGt/tAt|p.Cys1505Tyr/c.4514G>A | K49: 2684 | L49: 48 | M49: 2738 | N49: 0.01753104456 | O49: 0 | P49: 0 | Q49: 0 | R49: 1 | S49: 1 | T49: 1 | U49: 0 | V49: 1 | W49: 4 | X49: NO | Y49: NO | Z49: NO | AA49: NA | AB49: NA | AC49: NO | AD49: NO | AE49: NO | AF49: NO | AG49: NO | AH49: NO | AI49: -9.563 | AJ49: Deleterious | AK49: 33.56 | AL49: 33.75 | AM49: 1361 | AN49: 25 | AO49: 1386 | AP49: 0.01803751804 | AQ49: 1323 | AR49: 23 | AS49: 1352 | AT49: 0.01701183432 | AU49: 0.88501713 | AV49: 1 | AW49: 1 | AX49: Probably True (-1)
A50: Inspected | B50: UPN_Te4_001 | C50: X | D50: 39922052 | E50: T | F50: C | G50: BCOR | H50: ENST00000378444 | I50: missense_variant | J50: Agg/Ggg|p.Arg1374Gly/c.4120A>G | K50: 3558 | L50: 45 | M50: 3623 | N50: 0.01242064587 | O50: 0 | P50: 0 | Q50: 0 | R50: 1 | S50: 1 | T50: 0 | U50: 0 | V50: 1 | W50: 3 | X50: NO | Y50: NO | Z50: COSM4665526 | AA50: large_intestine | AB50: 1 | AC50: NO | AD50: NO | AE50: NO | AF50: NO | AG50: NO | AH50: NO | AI50: -3.646 | AJ50: Deleterious | AK50: 34.12 | AL50: 34.71 | AM50: 3558 | AN50: 45 | AO50: 3623 | AP50: 0.01242064587 | AQ50: 0 | AR50: 0 | AS50: 0 | AT50: NA | AU50: 1 | AV50: 1 | AW50: 1 | AX50: Probably True (-1)
A51: Inspected, low nr alt | B51: UPN_Te4_010 | C51: X | D51: 39922900 | E51: A | F51: G | G51: BCOR | H51: ENST00000378444 | I51: missense_variant | J51: Tgg/Cgg|p.Trp1270Arg/c.3808T>C | K51: 2391 | L51: 26 | M51: 2421 | N51: 0.0107393639 | O51: 0 | P51: 0 | Q51: 0 | R51: 1 | S51: 1 | T51: 0 | U51: 0 | V51: 1 | W51: 3 | X51: NO | Y51: NO | Z51: NO | AA51: NO | AB51: O | AC51: NO | AD51: NO | AE51: NO | AF51: 8.237e-06 | AG51: NO | AH51: NO | AI51: -4.388 | AJ51: Deleterious | AK51: 33.89 | AL51: 33.65 | AM51: 2391 | AN51: 26 | AO51: 2421 | AP51: 0.0107393639 | AQ51: 0 | AR51: 0 | AS51: 0 | AT51: NA | AU51: 1 | AV51: 1 | AW51: 1 | AX51: Probably True (-1)
A52: Inspected, low nr alt | B52: UPN_Te4_015 | C52: X | D52: 39922927 | E52: T | F52: C | G52: BCOR | H52: ENST00000378444 | I52: missense_variant | J52: Agg/Ggg|p.Arg1261Gly/c.3781A>G | K52: 2407 | L52: 25 | M52: 2464 | N52: 0.0101461039 | O52: 0 | P52: 0 | Q52: 0 | R52: 1 | S52: 1 | T52: 0 | U52: 0 | V52: 1 | W52: 3 | X52: NO | Y52: NO | Z52: COSM3372257 | AA52: thyroid | AB52: 1 | AC52: NO | AD52: NO | AE52: NO | AF52: NO | AG52: NO | AH52: NO | AI52: -3.381 | AJ52: Deleterious | AK52: 33.85 | AL52: 33 | AM52: 2407 | AN52: 25 | AO52: 2464 | AP52: 0.0101461039 | AQ52: 0 | AR52: 0 | AS52: 0 | AT52: NA | AU52: 1 | AV52: 1 | AW52: 1 | AX52: Probably True (-1)
A53: Inspected, low nr alt, tolerated prediction but VAF too low | B53: UPN_Te4_008 | C53: X | D53: 39931886 | E53: G | F53: T | G53: BCOR | H53: ENST00000378444 | I53: missense_variant | J53: Ctg/Atg|p.Leu905Met/c.2713C>A | K53: 870 | L53: 20 | M53: 890 | N53: 0.02247191011 | O53: 0 | P53: 0 | Q53: 0 | R53: 1 | S53: 1 | T53: 1 | U53: 0 | V53: 1 | W53: 4 | X53: NO | Y53: NO | Z53: NO | AA53: NO | AB53: O | AC53: NO | AD53: NO | AE53: NO | AF53: NO | AG53: NO | AH53: NO | AI53: 0.008 | AJ53: Tolerated | AK53: 34.98 | AL53: 34.9 | AM53: 431 | AN53: 10 | AO53: 441 | AP53: 0.02267573696 | AQ53: 439 | AR53: 10 | AS53: 449 | AT53: 0.02227171492 | AU53: 1 | AV53: 1 | AW53: 1 | AX53: Probably True (-1)
A54: Inspected, low nr alt, tolerated prediction but VAF too low | B54: UPN_Te4_018 | C54: X | D54: 39931912 | E54: A | F54: G | G54: BCOR | H54: ENST00000378444 | I54: missense_variant | J54: gTc/gCc|p.Val896Ala/c.2687T>C | K54: 950 | L54: 23 | M54: 981 | N54: 0.02344546381 | O54: 0 | P54: 0 | Q54: 0 | R54: 1 | S54: 1 | T54: 1 | U54: 0 | V54: 1 | W54: 4 | X54: NO | Y54: NO | Z54: NO | AA54: NO | AB54: O | AC54: NO | AD54: NO | AE54: NO | AF54: NO | AG54: NO | AH54: NO | AI54: 0.06 | AJ54: Tolerated | AK54: 32.28 | AL54: 35.48 | AM54: 462 | AN54: 12 | AO54: 479 | AP54: 0.02505219207 | AQ54: 488 | AR54: 11 | AS54: 502 | AT54: 0.0219123506 | AU54: 0.8339176024 | AV54: 1 | AW54: 1 | AX54: Probably True (-1)
A55: Inspected, low nr alt, tolerated prediction but VAF too low | B55: UPN_Te4_005 | C55: X | D55: 39931913 | E55: C | F55: T | G55: BCOR | H55: ENST00000378444 | I55: missense_variant | J55: Gtc/Atc|p.Val896Ile/c.2686G>A | K55: 603 | L55: 28 | M55: 631 | N55: 0.04437400951 | O55: 0 | P55: 0 | Q55: 0 | R55: 1 | S55: 1 | T55: 1 | U55: 0 | V55: 1 | W55: 4 | X55: NO | Y55: NO | Z55: NO | AA55: NO | AB55: O | AC55: NO | AD55: NO | AE55: NO | AF55: NO | AG55: NO | AH55: NO | AI55: -0.426 | AJ55: Tolerated | AK55: 34.76 | AL55: 34.36 | AM55: 300 | AN55: 14 | AO55: 314 | AP55: 0.04458598726 | AQ55: 303 | AR55: 14 | AS55: 317 | AT55: 0.04416403785 | AU55: 1 | AV55: 1 | AW55: 1 | AX55: Probably True (-1)
A56: Inspected, low nr alt | B56: UPN_Te4_004 | C56: X | D56: 39933803 | E56: T | F56: A | G56: BCOR | H56: ENST00000378444 | I56: missense_variant | J56: Agg/Tgg|p.Arg266Trp/c.796A>T | K56: 863 | L56: 20 | M56: 884 | N56: 0.02262443439 | O56: 0 | P56: 0 | Q56: 0 | R56: 1 | S56: 1 | T56: 1 | U56: 0 | V56: 1 | W56: 4 | X56: NO | Y56: NO | Z56: NO | AA56: NO | AB56: O | AC56: NO | AD56: NO | AE56: NO | AF56: NO | AG56: NO | AH56: NO | AI56: -3.72 | AJ56: Deleterious | AK56: 32.45 | AL56: 33.45 | AM56: 390 | AN56: 10 | AO56: 400 | AP56: 0.025 | AQ56: 473 | AR56: 10 | AS56: 484 | AT56: 0.02066115702 | AU56: 0.8209753446 | AV56: 1 | AW56: 1 | AX56: Probably True (-3)
A57: Inspected | B57: UPN_Te4_008 | C57: X | D57: 39933823 | E57: G | F57: A | G57: BCOR | H57: ENST00000378444 | I57: missense_variant | J57: tCg/tTg|p.Ser259Leu/c.776C>T | K57: 1124 | L57: 48 | M57: 1174 | N57: 0.04088586031 | O57: 0 | P57: 0 | Q57: 0 | R57: 1 | S57: 1 | T57: 1 | U57: 0 | V57: 1 | W57: 4 | X57: NO | Y57: NO | Z57: NO | AA57: NO | AB57: O | AC57: NO | AD57: NO | AE57: NO | AF57: NO | AG57: NO | AH57: NO | AI57: -2.635 | AJ57: Deleterious | AK57: 34.31 | AL57: 34.48 | AM57: 336 | AN57: 24 | AO57: 360 | AP57: 0.06666666667 | AQ57: 788 | AR57: 24 | AS57: 814 | AT57: 0.02948402948 | AU57: 0.005897154215 | AV57: 1 | AW57: 1 | AX57: Probably True (-2)
A58: Inspected, low nr alt | B58: UPN_Te4_001 | C58: X | D58: 39937122 | E58: G | F58: A | G58: BCOR | H58: ENST00000378444 | I58: missense_variant | J58: Cgc/Tgc|p.Arg21Cys/c.61C>T | K58: 1798 | L58: 27 | M58: 1828 | N58: 0.0147702407 | O58: 0 | P58: 0 | Q58: 0 | R58: 1 | S58: 1 | T58: 0 | U58: 0 | V58: 1 | W58: 3 | X58: NO | Y58: NO | Z58: COSM457496, COSM4813253 | AA58: breast | AB58: 2 | AC58: NO | AD58: NO | AE58: NO | AF58: NO | AG58: NO | AH58: NO | AI58: -3.802 | AJ58: Deleterious | AK58: 34.94 | AL58: 33.41 | AM58: 1798 | AN58: 27 | AO58: 1828 | AP58: 0.0147702407 | AQ58: 0 | AR58: 0 | AS58: 0 | AT58: NA | AU58: 1 | AV58: 1 | AW58: 1 | AX58: Probably True (-1)
A59: Inspected, low nr alt | B59: UPN_Te4_007 | C59: X | D59: 44732805 | E59: C | F59: T | G59: KDM6A | H59: ENST00000377967 | I59: missense_variant | J59: tCc/tTc|p.Ser3Phe/c.8C>T | K59: 1723 | L59: 33 | M59: 1757 | N59: 0.0187820148 | O59: 0 | P59: 0 | Q59: 0 | R59: 1 | S59: 1 | T59: 0 | U59: 0 | V59: 1 | W59: 3 | X59: NO | Y59: NO | Z59: NO | AA59: NA | AB59: NA | AC59: NO | AD59: NO | AE59: NO | AF59: 8.295e-06 | AG59: NO | AH59: NO | AI59: -3.523 | AJ59: Deleterious | AK59: 35.7 | AL59: 35.33 | AM59: 1723 | AN59: 33 | AO59: 1757 | AP59: 0.0187820148 | AQ59: 0 | AR59: 0 | AS59: 0 | AT59: NA | AU59: 1 | AV59: 1 | AW59: 1 | AX59: Probably True (-1)
A60: Inspected, low bq | B60: UPN_Te4_008 | C60: X | D60: 44918299 | E60: G | F60: T | G60: KDM6A | H60: ENST00000377967 | I60: missense_variant | J60: agG/agT|p.Arg308Ser/c.924G>T | K60: 3216 | L60: 69 | M60: 3292 | N60: 0.02095990279 | O60: 0 | P60: 0 | Q60: 0 | R60: 1 | S60: 1 | T60: 1 | U60: 0 | V60: 1 | W60: 4 | X60: NO | Y60: NO | Z60: NO | AA60: NA | AB60: NA | AC60: NO | AD60: NO | AE60: NO | AF60: NO | AG60: NO | AH60: NO | AI60: -3.657 | AJ60: Deleterious | AK60: 29.46 | AL60: 26.54 | AM60: 1441 | AN60: 26 | AO60: 1471 | AP60: 0.01767505099 | AQ60: 1775 | AR60: 43 | AS60: 1821 | AT60: 0.02361339923 | AU60: 0.2712873251 | AV60: 1 | AW60: 1 | AX60: Probably True (-3)
A61: Inspected | B61: UPN_Te4_010 | C61: X | D61: 44941836 | E61: A | F61: G | G61: KDM6A | H61: ENST00000377967 | I61: missense_variant | J61: Aga/Gga|p.Arg1054Gly/c.3160A>G | K61: 2990 | L61: 67 | M61: 3059 | N61: 0.02190258254 | O61: 0 | P61: 0 | Q61: 0 | R61: 1 | S61: 1 | T61: 0 | U61: 0 | V61: 1 | W61: 3 | X61: NO | Y61: NO | Z61: NO | AA61: NA | AB61: NA | AC61: NO | AD61: NO | AE61: NO | AF61: NO | AG61: NO | AH61: NO | AI61: -2.625 | AJ61: Deleterious | AK61: 35.78 | AL61: 34.78 | AM61: 2990 | AN61: 67 | AO61: 3059 | AP61: 0.02190258254 | AQ61: 0 | AR61: 0 | AS61: 0 | AT61: NA | AU61: 1 | AV61: 2 | AW61: 2 | AX61: Probably True (-1)
A62: Inspected | B62: UPN_Te4_001 | C62: X | D62: 76845405 | E62: A | F62: C | G62: ATRX | H62: ENST00000373344 | I62: missense_variant | J62: gTt/gGt|p.Val2039Gly/c.6116T>G | K62: 20549 | L62: 231 | M62: 20960 | N62: 0.01102099237 | O62: 0 | P62: 0 | Q62: 0 | R62: 1 | S62: 1 | T62: 1 | U62: 0 | V62: 1 | W62: 4 | X62: NO | Y62: NO | Z62: NO | AA62: NA | AB62: NA | AC62: NO | AD62: NO | AE62: NO | AF62: NO | AG62: NO | AH62: NO | AI62: -6.261 | AJ62: Deleterious | AK62: 33.14 | AL62: 30.65 | AM62: 10397 | AN62: 117 | AO62: 10577 | AP62: 0.01106173773 | AQ62: 10152 | AR62: 114 | AS62: 10383 | AT62: 0.0109794857 | AU62: 1 | AV62: 3 | AW62: 3 | AX62: Probably True (-1)
A63: Inspected | B63: UPN_Te4_011 | C63: X | D63: 76845405 | E63: A | F63: C | G63: ATRX | H63: ENST00000373344 | I63: missense_variant | J63: gTt/gGt|p.Val2039Gly/c.6116T>G | K63: 21311 | L63: 225 | M63: 21704 | N63: 0.01036675267 | O63: 0 | P63: 0 | Q63: 0 | R63: 1 | S63: 1 | T63: 1 | U63: 0 | V63: 1 | W63: 4 | X63: NO | Y63: NO | Z63: NO | AA63: NA | AB63: NA | AC63: NO | AD63: NO | AE63: NO | AF63: NO | AG63: NO | AH63: NO | AI63: -6.261 | AJ63: Deleterious | AK63: 33.12 | AL63: 32.17 | AM63: 10805 | AN63: 114 | AO63: 10971 | AP63: 0.0103910309 | AQ63: 10506 | AR63: 111 | AS63: 10733 | AT63: 0.01034193608 | AU63: 1 | AV63: 3 | AW63: 3 | AX63: Probably True (-1)
A64: Inspected | B64: UPN_Te4_015 | C64: X | D64: 76845405 | E64: A | F64: C | G64: ATRX | H64: ENST00000373344 | I64: missense_variant | J64: gTt/gGt|p.Val2039Gly/c.6116T>G | K64: 23834 | L64: 255 | M64: 24325 | N64: 0.01048304214 | O64: 0 | P64: 0 | Q64: 0 | R64: 1 | S64: 1 | T64: 1 | U64: 0 | V64: 1 | W64: 4 | X64: NO | Y64: NO | Z64: NO | AA64: NA | AB64: NA | AC64: NO | AD64: NO | AE64: NO | AF64: NO | AG64: NO | AH64: NO | AI64: -6.261 | AJ64: Deleterious | AK64: 33.17 | AL64: 32 | AM64: 12069 | AN64: 132 | AO64: 12279 | AP64: 0.01075006108 | AQ64: 11765 | AR64: 123 | AS64: 12046 | AT64: 0.01021085838 | AU64: 0.7530258766 | AV64: 3 | AW64: 3 | AX64: Probably True (-1)
A65: Inspected | B65: UPN_Te4_008 | C65: X | D65: 76872146 | E65: A | F65: G | G65: ATRX | H65: ENST00000373344 | I65: missense_variant | J65: gTg/gCg|p.Val1834Ala/c.5501T>C | K65: 3642 | L65: 54 | M65: 3712 | N65: 0.01454741379 | O65: 0 | P65: 0 | Q65: 0 | R65: 1 | S65: 1 | T65: 1 | U65: 0 | V65: 1 | W65: 4 | X65: NO | Y65: NO | Z65: NO | AA65: NA | AB65: NA | AC65: NO | AD65: NO | AE65: NO | AF65: NO | AG65: NO | AH65: NO | AI65: -3.658 | AJ65: Deleterious | AK65: 34.29 | AL65: 32.06 | AM65: 1837 | AN65: 27 | AO65: 1868 | AP65: 0.01445396146 | AQ65: 1805 | AR65: 27 | AS65: 1844 | AT65: 0.01464208243 | AU65: 1 | AV65: 1 | AW65: 1 | AX65: Probably True (-1)
A66: Inspected, low nr alt, tolerated prediction but VAF too low | B66: UPN_Te4_021 | C66: X | D66: 76931779 | E66: A | F66: T | G66: ATRX | H66: ENST00000373344 | I66: missense_variant | J66: Tct/Act|p.Ser1251Thr/c.3751T>A | K66: 1056 | L66: 26 | M66: 1082 | N66: 0.02402957486 | O66: 0 | P66: 0 | Q66: 0 | R66: 1 | S66: 1 | T66: 1 | U66: 0 | V66: 1 | W66: 4 | X66: NO | Y66: NO | Z66: NO | AA66: NA | AB66: NA | AC66: NO | AD66: NO | AE66: NO | AF66: NO | AG66: NO | AH66: NO | AI66: -0.297 | AJ66: Tolerated | AK66: 34.99 | AL66: 35.35 | AM66: 534 | AN66: 13 | AO66: 547 | AP66: 0.02376599634 | AQ66: 522 | AR66: 13 | AS66: 535 | AT66: 0.02429906542 | AU66: 1 | AV66: 1 | AW66: 1 | AX66: Probably True (-1)
A67: Inspected, low bq | B67: UPN_Te4_013 | C67: X | D67: 123195624 | E67: T | F67: A | G67: STAG2 | H67: ENST00000218089 | I67: missense_variant | J67: cTa/cAa|p.Leu513Gln/c.1538T>A | K67: 393 | L67: 112 | M67: 508 | N67: 0.2204724409 | O67: 0 | P67: 0 | Q67: 0 | R67: 1 | S67: 1 | T67: 0 | U67: 0 | V67: 0 | W67: 2 | X67: NO | Y67: NO | Z67: NO | AA67: NA | AB67: NA | AC67: NO | AD67: NO | AE67: NO | AF67: NO | AG67: NO | AH67: NO | AI67: -4.755 | AJ67: Deleterious | AK67: 15.52 | AL67: 15.22 | AM67: 393 | AN67: 112 | AO67: 508 | AP67: 0.2204724409 | AQ67: 0 | AR67: 0 | AS67: 0 | AT67: NA | AU67: 1 | AV67: 3 | AW67: 3 | AX67: Probably True (-1)
A68: Inspected, low bq | B68: UPN_Te4_015 | C68: X | D68: 123195641 | E68: A | F68: G | G68: STAG2 | H68: ENST00000218089 | I68: missense_variant | J68: Agt/Ggt|p.Ser519Gly/c.1555A>G | K68: 309 | L68: 63 | M68: 425 | N68: 0.1482352941 | O68: 0 | P68: 0 | Q68: 0 | R68: 1 | S68: 1 | T68: 0 | U68: 0 | V68: 0 | W68: 2 | X68: NO | Y68: NO | Z68: NO | AA68: NA | AB68: NA | AC68: NO | AD68: NO | AE68: NO | AF68: NO | AG68: NO | AH68: NO | AI68: -3.213 | AJ68: Deleterious | AK68: 15.06 | AL68: 15.05 | AM68: 309 | AN68: 63 | AO68: 425 | AP68: 0.1482352941 | AQ68: 0 | AR68: 0 | AS68: 0 | AT68: NA | AU68: 1 | AV68: 1 | AW68: 1 | AX68: Probably True (-1)
A69: Inspected, low nr alt, tolerated prediction but VAF too low | B69: UPN_Te4_008 | C69: X | D69: 123196767 | E69: G | F69: T | G69: STAG2 | H69: ENST00000218089 | I69: stop_gained | J69: Gag/Tag|p.Glu552*/c.1654G>T | K69: 1228 | L69: 34 | M69: 1263 | N69: 0.02692003167 | O69: 0 | P69: 0 | Q69: 0 | R69: 1 | S69: 1 | T69: 0 | U69: 0 | V69: 1 | W69: 3 | X69: NO | Y69: NO | Z69: NO | AA69: NO | AB69: O | AC69: NO | AD69: NO | AE69: NO | AF69: NO | AG69: NO | AH69: NO | AI69: NA | AJ69: NA | AK69: 35.26 | AL69: 32.65 | AM69: 1228 | AN69: 34 | AO69: 1263 | AP69: 0.02692003167 | AQ69: 0 | AR69: 0 | AS69: 0 | AT69: NA | AU69: 1 | AV69: 1 | AW69: 1 | AX69: Probably True (-1)
A70: Inspected | B70: UPN_Te4_008 | C70: X | D70: 123197840 | E70: G | F70: T | G70: STAG2 | H70: ENST00000218089 | I70: missense_variant | J70: aGt/aTt|p.Ser655Ile/c.1964G>T | K70: 2188 | L70: 45 | M70: 2233 | N70: 0.02015226153 | O70: 0 | P70: 0 | Q70: 0 | R70: 1 | S70: 1 | T70: 0 | U70: 0 | V70: 1 | W70: 3 | X70: NO | Y70: NO | Z70: NO | AA70: NO | AB70: O | AC70: NO | AD70: NO | AE70: NO | AF70: NO | AG70: NO | AH70: NO | AI70: -4.498 | AJ70: Deleterious | AK70: 35.13 | AL70: 33.96 | AM70: 0 | AN70: 0 | AO70: 0 | AP70: NA | AQ70: 2188 | AR70: 45 | AS70: 2233 | AT70: 0.02015226153 | AU70: 1 | AV70: 1 | AW70: 1 | AX70: Probably True (-2)
A71: Inspected | B71: UPN_Te4_010 | C71: X | D71: 123215330 | E71: T | F71: C | G71: STAG2 | H71: ENST00000218089 | I71: missense_variant | J71: tTt/tCt|p.Phe959Ser/c.2876T>C | K71: 8118 | L71: 92 | M71: 8230 | N71: 0.01117861482 | O71: 0 | P71: 0 | Q71: 0 | R71: 1 | S71: 1 | T71: 1 | U71: 0 | V71: 1 | W71: 4 | X71: NO | Y71: NO | Z71: NO | AA71: NO | AB71: O | AC71: NO | AD71: NO | AE71: NO | AF71: NO | AG71: NO | AH71: NO | AI71: -7.423 | AJ71: Deleterious | AK71: 33.55 | AL71: 32.23 | AM71: 4098 | AN71: 46 | AO71: 4157 | AP71: 0.01106567236 | AQ71: 4020 | AR71: 46 | AS71: 4073 | AT71: 0.01129388657 | AU71: 1 | AV71: 1 | AW71: 1 | AX71: Probably True (-1)
A72: Inspected | B72: UPN_Te4_007 | C72: X | D72: 123215342 | E72: A | F72: T | G72: STAG2 | H72: ENST00000218089 | I72: missense_variant | J72: cAg/cTg|p.Gln963Leu/c.2888A>T | K72: 4776 | L72: 89 | M72: 4901 | N72: 0.01815955927 | O72: 0 | P72: 0 | Q72: 0 | R72: 1 | S72: 1 | T72: 1 | U72: 0 | V72: 1 | W72: 4 | X72: NO | Y72: NO | Z72: NO | AA72: NA | AB72: NA | AC72: NO | AD72: NO | AE72: NO | AF72: NO | AG72: NO | AH72: NO | AI72: -4.231 | AJ72: Deleterious | AK72: 32.16 | AL72: 33.73 | AM72: 2410 | AN72: 43 | AO72: 2471 | AP72: 0.01740186159 | AQ72: 2366 | AR72: 46 | AS72: 2430 | AT72: 0.01893004115 | AU72: 0.7485220946 | AV72: 1 | AW72: 1 | AX72: Probably True (-1)
A73: Inspected, low nr alt, tolerated prediction but VAF too low | B73: UPN_Te4_007 | C73: X | D73: 123224542 | E73: T | F73: C | G73: STAG2 | H73: ENST00000218089 | I73: missense_variant | J73: tTa/tCa|p.Leu1132Ser/c.3395T>C | K73: 1144 | L73: 29 | M73: 1174 | N73: 0.02470187394 | O73: 0 | P73: 0 | Q73: 0 | R73: 1 | S73: 1 | T73: 1 | U73: 0 | V73: 1 | W73: 4 | X73: NO | Y73: NO | Z73: NO | AA73: NA | AB73: NA | AC73: NO | AD73: NO | AE73: NO | AF73: NO | AG73: NO | AH73: NO | AI73: -0.755 | AJ73: Tolerated | AK73: 33.92 | AL73: 31.17 | AM73: 571 | AN73: 14 | AO73: 586 | AP73: 0.02389078498 | AQ73: 573 | AR73: 15 | AS73: 588 | AT73: 0.02551020408 | AU73: 1 | AV73: 1 | AW73: 1 | AX73: Probably True (-1)
A74: Inspected | B74: UPN_Te4_008 | C74: X | D74: 123227968 | E74: G | F74: T | G74: STAG2 | H74: ENST00000218089 | I74: missense_variant | J74: Gat/Tat|p.Asp1227Tyr/c.3679G>T | K74: 2950 | L74: 66 | M74: 3016 | N74: 0.02188328912 | O74: 0 | P74: 0 | Q74: 0 | R74: 1 | S74: 1 | T74: 1 | U74: 0 | V74: 1 | W74: 4 | X74: NO | Y74: NO | Z74: NO | AA74: NO | AB74: O | AC74: NO | AD74: NO | AE74: NO | AF74: NO | AG74: NO | AH74: NO | AI74: -1.81 | AJ74: Tolerated | AK74: 33.42 | AL74: 32.61 | AM74: 1488 | AN74: 32 | AO74: 1520 | AP74: 0.02105263158 | AQ74: 1462 | AR74: 34 | AS74: 1496 | AT74: 0.02272727273 | AU74: 0.8039606651 | AV74: 1 | AW74: 1 | AX74: Probably True (-2)
A75: Inspected, tolerated prediction but VAF too low, low bq | B75: UPN_Te4_010 | C75: X | D75: 129147725 | E75: C | F75: T | G75: BCORL1 | H75: ENST00000540052 | I75: missense_variant | J75: cCg/cTg|p.Pro326Leu/c.977C>T | K75: 2689 | L75: 56 | M75: 2753 | N75: 0.0203414457 | O75: 0 | P75: 0 | Q75: 0 | R75: 1 | S75: 1 | T75: 0 | U75: 0 | V75: 1 | W75: 3 | X75: NO | Y75: NO | Z75: NO | AA75: NO | AB75: O | AC75: NO | AD75: NO | AE75: NO | AF75: 4.266e-05 | AG75: NO | AH75: NO | AI75: -0.856 | AJ75: Tolerated | AK75: 32.39 | AL75: 26.25 | AM75: 1331 | AN75: 28 | AO75: 1364 | AP75: 0.02052785924 | AQ75: 1358 | AR75: 28 | AS75: 1389 | AT75: 0.02015838733 | AU75: 1 | AV75: 1 | AW75: 1 | AX75: Probably True (-1)
A76: Inspected | B76: UPN_Te4_002 | C76: X | D76: 129147852 | E76: TACCCCCACCCTCATCCCCGCCTTTGCTCCTACACCGGTGCCTGCACCCACCCCAGCCCCCATCTTTACTCCAGCCCCT | F76: AAACCCCCCCCCCCCCCTTTTTTTTTTCAAGCAGAAGACGGCATACGAGATTGGATCTGTCGCGAGTTAATGCAACGATCGTCGAAATTCGCCCTTGGTTCTCGCTCCCGTCCCCACTCCGGTTCTG | G76: BCORL1 | H76: ENST00000540052 | I76: stop_gained+inframe_insertion | J76: tctacccccaccctcatccccgcctttgctcctacaccggtgcctgcacccaccccagcccccatctttactccagcccct/tcAAACCCCCCCCCCCCCCTTTTTTTTTTCAAGCAGAAGACGGCATACGAGATTGGATCTGTCGCGAGTTAATGCAACGATCGTCGAAATTCGCCCTTGGTTCTCGCTCCCGTCCCCACTCCGGTTCTG|p.Thr369_Pro394delinsAsnProProProProLeuPhePhePheLysGlnLysThrAlaTyrGluIleGlySerValAlaSerTerCysAsnAspArgArgAsnSerProLeuValLeuAlaProValProThrProValLeu/c.1104_1182delTACCCCCACCCTCATCCCCGCCTTTGCTCCTACACCGGTGCCTGCACCCACCCCAGCCCCCATCTTTACTCCAGCCCCTinsAAACCCCCCCCCCCCCCTTTTTTTTTTCAAGCAGAAGACGGCATACGAGATTGGATCTGTCGCGAGTTAATGCAACGATCGTCGAAATTCGCCCTTGGTTCTCGCTCCCGTCCCCACTCCGGTTCTG | K76: 406 | L76: NA | M76: 418 | N76: NA | O76: 0 | P76: 0 | Q76: 0 | R76: 0 | S76: 0 | T76: 0 | U76: 0 | V76: 1 | W76: 1 | X76: NO | Y76: NO | Z76: NO | AA76: NO | AB76: O | AC76: NO | AD76: NO | AE76: NO | AF76: NO | AG76: NO | AH76: NO | AI76: -9.469 | AJ76: Deleterious | AK76: 30.26544304 | AL76: ComplexIndel | AM76: NA | AN76: NA | AO76: NA | AP76: NA | AQ76: NA | AR76: NA | AS76: NA | AT76: NA | AU76: 2 | AV76: 1 | AW76: 1 | AX76: Probably True (-1)
A77: Inspected | B77: UPN_Te4_005 | C77: X | D77: 129147898 | E77: CCCACCCCAGCCCCCATCTTTACTCCAGCCCCTACACCCATGCCTGCTG | F77: C | G77: BCORL1 | H77: ENST00000540052 | I77: disruptive_inframe_deletion | J77: accccagcccccatctttactccagcccctacacccatgcctgctgccacg/acg|p.Pro386_Thr401del/c.1155_1202delCCCAGCCCCCATCTTTACTCCAGCCCCTACACCCATGCCTGCTGCCAC | K77: 9299 | L77: NA | M77: 9323 | N77: NA | O77: 1 | P77: 0 | Q77: 0 | R77: 0 | S77: 0 | T77: 0 | U77: 0 | V77: 0 | W77: 1 | X77: NO | Y77: NO | Z77: NO | AA77: NO | AB77: O | AC77: NO | AD77: NO | AE77: NO | AF77: NO | AG77: NO | AH77: NO | AI77: -3.151 | AJ77: Deleterious | AK77: 34.93 | AL77: NA | AM77: 9038 | AN77: NA | AO77: 9062 | AP77: NA | AQ77: 261 | AR77: NA | AS77: 261 | AT77: NA | AU77: 2 | AV77: 1 | AW77: 1 | AX77: Probably True (-1)
A78: Inspected, low nr alt, tolerated prediction but VAF too low | B78: UPN_Te4_008 | C78: X | D78: 133511756 | E78: C | F78: G | G78: PHF6 | H78: ENST00000332070 | I78: missense_variant | J78: Cag/Gag|p.Gln37Glu/c.109C>G | K78: 1165 | L78: 30 | M78: 1195 | N78: 0.02510460251 | O78: 0 | P78: 0 | Q78: 0 | R78: 1 | S78: 1 | T78: 1 | U78: 0 | V78: 1 | W78: 4 | X78: NO | Y78: NO | Z78: NO | AA78: NO | AB78: O | AC78: NO | AD78: NO | AE78: NO | AF78: NO | AG78: NO | AH78: NO | AI78: 0.702 | AJ78: Tolerated | AK78: 32.44 | AL78: 34.13 | AM78: 590 | AN78: 16 | AO78: 606 | AP78: 0.02640264026 | AQ78: 575 | AR78: 14 | AS78: 589 | AT78: 0.02376910017 | AU78: 0.8541422656 | AV78: 1 | AW78: 1 | AX78: Probably True (-1)
A79: Inspected | B79: UPN_Te4_001 | C79: X | D79: 133512038 | E79: T | F79: C | G79: PHF6 | H79: ENST00000332070 | I79: missense_variant | J79: Ttt/Ctt|p.Phe48Leu/c.142T>C | K79: 9153 | L79: 99 | M79: 9263 | N79: 0.01068768218 | O79: 0 | P79: 0 | Q79: 0 | R79: 1 | S79: 1 | T79: 1 | U79: 0 | V79: 1 | W79: 4 | X79: NO | Y79: NO | Z79: NO | AA79: NO | AB79: O | AC79: NO | AD79: NO | AE79: NO | AF79: NO | AG79: NO | AH79: NO | AI79: -2.935 | AJ79: Deleterious | AK79: 35.61 | AL79: 35.28 | AM79: 4791 | AN79: 56 | AO79: 4854 | AP79: 0.0115368768 | AQ79: 4362 | AR79: 43 | AS79: 4409 | AT79: 0.009752778408 | AU79: 2 | AV79: 2 | AW79: 2 | AX79: Probably True (-1)
A80: Inspected, tolerated prediction but VAF too low | B80: UPN_Te4_008 | C80: X | D80: 133549139 | E80: G | F80: T | G80: PHF6 | H80: ENST00000332070 | I80: stop_gained | J80: Gga/Tga|p.Gly275*/c.823G>T | K80: 7663 | L80: 447 | M80: 8118 | N80: 0.05506282336 | O80: 0 | P80: 0 | Q80: 0 | R80: 1 | S80: 1 | T80: 1 | U80: 0 | V80: 1 | W80: 4 | X80: NO | Y80: NO | Z80: NO | AA80: NA | AB80: NA | AC80: NO | AD80: NO | AE80: NO | AF80: NO | AG80: NO | AH80: NO | AI80: NA | AJ80: NA | AK80: 32.97 | AL80: 32.51 | AM80: 3868 | AN80: 206 | AO80: 4078 | AP80: 0.05051495831 | AQ80: 3795 | AR80: 241 | AS80: 4040 | AT80: 0.05965346535 | AU80: 0.07197115134 | AV80: 1 | AW80: 1 | AX80: Probably True (-2)
O81: =SUM(O2:O80) -> 3 | P81: =SUM(P2:P80) -> 2 | Q81: =SUM(Q2:Q80) -> 1 | R81: =SUM(R2:R80) -> 71 | S81: =SUM(S2:S80) -> 77 | T81: =SUM(T2:T80) -> 40 | U81: =SUM(U2:U80) -> 0 | V81: =SUM(V2:V80) -> 73

Sheet FP Polymorphisms
A1: Artifact because... | B1: Sample | C1: Chr | D1: Pos | E1: Ref | F1: Alt | G1: Gene | H1: ENST | I1: Type | J1: Mutation | K1: Nr_Ref | L1: Nr_Alt | M1: DP | N1: VAF | O1: GATK | P1: Platypus | Q1: VarScan | R1: LoFreq | S1: FreeBayes | T1: SNVer | U1: SAMtools | V1: VarDict | W1: Called | X1: ESP6500 | Y1: G1000 | Z1: Cosmic | AA1: Cosmic_location | AB1: Cosmic_occurence | AC1: dbSNP_SNPs | AD1: dbSNP_SNVs | AE1: PM_flag | AF1: ExAC | AG1: ClinVar_clinical | AH1: ClinVar_noimpact | AI1: provean_score | AJ1: prediction | AK1: BQ_Ref | AL1: BQ_Alt | AM1: Nr_Ref_fwd | AN1: Nr_Alt_fwd | AO1: DP_fwd | AP1: VAF_fwd | AQ1: Nr_Ref_rev | AR1: Nr_Alt_rev | AS1: DP_rev | AT1: VAF_rev | AU1: strandbias | AV1: nr_samples | AW1: nr_samples_similar | AX1: Category
A2: No database, low bq! | B2: UPN_Te4_006 | C2: 11 | D2: 118307393 | E2: T | F2: C | G2: KMT2A | H2: ENST00000389506 | I2: missense_variant | J2: Tcc/Ccc|p.Ser56Pro/c.166T>C | K2: 41 | L2: 74 | M2: 324 | N2: 0.2283950617 | O2: 0 | P2: 0 | Q2: 0 | R2: 1 | S2: 0 | T2: 0 | U2: 0 | V2: 0 | W2: 1 | X2: NO | Y2: NO | Z2: NO | AA2: NO | AB2: O | AC2: NO | AD2: NO | AE2: NO | AF2: NO | AG2: NO | AH2: NO | AI2: -0.616 | AJ2: Tolerated | AK2: 16.29 | AL2: 15.43 | AM2: 41 | AN2: 74 | AO2: 324 | AP2: 0.2283950617 | AQ2: 0 | AR2: 0 | AS2: 0 | AT2: NA | AU2: 1 | AV2: 9 | AW2: 11 | AX2: Polymorphism
A3: No database, low bq! | B3: UPN_Te4_007 | C3: 11 | D3: 118307393 | E3: T | F3: C | G3: KMT2A | H3: ENST00000389506 | I3: missense_variant | J3: Tcc/Ccc|p.Ser56Pro/c.166T>C | K3: 21 | L3: 51 | M3: 137 | N3: 0.3722627737 | O3: 0 | P3: 0 | Q3: 0 | R3: 1 | S3: 0 | T3: 0 | U3: 0 | V3: 0 | W3: 1 | X3: NO | Y3: NO | Z3: NO | AA3: NO | AB3: O | AC3: NO | AD3: NO | AE3: NO | AF3: NO | AG3: NO | AH3: NO | AI3: -0.616 | AJ3: Tolerated | AK3: 16.1 | AL3: 15.61 | AM3: 21 | AN3: 51 | AO3: 137 | AP3: 0.3722627737 | AQ3: 0 | AR3: 0 | AS3: 0 | AT3: NA | AU3: 1 | AV3: 9 | AW3: 11 | AX3: Polymorphism
A4: No database, low bq! | B4: UPN_Te4_008 | C4: 11 | D4: 118307393 | E4: T | F4: C | G4: KMT2A | H4: ENST00000389506 | I4: missense_variant | J4: Tcc/Ccc|p.Ser56Pro/c.166T>C | K4: 6 | L4: 52 | M4: 97 | N4: 0.5360824742 | O4: 0 | P4: 1 | Q4: 0 | R4: 1 | S4: 1 | T4: 0 | U4: 0 | V4: 0 | W4: 3 | X4: NO | Y4: NO | Z4: NO | AA4: NO | AB4: O | AC4: NO | AD4: NO | AE4: NO | AF4: NO | AG4: NO | AH4: NO | AI4: -0.616 | AJ4: Tolerated | AK4: 16.17 | AL4: 16.65 | AM4: 6 | AN4: 52 | AO4: 97 | AP4: 0.5360824742 | AQ4: 0 | AR4: 0 | AS4: 0 | AT4: NA | AU4: 1 | AV4: 9 | AW4: 11 | AX4: Polymorphism
A5: No database, low bq! | B5: UPN_Te4_014 | C5: 11 | D5: 118307393 | E5: T | F5: C | G5: KMT2A | H5: ENST00000389506 | I5: missense_variant | J5: Tcc/Ccc|p.Ser56Pro/c.166T>C | K5: 408 | L5: 1021 | M5: 3550 | N5: 0.2876056338 | O5: 0 | P5: 0 | Q5: 1 | R5: 1 | S5: 0 | T5: 0 | U5: 0 | V5: 0 | W5: 2 | X5: NO | Y5: NO | Z5: NO | AA5: NO | AB5: O | AC5: NO | AD5: NO | AE5: NO | AF5: NO | AG5: NO | AH5: NO | AI5: -0.616 | AJ5: Tolerated | AK5: 15.48 | AL5: 15.11 | AM5: 408 | AN5: 1021 | AO5: 3550 | AP5: 0.2876056338 | AQ5: 0 | AR5: 0 | AS5: 0 | AT5: NA | AU5: 1 | AV5: 9 | AW5: 11 | AX5: Polymorphism
A6: No database, low bq! | B6: UPN_Te4_018 | C6: 11 | D6: 118307393 | E6: T | F6: C | G6: KMT2A | H6: ENST00000389506 | I6: missense_variant | J6: Tcc/Ccc|p.Ser56Pro/c.166T>C | K6: 465 | L6: 1047 | M6: 3794 | N6: 0.2759620453 | O6: 0 | P6: 0 | Q6: 0 | R6: 1 | S6: 0 | T6: 0 | U6: 0 | V6: 0 | W6: 1 | X6: NO | Y6: NO | Z6: NO | AA6: NO | AB6: O | AC6: NO | AD6: NO | AE6: NO | AF6: NO | AG6: NO | AH6: NO | AI6: -0.616 | AJ6: Tolerated | AK6: 15.91 | AL6: 15.01 | AM6: 464 | AN6: 1047 | AO6: 3793 | AP6: 0.2760348009 | AQ6: 1 | AR6: 0 | AS6: 1 | AT6: 0 | AU6: 0.3075396825 | AV6: 9 | AW6: 11 | AX6: Polymorphism
A7: Many samples, low bq, identified artifact in other samples | B7: UPN_Te4_001 | C7: X | D7: 129147949 | E7: A | F7: C | G7: BCORL1 | H7: ENST00000540052 | I7: missense_variant | J7: Acg/Ccg|p.Thr401Pro/c.1201A>C | K7: 2998 | L7: 1288 | M7: 4304 | N7: 0.2992565056 | O7: 0 | P7: 0 | Q7: 0 | R7: 0 | S7: 1 | T7: 0 | U7: 0 | V7: 0 | W7: 1 | X7: NO | Y7: NO | Z7: NO | AA7: NO | AB7: O | AC7: NO | AD7: NO | AE7: NO | AF7: NO | AG7: NO | AH7: NO | AI7: -0.784 | AJ7: Tolerated | AK7: 20.92 | AL7: 15.11 | AM7: 2188 | AN7: 1288 | AO7: 3492 | AP7: 0.3688430699 | AQ7: 810 | AR7: 0 | AS7: 812 | AT7: 0 | AU7: 2 | AV7: 20 | AW7: 20 | AX7: Polymorphism
A8: Many samples, low bq, identified artifact in other samples | B8: UPN_Te4_002 | C8: X | D8: 129147949 | E8: A | F8: C | G8: BCORL1 | H8: ENST00000540052 | I8: missense_variant | J8: Acg/Ccg|p.Thr401Pro/c.1201A>C | K8: 5269 | L8: 2908 | M8: 8201 | N8: 0.3545909035 | O8: 0 | P8: 0 | Q8: 0 | R8: 0 | S8: 1 | T8: 0 | U8: 0 | V8: 0 | W8: 1 | X8: NO | Y8: NO | Z8: NO | AA8: NO | AB8: O | AC8: NO | AD8: NO | AE8: NO | AF8: NO | AG8: NO | AH8: NO | AI8: -0.784 | AJ8: Tolerated | AK8: 17.28 | AL8: 15.21 | AM8: 4792 | AN8: 2908 | AO8: 7723 | AP8: 0.3765376149 | AQ8: 477 | AR8: 0 | AS8: 478 | AT8: 0 | AU8: 2 | AV8: 20 | AW8: 20 | AX8: Polymorphism
A9: Many samples, low bq, identified artifact in other samples | B9: UPN_Te4_003 | C9: X | D9: 129147949 | E9: A | F9: C | G9: BCORL1 | H9: ENST00000540052 | I9: missense_variant | J9: Acg/Ccg|p.Thr401Pro/c.1201A>C | K9: 3438 | L9: 1825 | M9: 5279 | N9: 0.3457094147 | O9: 0 | P9: 0 | Q9: 0 | R9: 0 | S9: 1 | T9: 0 | U9: 0 | V9: 0 | W9: 1 | X9: NO | Y9: NO | Z9: NO | AA9: NO | AB9: O | AC9: NO | AD9: NO | AE9: NO | AF9: NO | AG9: NO | AH9: NO | AI9: -0.784 | AJ9: Tolerated | AK9: 17.79 | AL9: 15.17 | AM9: 3077 | AN9: 1825 | AO9: 4914 | AP9: 0.3713878714 | AQ9: 361 | AR9: 0 | AS9: 365 | AT9: 0 | AU9: 2 | AV9: 20 | AW9: 20 | AX9: Polymorphism
A10: Many samples, low bq, identified artifact in other samples | B10: UPN_Te4_004 | C10: X | D10: 129147949 | E10: A | F10: C | G10: BCORL1 | H10: ENST00000540052 | I10: missense_variant | J10: Acg/Ccg|p.Thr401Pro/c.1201A>C | K10: 3297 | L10: 2069 | M10: 5380 | N10: 0.3845724907 | O10: 0 | P10: 0 | Q10: 0 | R10: 0 | S10: 1 | T10: 0 | U10: 0 | V10: 0 | W10: 1 | X10: NO | Y10: NO | Z10: NO | AA10: NO | AB10: O | AC10: NO | AD10: NO | AE10: NO | AF10: NO | AG10: NO | AH10: NO | AI10: -0.784 | AJ10: Tolerated | AK10: 16.51 | AL10: 15.18 | AM10: 3120 | AN10: 2069 | AO10: 5203 | AP10: 0.3976551989 | AQ10: 177 | AR10: 0 | AS10: 177 | AT10: 0 | AU10: 2 | AV10: 20 | AW10: 20 | AX10: Polymorphism
A11: Many samples, low bq, identified artifact in other samples | B11: UPN_Te4_005 | C11: X | D11: 129147949 | E11: A | F11: C | G11: BCORL1 | H11: ENST00000540052 | I11: missense_variant | J11: Acg/Ccg|p.Thr401Pro/c.1201A>C | K11: 4501 | L11: 2720 | M11: 7248 | N11: 0.3752759382 | O11: 0 | P11: 0 | Q11: 0 | R11: 0 | S11: 1 | T11: 0 | U11: 0 | V11: 0 | W11: 1 | X11: NO | Y11: NO | Z11: NO | AA11: NO | AB11: O | AC11: NO | AD11: NO | AE11: NO | AF11: NO | AG11: NO | AH11: NO | AI11: -0.784 | AJ11: Tolerated | AK11: 16.84 | AL11: 15.11 | AM11: 4225 | AN11: 2718 | AO11: 6969 | AP11: 0.3900129143 | AQ11: 276 | AR11: 2 | AS11: 279 | AT11: 0.0071684588 | AU11: 2 | AV11: 20 | AW11: 20 | AX11: Polymorphism
A12: Many samples, low bq, identified artifact in other samples | B12: UPN_Te4_006 | C12: X | D12: 129147949 | E12: A | F12: C | G12: BCORL1 | H12: ENST00000540052 | I12: missense_variant | J12: Acg/Ccg|p.Thr401Pro/c.1201A>C | K12: 5206 | L12: 2976 | M12: 8205 | N12: 0.3627056673 | O12: 0 | P12: 0 | Q12: 0 | R12: 0 | S12: 1 | T12: 0 | U12: 0 | V12: 0 | W12: 1 | X12: NO | Y12: NO | Z12: NO | AA12: NO | AB12: O | AC12: NO | AD12: NO | AE12: NO | AF12: NO | AG12: NO | AH12: NO | AI12: -0.784 | AJ12: Tolerated | AK12: 17.05 | AL12: 15.14 | AM12: 4778 | AN12: 2976 | AO12: 7773 | AP12: 0.3828637592 | AQ12: 428 | AR12: 0 | AS12: 432 | AT12: 0 | AU12: 2 | AV12: 20 | AW12: 20 | AX12: Polymorphism
A13: Many samples, low bq, identified artifact in other samples | B13: UPN_Te4_007 | C13: X | D13: 129147949 | E13: A | F13: C | G13: BCORL1 | H13: ENST00000540052 | I13: missense_variant | J13: Acg/Ccg|p.Thr401Pro/c.1201A>C | K13: 2517 | L13: 1338 | M13: 3870 | N13: 0.3457364341 | O13: 0 | P13: 0 | Q13: 0 | R13: 0 | S13: 1 | T13: 0 | U13: 0 | V13: 0 | W13: 1 | X13: NO | Y13: NO | Z13: NO | AA13: NO | AB13: O | AC13: NO | AD13: NO | AE13: NO | AF13: NO | AG13: NO | AH13: NO | AI13: -0.784 | AJ13: Tolerated | AK13: 17.29 | AL13: 15.35 | AM13: 2291 | AN13: 1338 | AO13: 3643 | AP13: 0.3672797145 | AQ13: 226 | AR13: 0 | AS13: 227 | AT13: 0 | AU13: 2 | AV13: 20 | AW13: 20 | AX13: Polymorphism
A14: Many samples, low bq, identified artifact in other samples | B14: UPN_Te4_008 | C14: X | D14: 129147949 | E14: A | F14: C | G14: BCORL1 | H14: ENST00000540052 | I14: missense_variant | J14: Acg/Ccg|p.Thr401Pro/c.1201A>C | K14: 8877 | L14: 4725 | M14: 13649 | N14: 0.3461792073 | O14: 0 | P14: 0 | Q14: 0 | R14: 0 | S14: 1 | T14: 1 | U14: 0 | V14: 0 | W14: 2 | X14: NO | Y14: NO | Z14: NO | AA14: NO | AB14: O | AC14: NO | AD14: NO | AE14: NO | AF14: NO | AG14: NO | AH14: NO | AI14: -0.784 | AJ14: Tolerated | AK14: 18.08 | AL14: 15.15 | AM14: 7748 | AN14: 4723 | AO14: 12514 | AP14: 0.3774172926 | AQ14: 1129 | AR14: 2 | AS14: 1135 | AT14: 0.0017621145 | AU14: 2 | AV14: 20 | AW14: 20 | AX14: Polymorphism
A15: Many samples, low bq, identified artifact in other samples | B15: UPN_Te4_009 | C15: X | D15: 129147949 | E15: A | F15: C | G15: BCORL1 | H15: ENST00000540052 | I15: missense_variant | J15: Acg/Ccg|p.Thr401Pro/c.1201A>C | K15: 2281 | L15: 1343 | M15: 3630 | N15: 0.3699724518 | O15: 0 | P15: 0 | Q15: 0 | R15: 0 | S15: 1 | T15: 0 | U15: 1 | V15: 0 | W15: 2 | X15: NO | Y15: NO | Z15: NO | AA15: NO | AB15: O | AC15: NO | AD15: NO | AE15: NO | AF15: NO | AG15: NO | AH15: NO | AI15: -0.784 | AJ15: Tolerated | AK15: 17.17 | AL15: 15.07 | AM15: 2092 | AN15: 1343 | AO15: 3439 | AP15: 0.3905205001 | AQ15: 189 | AR15: 0 | AS15: 191 | AT15: 0 | AU15: 2 | AV15: 20 | AW15: 20 | AX15: Polymorphism
A16: Many samples, low bq, identified artifact in other samples | B16: UPN_Te4_010 | C16: X | D16: 129147949 | E16: A | F16: C | G16: BCORL1 | H16: ENST00000540052 | I16: missense_variant | J16: Acg/Ccg|p.Thr401Pro/c.1201A>C | K16: 2506 | L16: 1418 | M16: 3936 | N16: 0.3602642276 | O16: 0 | P16: 0 | Q16: 0 | R16: 0 | S16: 1 | T16: 0 | U16: 0 | V16: 0 | W16: 1 | X16: NO | Y16: NO | Z16: NO | AA16: NO | AB16: O | AC16: NO | AD16: NO | AE16: NO | AF16: NO | AG16: NO | AH16: NO | AI16: -0.784 | AJ16: Tolerated | AK16: 18 | AL16: 15.16 | AM16: 2253 | AN16: 1418 | AO16: 3683 | AP16: 0.3850122183 | AQ16: 253 | AR16: 0 | AS16: 253 | AT16: 0 | AU16: 2 | AV16: 20 | AW16: 20 | AX16: Polymorphism
O17: =SUM(O1:O16) -> 0 | P17: =SUM(P1:P16) -> 1 | Q17: =SUM(Q1:Q16) -> 1 | R17: =SUM(R1:R16) -> 5 | S17: =SUM(S1:S16) -> 11 | T17: =SUM(T1:T16) -> 1 | U17: =SUM(U1:U16) -> 1 | V17: =SUM(V1:V16) -> 0

Sheet TN Mutations Filter 2
A1: Sample | B1: Chr | C1: Pos | D1: Ref | E1: Alt | F1: Gene | G1: ENST | H1: Type | I1: Mutation | J1: Nr_Ref | K1: Nr_Alt | L1: DP | M1: VAF | N1: GATK | O1: Platypus | P1: VarScan | Q1: LoFreq | R1: FreeBayes | S1: SNVer | T1: SAMtools | U1: VarDict | V1: Called | W1: ESP6500 | X1: G1000 | Y1: Cosmic | Z1: Cosmic_location | AA1: Cosmic_occurence | AB1: dbSNP_SNPs | AC1: dbSNP_SNVs | AD1: PM_flag | AE1: ExAC | AF1: ClinVar_clinical | AG1: ClinVar_noimpact | AH1: provean_score | AI1: prediction | AJ1: BQ_Ref | AK1: BQ_Alt | AL1: Nr_Ref_fwd | AM1: Nr_Alt_fwd | AN1: DP_fwd | AO1: VAF_fwd | AP1: Nr_Ref_rev | AQ1: Nr_Alt_rev | AR1: DP_rev | AS1: VAF_rev | AT1: strandbias | AU1: nr_samples | AV1: nr_samples_similar | AW1: Category
A2: UPN_Te4_003 | B2: 1 | C2: 36932040 | D2: T | E2: G | F2: CSF3R | G2: ENST00000373103 | H2: missense_variant | I2: gAc/gCc|p.Asp837Ala/c.2510A>C | J2: 8039 | K2: 143 | L2: 8234 | M2: 0.01736701482 | N2: 0 | O2: 0 | P2: 0 | Q2: 0 | R2: 1 | S2: 0 | T2: 0 | U2: 0 | V2: 1 | W2: NO | X2: NO | Y2: NO | Z2: NO | AA2: O | AB2: NO | AC2: NO | AD2: NO | AE2: NO | AF2: NO | AG2: NO | AH2: -0.958 | AI2: Tolerated | AJ2: 21.97 | AK2: 15.13 | AL2: 1 | AM2: 0 | AN2: 1 | AO2: 0 | AP2: 8038 | AQ2: 143 | AR2: 8233 | AS2: 0.01736912426 | AT2: 1 | AU2: 1 | AV2: 1 | AW2: Artifact (5)
A3: UPN_Te4_001 | B3: 1 | C3: 36932122 | D3: T | E3: TG | F3: CSF3R | G3: ENST00000373103 | H3: frameshift_variant | I3: acc/aCcc|p.Ser810fs/c.2422_2423insC | J3: 14463 | K3: 153 | L3: 14620 | M3: 0.01046511628 | N3: 0 | O3: 0 | P3: 0 | Q3: 0 | R3: 1 | S3: 0 | T3: 0 | U3: 0 | V3: 1 | W3: NO | X3: NO | Y3: NO | Z3: NO | AA3: O | AB3: NO | AC3: NO | AD3: NO | AE3: NO | AF3: NO | AG3: NO | AH3: NA | AI3: NA | AJ3: 30.24 | AK3: NA | AL3: 902 | AM3: 2 | AN3: 910 | AO3: 0.002197802198 | AP3: 13561 | AQ3: 151 | AR3: 13710 | AS3: 0.0110138585 | AT3: 2 | AU3: 6 | AV3: 11 | AW3: Artifact (7)
A4: UPN_Te4_006 | B4: 1 | C4: 36932122 | D4: T | E4: TG | F4: CSF3R | G4: ENST00000373103 | H4: frameshift_variant | I4: acc/aCcc|p.Ser810fs/c.2422_2423insC | J4: 12859 | K4: 135 | L4: 12973 | M4: 0.01040622832 | N4: 0 | O4: 0 | P4: 0 | Q4: 0 | R4: 1 | S4: 0 | T4: 0 | U4: 0 | V4: 1 | W4: NO | X4: NO | Y4: NO | Z4: NO | AA4: O | AB4: NO | AC4: NO | AD4: NO | AE4: NO | AF4: NO | AG4: NO | AH4: NA | AI4: NA | AJ4: 30.21 | AK4: NA | AL4: 1075 | AM4: 3 | AN4: 1086 | AO4: 0.002762430939 | AP4: 11784 | AQ4: 132 | AR4: 11887 | AS4: 0.01110456802 | AT4: 2 | AU4: 6 | AV4: 11 | AW4: Artifact (7)
A5: UPN_Te4_011 | B5: 1 | C5: 36932122 | D5: T | E5: TG | F5: CSF3R | G5: ENST00000373103 | H5: frameshift_variant | I5: acc/aCcc|p.Ser810fs/c.2422_2423insC | J5: 14888 | K5: 184 | L5: 15049 | M5: 0.01222672603 | N5: 0 | O5: 0 | P5: 0 | Q5: 0 | R5: 1 | S5: 0 | T5: 0 | U5: 0 | V5: 1 | W5: NO | X5: NO | Y5: NO | Z5: NO | AA5: O | AB5: NO | AC5: NO | AD5: NO | AE5: NO | AF5: NO | AG5: NO | AH5: NA | AI5: NA | AJ5: 30.59 | AK5: NA | AL5: 1340 | AM5: 3 | AN5: 1348 | AO5: 0.002225519288 | AP5: 13548 | AQ5: 181 | AR5: 13701 | AS5: 0.01321071455 | AT5: 2 | AU5: 6 | AV5: 11 | AW5: Artifact (7)
A6: UPN_Te4_014 | B6: 1 | C6: 36932122 | D6: T | E6: TG | F6: CSF3R | G6: ENST00000373103 | H6: frameshift_variant | I6: acc/aCcc|p.Ser810fs/c.2422_2423insC | J6: 16274 | K6: 172 | L6: 16418 | M6: 0.01047630649 | N6: 0 | O6: 0 | P6: 0 | Q6: 0 | R6: 1 | S6: 0 | T6: 0 | U6: 0 | V6: 1 | W6: NO | X6: NO | Y6: NO | Z6: NO | AA6: O | AB6: NO | AC6: NO | AD6: NO | AE6: NO | AF6: NO | AG6: NO | AH6: NA | AI6: NA | AJ6: 30.67 | AK6: NA | AL6: 1389 | AM6: 6 | AN6: 1394 | AO6: 0.004304160689 | AP6: 14885 | AQ6: 166 | AR6: 15024 | AS6: 0.01104898829 | AT6: 2 | AU6: 6 | AV6: 11 | AW6: Artifact (7)
A7: UPN_Te4_016 | B7: 1 | C7: 36932122 | D7: T | E7: TG | F7: CSF3R | G7: ENST00000373103 | H7: frameshift_variant | I7: acc/aCcc|p.Ser810fs/c.2422_2423insC | J7: 11304 | K7: 124 | L7: 11419 | M7: 0.01085909449 | N7: 0 | O7: 0 | P7: 0 | Q7: 0 | R7: 1 | S7: 0 | T7: 0 | U7: 0 | V7: 1 | W7: NO | X7: NO | Y7: NO | Z7: NO | AA7: O | AB7: NO | AC7: NO | AD7: NO | AE7: NO | AF7: NO | AG7: NO | AH7: NA | AI7: NA | AJ7: 30.82 | AK7: NA | AL7: 996 | AM7: 1 | AN7: 1004 | AO7: 0.0009960159363 | AP7: 10308 | AQ7: 123 | AR7: 10415 | AS7: 0.01180988958 | AT7: 2 | AU7: 6 | AV7: 11 | AW7: Artifact (7)
A8: UPN_Te4_020 | B8: 1 | C8: 36932122 | D8: T | E8: TG | F8: CSF3R | G8: ENST00000373103 | H8: frameshift_variant | I8: acc/aCcc|p.Ser810fs/c.2422_2423insC | J8: 10242 | K8: 124 | L8: 10323 | M8: 0.01201201201 | N8: 0 | O8: 0 | P8: 0 | Q8: 0 | R8: 1 | S8: 0 | T8: 0 | U8: 0 | V8: 1 | W8: NO | X8: NO | Y8: NO | Z8: NO | AA8: O | AB8: NO | AC8: NO | AD8: NO | AE8: NO | AF8: NO | AG8: NO | AH8: NA | AI8: NA | AJ8: 32.84 | AK8: NA | AL8: 609 | AM8: 1 | AN8: 612 | AO8: 0.001633986928 | AP8: 9633 | AQ8: 123 | AR8: 9711 | AS8: 0.01266604881 | AT8: 2 | AU8: 6 | AV8: 11 | AW8: Artifact (7)
A9: UPN_Te4_003 | B9: 1 | C9: 36932122 | D9: TG | E9: T | F9: CSF3R | G9: ENST00000373103 | H9: frameshift_variant | I9: acc/|p.Ser810fs/c.2423delC | J9: 8925 | K9: 94 | L9: 9034 | M9: 0.01040513615 | N9: 0 | O9: 0 | P9: 0 | Q9: 0 | R9: 1 | S9: 0 | T9: 0 | U9: 1 | V9: 2 | W9: NO | X9: NO | Y9: NO | Z9: NO | AA9: O | AB9: NO | AC9: NO | AD9: NO | AE9: NO | AF9: NO | AG9: NO | AH9: NA | AI9: NA | AJ9: 35.53 | AK9: NA | AL9: 779 | AM9: 7 | AN9: 788 | AO9: 0.008883248731 | AP9: 8146 | AQ9: 87 | AR9: 8246 | AS9: 0.01055056997 | AT9: 2 | AU9: 5 | AV9: 11 | AW9: Artifact (6)
A10: UPN_Te4_010 | B10: 1 | C10: 36932122 | D10: TG | E10: T | F10: CSF3R | G10: ENST00000373103 | H10: frameshift_variant | I10: acc/|p.Ser810fs/c.2423delC | J10: 13339 | K10: 140 | L10: 13511 | M10: 0.01036192732 | N10: 0 | O10: 0 | P10: 0 | Q10: 0 | R10: 1 | S10: 0 | T10: 0 | U10: 0 | V10: 1 | W10: NO | X10: NO | Y10: NO | Z10: NO | AA10: O | AB10: NO | AC10: NO | AD10: NO | AE10: NO | AF10: NO | AG10: NO | AH10: NA | AI10: NA | AJ10: 35.58 | AK10: NA | AL10: 974 | AM10: 5 | AN10: 979 | AO10: 0.005107252298 | AP10: 12365 | AQ10: 135 | AR10: 12532 | AS10: 0.0107724226 | AT10: 2 | AU10: 5 | AV10: 11 | AW10: Artifact (7)
A11: UPN_Te4_013 | B11: 1 | C11: 36932122 | D11: TG | E11: T | F11: CSF3R | G11: ENST00000373103 | H11: frameshift_variant | I11: acc/|p.Ser810fs/c.2423delC | J11: 3905 | K11: 44 | L11: 3956 | M11: 0.0111223458 | N11: 0 | O11: 0 | P11: 0 | Q11: 0 | R11: 1 | S11: 0 | T11: 0 | U11: 0 | V11: 1 | W11: NO | X11: NO | Y11: NO | Z11: NO | AA11: O | AB11: NO | AC11: NO | AD11: NO | AE11: NO | AF11: NO | AG11: NO | AH11: NA | AI11: NA | AJ11: 35.46 | AK11: NA | AL11: 268 | AM11: 2 | AN11: 270 | AO11: 0.007407407407 | AP11: 3637 | AQ11: 42 | AR11: 3686 | AS11: 0.01139446555 | AT11: 2 | AU11: 5 | AV11: 11 | AW11: Artifact (7)
A12: UPN_Te4_017 | B12: 1 | C12: 36932122 | D12: TG | E12: T | F12: CSF3R | G12: ENST00000373103 | H12: frameshift_variant | I12: acc/|p.Ser810fs/c.2423delC | J12: 5961 | K12: 63 | L12: 6032 | M12: 0.01044429708 | N12: 0 | O12: 0 | P12: 0 | Q12: 0 | R12: 1 | S12: 0 | T12: 0 | U12: 0 | V12: 1 | W12: NO | X12: NO | Y12: NO | Z12: NO | AA12: O | AB12: NO | AC12: NO | AD12: NO | AE12: NO | AF12: NO | AG12: NO | AH12: NA | AI12: NA | AJ12: 35.58 | AK12: NA | AL12: 423 | AM12: 1 | AN12: 425 | AO12: 0.002352941176 | AP12: 5538 | AQ12: 62 | AR12: 5607 | AS12: 0.01105760656 | AT12: 2 | AU12: 5 | AV12: 11 | AW12: Artifact (7)
A13: UPN_Te4_013 | B13: 1 | C13: 36932191 | D13: T | E13: TGGGGCTGCCCAGCAGCTGCCCATAAAGGACCTGATCGCTGGTGCCAGACTGGGATTGGGGCTGGGGGGTGAGGCCCGCCAAGTGTTGCTGTGGGTTGTCACAGCGGAGATCGGGCCCTGGCCGTGTGGGGGG | F13: CSF3R | G13: ENST00000373103 | H13: inframe_insertion | I13: ccc/cccCCCCCCACACGGCCAGGGCCCGATCTCCGCTGTGACAACCCACAGCAACACTTGGCGGGCCTCACCCCCCAGCCCCAATCCCAGTCTGGCACCAGCGATCAGGTCCTTTATGGGCAGCTGCTGGGCAGCCCC|p.Pro786_Thr787insProProThrArgProGlyProAspLeuArgCysAspAsnProGlnGlnHisLeuAlaGlyLeuThrProGlnProGlnSerGlnSerGlyThrSerAspGlnValLeuTyrGlyGlnLeuLeuGlySerPro/c.2358_2359insCCCCCCACACGGCCAGGGCCCGATCTCCGCTGTGACAACCCACAGCAACACTTGGCGGGCCTCACCCCCCAGCCCCAATCCCAGTCTGGCACCAGCGATCAGGTCCTTTATGGGCAGCTGCTGGGCAGCCCC | J13: 273 | K13: NA | L13: 274 | M13: NA | N13: 0 | O13: 0 | P13: 0 | Q13: 0 | R13: 0 | S13: 0 | T13: 0 | U13: 1 | V13: 1 | W13: NO | X13: NO | Y13: NO | Z13: NO | AA13: O | AB13: NO | AC13: NO | AD13: NO | AE13: NO | AF13: NO | AG13: NO | AH13: -16.737 | AI13: Deleterious | AJ13: 34.27 | AK13: NA | AL13: 268 | AM13: NA | AN13: 269 | AO13: NA | AP13: 5 | AQ13: NA | AR13: 5 | AS13: NA | AT13: NA | AU13: 1 | AV13: 1 | AW13: Artifact (0)
A14: UPN_Te4_005 | B14: 1 | C14: 36932209 | D14: G | E14: T | F14: CSF3R | G14: ENST00000373103 | H14: missense_variant | I14: Cag/Aag|p.Gln781Lys/c.2341C>A | J14: 1041 | K14: 20 | L14: 1065 | M14: 0.01877934272 | N14: 0 | O14: 0 | P14: 0 | Q14: 1 | R14: 1 | S14: 0 | T14: 0 | U14: 1 | V14: 3 | W14: NO | X14: NO | Y14: NO | Z14: NA | AA14: NA | AB14: NO | AC14: NO | AD14: NO | AE14: NO | AF14: NO | AG14: NO | AH14: -0.383 | AI14: Tolerated | AJ14: 34.74 | AK14: 32.7 | AL14: 1035 | AM14: 20 | AN14: 1059 | AO14: 0.01888574127 | AP14: 6 | AQ14: 0 | AR14: 6 | AS14: 0 | AT14: 1 | AU14: 1 | AV14: 1 | AW14: Artifact (2)
A15: UPN_Te4_010 | B15: 1 | C15: 36932223 | D15: T | E15: A | F15: CSF3R | G15: ENST00000373103 | H15: missense_variant | I15: cAg/cTg|p.Gln776Leu/c.2327A>T | J15: 1896 | K15: 24 | L15: 1933 | M15: 0.01241593378 | N15: 0 | O15: 0 | P15: 0 | Q15: 0 | R15: 1 | S15: 0 | T15: 0 | U15: 1 | V15: 2 | W15: NO | X15: NO | Y15: NO | Z15: NO | AA15: O | AB15: NO | AC15: NO | AD15: NO | AE15: NO | AF15: NO | AG15: NO | AH15: -1.435 | AI15: Tolerated | AJ15: 31.95 | AK15: 29.04 | AL15: 960 | AM15: 12 | AN15: 976 | AO15: 0.01229508197 | AP15: 936 | AQ15: 12 | AR15: 957 | AS15: 0.01253918495 | AT15: 1 | AU15: 1 | AV15: 1 | AW15: Artifact (4)
A16: UPN_Te4_002 | B16: 1 | C16: 36932224 | D16: G | E16: A | F16: CSF3R | G16: ENST00000373103 | H16: stop_gained | I16: Cag/Tag|p.Gln776*/c.2326C>T | J16: 1787 | K16: 24 | L16: 1812 | M16: 0.01324503311 | N16: 0 | O16: 0 | P16: 0 | Q16: 1 | R16: 1 | S16: 0 | T16: 0 | U16: 1 | V16: 3 | W16: NO | X16: NO | Y16: COSM1724982 | Z16: haematopoietic_and_lymphoid_tissue | AA16: 3 | AB16: NO | AC16: NO | AD16: NO | AE16: NO | AF16: NO | AG16: NO | AH16: NA | AI16: NA | AJ16: 33.77 | AK16: 32.38 | AL16: 905 | AM16: 12 | AN16: 918 | AO16: 0.01307189542 | AP16: 882 | AQ16: 12 | AR16: 894 | AS16: 0.01342281879 | AT16: 1 | AU16: 1 | AV16: 1 | AW16: Artifact (0)
A17: UPN_Te4_011 | B17: 1 | C17: 36932235 | D17: C | E17: T | F17: CSF3R | G17: ENST00000373103 | H17: missense_variant | I17: gGc/gAc|p.Gly772Asp/c.2315G>A | J17: 2640 | K17: 34 | L17: 2696 | M17: 0.01261127596 | N17: 0 | O17: 0 | P17: 0 | Q17: 0 | R17: 1 | S17: 0 | T17: 0 | U17: 1 | V17: 2 | W17: NO | X17: NO | Y17: NO | Z17: NO | AA17: O | AB17: NO | AC17: NO | AD17: NO | AE17: NO | AF17: NO | AG17: NO | AH17: -0.904 | AI17: Tolerated | AJ17: 29.94 | AK17: 27.85 | AL17: 1339 | AM17: 17 | AN17: 1359 | AO17: 0.01250919794 | AP17: 1301 | AQ17: 17 | AR17: 1337 | AS17: 0.01271503366 | AT17: 1 | AU17: 1 | AV17: 1 | AW17: Artifact (4)
A18: UPN_Te4_018 | B18: 1 | C18: 36932236 | D18: C | E18: T | F18: CSF3R | G18: ENST00000373103 | H18: missense_variant | I18: Ggc/Agc|p.Gly772Ser/c.2314G>A | J18: 2089 | K18: 22 | L18: 2118 | M18: 0.0103871577 | N18: 0 | O18: 0 | P18: 0 | Q18: 0 | R18: 1 | S18: 0 | T18: 0 | U18: 1 | V18: 2 | W18: NO | X18: NO | Y18: NO | Z18: NO | AA18: O | AB18: NO | AC18: NO | AD18: NO | AE18: NO | AF18: NO | AG18: NO | AH18: 0.29 | AI18: Tolerated | AJ18: 28.95 | AK18: 32.91 | AL18: 1061 | AM18: 11 | AN18: 1072 | AO18: 0.01026119403 | AP18: 1028 | AQ18: 11 | AR18: 1046 | AS18: 0.01051625239 | AT18: 1 | AU18: 2 | AV18: 3 | AW18: Artifact (4)
A19: UPN_Te4_007 | B19: 1 | C19: 36932236 | D19: CA | E19: C | F19: CSF3R | G19: ENST00000373103 | H19: frameshift_variant | I19: tct/|p.Gly772fs/c.2313delT | J19: 2016 | K19: 22 | L19: 2066 | M19: 0.01064859632 | N19: 0 | O19: 0 | P19: 0 | Q19: 0 | R19: 1 | S19: 0 | T19: 0 | U19: 1 | V19: 2 | W19: NO | X19: NO | Y19: NO | Z19: NO | AA19: O | AB19: NO | AC19: NO | AD19: NO | AE19: NO | AF19: NO | AG19: NO | AH19: NA | AI19: NA | AJ19: 31.05 | AK19: NA | AL19: 1024 | AM19: 10 | AN19: 1039 | AO19: 0.009624639076 | AP19: 992 | AQ19: 12 | AR19: 1027 | AS19: 0.01168451801 | AT19: 0.6721535501 | AU19: 1 | AV19: 3 | AW19: Artifact (5)
A20: UPN_Te4_011 | B20: 1 | C20: 36932244 | D20: G | E20: T | F20: CSF3R | G20: ENST00000373103 | H20: missense_variant | I20: tCc/tAc|p.Ser769Tyr/c.2306C>A | J20: 1334 | K20: 26 | L20: 1361 | M20: 0.01910360029 | N20: 0 | O20: 0 | P20: 0 | Q20: 1 | R20: 1 | S20: 0 | T20: 0 | U20: 1 | V20: 3 | W20: NO | X20: NO | Y20: NO | Z20: NO | AA20: O | AB20: NO | AC20: NO | AD20: NO | AE20: NO | AF20: NO | AG20: NO | AH20: -1.78 | AI20: Tolerated | AJ20: 32.83 | AK20: 27.08 | AL20: 19 | AM20: 0 | AN20: 19 | AO20: 0 | AP20: 1315 | AQ20: 26 | AR20: 1342 | AS20: 0.01937406855 | AT20: 1 | AU20: 1 | AV20: 1 | AW20: Artifact (2)
A21: UPN_Te4_010 | B21: 1 | C21: 36932248 | D21: G | E21: T | F21: CSF3R | G21: ENST00000373103 | H21: missense_variant | I21: Caa/Aaa|p.Gln768Lys/c.2302C>A | J21: 941 | K21: 22 | L21: 966 | M21: 0.02277432712 | N21: 0 | O21: 0 | P21: 0 | Q21: 1 | R21: 1 | S21: 0 | T21: 0 | U21: 1 | V21: 3 | W21: NO | X21: NO | Y21: NO | Z21: NA | AA21: NA | AB21: NO | AC21: NO | AD21: NO | AE21: NO | AF21: NO | AG21: NO | AH21: -1.028 | AI21: Tolerated | AJ21: 34.49 | AK21: 28.05 | AL21: 1 | AM21: 0 | AN21: 1 | AO21: 0 | AP21: 940 | AQ21: 22 | AR21: 965 | AS21: 0.02279792746 | AT21: 1 | AU21: 1 | AV21: 1 | AW21: Artifact (0)
A22: UPN_Te4_014 | B22: 1 | C22: 36932301 | D22: A | E22: G | F22: CSF3R | G22: ENST00000373103 | H22: missense_variant | I22: cTg/cCg|p.Leu750Pro/c.2249T>C | J22: 1345 | K22: 23 | L22: 1389 | M22: 0.01655867531 | N22: 0 | O22: 0 | P22: 0 | Q22: 1 | R22: 1 | S22: 0 | T22: 0 | U22: 1 | V22: 3 | W22: NO | X22: NO | Y22: NO | Z22: NO | AA22: O | AB22: NO | AC22: NO | AD22: NO | AE22: NO | AF22: NO | AG22: NO | AH22: -0.296 | AI22: Tolerated | AJ22: 33.97 | AK22: 32.7 | AL22: 0 | AM22: 0 | AN22: 0 | AO22: NA | AP22: 1345 | AQ22: 23 | AR22: 1389 | AS22: 0.01655867531 | AT22: 1 | AU22: 1 | AV22: 1 | AW22: Artifact (2)
A23: UPN_Te4_010 | B23: 1 | C23: 36932358 | D23: T | E23: C | F23: CSF3R | G23: ENST00000373103 | H23: missense_variant | I23: aAg/aGg|p.Lys731Arg/c.2192A>G | J23: 8426 | K23: 90 | L23: 8568 | M23: 0.01050420168 | N23: 0 | O23: 0 | P23: 0 | Q23: 0 | R23: 1 | S23: 0 | T23: 0 | U23: 0 | V23: 1 | W23: NO | X23: NO | Y23: NO | Z23: NO | AA23: O | AB23: NO | AC23: NO | AD23: NO | AE23: NO | AF23: NO | AG23: NO | AH23: -1.459 | AI23: Tolerated | AJ23: 33.76 | AK23: 34.5 | AL23: 7458 | AM23: 90 | AN23: 7600 | AO23: 0.01184210526 | AP23: 968 | AQ23: 0 | AR23: 968 | AS23: 0 | AT23: 2 | AU23: 10 | AV23: 10 | AW23: Artifact (6)
A24: UPN_Te4_013 | B24: 1 | C24: 36932358 | D24: T | E24: C | F24: CSF3R | G24: ENST00000373103 | H24: missense_variant | I24: aAg/aGg|p.Lys731Arg/c.2192A>G | J24: 2174 | K24: 31 | L24: 2222 | M24: 0.01395139514 | N24: 0 | O24: 0 | P24: 0 | Q24: 1 | R24: 1 | S24: 0 | T24: 0 | U24: 0 | V24: 2 | W24: NO | X24: NO | Y24: NO | Z24: NO | AA24: O | AB24: NO | AC24: NO | AD24: NO | AE24: NO | AF24: NO | AG24: NO | AH24: -1.459 | AI24: Tolerated | AJ24: 33.78 | AK24: 33.97 | AL24: 1909 | AM24: 31 | AN24: 1956 | AO24: 0.01584867076 | AP24: 265 | AQ24: 0 | AR24: 266 | AS24: 0 | AT24: 2 | AU24: 10 | AV24: 10 | AW24: Artifact (5)
A25: UPN_Te4_014 | B25: 1 | C25: 36932358 | D25: T | E25: C | F25: CSF3R | G25: ENST00000373103 | H25: missense_variant | I25: aAg/aGg|p.Lys731Arg/c.2192A>G | J25: 10553 | K25: 111 | L25: 10755 | M25: 0.01032078103 | N25: 0 | O25: 0 | P25: 0 | Q25: 1 | R25: 1 | S25: 1 | T25: 0 | U25: 1 | V25: 4 | W25: NO | X25: NO | Y25: NO | Z25: NO | AA25: O | AB25: NO | AC25: NO | AD25: NO | AE25: NO | AF25: NO | AG25: NO | AH25: -1.459 | AI25: Tolerated | AJ25: 33.65 | AK25: 34.12 | AL25: 9168 | AM25: 104 | AN25: 9361 | AO25: 0.01110992415 | AP25: 1385 | AQ25: 7 | AR25: 1394 | AS25: 0.005021520803 | AT25: 2 | AU25: 10 | AV25: 10 | AW25: Artifact (2)
A26: UPN_Te4_015 | B26: 1 | C26: 36932358 | D26: T | E26: C | F26: CSF3R | G26: ENST00000373103 | H26: missense_variant | I26: aAg/aGg|p.Lys731Arg/c.2192A>G | J26: 6519 | K26: 89 | L26: 6653 | M26: 0.01337742372 | N26: 0 | O26: 0 | P26: 0 | Q26: 1 | R26: 1 | S26: 1 | T26: 0 | U26: 0 | V26: 3 | W26: NO | X26: NO | Y26: NO | Z26: NO | AA26: O | AB26: NO | AC26: NO | AD26: NO | AE26: NO | AF26: NO | AG26: NO | AH26: -1.459 | AI26: Tolerated | AJ26: 33.83 | AK26: 35.02 | AL26: 5920 | AM26: 86 | AN26: 6051 | AO26: 0.01421252686 | AP26: 599 | AQ26: 3 | AR26: 602 | AS26: 0.004983388704 | AT26: 2 | AU26: 10 | AV26: 10 | AW26: Artifact (5)
A27: UPN_Te4_016 | B27: 1 | C27: 36932358 | D27: T | E27: C | F27: CSF3R | G27: ENST00000373103 | H27: missense_variant | I27: aAg/aGg|p.Lys731Arg/c.2192A>G | J27: 7113 | K27: 84 | L27: 7251 | M27: 0.01158460902 | N27: 0 | O27: 0 | P27: 0 | Q27: 1 | R27: 1 | S27: 1 | T27: 0 | U27: 0 | V27: 3 | W27: NO | X27: NO | Y27: NO | Z27: NO | AA27: O | AB27: NO | AC27: NO | AD27: NO | AE27: NO | AF27: NO | AG27: NO | AH27: -1.459 | AI27: Tolerated | AJ27: 33.7 | AK27: 33.88 | AL27: 6124 | AM27: 81 | AN27: 6259 | AO27: 0.01294136444 | AP27: 989 | AQ27: 3 | AR27: 992 | AS27: 0.003024193548 | AT27: 2 | AU27: 10 | AV27: 10 | AW27: Artifact (5)
A28: UPN_Te4_017 | B28: 1 | C28: 36932358 | D28: T | E28: C | F28: CSF3R | G28: ENST00000373103 | H28: missense_variant | I28: aAg/aGg|p.Lys731Arg/c.2192A>G | J28: 4144 | K28: 44 | L28: 4202 | M28: 0.01047120419 | N28: 0 | O28: 0 | P28: 0 | Q28: 1 | R28: 1 | S28: 0 | T28: 0 | U28: 0 | V28: 2 | W28: NO | X28: NO | Y28: NO | Z28: NO | AA28: O | AB28: NO | AC28: NO | AD28: NO | AE28: NO | AF28: NO | AG28: NO | AH28: -1.459 | AI28: Tolerated | AJ28: 34.63 | AK28: 34.73 | AL28: 3721 | AM28: 43 | AN28: 3777 | AO28: 0.01138469685 | AP28: 423 | AQ28: 1 | AR28: 425 | AS28: 0.002352941176 | AT28: 2 | AU28: 10 | AV28: 10 | AW28: Artifact (5)
A29: UPN_Te4_021 | B29: 1 | C29: 36932358 | D29: T | E29: C | F29: CSF3R | G29: ENST00000373103 | H29: missense_variant | I29: aAg/aGg|p.Lys731Arg/c.2192A>G | J29: 7461 | K29: 81 | L29: 7564 | M29: 0.01070861978 | N29: 0 | O29: 0 | P29: 0 | Q29: 1 | R29: 1 | S29: 0 | T29: 0 | U29: 1 | V29: 3 | W29: NO | X29: NO | Y29: NO | Z29: NO | AA29: O | AB29: NO | AC29: NO | AD29: NO | AE29: NO | AF29: NO | AG29: NO | AH29: -1.459 | AI29: Tolerated | AJ29: 34.61 | AK29: 34.51 | AL29: 6613 | AM29: 76 | AN29: 6710 | AO29: 0.01132637854 | AP29: 848 | AQ29: 5 | AR29: 854 | AS29: 0.005854800937 | AT29: 2 | AU29: 10 | AV29: 10 | AW29: Artifact (3)
A30: UPN_Te4_022 | B30: 1 | C30: 36932358 | D30: T | E30: C | F30: CSF3R | G30: ENST00000373103 | H30: missense_variant | I30: aAg/aGg|p.Lys731Arg/c.2192A>G | J30: 6474 | K30: 67 | L30: 6557 | M30: 0.01021808754 | N30: 0 | O30: 0 | P30: 0 | Q30: 1 | R30: 1 | S30: 0 | T30: 0 | U30: 0 | V30: 2 | W30: NO | X30: NO | Y30: NO | Z30: NO | AA30: O | AB30: NO | AC30: NO | AD30: NO | AE30: NO | AF30: NO | AG30: NO | AH30: -1.459 | AI30: Tolerated | AJ30: 34.62 | AK30: 35.22 | AL30: 5843 | AM30: 64 | AN30: 5922 | AO30: 0.01080715974 | AP30: 631 | AQ30: 3 | AR30: 635 | AS30: 0.004724409449 | AT30: 2 | AU30: 10 | AV30: 10 | AW30: Artifact (5)
A31: UPN_Te4_001 | B31: 1 | C31: 36932361 | D31: T | E31: C | F31: CSF3R | G31: ENST00000373103 | H31: missense_variant | I31: gAa/gGa|p.Glu730Gly/c.2189A>G | J31: 7827 | K31: 95 | L31: 7965 | M31: 0.01192718142 | N31: 0 | O31: 0 | P31: 0 | Q31: 1 | R31: 1 | S31: 1 | T31: 0 | U31: 1 | V31: 4 | W31: NO | X31: NO | Y31: NO | Z31: NO | AA31: O | AB31: NO | AC31: NO | AD31: NO | AE31: NO | AF31: NO | AG31: NO | AH31: -2.292 | AI31: Tolerated | AJ31: 34.56 | AK31: 31.82 | AL31: 7012 | AM31: 24 | AN31: 7075 | AO31: 0.003392226148 | AP31: 815 | AQ31: 71 | AR31: 890 | AS31: 0.0797752809 | AT31: 2 | AU31: 27 | AV31: 27 | AW31: Artifact (4)
A32: UPN_Te4_002 | B32: 1 | C32: 36932361 | D32: T | E32: C | F32: CSF3R | G32: ENST00000373103 | H32: missense_variant | I32: gAa/gGa|p.Glu730Gly/c.2189A>G | J32: 7711 | K32: 199 | L32: 7947 | M32: 0.02504089594 | N32: 0 | O32: 0 | P32: 0 | Q32: 0 | R32: 1 | S32: 1 | T32: 0 | U32: 1 | V32: 3 | W32: NO | X32: NO | Y32: NO | Z32: NO | AA32: O | AB32: NO | AC32: NO | AD32: NO | AE32: NO | AF32: NO | AG32: NO | AH32: -2.292 | AI32: Tolerated | AJ32: 34.78 | AK32: 32.19 | AL32: 6983 | AM32: 25 | AN32: 7039 | AO32: 0.003551640858 | AP32: 728 | AQ32: 174 | AR32: 908 | AS32: 0.1916299559 | AT32: 2 | AU32: 27 | AV32: 27 | AW32: Artifact (5)
A33: UPN_Te4_003 | B33: 1 | C33: 36932361 | D33: T | E33: C | F33: CSF3R | G33: ENST00000373103 | H33: missense_variant | I33: gAa/gGa|p.Glu730Gly/c.2189A>G | J33: 5842 | K33: 168 | L33: 6039 | M33: 0.02781917536 | N33: 0 | O33: 0 | P33: 0 | Q33: 0 | R33: 1 | S33: 1 | T33: 0 | U33: 0 | V33: 2 | W33: NO | X33: NO | Y33: NO | Z33: NO | AA33: O | AB33: NO | AC33: NO | AD33: NO | AE33: NO | AF33: NO | AG33: NO | AH33: -2.292 | AI33: Tolerated | AJ33: 34.84 | AK33: 31.82 | AL33: 5222 | AM33: 12 | AN33: 5261 | AO33: 0.002280935183 | AP33: 620 | AQ33: 156 | AR33: 778 | AS33: 0.2005141388 | AT33: 2 | AU33: 27 | AV33: 27 | AW33: Artifact (5)
A34: UPN_Te4_004 | B34: 1 | C34: 36932361 | D34: T | E34: C | F34: CSF3R | G34: ENST00000373103 | H34: missense_variant | I34: gAa/gGa|p.Glu730Gly/c.2189A>G | J34: 7211 | K34: 173 | L34: 7435 | M34: 0.02326832549 | N34: 0 | O34: 0 | P34: 0 | Q34: 0 | R34: 1 | S34: 1 | T34: 0 | U34: 1 | V34: 3 | W34: NO | X34: NO | Y34: NO | Z34: NO | AA34: O | AB34: NO | AC34: NO | AD34: NO | AE34: NO | AF34: NO | AG34: NO | AH34: -2.292 | AI34: Tolerated | AJ34: 34.88 | AK34: 31.9 | AL34: 6585 | AM34: 14 | AN34: 6645 | AO34: 0.002106847254 | AP34: 626 | AQ34: 159 | AR34: 790 | AS34: 0.2012658228 | AT34: 2 | AU34: 27 | AV34: 27 | AW34: Artifact (5)
A35: UPN_Te4_005 | B35: 1 | C35: 36932361 | D35: T | E35: C | F35: CSF3R | G35: ENST00000373103 | H35: missense_variant | I35: gAa/gGa|p.Glu730Gly/c.2189A>G | J35: 7546 | K35: 239 | L35: 7804 | M35: 0.03062532035 | N35: 0 | O35: 0 | P35: 0 | Q35: 0 | R35: 1 | S35: 1 | T35: 0 | U35: 0 | V35: 2 | W35: NO | X35: NO | Y35: NO | Z35: NO | AA35: O | AB35: NO | AC35: NO | AD35: NO | AE35: NO | AF35: NO | AG35: NO | AH35: -2.292 | AI35: Tolerated | AJ35: 34.82 | AK35: 31.58 | AL35: 6730 | AM35: 18 | AN35: 6766 | AO35: 0.002660360627 | AP35: 816 | AQ35: 221 | AR35: 1038 | AS35: 0.2129094412 | AT35: 2 | AU35: 27 | AV35: 27 | AW35: Artifact (5)
A36: UPN_Te4_006 | B36: 1 | C36: 36932361 | D36: T | E36: C | F36: CSF3R | G36: ENST00000373103 | H36: missense_variant | I36: gAa/gGa|p.Glu730Gly/c.2189A>G | J36: 7850 | K36: 223 | L36: 8108 | M36: 0.02750370005 | N36: 0 | O36: 0 | P36: 0 | Q36: 0 | R36: 1 | S36: 1 | T36: 0 | U36: 0 | V36: 2 | W36: NO | X36: NO | Y36: NO | Z36: NO | AA36: O | AB36: NO | AC36: NO | AD36: NO | AE36: NO | AF36: NO | AG36: NO | AH36: -2.292 | AI36: Tolerated | AJ36: 34.81 | AK36: 31.74 | AL36: 7000 | AM36: 14 | AN36: 7044 | AO36: 0.001987507098 | AP36: 850 | AQ36: 209 | AR36: 1064 | AS36: 0.1964285714 | AT36: 2 | AU36: 27 | AV36: 27 | AW36: Artifact (5)
A37: UPN_Te4_007 | B37: 1 | C37: 36932361 | D37: T | E37: C | F37: CSF3R | G37: ENST00000373103 | H37: missense_variant | I37: gAa/gGa|p.Glu730Gly/c.2189A>G | J37: 8182 | K37: 207 | L37: 8421 | M37: 0.02458140363 | N37: 0 | O37: 0 | P37: 0 | Q37: 0 | R37: 1 | S37: 1 | T37: 0 | U37: 1 | V37: 3 | W37: NO | X37: NO | Y37: NO | Z37: NO | AA37: O | AB37: NO | AC37: NO | AD37: NO | AE37: NO | AF37: NO | AG37: NO | AH37: -2.292 | AI37: Tolerated | AJ37: 34.84 | AK37: 32.01 | AL37: 7348 | AM37: 19 | AN37: 7398 | AO37: 0.002568261692 | AP37: 834 | AQ37: 188 | AR37: 1023 | AS37: 0.183773216 | AT37: 2 | AU37: 27 | AV37: 27 | AW37: Artifact (5)
A38: UPN_Te4_008 | B38: 1 | C38: 36932361 | D38: T | E38: C | F38: CSF3R | G38: ENST00000373103 | H38: missense_variant | I38: gAa/gGa|p.Glu730Gly/c.2189A>G | J38: 11011 | K38: 376 | L38: 11433 | M38: 0.03288725619 | N38: 0 | O38: 0 | P38: 0 | Q38: 0 | R38: 1 | S38: 1 | T38: 0 | U38: 1 | V38: 3 | W38: NO | X38: NO | Y38: NO | Z38: NO | AA38: O | AB38: NO | AC38: NO | AD38: NO | AE38: NO | AF38: NO | AG38: NO | AH38: -2.292 | AI38: Tolerated | AJ38: 34.73 | AK38: 31.53 | AL38: 9636 | AM38: 28 | AN38: 9708 | AO38: 0.002884219201 | AP38: 1375 | AQ38: 348 | AR38: 1725 | AS38: 0.2017391304 | AT38: 2 | AU38: 27 | AV38: 27 | AW38: Artifact (5)
A39: UPN_Te4_009 | B39: 1 | C39: 36932361 | D39: T | E39: C | F39: CSF3R | G39: ENST00000373103 | H39: missense_variant | I39: gAa/gGa|p.Glu730Gly/c.2189A>G | J39: 4169 | K39: 84 | L39: 4270 | M39: 0.01967213115 | N39: 0 | O39: 0 | P39: 0 | Q39: 0 | R39: 1 | S39: 1 | T39: 0 | U39: 0 | V39: 2 | W39: NO | X39: NO | Y39: NO | Z39: NO | AA39: O | AB39: NO | AC39: NO | AD39: NO | AE39: NO | AF39: NO | AG39: NO | AH39: -2.292 | AI39: Tolerated | AJ39: 34.88 | AK39: 30.9 | AL39: 3813 | AM39: 5 | AN39: 3833 | AO39: 0.001304461258 | AP39: 356 | AQ39: 79 | AR39: 437 | AS39: 0.180778032 | AT39: 2 | AU39: 27 | AV39: 27 | AW39: Artifact (7)
A40: UPN_Te4_010 | B40: 1 | C40: 36932361 | D40: T | E40: C | F40: CSF3R | G40: ENST00000373103 | H40: missense_variant | I40: gAa/gGa|p.Glu730Gly/c.2189A>G | J40: 8275 | K40: 258 | L40: 8563 | M40: 0.03012962747 | N40: 0 | O40: 0 | P40: 0 | Q40: 0 | R40: 1 | S40: 1 | T40: 0 | U40: 1 | V40: 3 | W40: NO | X40: NO | Y40: NO | Z40: NO | AA40: O | AB40: NO | AC40: NO | AD40: NO | AE40: NO | AF40: NO | AG40: NO | AH40: -2.292 | AI40: Tolerated | AJ40: 34.96 | AK40: 31.61 | AL40: 7549 | AM40: 23 | AN40: 7599 | AO40: 0.003026714041 | AP40: 726 | AQ40: 235 | AR40: 964 | AS40: 0.2437759336 | AT40: 2 | AU40: 27 | AV40: 27 | AW40: Artifact (5)
A41: UPN_Te4_011 | B41: 1 | C41: 36932361 | D41: T | E41: C | F41: CSF3R | G41: ENST00000373103 | H41: missense_variant | I41: gAa/gGa|p.Glu730Gly/c.2189A>G | J41: 9603 | K41: 170 | L41: 9839 | M41: 0.01727817868 | N41: 0 | O41: 0 | P41: 0 | Q41: 1 | R41: 1 | S41: 1 | T41: 0 | U41: 1 | V41: 4 | W41: NO | X41: NO | Y41: NO | Z41: NO | AA41: O | AB41: NO | AC41: NO | AD41: NO | AE41: NO | AF41: NO | AG41: NO | AH41: -2.292 | AI41: Tolerated | AJ41: 34.41 | AK41: 31.66 | AL41: 8392 | AM41: 38 | AN41: 8491 | AO41: 0.004475326817 | AP41: 1211 | AQ41: 132 | AR41: 1348 | AS41: 0.09792284866 | AT41: 2 | AU41: 27 | AV41: 27 | AW41: Artifact (4)
A42: UPN_Te4_013 | B42: 1 | C42: 36932361 | D42: T | E42: C | F42: CSF3R | G42: ENST00000373103 | H42: missense_variant | I42: gAa/gGa|p.Glu730Gly/c.2189A>G | J42: 2177 | K42: 27 | L42: 2221 | M42: 0.01215668618 | N42: 0 | O42: 0 | P42: 0 | Q42: 1 | R42: 1 | S42: 0 | T42: 0 | U42: 1 | V42: 3 | W42: NO | X42: NO | Y42: NO | Z42: NO | AA42: O | AB42: NO | AC42: NO | AD42: NO | AE42: NO | AF42: NO | AG42: NO | AH42: -2.292 | AI42: Tolerated | AJ42: 34.37 | AK42: 33.04 | AL42: 1931 | AM42: 7 | AN42: 1955 | AO42: 0.00358056266 | AP42: 246 | AQ42: 20 | AR42: 266 | AS42: 0.07518796992 | AT42: 2 | AU42: 27 | AV42: 27 | AW42: Artifact (5)
A43: UPN_Te4_014 | B43: 1 | C43: 36932361 | D43: T | E43: C | F43: CSF3R | G43: ENST00000373103 | H43: missense_variant | I43: gAa/gGa|p.Glu730Gly/c.2189A>G | J43: 10531 | K43: 143 | L43: 10735 | M43: 0.0133209129 | N43: 0 | O43: 0 | P43: 0 | Q43: 1 | R43: 1 | S43: 1 | T43: 0 | U43: 1 | V43: 4 | W43: NO | X43: NO | Y43: NO | Z43: NO | AA43: O | AB43: NO | AC43: NO | AD43: NO | AE43: NO | AF43: NO | AG43: NO | AH43: -2.292 | AI43: Tolerated | AJ43: 34.42 | AK43: 32.03 | AL43: 9269 | AM43: 35 | AN43: 9360 | AO43: 0.003739316239 | AP43: 1262 | AQ43: 108 | AR43: 1375 | AS43: 0.07854545455 | AT43: 2 | AU43: 27 | AV43: 27 | AW43: Artifact (4)
A44: UPN_Te4_015 | B44: 1 | C44: 36932361 | D44: T | E44: C | F44: CSF3R | G44: ENST00000373103 | H44: missense_variant | I44: gAa/gGa|p.Glu730Gly/c.2189A>G | J44: 6533 | K44: 82 | L44: 6651 | M44: 0.01232897309 | N44: 0 | O44: 0 | P44: 0 | Q44: 1 | R44: 1 | S44: 1 | T44: 0 | U44: 1 | V44: 4 | W44: NO | X44: NO | Y44: NO | Z44: NO | AA44: O | AB44: NO | AC44: NO | AD44: NO | AE44: NO | AF44: NO | AG44: NO | AH44: -2.292 | AI44: Tolerated | AJ44: 34.55 | AK44: 32.26 | AL44: 5992 | AM44: 21 | AN44: 6049 | AO44: 0.003471648206 | AP44: 541 | AQ44: 61 | AR44: 602 | AS44: 0.1013289037 | AT44: 2 | AU44: 27 | AV44: 27 | AW44: Artifact (4)
A45: UPN_Te4_016 | B45: 1 | C45: 36932361 | D45: T | E45: C | F45: CSF3R | G45: ENST00000373103 | H45: missense_variant | I45: gAa/gGa|p.Glu730Gly/c.2189A>G | J45: 7117 | K45: 92 | L45: 7247 | M45: 0.01269490824 | N45: 0 | O45: 0 | P45: 0 | Q45: 1 | R45: 1 | S45: 1 | T45: 0 | U45: 1 | V45: 4 | W45: NO | X45: NO | Y45: NO | Z45: NO | AA45: O | AB45: NO | AC45: NO | AD45: NO | AE45: NO | AF45: NO | AG45: NO | AH45: -2.292 | AI45: Tolerated | AJ45: 34.44 | AK45: 31.76 | AL45: 6205 | AM45: 18 | AN45: 6256 | AO45: 0.002877237852 | AP45: 912 | AQ45: 74 | AR45: 991 | AS45: 0.07467204844 | AT45: 2 | AU45: 27 | AV45: 27 | AW45: Artifact (4)
A46: UPN_Te4_018 | B46: 1 | C46: 36932361 | D46: T | E46: C | F46: CSF3R | G46: ENST00000373103 | H46: missense_variant | I46: gAa/gGa|p.Glu730Gly/c.2189A>G | J46: 8790 | K46: 127 | L46: 8967 | M46: 0.01416304227 | N46: 0 | O46: 0 | P46: 0 | Q46: 1 | R46: 1 | S46: 1 | T46: 0 | U46: 1 | V46: 4 | W46: NO | X46: NO | Y46: NO | Z46: NO | AA46: O | AB46: NO | AC46: NO | AD46: NO | AE46: NO | AF46: NO | AG46: NO | AH46: -2.292 | AI46: Tolerated | AJ46: 34.5 | AK46: 31.95 | AL46: 7839 | AM46: 25 | AN46: 7910 | AO46: 0.003160556258 | AP46: 951 | AQ46: 102 | AR46: 1057 | AS46: 0.09649952696 | AT46: 2 | AU46: 27 | AV46: 27 | AW46: Artifact (4)
A47: UPN_Te4_013 | B47: 1 | C47: 36932844 | D47: G | E47: T | F47: CSF3R | G47: ENST00000373103 | H47: missense_variant | I47: aCa/aAa|p.Thr676Lys/c.2027C>A | J47: 1479 | K47: 25 | L47: 1508 | M47: 0.01657824934 | N47: 0 | O47: 0 | P47: 0 | Q47: 0 | R47: 1 | S47: 0 | T47: 0 | U47: 1 | V47: 2 | W47: NO | X47: NO | Y47: NO | Z47: NO | AA47: O | AB47: NO | AC47: NO | AD47: NO | AE47: NO | AF47: NO | AG47: NO | AH47: -0.758 | AI47: Tolerated | AJ47: 35.02 | AK47: 33.64 | AL47: 1479 | AM47: 13 | AN47: 1496 | AO47: 0.008689839572 | AP47: 0 | AQ47: 12 | AR47: 12 | AS47: 1 | AT47: 1.943113744e-23 | AU47: 1 | AV47: 1 | AW47: Artifact (4)
A48: UPN_Te4_010 | B48: 1 | C48: 36932845 | D48: T | E48: A | F48: CSF3R | G48: ENST00000373103 | H48: missense_variant | I48: Aca/Tca|p.Thr676Ser/c.2026A>T | J48: 2486 | K48: 26 | L48: 2524 | M48: 0.01030110935 | N48: 0 | O48: 0 | P48: 0 | Q48: 1 | R48: 1 | S48: 0 | T48: 0 | U48: 1 | V48: 3 | W48: NO | X48: NO | Y48: NO | Z48: NO | AA48: O | AB48: NO | AC48: NO | AD48: NO | AE48: NO | AF48: NO | AG48: NO | AH48: -0.413 | AI48: Tolerated | AJ48: 35.39 | AK48: 32.46 | AL48: 2485 | AM48: 26 | AN48: 2523 | AO48: 0.01030519223 | AP48: 1 | AQ48: 0 | AR48: 1 | AS48: 0 | AT48: 1 | AU48: 1 | AV48: 1 | AW48: Artifact (2)
A49: UPN_Te4_004 | B49: 1 | C49: 36932856 | D49: G | E49: A | F49: CSF3R | G49: ENST00000373103 | H49: missense_variant | I49: tCc/tTc|p.Ser672Phe/c.2015C>T | J49: 1837 | K49: 21 | L49: 1858 | M49: 0.01130247578 | N49: 0 | O49: 0 | P49: 0 | Q49: 1 | R49: 1 | S49: 0 | T49: 0 | U49: 1 | V49: 3 | W49: NO | X49: NO | Y49: NO | Z49: NO | AA49: O | AB49: NO | AC49: NO | AD49: NO | AE49: NO | AF49: NO | AG49: NO | AH49: -2.185 | AI49: Tolerated | AJ49: 34.76 | AK49: 35.43 | AL49: 1819 | AM49: 21 | AN49: 1840 | AO49: 0.01141304348 | AP49: 18 | AQ49: 0 | AR49: 18 | AS49: 0 | AT49: 1 | AU49: 1 | AV49: 1 | AW49: Artifact (2)
A50: UPN_Te4_002 | B50: 1 | C50: 36932880 | D50: T | E50: G | F50: CSF3R | G50: ENST00000373103 | H50: missense_variant | I50: gAc/gCc|p.Asp664Ala/c.1991A>C | J50: 2497 | K50: 41 | L50: 2548 | M50: 0.01609105181 | N50: 0 | O50: 0 | P50: 0 | Q50: 0 | R50: 1 | S50: 0 | T50: 0 | U50: 1 | V50: 2 | W50: NO | X50: NO | Y50: NO | Z50: NO | AA50: O | AB50: NO | AC50: NO | AD50: NO | AE50: NO | AF50: NO | AG50: NO | AH50: -6.165 | AI50: Deleterious | AJ50: 34.57 | AK50: 35.27 | AL50: 2497 | AM50: 21 | AN50: 2528 | AO50: 0.008306962025 | AP50: 0 | AQ50: 20 | AR50: 20 | AS50: 1 | AT50: 5.739161429e-39 | AU50: 4 | AV50: 4 | AW50: Artifact (4)
A51: UPN_Te4_004 | B51: 1 | C51: 36932880 | D51: T | E51: G | F51: CSF3R | G51: ENST00000373103 | H51: missense_variant | I51: gAc/gCc|p.Asp664Ala/c.1991A>C | J51: 1806 | K51: 38 | L51: 1857 | M51: 0.02046311255 | N51: 0 | O51: 0 | P51: 0 | Q51: 0 | R51: 1 | S51: 0 | T51: 0 | U51: 1 | V51: 2 | W51: NO | X51: NO | Y51: NO | Z51: NO | AA51: O | AB51: NO | AC51: NO | AD51: NO | AE51: NO | AF51: NO | AG51: NO | AH51: -6.165 | AI51: Deleterious | AJ51: 34.39 | AK51: 34.84 | AL51: 1806 | AM51: 20 | AN51: 1839 | AO51: 0.0108754758 | AP51: 0 | AQ51: 18 | AR51: 18 | AS51: 1 | AT51: 3.844572735e-33 | AU51: 4 | AV51: 4 | AW51: Artifact (2)
A52: UPN_Te4_005 | B52: 1 | C52: 36932880 | D52: T | E52: G | F52: CSF3R | G52: ENST00000373103 | H52: missense_variant | I52: gAc/gCc|p.Asp664Ala/c.1991A>C | J52: 1890 | K52: 134 | L52: 2028 | M52: 0.06607495069 | N52: 0 | O52: 0 | P52: 0 | Q52: 0 | R52: 1 | S52: 0 | T52: 0 | U52: 1 | V52: 2 | W52: NO | X52: NO | Y52: NO | Z52: NO | AA52: O | AB52: NO | AC52: NO | AD52: NO | AE52: NO | AF52: NO | AG52: NO | AH52: -6.165 | AI52: Deleterious | AJ52: 34.76 | AK52: 34.75 | AL52: 1890 | AM52: 69 | AN52: 1963 | AO52: 0.03515028018 | AP52: 0 | AQ52: 65 | AR52: 65 | AS52: 1 | AT52: 4.108027004e-85 | AU52: 4 | AV52: 4 | AW52: Artifact (2)
A53: UPN_Te4_012 | B53: 1 | C53: 36932880 | D53: T | E53: G | F53: CSF3R | G53: ENST00000373103 | H53: missense_variant | I53: gAc/gCc|p.Asp664Ala/c.1991A>C | J53: 2680 | K53: 28 | L53: 2719 | M53: 0.01029790364 | N53: 0 | O53: 0 | P53: 0 | Q53: 0 | R53: 1 | S53: 0 | T53: 0 | U53: 0 | V53: 1 | W53: NO | X53: NO | Y53: NO | Z53: NO | AA53: O | AB53: NO | AC53: NO | AD53: NO | AE53: NO | AF53: NO | AG53: NO | AH53: -6.165 | AI53: Deleterious | AJ53: 35.41 | AK53: 34.43 | AL53: 2680 | AM53: 15 | AN53: 2706 | AO53: 0.005543237251 | AP53: 0 | AQ53: 13 | AR53: 13 | AS53: 1 | AT53: 5.698192851e-28 | AU53: 4 | AV53: 4 | AW53: Artifact (5)
A54: UPN_Te4_005 | B54: 1 | C54: 36932902 | D54: G | E54: T | F54: CSF3R | G54: ENST00000373103 | H54: missense_variant | I54: Ccc/Acc|p.Pro657Thr/c.1969C>A | J54: 3700 | K54: 55 | L54: 3757 | M54: 0.0146393399 | N54: 0 | O54: 0 | P54: 0 | Q54: 1 | R54: 1 | S54: 0 | T54: 0 | U54: 1 | V54: 3 | W54: NO | X54: NO | Y54: NO | Z54: NO | AA54: O | AB54: NO | AC54: NO | AD54: NO | AE54: 8.236e-06 | AF54: NO | AG54: NO | AH54: -0.047 | AI54: Tolerated | AJ54: 33.6 | AK54: 30.87 | AL54: 1870 | AM54: 24 | AN54: 1896 | AO54: 0.01265822785 | AP54: 1830 | AQ54: 31 | AR54: 1861 | AS54: 0.01665771091 | AT54: 0.3428934452 | AU54: 1 | AV54: 1 | AW54: Artifact (1)
A55: UPN_Te4_001 | B55: 1 | C55: 36933222 | D55: AG | E55: A | F55: CSF3R | G55: ENST00000373103 | H55: frameshift_variant | I55: ggc/|p.Leu632fs/c.1893delC | J55: 13875 | K55: 187 | L55: 14096 | M55: 0.0132661748 | N55: 0 | O55: 0 | P55: 0 | Q55: 0 | R55: 1 | S55: 0 | T55: 0 | U55: 0 | V55: 1 | W55: NO | X55: NO | Y55: NO | Z55: NA | AA55: NA | AB55: NO | AC55: NO | AD55: NO | AE55: NO | AF55: NO | AG55: NO | AH55: NA | AI55: NA | AJ55: 35.22 | AK55: NA | AL55: 7815 | AM55: 1 | AN55: 7826 | AO55: 0.0001277791975 | AP55: 6060 | AQ55: 186 | AR55: 6270 | AS55: 0.02966507177 | AT55: 2 | AU55: 22 | AV55: 22 | AW55: Artifact (9)
A56: UPN_Te4_002 | B56: 1 | C56: 36933222 | D56: AG | E56: A | F56: CSF3R | G56: ENST00000373103 | H56: frameshift_variant | I56: ggc/|p.Leu632fs/c.1893delC | J56: 11980 | K56: 372 | L56: 12370 | M56: 0.03007275667 | N56: 0 | O56: 0 | P56: 0 | Q56: 0 | R56: 1 | S56: 0 | T56: 0 | U56: 0 | V56: 1 | W56: NO | X56: NO | Y56: NO | Z56: NA | AA56: NA | AB56: NO | AC56: NO | AD56: NO | AE56: NO | AF56: NO | AG56: NO | AH56: NA | AI56: NA | AJ56: 35.33 | AK56: NA | AL56: 4948 | AM56: 0 | AN56: 4958 | AO56: 0 | AP56: 7032 | AQ56: 372 | AR56: 7412 | AS56: 0.05018888289 | AT56: 2 | AU56: 22 | AV56: 22 | AW56: Artifact (7)
A57: UPN_Te4_003 | B57: 1 | C57: 36933222 | D57: AG | E57: A | F57: CSF3R | G57: ENST00000373103 | H57: frameshift_variant | I57: ggc/|p.Leu632fs/c.1893delC | J57: 8221 | K57: 170 | L57: 8402 | M57: 0.02023327779 | N57: 0 | O57: 0 | P57: 0 | Q57: 0 | R57: 1 | S57: 0 | T57: 0 | U57: 0 | V57: 1 | W57: NO | X57: NO | Y57: NO | Z57: NA | AA57: NA | AB57: NO | AC57: NO | AD57: NO | AE57: NO | AF57: NO | AG57: NO | AH57: NA | AI57: NA | AJ57: 35.23 | AK57: NA | AL57: 4181 | AM57: 0 | AN57: 4188 | AO57: 0 | AP57: 4040 | AQ57: 170 | AR57: 4214 | AS57: 0.04034171808 | AT57: 2 | AU57: 22 | AV57: 22 | AW57: Artifact (7)
A58: UPN_Te4_004 | B58: 1 | C58: 36933222 | D58: AG | E58: A | F58: CSF3R | G58: ENST00000373103 | H58: frameshift_variant | I58: ggc/|p.Leu632fs/c.1893delC | J58: 10858 | K58: 333 | L58: 11202 | M58: 0.02972683449 | N58: 0 | O58: 0 | P58: 0 | Q58: 0 | R58: 1 | S58: 0 | T58: 0 | U58: 0 | V58: 1 | W58: NO | X58: NO | Y58: NO | Z58: NA | AA58: NA | AB58: NO | AC58: NO | AD58: NO | AE58: NO | AF58: NO | AG58: NO | AH58: NA | AI58: NA | AJ58: 35.33 | AK58: NA | AL58: 4946 | AM58: 1 | AN58: 4955 | AO58: 0.0002018163471 | AP58: 5912 | AQ58: 332 | AR58: 6247 | AS58: 0.05314550984 | AT58: 2 | AU58: 22 | AV58: 22 | AW58: Artifact (7)
A59: UPN_Te4_005 | B59: 1 | C59: 36933222 | D59: AG | E59: A | F59: CSF3R | G59: ENST00000373103 | H59: frameshift_variant | I59: ggc/|p.Leu632fs/c.1893delC | J59: 10378 | K59: 261 | L59: 10648 | M59: 0.02451164538 | N59: 0 | O59: 0 | P59: 0 | Q59: 0 | R59: 1 | S59: 0 | T59: 0 | U59: 0 | V59: 1 | W59: NO | X59: NO | Y59: NO | Z59: NA | AA59: NA | AB59: NO | AC59: NO | AD59: NO | AE59: NO | AF59: NO | AG59: NO | AH59: NA | AI59: NA | AJ59: 35.4 | AK59: NA | AL59: 4943 | AM59: 2 | AN59: 4953 | AO59: 0.0004037956794 | AP59: 5435 | AQ59: 259 | AR59: 5695 | AS59: 0.0454784899 | AT59: 2 | AU59: 22 | AV59: 22 | AW59: Artifact (7)
A60: UPN_Te4_006 | B60: 1 | C60: 36933222 | D60: AG | E60: A | F60: CSF3R | G60: ENST00000373103 | H60: frameshift_variant | I60: ggc/|p.Leu632fs/c.1893delC | J60: 12317 | K60: 322 | L60: 12651 | M60: 0.0254525334 | N60: 0 | O60: 0 | P60: 0 | Q60: 0 | R60: 1 | S60: 0 | T60: 0 | U60: 0 | V60: 1 | W60: NO | X60: NO | Y60: NO | Z60: NA | AA60: NA | AB60: NO | AC60: NO | AD60: NO | AE60: NO | AF60: NO | AG60: NO | AH60: NA | AI60: NA | AJ60: 35.36 | AK60: NA | AL60: 5270 | AM60: 0 | AN60: 5277 | AO60: 0 | AP60: 7047 | AQ60: 322 | AR60: 7374 | AS60: 0.04366693789 | AT60: 2 | AU60: 22 | AV60: 22 | AW60: Artifact (7)
A61: UPN_Te4_007 | B61: 1 | C61: 36933222 | D61: AG | E61: A | F61: CSF3R | G61: ENST00000373103 | H61: frameshift_variant | I61: ggc/|p.Leu632fs/c.1893delC | J61: 14477 | K61: 369 | L61: 14870 | M61: 0.02481506389 | N61: 0 | O61: 0 | P61: 0 | Q61: 0 | R61: 1 | S61: 0 | T61: 0 | U61: 0 | V61: 1 | W61: NO | X61: NO | Y61: NO | Z61: NA | AA61: NA | AB61: NO | AC61: NO | AD61: NO | AE61: NO | AF61: NO | AG61: NO | AH61: NA | AI61: NA | AJ61: 35.28 | AK61: NA | AL61: 7602 | AM61: 0 | AN61: 7620 | AO61: 0 | AP61: 6875 | AQ61: 369 | AR61: 7250 | AS61: 0.05089655172 | AT61: 2 | AU61: 22 | AV61: 22 | AW61: Artifact (7)
A62: UPN_Te4_008 | B62: 1 | C62: 36933222 | D62: AG | E62: A | F62: CSF3R | G62: ENST00000373103 | H62: frameshift_variant | I62: ggc/|p.Leu632fs/c.1893delC | J62: 18560 | K62: 475 | L62: 19109 | M62: 0.02485739704 | N62: 0 | O62: 0 | P62: 0 | Q62: 0 | R62: 1 | S62: 0 | T62: 0 | U62: 0 | V62: 1 | W62: NO | X62: NO | Y62: NO | Z62: NA | AA62: NA | AB62: NO | AC62: NO | AD62: NO | AE62: NO | AF62: NO | AG62: NO | AH62: NA | AI62: NA | AJ62: 35.3 | AK62: NA | AL62: 8821 | AM62: 1 | AN62: 8835 | AO62: 0.0001131861913 | AP62: 9739 | AQ62: 474 | AR62: 10274 | AS62: 0.04613587697 | AT62: 2 | AU62: 22 | AV62: 22 | AW62: Artifact (7)
A63: UPN_Te4_009 | B63: 1 | C63: 36933222 | D63: AG | E63: A | F63: CSF3R | G63: ENST00000373103 | H63: frameshift_variant | I63: ggc/|p.Leu632fs/c.1893delC | J63: 6085 | K63: 200 | L63: 6293 | M63: 0.03178134435 | N63: 0 | O63: 0 | P63: 0 | Q63: 0 | R63: 1 | S63: 0 | T63: 0 | U63: 0 | V63: 1 | W63: NO | X63: NO | Y63: NO | Z63: NA | AA63: NA | AB63: NO | AC63: NO | AD63: NO | AE63: NO | AF63: NO | AG63: NO | AH63: NA | AI63: NA | AJ63: 35.4 | AK63: NA | AL63: 2900 | AM63: 0 | AN63: 2904 | AO63: 0 | AP63: 3185 | AQ63: 200 | AR63: 3389 | AS63: 0.05901445854 | AT63: 2 | AU63: 22 | AV63: 22 | AW63: Artifact (7)
A64: UPN_Te4_010 | B64: 1 | C64: 36933222 | D64: AG | E64: A | F64: CSF3R | G64: ENST00000373103 | H64: frameshift_variant | I64: ggc/|p.Leu632fs/c.1893delC | J64: 12065 | K64: 217 | L64: 12317 | M64: 0.01761792644 | N64: 0 | O64: 0 | P64: 0 | Q64: 0 | R64: 1 | S64: 0 | T64: 0 | U64: 0 | V64: 1 | W64: NO | X64: NO | Y64: NO | Z64: NA | AA64: NA | AB64: NO | AC64: NO | AD64: NO | AE64: NO | AF64: NO | AG64: NO | AH64: NA | AI64: NA | AJ64: 35.31 | AK64: NA | AL64: 6507 | AM64: 0 | AN64: 6513 | AO64: 0 | AP64: 5558 | AQ64: 217 | AR64: 5804 | AS64: 0.03738800827 | AT64: 2 | AU64: 22 | AV64: 22 | AW64: Artifact (9)
A65: UPN_Te4_011 | B65: 1 | C65: 36933222 | D65: AG | E65: A | F65: CSF3R | G65: ENST00000373103 | H65: frameshift_variant | I65: ggc/|p.Leu632fs/c.1893delC | J65: 18018 | K65: 324 | L65: 18401 | M65: 0.01760773871 | N65: 0 | O65: 0 | P65: 0 | Q65: 0 | R65: 1 | S65: 0 | T65: 0 | U65: 0 | V65: 1 | W65: NO | X65: NO | Y65: NO | Z65: NA | AA65: NA | AB65: NO | AC65: NO | AD65: NO | AE65: NO | AF65: NO | AG65: NO | AH65: NA | AI65: NA | AJ65: 35.18 | AK65: NA | AL65: 9818 | AM65: 2 | AN65: 9844 | AO65: 0.0002031694433 | AP65: 8200 | AQ65: 322 | AR65: 8557 | AS65: 0.03763001052 | AT65: 2 | AU65: 22 | AV65: 22 | AW65: Artifact (9)
A66: UPN_Te4_012 | B66: 1 | C66: 36933222 | D66: AG | E66: A | F66: CSF3R | G66: ENST00000373103 | H66: frameshift_variant | I66: ggc/|p.Leu632fs/c.1893delC | J66: 7003 | K66: 190 | L66: 7204 | M66: 0.02637423654 | N66: 0 | O66: 0 | P66: 0 | Q66: 0 | R66: 1 | S66: 0 | T66: 0 | U66: 0 | V66: 1 | W66: NO | X66: NO | Y66: NO | Z66: NA | AA66: NA | AB66: NO | AC66: NO | AD66: NO | AE66: NO | AF66: NO | AG66: NO | AH66: NA | AI66: NA | AJ66: 35.5 | AK66: NA | AL66: 3259 | AM66: 0 | AN66: 3264 | AO66: 0 | AP66: 3744 | AQ66: 190 | AR66: 3940 | AS66: 0.04822335025 | AT66: 2 | AU66: 22 | AV66: 22 | AW66: Artifact (7)
A67: UPN_Te4_013 | B67: 1 | C67: 36933222 | D67: AG | E67: A | F67: CSF3R | G67: ENST00000373103 | H67: frameshift_variant | I67: ggc/|p.Leu632fs/c.1893delC | J67: 4274 | K67: 85 | L67: 4366 | M67: 0.01946862116 | N67: 0 | O67: 0 | P67: 0 | Q67: 0 | R67: 1 | S67: 0 | T67: 0 | U67: 0 | V67: 1 | W67: NO | X67: NO | Y67: NO | Z67: NA | AA67: NA | AB67: NO | AC67: NO | AD67: NO | AE67: NO | AF67: NO | AG67: NO | AH67: NA | AI67: NA | AJ67: 35.35 | AK67: NA | AL67: 2234 | AM67: 0 | AN67: 2237 | AO67: 0 | AP67: 2040 | AQ67: 85 | AR67: 2129 | AS67: 0.03992484735 | AT67: 2 | AU67: 22 | AV67: 22 | AW67: Artifact (9)
A68: UPN_Te4_014 | B68: 1 | C68: 36933222 | D68: AG | E68: A | F68: CSF3R | G68: ENST00000373103 | H68: frameshift_variant | I68: ggc/|p.Leu632fs/c.1893delC | J68: 16881 | K68: 359 | L68: 17277 | M68: 0.02077907044 | N68: 0 | O68: 0 | P68: 0 | Q68: 0 | R68: 1 | S68: 0 | T68: 0 | U68: 0 | V68: 1 | W68: NO | X68: NO | Y68: NO | Z68: NA | AA68: NA | AB68: NO | AC68: NO | AD68: NO | AE68: NO | AF68: NO | AG68: NO | AH68: NA | AI68: NA | AJ68: 35.22 | AK68: NA | AL68: 9524 | AM68: 2 | AN68: 9552 | AO68: 0.0002093802345 | AP68: 7357 | AQ68: 357 | AR68: 7725 | AS68: 0.04621359223 | AT68: 2 | AU68: 22 | AV68: 22 | AW68: Artifact (7)
A69: UPN_Te4_015 | B69: 1 | C69: 36933222 | D69: AG | E69: A | F69: CSF3R | G69: ENST00000373103 | H69: frameshift_variant | I69: ggc/|p.Leu632fs/c.1893delC | J69: 12021 | K69: 304 | L69: 12351 | M69: 0.02461339163 | N69: 0 | O69: 0 | P69: 0 | Q69: 0 | R69: 1 | S69: 0 | T69: 0 | U69: 0 | V69: 1 | W69: NO | X69: NO | Y69: NO | Z69: NA | AA69: NA | AB69: NO | AC69: NO | AD69: NO | AE69: NO | AF69: NO | AG69: NO | AH69: NA | AI69: NA | AJ69: 35.19 | AK69: NA | AL69: 6648 | AM69: 5 | AN69: 6668 | AO69: 0.00074985003 | AP69: 5373 | AQ69: 299 | AR69: 5683 | AS69: 0.05261305648 | AT69: 2 | AU69: 22 | AV69: 22 | AW69: Artifact (7)
A70: UPN_Te4_016 | B70: 1 | C70: 36933222 | D70: AG | E70: A | F70: CSF3R | G70: ENST00000373103 | H70: frameshift_variant | I70: ggc/|p.Leu632fs/c.1893delC | J70: 12496 | K70: 287 | L70: 12811 | M70: 0.02240262275 | N70: 0 | O70: 0 | P70: 0 | Q70: 0 | R70: 1 | S70: 0 | T70: 0 | U70: 0 | V70: 1 | W70: NO | X70: NO | Y70: NO | Z70: NA | AA70: NA | AB70: NO | AC70: NO | AD70: NO | AE70: NO | AF70: NO | AG70: NO | AH70: NA | AI70: NA | AJ70: 35.22 | AK70: NA | AL70: 7345 | AM70: 2 | AN70: 7367 | AO70: 0.0002714809285 | AP70: 5151 | AQ70: 285 | AR70: 5444 | AS70: 0.05235121234 | AT70: 2 | AU70: 22 | AV70: 22 | AW70: Artifact (7)
A71: UPN_Te4_017 | B71: 1 | C71: 36933222 | D71: AG | E71: A | F71: CSF3R | G71: ENST00000373103 | H71: frameshift_variant | I71: ggc/|p.Leu632fs/c.1893delC | J71: 7077 | K71: 208 | L71: 7300 | M71: 0.02849315068 | N71: 0 | O71: 0 | P71: 0 | Q71: 0 | R71: 1 | S71: 0 | T71: 0 | U71: 0 | V71: 1 | W71: NO | X71: NO | Y71: NO | Z71: NA | AA71: NA | AB71: NO | AC71: NO | AD71: NO | AE71: NO | AF71: NO | AG71: NO | AH71: NA | AI71: NA | AJ71: 35.51 | AK71: NA | AL71: 2639 | AM71: 0 | AN71: 2644 | AO71: 0 | AP71: 4438 | AQ71: 208 | AR71: 4656 | AS71: 0.04467353952 | AT71: 2 | AU71: 22 | AV71: 22 | AW71: Artifact (7)
A72: UPN_Te4_018 | B72: 1 | C72: 36933222 | D72: AG | E72: A | F72: CSF3R | G72: ENST00000373103 | H72: frameshift_variant | I72: ggc/|p.Leu632fs/c.1893delC | J72: 16496 | K72: 357 | L72: 16899 | M72: 0.02112551039 | N72: 0 | O72: 0 | P72: 0 | Q72: 0 | R72: 1 | S72: 0 | T72: 0 | U72: 0 | V72: 1 | W72: NO | X72: NO | Y72: NO | Z72: NA | AA72: NA | AB72: NO | AC72: NO | AD72: NO | AE72: NO | AF72: NO | AG72: NO | AH72: NA | AI72: NA | AJ72: 35.21 | AK72: NA | AL72: 9222 | AM72: 0 | AN72: 9243 | AO72: 0 | AP72: 7274 | AQ72: 357 | AR72: 7656 | AS72: 0.04663009404 | AT72: 2 | AU72: 22 | AV72: 22 | AW72: Artifact (7)
A73: UPN_Te4_019 | B73: 1 | C73: 36933222 | D73: AG | E73: A | F73: CSF3R | G73: ENST00000373103 | H73: frameshift_variant | I73: ggc/|p.Leu632fs/c.1893delC | J73: 5835 | K73: 105 | L73: 5956 | M73: 0.0176292814 | N73: 0 | O73: 0 | P73: 0 | Q73: 0 | R73: 1 | S73: 0 | T73: 0 | U73: 0 | V73: 1 | W73: NO | X73: NO | Y73: NO | Z73: NA | AA73: NA | AB73: NO | AC73: NO | AD73: NO | AE73: NO | AF73: NO | AG73: NO | AH73: NA | AI73: NA | AJ73: 35.49 | AK73: NA | AL73: 3118 | AM73: 0 | AN73: 3120 | AO73: 0 | AP73: 2717 | AQ73: 105 | AR73: 2836 | AS73: 0.03702397743 | AT73: 2 | AU73: 22 | AV73: 22 | AW73: Artifact (9)
A74: UPN_Te4_020 | B74: 1 | C74: 36933222 | D74: AG | E74: A | F74: CSF3R | G74: ENST00000373103 | H74: frameshift_variant | I74: ggc/|p.Leu632fs/c.1893delC | J74: 14006 | K74: 363 | L74: 14389 | M74: 0.02522760442 | N74: 0 | O74: 0 | P74: 0 | Q74: 0 | R74: 1 | S74: 0 | T74: 0 | U74: 0 | V74: 1 | W74: NO | X74: NO | Y74: NO | Z74: NA | AA74: NA | AB74: NO | AC74: NO | AD74: NO | AE74: NO | AF74: NO | AG74: NO | AH74: NA | AI74: NA | AJ74: 35.52 | AK74: NA | AL74: 6187 | AM74: 0 | AN74: 6192 | AO74: 0 | AP74: 7819 | AQ74: 363 | AR74: 8197 | AS74: 0.04428449433 | AT74: 2 | AU74: 22 | AV74: 22 | AW74: Artifact (7)
A75: UPN_Te4_021 | B75: 1 | C75: 36933222 | D75: AG | E75: A | F75: CSF3R | G75: ENST00000373103 | H75: frameshift_variant | I75: ggc/|p.Leu632fs/c.1893delC | J75: 13877 | K75: 431 | L75: 14330 | M75: 0.03007676204 | N75: 0 | O75: 0 | P75: 0 | Q75: 0 | R75: 1 | S75: 0 | T75: 0 | U75: 0 | V75: 1 | W75: NO | X75: NO | Y75: NO | Z75: NA | AA75: NA | AB75: NO | AC75: NO | AD75: NO | AE75: NO | AF75: NO | AG75: NO | AH75: NA | AI75: NA | AJ75: 35.48 | AK75: NA | AL75: 7121 | AM75: 0 | AN75: 7125 | AO75: 0 | AP75: 6756 | AQ75: 431 | AR75: 7205 | AS75: 0.05981956974 | AT75: 2 | AU75: 22 | AV75: 22 | AW75: Artifact (7)
A76: UPN_Te4_022 | B76: 1 | C76: 36933222 | D76: AG | E76: A | F76: CSF3R | G76: ENST00000373103 | H76: frameshift_variant | I76: ggc/|p.Leu632fs/c.1893delC | J76: 10152 | K76: 296 | L76: 10461 | M76: 0.02829557404 | N76: 0 | O76: 0 | P76: 0 | Q76: 0 | R76: 1 | S76: 0 | T76: 0 | U76: 0 | V76: 1 | W76: NO | X76: NO | Y76: NO | Z76: NA | AA76: NA | AB76: NO | AC76: NO | AD76: NO | AE76: NO | AF76: NO | AG76: NO | AH76: NA | AI76: NA | AJ76: 35.56 | AK76: NA | AL76: 4661 | AM76: 2 | AN76: 4669 | AO76: 0.0004283572499 | AP76: 5491 | AQ76: 294 | AR76: 5792 | AS76: 0.05075966851 | AT76: 2 | AU76: 22 | AV76: 22 | AW76: Artifact (7)
A77: UPN_Te4_011 | B77: 1 | C77: 115256445 | D77: G | E77: T | F77: NRAS | G77: ENST00000369535 | H77: stop_gained | I77: tCa/tAa|p.Ser89*/c.266C>A | J77: 1298 | K77: 20 | L77: 1323 | M77: 0.01511715797 | N77: 0 | O77: 0 | P77: 0 | Q77: 0 | R77: 1 | S77: 0 | T77: 0 | U77: 1 | V77: 2 | W77: NO | X77: NO | Y77: NO | Z77: NO | AA77: O | AB77: NO | AC77: NO | AD77: NO | AE77: NO | AF77: NO | AG77: NO | AH77: NA | AI77: NA | AJ77: 34.9 | AK77: 33.6 | AL77: 1298 | AM77: 20 | AN77: 1323 | AO77: 0.01511715797 | AP77: 0 | AQ77: 0 | AR77: 0 | AS77: NA | AT77: 1 | AU77: 1 | AV77: 1 | AW77: Artifact (3)
A78: UPN_Te4_008 | B78: 1 | C78: 115256467 | D78: A | E78: T | F78: NRAS | G78: ENST00000369535 | H78: missense_variant | I78: Ttt/Att|p.Phe82Ile/c.244T>A | J78: 403 | K78: 25 | L78: 429 | M78: 0.05827505828 | N78: 0 | O78: 0 | P78: 0 | Q78: 0 | R78: 1 | S78: 0 | T78: 0 | U78: 1 | V78: 2 | W78: NO | X78: NO | Y78: NO | Z78: NO | AA78: O | AB78: NO | AC78: NO | AD78: NO | AE78: NO | AF78: NO | AG78: NO | AH78: -4.72 | AI78: Deleterious | AJ78: 35.4 | AK78: 34.88 | AL78: 403 | AM78: 25 | AN78: 429 | AO78: 0.05827505828 | AP78: 0 | AQ78: 0 | AR78: 0 | AS78: NA | AT78: 1 | AU78: 1 | AV78: 1 | AW78: Artifact (0)
A79: UPN_Te4_007 | B79: 1 | C79: 115256541 | D79: T | E79: A | F79: NRAS | G79: ENST00000369535 | H79: missense_variant | I79: gAt/gTt|p.Asp57Val/c.170A>T | J79: 902 | K79: 64 | L79: 969 | M79: 0.06604747162 | N79: 0 | O79: 0 | P79: 0 | Q79: 1 | R79: 1 | S79: 0 | T79: 0 | U79: 0 | V79: 2 | W79: NO | X79: NO | Y79: NO | Z79: NA | AA79: NA | AB79: NO | AC79: NO | AD79: NO | AE79: NO | AF79: NO | AG79: NO | AH79: -8.57 | AI79: Deleterious | AJ79: 31.45 | AK79: 27.28 | AL79: 894 | AM79: 64 | AN79: 961 | AO79: 0.06659729448 | AP79: 8 | AQ79: 0 | AR79: 8 | AS79: 0 | AT79: 1 | AU79: 1 | AV79: 1 | AW79: Artifact (0)
A80: UPN_Te4_001 | B80: 1 | C80: 115258733 | D80: T | E80: C | F80: NRAS | G80: ENST00000369535 | H80: missense_variant | I80: Agc/Ggc|p.Ser17Gly/c.49A>G | J80: 26712 | K80: 276 | L80: 27083 | M80: 0.01019089466 | N80: 0 | O80: 0 | P80: 0 | Q80: 1 | R80: 1 | S80: 0 | T80: 0 | U80: 1 | V80: 3 | W80: NO | X80: NO | Y80: NO | Z80: NO | AA80: O | AB80: NO | AC80: NO | AD80: NO | AE80: NO | AF80: NO | AG80: NO | AH80: -3.515 | AI80: Deleterious | AJ80: 33.33 | AK80: 32.71 | AL80: 26712 | AM80: 276 | AN80: 27083 | AO80: 0.01019089466 | AP80: 0 | AQ80: 0 | AR80: 0 | AS80: NA | AT80: 1 | AU80: 3 | AV80: 3 | AW80: Artifact (0)
A81: UPN_Te4_013 | B81: 1 | C81: 115258733 | D81: T | E81: C | F81: NRAS | G81: ENST00000369535 | H81: missense_variant | I81: Agc/Ggc|p.Ser17Gly/c.49A>G | J81: 14085 | K81: 158 | L81: 14304 | M81: 0.0110458613 | N81: 0 | O81: 0 | P81: 0 | Q81: 1 | R81: 1 | S81: 0 | T81: 0 | U81: 1 | V81: 3 | W81: NO | X81: NO | Y81: NO | Z81: NO | AA81: O | AB81: NO | AC81: NO | AD81: NO | AE81: NO | AF81: NO | AG81: NO | AH81: -3.515 | AI81: Deleterious | AJ81: 33.33 | AK81: 32.97 | AL81: 14085 | AM81: 158 | AN81: 14304 | AO81: 0.0110458613 | AP81: 0 | AQ81: 0 | AR81: 0 | AS81: NA | AT81: 1 | AU81: 3 | AV81: 3 | AW81: Artifact (0)
A82: UPN_Te4_016 | B82: 1 | C82: 115258733 | D82: T | E82: C | F82: NRAS | G82: ENST00000369535 | H82: missense_variant | I82: Agc/Ggc|p.Ser17Gly/c.49A>G | J82: 23781 | K82: 243 | L82: 24132 | M82: 0.01006961711 | N82: 0 | O82: 0 | P82: 0 | Q82: 1 | R82: 1 | S82: 0 | T82: 0 | U82: 1 | V82: 3 | W82: NO | X82: NO | Y82: NO | Z82: NO | AA82: O | AB82: NO | AC82: NO | AD82: NO | AE82: NO | AF82: NO | AG82: NO | AH82: -3.515 | AI82: Deleterious | AJ82: 33.43 | AK82: 33.14 | AL82: 23781 | AM82: 243 | AN82: 24132 | AO82: 0.01006961711 | AP82: 0 | AQ82: 0 | AR82: 0 | AS82: NA | AT82: 1 | AU82: 3 | AV82: 3 | AW82: Artifact (0)
A83: UPN_Te4_011 | B83: 2 | C83: 25462053 | D83: A | E83: T | F83: DNMT3A | G83: ENST00000264709 | H83: missense_variant | I83: gTg/gAg|p.Val785Glu/c.2354T>A | J83: 23397 | K83: 245 | L83: 23862 | M83: 0.01026737071 | N83: 0 | O83: 0 | P83: 0 | Q83: 0 | R83: 1 | S83: 0 | T83: 0 | U83: 0 | V83: 1 | W83: NO | X83: NO | Y83: NO | Z83: NA | AA83: NA | AB83: NO | AC83: NO | AD83: NO | AE83: NO | AF83: NO | AG83: NO | AH83: -5.132 | AI83: Deleterious | AJ83: 27.7 | AK83: 21.09 | AL83: 11859 | AM83: 63 | AN83: 12066 | AO83: 0.005221282944 | AP83: 11538 | AQ83: 182 | AR83: 11796 | AS83: 0.01542895897 | AT83: 3.503976404e-15 | AU83: 1 | AV83: 1 | AW83: Artifact (3)
A84: UPN_Te4_001 | B84: 2 | C84: 25464517 | D84: A | E84: T | F84: DNMT3A | G84: ENST00000264709 | H84: missense_variant | I84: Tgt/Agt|p.Cys666Ser/c.1996T>A | J84: 17023 | K84: 185 | L84: 17373 | M84: 0.01064870776 | N84: 0 | O84: 0 | P84: 0 | Q84: 0 | R84: 1 | S84: 0 | T84: 0 | U84: 0 | V84: 1 | W84: NO | X84: NO | Y84: NO | Z84: NO | AA84: O | AB84: NO | AC84: NO | AD84: NO | AE84: NO | AF84: NO | AG84: NO | AH84: -6.014 | AI84: Deleterious | AJ84: 28.92 | AK84: 27.98 | AL84: 8587 | AM84: 68 | AN84: 8770 | AO84: 0.007753705815 | AP84: 8436 | AQ84: 117 | AR84: 8603 | AS84: 0.01359990701 | AT84: 0.0002085862463 | AU84: 1 | AV84: 1 | AW84: Artifact (3)
A85: UPN_Te4_019 | B85: 2 | C85: 25466838 | D85: A | E85: C | F85: DNMT3A | G85: ENST00000264709 | H85: missense_variant | I85: gTt/gGt|p.Val622Gly/c.1865T>G | J85: 3703 | K85: 44 | L85: 3761 | M85: 0.01169901622 | N85: 0 | O85: 0 | P85: 0 | Q85: 0 | R85: 1 | S85: 0 | T85: 0 | U85: 0 | V85: 1 | W85: NO | X85: NO | Y85: NO | Z85: NO | AA85: O | AB85: NO | AC85: NO | AD85: NO | AE85: NO | AF85: NO | AG85: NO | AH85: -4.825 | AI85: Deleterious | AJ85: 23.66 | AK85: 17.5 | AL85: 3693 | AM85: 44 | AN85: 3751 | AO85: 0.01173020528 | AP85: 10 | AQ85: 0 | AR85: 10 | AS85: 0 | AT85: 1 | AU85: 2 | AV85: 2 | AW85: Artifact (3)
A86: UPN_Te4_022 | B86: 2 | C86: 25466838 | D86: A | E86: C | F86: DNMT3A | G86: ENST00000264709 | H86: missense_variant | I86: gTt/gGt|p.Val622Gly/c.1865T>G | J86: 6014 | K86: 66 | L86: 6105 | M86: 0.01081081081 | N86: 0 | O86: 0 | P86: 0 | Q86: 0 | R86: 1 | S86: 0 | T86: 0 | U86: 0 | V86: 1 | W86: NO | X86: NO | Y86: NO | Z86: NO | AA86: O | AB86: NO | AC86: NO | AD86: NO | AE86: NO | AF86: NO | AG86: NO | AH86: -4.825 | AI86: Deleterious | AJ86: 23.65 | AK86: 17.21 | AL86: 6011 | AM86: 66 | AN86: 6102 | AO86: 0.01081612586 | AP86: 3 | AQ86: 0 | AR86: 3 | AS86: 0 | AT86: 1 | AU86: 2 | AV86: 2 | AW86: Artifact (3)
A87: UPN_Te4_002 | B87: 2 | C87: 25469031 | D87: C | E87: G | F87: DNMT3A | G87: ENST00000264709 | H87: missense_variant | I87: aGa/aCa|p.Arg476Thr/c.1427G>C | J87: 15039 | K87: 228 | L87: 15337 | M87: 0.0148660103 | N87: 0 | O87: 0 | P87: 0 | Q87: 0 | R87: 1 | S87: 0 | T87: 0 | U87: 0 | V87: 1 | W87: NO | X87: NO | Y87: NO | Z87: NO | AA87: O | AB87: NO | AC87: NO | AD87: NO | AE87: NO | AF87: NO | AG87: NO | AH87: -3.331 | AI87: Deleterious | AJ87: 33.35 | AK87: 30.87 | AL87: 7391 | AM87: 220 | AN87: 7648 | AO87: 0.02876569038 | AP87: 7648 | AQ87: 8 | AR87: 7689 | AS87: 0.001040447392 | AT87: 5.179352579e-56 | AU87: 8 | AV87: 8 | AW87: Artifact (6)
A88: UPN_Te4_003 | B88: 2 | C88: 25469031 | D88: C | E88: G | F88: DNMT3A | G88: ENST00000264709 | H88: missense_variant | I88: aGa/aCa|p.Arg476Thr/c.1427G>C | J88: 11711 | K88: 152 | L88: 11902 | M88: 0.01277096286 | N88: 0 | O88: 0 | P88: 0 | Q88: 0 | R88: 1 | S88: 0 | T88: 0 | U88: 0 | V88: 1 | W88: NO | X88: NO | Y88: NO | Z88: NO | AA88: O | AB88: NO | AC88: NO | AD88: NO | AE88: NO | AF88: NO | AG88: NO | AH88: -3.331 | AI88: Deleterious | AJ88: 33.49 | AK88: 30.45 | AL88: 5491 | AM88: 145 | AN88: 5652 | AO88: 0.02565463553 | AP88: 6220 | AQ88: 7 | AR88: 6250 | AS88: 0.00112 | AT88: 2.160896269e-38 | AU88: 8 | AV88: 8 | AW88: Artifact (6)
A89: UPN_Te4_004 | B89: 2 | C89: 25469031 | D89: C | E89: G | F89: DNMT3A | G89: ENST00000264709 | H89: missense_variant | I89: aGa/aCa|p.Arg476Thr/c.1427G>C | J89: 10920 | K89: 121 | L89: 11070 | M89: 0.01093044264 | N89: 0 | O89: 0 | P89: 0 | Q89: 0 | R89: 1 | S89: 0 | T89: 0 | U89: 0 | V89: 1 | W89: NO | X89: NO | Y89: NO | Z89: NO | AA89: O | AB89: NO | AC89: NO | AD89: NO | AE89: NO | AF89: NO | AG89: NO | AH89: -3.331 | AI89: Deleterious | AJ89: 33.56 | AK89: 31.03 | AL89: 4705 | AM89: 118 | AN89: 4837 | AO89: 0.02439528633 | AP89: 6215 | AQ89: 3 | AR89: 6233 | AS89: 0.0004813091609 | AT89: 8.624810444e-39 | AU89: 8 | AV89: 8 | AW89: Artifact (6)
A90: UPN_Te4_005 | B90: 2 | C90: 25469031 | D90: C | E90: G | F90: DNMT3A | G90: ENST00000264709 | H90: missense_variant | I90: aGa/aCa|p.Arg476Thr/c.1427G>C | J90: 14838 | K90: 188 | L90: 15046 | M90: 0.01249501529 | N90: 0 | O90: 0 | P90: 0 | Q90: 0 | R90: 1 | S90: 0 | T90: 0 | U90: 0 | V90: 1 | W90: NO | X90: NO | Y90: NO | Z90: NO | AA90: O | AB90: NO | AC90: NO | AD90: NO | AE90: NO | AF90: NO | AG90: NO | AH90: -3.331 | AI90: Deleterious | AJ90: 33.51 | AK90: 31 | AL90: 6620 | AM90: 184 | AN90: 6816 | AO90: 0.02699530516 | AP90: 8218 | AQ90: 4 | AR90: 8230 | AS90: 0.0004860267315 | AT90: 5.990944139e-58 | AU90: 8 | AV90: 8 | AW90: Artifact (6)
A91: UPN_Te4_007 | B91: 2 | C91: 25469031 | D91: C | E91: G | F91: DNMT3A | G91: ENST00000264709 | H91: missense_variant | I91: aGa/aCa|p.Arg476Thr/c.1427G>C | J91: 19651 | K91: 311 | L91: 19994 | M91: 0.0155546664 | N91: 0 | O91: 0 | P91: 0 | Q91: 0 | R91: 1 | S91: 0 | T91: 0 | U91: 0 | V91: 1 | W91: NO | X91: NO | Y91: NO | Z91: NO | AA91: O | AB91: NO | AC91: NO | AD91: NO | AE91: NO | AF91: NO | AG91: NO | AH91: -3.331 | AI91: Deleterious | AJ91: 33.22 | AK91: 31.08 | AL91: 10238 | AM91: 302 | AN91: 10561 | AO91: 0.02859577692 | AP91: 9413 | AQ91: 9 | AR91: 9433 | AS91: 0.0009540973179 | AT91: 2.44806969e-71 | AU91: 8 | AV91: 8 | AW91: Artifact (6)
A92: UPN_Te4_008 | B92: 2 | C92: 25469031 | D92: C | E92: G | F92: DNMT3A | G92: ENST00000264709 | H92: missense_variant | I92: aGa/aCa|p.Arg476Thr/c.1427G>C | J92: 24597 | K92: 327 | L92: 24980 | M92: 0.01309047238 | N92: 0 | O92: 0 | P92: 0 | Q92: 0 | R92: 1 | S92: 0 | T92: 0 | U92: 0 | V92: 1 | W92: NO | X92: NO | Y92: NO | Z92: NO | AA92: O | AB92: NO | AC92: NO | AD92: NO | AE92: NO | AF92: NO | AG92: NO | AH92: -3.331 | AI92: Deleterious | AJ92: 33.39 | AK92: 30.91 | AL92: 11735 | AM92: 321 | AN92: 12080 | AO92: 0.02657284768 | AP92: 12862 | AQ92: 6 | AR92: 12900 | AS92: 0.0004651162791 | AT92: 2.593442475e-92 | AU92: 8 | AV92: 8 | AW92: Artifact (6)
A93: UPN_Te4_009 | B93: 2 | C93: 25469031 | D93: C | E93: G | F93: DNMT3A | G93: ENST00000264709 | H93: missense_variant | I93: aGa/aCa|p.Arg476Thr/c.1427G>C | J93: 7518 | K93: 135 | L93: 7666 | M93: 0.01761022698 | N93: 0 | O93: 0 | P93: 0 | Q93: 0 | R93: 1 | S93: 0 | T93: 0 | U93: 0 | V93: 1 | W93: NO | X93: NO | Y93: NO | Z93: NO | AA93: O | AB93: NO | AC93: NO | AD93: NO | AE93: NO | AF93: NO | AG93: NO | AH93: -3.331 | AI93: Deleterious | AJ93: 33.4 | AK93: 31.08 | AL93: 3585 | AM93: 132 | AN93: 3724 | AO93: 0.03544575725 | AP93: 3933 | AQ93: 3 | AR93: 3942 | AS93: 0.0007610350076 | AT93: 1.132605548e-37 | AU93: 8 | AV93: 8 | AW93: Artifact (6)
A94: UPN_Te4_010 | B94: 2 | C94: 25469031 | D94: C | E94: G | F94: DNMT3A | G94: ENST00000264709 | H94: missense_variant | I94: aGa/aCa|p.Arg476Thr/c.1427G>C | J94: 16349 | K94: 272 | L94: 16699 | M94: 0.0162884005 | N94: 0 | O94: 0 | P94: 0 | Q94: 0 | R94: 1 | S94: 0 | T94: 0 | U94: 0 | V94: 1 | W94: NO | X94: NO | Y94: NO | Z94: NO | AA94: O | AB94: NO | AC94: NO | AD94: NO | AE94: NO | AF94: NO | AG94: NO | AH94: -3.331 | AI94: Deleterious | AJ94: 33.26 | AK94: 30.99 | AL94: 8546 | AM94: 270 | AN94: 8884 | AO94: 0.03039171544 | AP94: 7803 | AQ94: 2 | AR94: 7815 | AS94: 0.0002559181062 | AT94: 6.261741566e-72 | AU94: 8 | AV94: 8 | AW94: Artifact (6)
A95: UPN_Te4_001 | B95: 2 | C95: 25469083 | D95: T | E95: C | F95: DNMT3A | G95: ENST00000264709 | H95: missense_variant | I95: Aag/Gag|p.Lys459Glu/c.1375A>G | J95: 21332 | K95: 625 | L95: 22023 | M95: 0.02837942151 | N95: 0 | O95: 0 | P95: 0 | Q95: 0 | R95: 1 | S95: 1 | T95: 0 | U95: 0 | V95: 2 | W95: NO | X95: NO | Y95: NO | Z95: NO | AA95: O | AB95: NO | AC95: NO | AD95: NO | AE95: NO | AF95: NO | AG95: NO | AH95: -1.273 | AI95: Tolerated | AJ95: 33.63 | AK95: 31.55 | AL95: 14192 | AM95: 41 | AN95: 14281 | AO95: 0.002870947413 | AP95: 7140 | AQ95: 584 | AR95: 7742 | AS95: 0.07543270473 | AT95: 2 | AU95: 23 | AV95: 23 | AW95: Artifact (6)
A96: UPN_Te4_002 | B96: 2 | C96: 25469083 | D96: T | E96: C | F96: DNMT3A | G96: ENST00000264709 | H96: missense_variant | I96: Aag/Gag|p.Lys459Glu/c.1375A>G | J96: 13727 | K96: 1529 | L96: 15307 | M96: 0.0998889397 | N96: 0 | O96: 1 | P96: 0 | Q96: 0 | R96: 1 | S96: 1 | T96: 0 | U96: 0 | V96: 3 | W96: NO | X96: NO | Y96: NO | Z96: NO | AA96: O | AB96: NO | AC96: NO | AD96: NO | AE96: NO | AF96: NO | AG96: NO | AH96: -1.273 | AI96: Tolerated | AJ96: 33.47 | AK96: 31.64 | AL96: 7641 | AM96: 25 | AN96: 7699 | AO96: 0.003247174958 | AP96: 6086 | AQ96: 1504 | AR96: 7608 | AS96: 0.1976866456 | AT96: 2 | AU96: 23 | AV96: 23 | AW96: Artifact (6)
A97: UPN_Te4_003 | B97: 2 | C97: 25469083 | D97: T | E97: C | F97: DNMT3A | G97: ENST00000264709 | H97: missense_variant | I97: Aag/Gag|p.Lys459Glu/c.1375A>G | J97: 10583 | K97: 1278 | L97: 11905 | M97: 0.107349853 | N97: 0 | O97: 1 | P97: 0 | Q97: 0 | R97: 1 | S97: 1 | T97: 0 | U97: 0 | V97: 3 | W97: NO | X97: NO | Y97: NO | Z97: NO | AA97: O | AB97: NO | AC97: NO | AD97: NO | AE97: NO | AF97: NO | AG97: NO | AH97: -1.273 | AI97: Tolerated | AJ97: 33.52 | AK97: 31.76 | AL97: 5657 | AM97: 12 | AN97: 5703 | AO97: 0.002104155708 | AP97: 4926 | AQ97: 1266 | AR97: 6202 | AS97: 0.2041277007 | AT97: 2 | AU97: 23 | AV97: 23 | AW97: Artifact (5)
A98: UPN_Te4_004 | B98: 2 | C98: 25469083 | D98: T | E98: C | F98: DNMT3A | G98: ENST00000264709 | H98: missense_variant | I98: Aag/Gag|p.Lys459Glu/c.1375A>G | J98: 9708 | K98: 1341 | L98: 11076 | M98: 0.1210725894 | N98: 0 | O98: 1 | P98: 0 | Q98: 0 | R98: 1 | S98: 1 | T98: 0 | U98: 0 | V98: 3 | W98: NO | X98: NO | Y98: NO | Z98: NO | AA98: O | AB98: NO | AC98: NO | AD98: NO | AE98: NO | AF98: NO | AG98: NO | AH98: -1.273 | AI98: Tolerated | AJ98: 33.3 | AK98: 31.45 | AL98: 4884 | AM98: 15 | AN98: 4917 | AO98: 0.003050640635 | AP98: 4824 | AQ98: 1326 | AR98: 6159 | AS98: 0.2152946907 | AT98: 2 | AU98: 23 | AV98: 23 | AW98: Artifact (5)
A99: UPN_Te4_005 | B99: 2 | C99: 25469083 | D99: T | E99: C | F99: DNMT3A | G99: ENST00000264709 | H99: missense_variant | I99: Aag/Gag|p.Lys459Glu/c.1375A>G | J99: 13315 | K99: 1661 | L99: 15020 | M99: 0.1105858855 | N99: 0 | O99: 1 | P99: 0 | Q99: 0 | R99: 1 | S99: 1 | T99: 0 | U99: 0 | V99: 3 | W99: NO | X99: NO | Y99: NO | Z99: NO | AA99: O | AB99: NO | AC99: NO | AD99: NO | AE99: NO | AF99: NO | AG99: NO | AH99: -1.273 | AI99: Tolerated | AJ99: 33.42 | AK99: 31.62 | AL99: 6824 | AM99: 19 | AN99: 6871 | AO99: 0.002765245234 | AP99: 6491 | AQ99: 1642 | AR99: 8149 | AS99: 0.2014971162 | AT99: 2 | AU99: 23 | AV99: 23 | AW99: Artifact (5)
A100: UPN_Te4_006 | B100: 2 | C100: 25469083 | D100: T | E100: C | F100: DNMT3A | G100: ENST00000264709 | H100: missense_variant | I100: Aag/Gag|p.Lys459Glu/c.1375A>G | J100: 14436 | K100: 1773 | L100: 16256 | M100: 0.1090674213 | N100: 0 | O100: 1 | P100: 0 | Q100: 0 | R100: 1 | S100: 1 | T100: 0 | U100: 0 | V100: 3 | W100: NO | X100: NO | Y100: NO | Z100: NO | AA100: O | AB100: NO | AC100: NO | AD100: NO | AE100: NO | AF100: NO | AG100: NO | AH100: -1.273 | AI100: Tolerated | AJ100: 33.34 | AK100: 31.67 | AL100: 7122 | AM100: 16 | AN100: 7165 | AO100: 0.00223307746 | AP100: 7314 | AQ100: 1757 | AR100: 9091 | AS100: 0.1932680673 | AT100: 2 | AU100: 23 | AV100: 23 | AW100: Artifact (5)
A101: UPN_Te4_007 | B101: 2 | C101: 25469083 | D101: T | E101: C | F101: DNMT3A | G101: ENST00000264709 | H101: missense_variant | I101: Aag/Gag|p.Lys459Glu/c.1375A>G | J101: 17928 | K101: 2057 | L101: 20040 | M101: 0.1026447106 | N101: 0 | O101: 1 | P101: 0 | Q101: 0 | R101: 1 | S101: 1 | T101: 0 | U101: 0 | V101: 3 | W101: NO | X101: NO | Y101: NO | Z101: NO | AA101: O | AB101: NO | AC101: NO | AD101: NO | AE101: NO | AF101: NO | AG101: NO | AH101: -1.273 | AI101: Tolerated | AJ101: 33.62 | AK101: 31.64 | AL101: 10590 | AM101: 34 | AN101: 10667 | AO101: 0.003187400394 | AP101: 7338 | AQ101: 2023 | AR101: 9373 | AS101: 0.215832711 | AT101: 2 | AU101: 23 | AV101: 23 | AW101: Artifact (5)
A102: UPN_Te4_008 | B102: 2 | C102: 25469083 | D102: T | E102: C | F102: DNMT3A | G102: ENST00000264709 | H102: missense_variant | I102: Aag/Gag|p.Lys459Glu/c.1375A>G | J102: 22190 | K102: 2749 | L102: 25014 | M102: 0.1098984569 | N102: 0 | O102: 1 | P102: 0 | Q102: 0 | R102: 1 | S102: 1 | T102: 0 | U102: 0 | V102: 3 | W102: NO | X102: NO | Y102: NO | Z102: NO | AA102: O | AB102: NO | AC102: NO | AD102: NO | AE102: NO | AF102: NO | AG102: NO | AH102: -1.273 | AI102: Tolerated | AJ102: 33.48 | AK102: 31.63 | AL102: 12104 | AM102: 27 | AN102: 12164 | AO102: 0.002219664584 | AP102: 10086 | AQ102: 2722 | AR102: 12850 | AS102: 0.2118287938 | AT102: 2 | AU102: 23 | AV102: 23 | AW102: Artifact (5)
A103: UPN_Te4_009 | B103: 2 | C103: 25469083 | D103: T | E103: C | F103: DNMT3A | G103: ENST00000264709 | H103: missense_variant | I103: Aag/Gag|p.Lys459Glu/c.1375A>G | J103: 6709 | K103: 876 | L103: 7605 | M103: 0.1151873767 | N103: 0 | O103: 1 | P103: 0 | Q103: 0 | R103: 1 | S103: 1 | T103: 0 | U103: 0 | V103: 3 | W103: NO | X103: NO | Y103: NO | Z103: NO | AA103: O | AB103: NO | AC103: NO | AD103: NO | AE103: NO | AF103: NO | AG103: NO | AH103: -1.273 | AI103: Tolerated | AJ103: 33.54 | AK103: 31.66 | AL103: 3723 | AM103: 17 | AN103: 3754 | AO103: 0.00452850293 | AP103: 2986 | AQ103: 859 | AR103: 3851 | AS103: 0.2230589457 | AT103: 2 | AU103: 23 | AV103: 23 | AW103: Artifact (5)
A104: UPN_Te4_010 | B104: 2 | C104: 25469083 | D104: T | E104: C | F104: DNMT3A | G104: ENST00000264709 | H104: missense_variant | I104: Aag/Gag|p.Lys459Glu/c.1375A>G | J104: 14924 | K104: 1721 | L104: 16690 | M104: 0.1031156381 | N104: 0 | O104: 1 | P104: 0 | Q104: 0 | R104: 1 | S104: 1 | T104: 0 | U104: 0 | V104: 3 | W104: NO | X104: NO | Y104: NO | Z104: NO | AA104: O | AB104: NO | AC104: NO | AD104: NO | AE104: NO | AF104: NO | AG104: NO | AH104: -1.273 | AI104: Tolerated | AJ104: 33.64 | AK104: 31.68 | AL104: 8899 | AM104: 19 | AN104: 8945 | AO104: 0.002124091671 | AP104: 6025 | AQ104: 1702 | AR104: 7745 | AS104: 0.2197546804 | AT104: 2 | AU104: 23 | AV104: 23 | AW104: Artifact (5)
A105: UPN_Te4_011 | B105: 2 | C105: 25469083 | D105: T | E105: C | F105: DNMT3A | G105: ENST00000264709 | H105: missense_variant | I105: Aag/Gag|p.Lys459Glu/c.1375A>G | J105: 23645 | K105: 968 | L105: 24724 | M105: 0.03915224074 | N105: 0 | O105: 0 | P105: 0 | Q105: 0 | R105: 1 | S105: 1 | T105: 0 | U105: 0 | V105: 2 | W105: NO | X105: NO | Y105: NO | Z105: NO | AA105: O | AB105: NO | AC105: NO | AD105: NO | AE105: NO | AF105: NO | AG105: NO | AH105: -1.273 | AI105: Tolerated | AJ105: 33.72 | AK105: 31.67 | AL105: 16175 | AM105: 38 | AN105: 16294 | AO105: 0.002332146803 | AP105: 7470 | AQ105: 930 | AR105: 8430 | AS105: 0.1103202847 | AT105: 2 | AU105: 23 | AV105: 23 | AW105: Artifact (6)
A106: UPN_Te4_012 | B106: 2 | C106: 25469083 | D106: T | E106: C | F106: DNMT3A | G106: ENST00000264709 | H106: missense_variant | I106: Aag/Gag|p.Lys459Glu/c.1375A>G | J106: 9982 | K106: 251 | L106: 10241 | M106: 0.02450932526 | N106: 0 | O106: 0 | P106: 0 | Q106: 0 | R106: 1 | S106: 1 | T106: 0 | U106: 0 | V106: 2 | W106: NO | X106: NO | Y106: NO | Z106: NO | AA106: O | AB106: NO | AC106: NO | AD106: NO | AE106: NO | AF106: NO | AG106: NO | AH106: -1.273 | AI106: Tolerated | AJ106: 33.9 | AK106: 31.43 | AL106: 6133 | AM106: 5 | AN106: 6143 | AO106: 0.0008139345597 | AP106: 3849 | AQ106: 246 | AR106: 4098 | AS106: 0.06002928258 | AT106: 2 | AU106: 23 | AV106: 23 | AW106: Artifact (6)
A107: UPN_Te4_013 | B107: 2 | C107: 25469083 | D107: T | E107: C | F107: DNMT3A | G107: ENST00000264709 | H107: missense_variant | I107: Aag/Gag|p.Lys459Glu/c.1375A>G | J107: 5902 | K107: 180 | L107: 6110 | M107: 0.0294599018 | N107: 0 | O107: 0 | P107: 0 | Q107: 0 | R107: 1 | S107: 1 | T107: 0 | U107: 0 | V107: 2 | W107: NO | X107: NO | Y107: NO | Z107: NO | AA107: O | AB107: NO | AC107: NO | AD107: NO | AE107: NO | AF107: NO | AG107: NO | AH107: -1.273 | AI107: Tolerated | AJ107: 33.77 | AK107: 31.74 | AL107: 4077 | AM107: 9 | AN107: 4104 | AO107: 0.002192982456 | AP107: 1825 | AQ107: 171 | AR107: 2006 | AS107: 0.0852442672 | AT107: 2 | AU107: 23 | AV107: 23 | AW107: Artifact (6)
A108: UPN_Te4_014 | B108: 2 | C108: 25469083 | D108: T | E108: C | F108: DNMT3A | G108: ENST00000264709 | H108: missense_variant | I108: Aag/Gag|p.Lys459Glu/c.1375A>G | J108: 24239 | K108: 777 | L108: 25127 | M108: 0.03092291161 | N108: 0 | O108: 0 | P108: 0 | Q108: 0 | R108: 1 | S108: 1 | T108: 0 | U108: 0 | V108: 2 | W108: NO | X108: NO | Y108: NO | Z108: NO | AA108: O | AB108: NO | AC108: NO | AD108: NO | AE108: NO | AF108: NO | AG108: NO | AH108: -1.273 | AI108: Tolerated | AJ108: 33.72 | AK108: 31.72 | AL108: 17030 | AM108: 49 | AN108: 17173 | AO108: 0.002853316252 | AP108: 7209 | AQ108: 728 | AR108: 7954 | AS108: 0.09152627609 | AT108: 2 | AU108: 23 | AV108: 23 | AW108: Artifact (6)
A109: UPN_Te4_015 | B109: 2 | C109: 25469083 | D109: T | E109: C | F109: DNMT3A | G109: ENST00000264709 | H109: missense_variant | I109: Aag/Gag|p.Lys459Glu/c.1375A>G | J109: 17418 | K109: 624 | L109: 18104 | M109: 0.03446752099 | N109: 0 | O109: 0 | P109: 0 | Q109: 0 | R109: 1 | S109: 1 | T109: 0 | U109: 0 | V109: 2 | W109: NO | X109: NO | Y109: NO | Z109: NO | AA109: O | AB109: NO | AC109: NO | AD109: NO | AE109: NO | AF109: NO | AG109: NO | AH109: -1.273 | AI109: Tolerated | AJ109: 33.62 | AK109: 31.79 | AL109: 11831 | AM109: 32 | AN109: 11914 | AO109: 0.002685915729 | AP109: 5587 | AQ109: 592 | AR109: 6190 | AS109: 0.09563812601 | AT109: 2 | AU109: 23 | AV109: 23 | AW109: Artifact (6)
A110: UPN_Te4_016 | B110: 2 | C110: 25469083 | D110: T | E110: C | F110: DNMT3A | G110: ENST00000264709 | H110: missense_variant | I110: Aag/Gag|p.Lys459Glu/c.1375A>G | J110: 18329 | K110: 603 | L110: 19036 | M110: 0.03167682286 | N110: 0 | O110: 0 | P110: 0 | Q110: 0 | R110: 1 | S110: 1 | T110: 0 | U110: 0 | V110: 2 | W110: NO | X110: NO | Y110: NO | Z110: NO | AA110: O | AB110: NO | AC110: NO | AD110: NO | AE110: NO | AF110: NO | AG110: NO | AH110: -1.273 | AI110: Tolerated | AJ110: 33.66 | AK110: 31.45 | AL110: 12328 | AM110: 40 | AN110: 12465 | AO110: 0.003208985158 | AP110: 6001 | AQ110: 563 | AR110: 6571 | AS110: 0.08567950084 | AT110: 2 | AU110: 23 | AV110: 23 | AW110: Artifact (6)
A111: UPN_Te4_017 | B111: 2 | C111: 25469083 | D111: T | E111: C | F111: DNMT3A | G111: ENST00000264709 | H111: missense_variant | I111: Aag/Gag|p.Lys459Glu/c.1375A>G | J111: 9048 | K111: 252 | L111: 9321 | M111: 0.02703572578 | N111: 0 | O111: 0 | P111: 0 | Q111: 0 | R111: 1 | S111: 1 | T111: 0 | U111: 0 | V111: 2 | W111: NO | X111: NO | Y111: NO | Z111: NO | AA111: O | AB111: NO | AC111: NO | AD111: NO | AE111: NO | AF111: NO | AG111: NO | AH111: -1.273 | AI111: Tolerated | AJ111: 33.77 | AK111: 31.72 | AL111: 5188 | AM111: 10 | AN111: 5209 | AO111: 0.001919754271 | AP111: 3860 | AQ111: 242 | AR111: 4112 | AS111: 0.05885214008 | AT111: 2 | AU111: 23 | AV111: 23 | AW111: Artifact (6)
A112: UPN_Te4_018 | B112: 2 | C112: 25469083 | D112: T | E112: C | F112: DNMT3A | G112: ENST00000264709 | H112: missense_variant | I112: Aag/Gag|p.Lys459Glu/c.1375A>G | J112: 22787 | K112: 836 | L112: 23736 | M112: 0.03522076171 | N112: 0 | O112: 0 | P112: 0 | Q112: 0 | R112: 1 | S112: 1 | T112: 0 | U112: 0 | V112: 2 | W112: NO | X112: NO | Y112: NO | Z112: NO | AA112: O | AB112: NO | AC112: NO | AD112: NO | AE112: NO | AF112: NO | AG112: NO | AH112: -1.273 | AI112: Tolerated | AJ112: 33.65 | AK112: 31.76 | AL112: 15445 | AM112: 56 | AN112: 15600 | AO112: 0.00358974359 | AP112: 7342 | AQ112: 780 | AR112: 8136 | AS112: 0.09587020649 | AT112: 2 | AU112: 23 | AV112: 23 | AW112: Artifact (6)
A113: UPN_Te4_019 | B113: 2 | C113: 25469083 | D113: T | E113: C | F113: DNMT3A | G113: ENST00000264709 | H113: missense_variant | I113: Aag/Gag|p.Lys459Glu/c.1375A>G | J113: 8775 | K113: 108 | L113: 8890 | M113: 0.01214848144 | N113: 0 | O113: 0 | P113: 0 | Q113: 0 | R113: 1 | S113: 1 | T113: 0 | U113: 1 | V113: 3 | W113: NO | X113: NO | Y113: NO | Z113: NO | AA113: O | AB113: NO | AC113: NO | AD113: NO | AE113: NO | AF113: NO | AG113: NO | AH113: -1.273 | AI113: Tolerated | AJ113: 33.88 | AK113: 32.13 | AL113: 5268 | AM113: 10 | AN113: 5284 | AO113: 0.001892505678 | AP113: 3507 | AQ113: 98 | AR113: 3606 | AS113: 0.02717692734 | AT113: 2 | AU113: 23 | AV113: 23 | AW113: Artifact (8)
A114: UPN_Te4_020 | B114: 2 | C114: 25469083 | D114: T | E114: C | F114: DNMT3A | G114: ENST00000264709 | H114: missense_variant | I114: Aag/Gag|p.Lys459Glu/c.1375A>G | J114: 15575 | K114: 432 | L114: 16025 | M114: 0.02695787832 | N114: 0 | O114: 0 | P114: 0 | Q114: 0 | R114: 1 | S114: 1 | T114: 0 | U114: 0 | V114: 2 | W114: NO | X114: NO | Y114: NO | Z114: NO | AA114: O | AB114: NO | AC114: NO | AD114: NO | AE114: NO | AF114: NO | AG114: NO | AH114: -1.273 | AI114: Tolerated | AJ114: 33.85 | AK114: 31.7 | AL114: 9273 | AM114: 21 | AN114: 9305 | AO114: 0.002256851155 | AP114: 6302 | AQ114: 411 | AR114: 6720 | AS114: 0.06116071429 | AT114: 2 | AU114: 23 | AV114: 23 | AW114: Artifact (6)
A115: UPN_Te4_021 | B115: 2 | C115: 25469083 | D115: T | E115: C | F115: DNMT3A | G115: ENST00000264709 | H115: missense_variant | I115: Aag/Gag|p.Lys459Glu/c.1375A>G | J115: 19359 | K115: 437 | L115: 19830 | M115: 0.0220373172 | N115: 0 | O115: 0 | P115: 0 | Q115: 0 | R115: 1 | S115: 1 | T115: 0 | U115: 0 | V115: 2 | W115: NO | X115: NO | Y115: NO | Z115: NO | AA115: O | AB115: NO | AC115: NO | AD115: NO | AE115: NO | AF115: NO | AG115: NO | AH115: -1.273 | AI115: Tolerated | AJ115: 33.88 | AK115: 31.78 | AL115: 11476 | AM115: 29 | AN115: 11521 | AO115: 0.002517142609 | AP115: 7883 | AQ115: 408 | AR115: 8309 | AS115: 0.04910338188 | AT115: 2 | AU115: 23 | AV115: 23 | AW115: Artifact (6)
A116: UPN_Te4_022 | B116: 2 | C116: 25469083 | D116: T | E116: C | F116: DNMT3A | G116: ENST00000264709 | H116: missense_variant | I116: Aag/Gag|p.Lys459Glu/c.1375A>G | J116: 13986 | K116: 375 | L116: 14379 | M116: 0.02607969956 | N116: 0 | O116: 0 | P116: 0 | Q116: 0 | R116: 1 | S116: 1 | T116: 0 | U116: 0 | V116: 2 | W116: NO | X116: NO | Y116: NO | Z116: NO | AA116: O | AB116: NO | AC116: NO | AD116: NO | AE116: NO | AF116: NO | AG116: NO | AH116: -1.273 | AI116: Tolerated | AJ116: 33.86 | AK116: 31.68 | AL116: 8269 | AM116: 27 | AN116: 8307 | AO116: 0.003250270856 | AP116: 5717 | AQ116: 348 | AR116: 6072 | AS116: 0.05731225296 | AT116: 2 | AU116: 23 | AV116: 23 | AW116: Artifact (6)
A117: UPN_Te4_002 | B117: 2 | C117: 25469529 | D117: GC | E117: G | F117: DNMT3A | G117: ENST00000264709 | H117: frameshift_variant | I117: ctg/|p.Gly413fs/c.1233delG | J117: 5315 | K117: 56 | L117: 5385 | M117: 0.0103992572 | N117: 0 | O117: 0 | P117: 0 | Q117: 0 | R117: 1 | S117: 0 | T117: 0 | U117: 1 | V117: 2 | W117: 0.1457 | X117: NO | Y117: NO | Z117: NA | AA117: NA | AB117: NO | AC117: NO | AD117: NO | AE117: 4.119e-05 | AF117: NO | AG117: NO | AH117: NA | AI117: NA | AJ117: 35.39 | AK117: NA | AL117: 5315 | AM117: 56 | AN117: 5385 | AO117: 0.0103992572 | AP117: 0 | AQ117: 0 | AR117: 0 | AS117: NA | AT117: 1 | AU117: 20 | AV117: 20 | AW117: Artifact (7)
A118: UPN_Te4_003 | B118: 2 | C118: 25469529 | D118: GC | E118: G | F118: DNMT3A | G118: ENST00000264709 | H118: frameshift_variant | I118: ctg/|p.Gly413fs/c.1233delG | J118: 4157 | K118: 50 | L118: 4222 | M118: 0.01184272856 | N118: 0 | O118: 0 | P118: 0 | Q118: 0 | R118: 1 | S118: 0 | T118: 0 | U118: 1 | V118: 2 | W118: 0.1457 | X118: NO | Y118: NO | Z118: NA | AA118: NA | AB118: NO | AC118: NO | AD118: NO | AE118: 4.119e-05 | AF118: NO | AG118: NO | AH118: NA | AI118: NA | AJ118: 35.48 | AK118: NA | AL118: 4157 | AM118: 50 | AN118: 4222 | AO118: 0.01184272856 | AP118: 0 | AQ118: 0 | AR118: 0 | AS118: NA | AT118: 1 | AU118: 20 | AV118: 20 | AW118: Artifact (7)
A119: UPN_Te4_004 | B119: 2 | C119: 25469529 | D119: GC | E119: G | F119: DNMT3A | G119: ENST00000264709 | H119: frameshift_variant | I119: ctg/|p.Gly413fs/c.1233delG | J119: 4485 | K119: 66 | L119: 4579 | M119: 0.01441362743 | N119: 0 | O119: 0 | P119: 0 | Q119: 0 | R119: 1 | S119: 0 | T119: 0 | U119: 1 | V119: 2 | W119: 0.1457 | X119: NO | Y119: NO | Z119: NA | AA119: NA | AB119: NO | AC119: NO | AD119: NO | AE119: 4.119e-05 | AF119: NO | AG119: NO | AH119: NA | AI119: NA | AJ119: 35.43 | AK119: NA | AL119: 4485 | AM119: 66 | AN119: 4579 | AO119: 0.01441362743 | AP119: 0 | AQ119: 0 | AR119: 0 | AS119: NA | AT119: 1 | AU119: 20 | AV119: 20 | AW119: Artifact (7)
A120: UPN_Te4_005 | B120: 2 | C120: 25469529 | D120: GC | E120: G | F120: DNMT3A | G120: ENST00000264709 | H120: frameshift_variant | I120: ggc/|p.Gly413fs/c.1238delG | J120: 6129 | K120: 64 | L120: 6212 | M120: 0.01030264005 | N120: 0 | O120: 0 | P120: 0 | Q120: 0 | R120: 0 | S120: 0 | T120: 0 | U120: 1 | V120: 1 | W120: 0.1457 | X120: NO | Y120: NO | Z120: NA | AA120: NA | AB120: NO | AC120: NO | AD120: NO | AE120: 4.119e-05 | AF120: NO | AG120: NO | AH120: NA | AI120: NA | AJ120: 35.46 | AK120: NA | AL120: 6129 | AM120: 64 | AN120: 6212 | AO120: 0.01030264005 | AP120: 0 | AQ120: 0 | AR120: 0 | AS120: NA | AT120: 1 | AU120: 20 | AV120: 20 | AW120: Artifact (8)
A121: UPN_Te4_006 | B121: 2 | C121: 25469529 | D121: GC | E121: G | F121: DNMT3A | G121: ENST00000264709 | H121: frameshift_variant | I121: ctg/|p.Gly413fs/c.1233delG | J121: 6347 | K121: 69 | L121: 6432 | M121: 0.01072761194 | N121: 0 | O121: 0 | P121: 0 | Q121: 0 | R121: 1 | S121: 0 | T121: 0 | U121: 1 | V121: 2 | W121: 0.1457 | X121: NO | Y121: NO | Z121: NA | AA121: NA | AB121: NO | AC121: NO | AD121: NO | AE121: 4.119e-05 | AF121: NO | AG121: NO | AH121: NA | AI121: NA | AJ121: 35.51 | AK121: NA | AL121: 6347 | AM121: 69 | AN121: 6432 | AO121: 0.01072761194 | AP121: 0 | AQ121: 0 | AR121: 0 | AS121: NA | AT121: 1 | AU121: 20 | AV121: 20 | AW121: Artifact (7)
A122: UPN_Te4_007 | B122: 2 | C122: 25469529 | D122: GC | E122: G | F122: DNMT3A | G122: ENST00000264709 | H122: frameshift_variant | I122: ctg/|p.Gly413fs/c.1233delG | J122: 6603 | K122: 78 | L122: 6691 | M122: 0.01165745031 | N122: 0 | O122: 0 | P122: 0 | Q122: 0 | R122: 1 | S122: 0 | T122: 0 | U122: 1 | V122: 2 | W122: 0.1457 | X122: NO | Y122: NO | Z122: NA | AA122: NA | AB122: NO | AC122: NO | AD122: NO | AE122: 4.119e-05 | AF122: NO | AG122: NO | AH122: NA | AI122: NA | AJ122: 35.39 | AK122: NA | AL122: 6603 | AM122: 78 | AN122: 6691 | AO122: 0.01165745031 | AP122: 0 | AQ122: 0 | AR122: 0 | AS122: NA | AT122: 1 | AU122: 20 | AV122: 20 | AW122: Artifact (7)
A123: UPN_Te4_008 | B123: 2 | C123: 25469529 | D123: GC | E123: G | F123: DNMT3A | G123: ENST00000264709 | H123: frameshift_variant | I123: ctg/|p.Gly413fs/c.1233delG | J123: 9175 | K123: 121 | L123: 9331 | M123: 0.0129675276 | N123: 0 | O123: 0 | P123: 0 | Q123: 0 | R123: 1 | S123: 0 | T123: 0 | U123: 1 | V123: 2 | W123: 0.1457 | X123: NO | Y123: NO | Z123: NA | AA123: NA | AB123: NO | AC123: NO | AD123: NO | AE123: 4.119e-05 | AF123: NO | AG123: NO | AH123: NA | AI123: NA | AJ123: 35.44 | AK123: NA | AL123: 9152 | AM123: 120 | AN123: 9307 | AO123: 0.01289352101 | AP123: 23 | AQ123: 1 | AR123: 24 | AS123: 0.04166666667 | AT123: 0.2700911153 | AU123: 20 | AV123: 20 | AW123: Artifact (8)
